Workbook

Sheet Rules

Sheet Select Syllable Rule
B1: Select a picture for the type of syllabication rule you want to work with.
B4: =CONCATENATE("Regular Donuts 50% long Sound 50% Short Sound do|nut ri |ver ",'Sample Worksheets'!B18) -> Regular Donuts 50% long Sound 50% Short Sound do|nut ri |ver 980 | C4: =CONCATENATE("Powdered Donuts Diphthong Vowel Sound Vowel Pairs: aw ew ow oy pow|der law|yer roy|al ",'Sample Worksheets'!C18) -> Powdered Donuts Diphthong Vowel Sound Vowel Pairs: aw ew ow oy pow|der law|yer roy|al 76 | D4: =CONCATENATE("Fruit Filled Donuts Diphthong Vowel Sound Vowel Pairs: au ou oo oi ue sau|sage cou|gar poi|son ",'Sample Worksheets'!D18) -> Fruit Filled Donuts Diphthong Vowel Sound Vowel Pairs: au ou oo oi ue sau|sage cou|gar poi|son 26 | E4: =CONCATENATE("Glazed Donuts Two syllable words with blends or digraphs. vi|brant pa|trol de|flate jock|ey ",'Sample Worksheets'!E18) -> Glazed Donuts Two syllable words with blends or digraphs. vi|brant pa|trol de|flate jock|ey 162 | F4: =CONCATENATE("Long John Donuts Special Vowel Patterns ay ey y ow hay|loft key|note try|out snow|ball ",'Sample Worksheets'!F18) -> Long John Donuts Special Vowel Patterns ay ey y ow hay|loft key|note try|out snow|ball 73 | G4: =CONCATENATE("Twisted Donut Compound Donuts look|out out|age ",'Sample Worksheets'!G18) -> Twisted Donut Compound Donuts look|out out|age 13
B5: =CONCATENATE("Identical Twin Muffins Two identical consonants muf|fin mis|sion slob|ber but|ter ",'Sample Worksheets'!H18) -> Identical Twin Muffins Two identical consonants muf|fin mis|sion slob|ber but|ter 544 | C5: =CONCATENATE("NON Identical Twin Muffins NON identical consonants en|tire flood|gate mus|tard green|house ",'Sample Worksheets'!I18) -> NON Identical Twin Muffins NON identical consonants en|tire flood|gate mus|tard green|house 1172 | D5: =CONCATENATE("R Controlled Corn Muffins Find the vowel or vowel pair + ""r"" tur|key ear|muff poor|house hour|glass ",'Sample Worksheets'!J18) -> R Controlled Corn Muffins Find the vowel or vowel pair + "r" tur|key ear|muff poor|house hour|glass 377 | E5: =CONCATENATE("Triple Muffins Words with 3 consonants. Compound (0%) pil|grim coun|try trans|form ",'Sample Worksheets'!K18) -> Triple Muffins Words with 3 consonants. Compound (0%) pil|grim coun|try trans|form 139 | F5: =CONCATENATE("Triple Muffins Words with 3 consonants. Compound (100%) wheel|chair waist|line ",'Sample Worksheets'!L18) -> Triple Muffins Words with 3 consonants. Compound (100%) wheel|chair waist|line 480 | G5: =CONCATENATE('Sample Worksheets'!M18," ",'Sample Worksheets'!N18,," Double Double Chocolate Muffins Words with 4 consonants. Compound (94%) wind|storm shark|skin tight|rope bed|spread ",) -> 92 57 Double Double Chocolate Muffins Words with 4 consonants. Compound (94%) wind|storm shark|skin tight|rope bed|spread
B6: =CONCATENATE("Find an ''e'' in the middle of a word. Cut behind it and see the two words. (94%) grape|fruit base|ball ",'Sample Worksheets'!P18) -> Find an ''e'' in the middle of a word. Cut behind it and see the two words. (94%) grape|fruit base|ball 310 | C6: =CONCATENATE(" Long compound words 1 + 2 = compound (straw|ber|ry) 2 + 1 = compound (thun|der|storm) 2 + 2 = compound (coun|ter|at|tack) ",'Sample Worksheets'!Q18) -> Long compound words 1 + 2 = compound (straw|ber|ry) 2 + 1 = compound (thun|der|storm) 2 + 2 = compound (coun|ter|at|tack) 531 | E6: =CONCATENATE(" ",'Sample Worksheets'!V18," ",'Sample Worksheets'!Y18," ", 'Sample Worksheets'!Z18," ",'Sample Worksheets'!AA18, " Use all of the rules! ",) -> 1362 558 122 33 Use all of the rules! | G6: =CONCATENATE('Sample Worksheets'!O18,," Words with 5 consonants. Compound (99%) back | stroke bed|spread worth | while 'Select Syllable Rule'! ",) -> 22 Words with 5 consonants. Compound (99%) back | stroke bed|spread worth | while 'Select Syllable Rule'!
B7: =CONCATENATE(" ble * cle *dle fle * gle * kle ple * tle * zle ",'Sample Worksheets'!T18) -> ble * cle *dle fle * gle * kle ple * tle * zle 118 | C7: =CONCATENATE("prefixes de * dis * ex il * im * in * ir re * un ",'Sample Worksheets'!R18) -> prefixes de * dis * ex il * im * in * ir re * un 521 | D7: =CONCATENATE("prefixes un|der o|ver ",'Sample Worksheets'!S18) -> prefixes un|der o|ver 263 | E7: =CONCATENATE("suffixes tion * sion * ance * ence ",'Sample Worksheets'!U18) -> suffixes tion * sion * ance * ence 430

Sheet Dot - Slash Drill
B2: vowels (a e i o u ) = consonants = r w y =
B4: =LOOKUP(RAND()*41,$S$4:$S$45,$T$4:$T$45) -> r | C4: =LOOKUP(RAND()*41,$S$4:$S$45,$T$4:$T$45) -> k | D4: i | E4: u | F4: w | G4: a | H4: i | I4: d | J4: o | K4: a | L4: i | M4: z | N4: p | O4: b | P4: r | Q4: 15 | S4: 0 | T4: a
B5: =LOOKUP(RAND()*41,$S$4:$S$45,$T$4:$T$45) -> e | C5: a | D5: q | E5: i | F5: e | G5: k | H5: l | I5: a | J5: e | K5: d | L5: r | M5: k | N5: a | O5: g | P5: a | Q5: =Q4+15 -> 30 | S5: =1+S4 -> 1 | T5: b
B6: j | C6: a | D6: r | E6: u | F6: r | G6: y | H6: j | I6: p | J6: e | K6: r | L6: u | M6: e | N6: p | O6: d | P6: r | Q6: =Q5+15 -> 45 | S6: =1+S5 -> 2 | T6: c
B7: k | C7: a | D7: i | E7: k | F7: j | G7: q | H7: u | I7: d | J7: r | K7: x | L7: j | M7: b | N7: i | O7: y | P7: n | Q7: 60 | S7: 3 | T7: d
B8: o | C8: w | D8: a | E8: s | F8: a | G8: u | H8: n | I8: y | J8: j | K8: t | L8: a | M8: r | N8: o | O8: u | P8: m | Q8: 75 | S8: 4 | T8: e
B9: o | C9: i | D9: p | E9: w | F9: r | G9: k | H9: t | I9: e | J9: r | K9: e | L9: e | M9: c | N9: u | O9: h | P9: w | Q9: 90 | S9: 5 | T9: f
B10: z | C10: b | D10: i | E10: l | F10: a | G10: u | H10: w | I10: n | J10: v | K10: s | L10: r | M10: e | N10: z | O10: w | P10: a | Q10: 105 | S10: 6 | T10: g
B11: a | C11: e | D11: w | E11: o | F11: j | G11: b | H11: o | I11: i | J11: w | K11: m | L11: i | M11: y | N11: a | O11: z | P11: b | Q11: 120 | S11: 7 | T11: h
B12: y | C12: a | D12: x | E12: t | F12: f | G12: l | H12: h | I12: h | J12: r | K12: r | L12: o | M12: l | N12: d | O12: r | P12: c | Q12: 135 | S12: 8 | T12: i
B13: y | C13: m | D13: p | E13: r | F13: o | G13: s | H13: y | I13: a | J13: t | K13: a | L13: n | M13: m | N13: c | O13: a | P13: j | Q13: 150 | S13: 9 | T13: j
S14: 10 | T14: k
S15: 11 | T15: l
S16: 12 | T16: m
S17: 13 | T17: n
S18: 14 | T18: o
S19: 15 | T19: p
S20: 16 | T20: q
S21: 17 | T21: r
S22: 18 | T22: s
S23: 19 | T23: t
S24: 20 | T24: u
S25: 21 | T25: v
S26: 22 | T26: w
S27: 23 | T27: x
S28: 24 | T28: y
S29: 25 | T29: z
S30: 26 | T30: a
S31: 27 | T31: e
S32: 28 | T32: i
S33: 29 | T33: o
S34: 30 | T34: u
S35: 31 | T35: r
S36: 32 | T36: w
S37: 33 | T37: y
S38: 34 | T38: a
S39: 35 | T39: e
S40: 36 | T40: i
S41: 37 | T41: o
S42: 38 | T42: u
S43: 39 | T43: r
S44: 40 | T44: w
S45: 41 | T45: y

Sheet Additional Words

Sheet able ible
B1: Old Stuff | D1: Check Root | E1: More Words | F1: Base | G1: Modified | H1: Last Letter or Sound | I1: Rule | J1: Rule List
B2: able | C2: 1 | D2: absorb | E2: absorbable | F2: =LEFT((E2),LEN(E2)-4) -> absorb | G2: absorb | H2: =IF(OR(RIGHT(F2,1)="e",RIGHT(F2,1)="h",RIGHT(F2,1)="w",RIGHT(F2,1)="y",),RIGHT(F2,2),RIGHT(F2,1)) -> b | J2: As Is
B3: abominable | D3: adsorb | E3: adsorbable | F3: =LEFT((E3),LEN(E3)-4) -> adsorb | G3: adsorb | H3: =IF(OR(RIGHT(F3,1)="e",RIGHT(F3,1)="h",RIGHT(F3,1)="w",RIGHT(F3,1)="y",),RIGHT(F3,2),RIGHT(F3,1)) -> b | J3: + able
B4: acceptable | D4: ascribe | E4: ascribable | F4: ascrib | G4: ascribe | H4: b | J4: + ible
B5: acccessible | E5: bribable | F5: brib | G5: bribe | H5: b | J5: Drop e + able
B6: accountable | E6: climbable | F6: climb | G6: climb | H6: b | J6: Drop ?e + able
B7: accredible | E7: clubable | F7: club | G7: club | H7: b | J7: Drop e + ible
B8: achievable | E8: clubbable | F8: clubb | G8: club | H8: b | J8: y to i + able
B9: actionable | E9: curbable | F9: curb | G9: curb | H9: b | J9: y to i + ible
B10: adaptable | D10: describe | E10: describable | F10: describ | G10: describe | H10: b | J10: double + able/ible
B11: addable | D11: perturb | E11: imperturbable | F11: imperturb | G11: perturb | H11: b
B12: addressable | D12: probable | E12: improbable | F12: improb | G12: probable | H12: b
B13: adjustable
B14: admirable
B15: admissible | D15: perturb | E15: perturbable | F15: perturb | G15: perturb | H15: b
B16: adoptable | D16: probably | E16: probable | F16: prob | G16: probably | H16: b
B17: adorable | E17: scrubbable | F17: scrubb | G17: scrub | H17: b
B18: advisable | E18: sorbable | F18: sorb | G18: sorb | H18: b
B19: affable | E19: tubbable | F19: tubb | G19: tub | H19: b
B20: affordable | E20: unclimbable | F20: unclimb | G20: climb | H20: b
B21: agreeable | E21: unclubbable | F21: unclubb | G21: club | H21: b
B22: aienable | D22: describe | E22: undescribable | F22: undescrib | G22: describe | H22: b
B23: allowable | D23: bible | E23: bible | F23: bible | G23: bible | H23: le
B24: amble | D24: abdicate | E24: abdicable | F24: abdic | G24: abdicate | H24: c /k/
B25: amendable | D25: allocate | E25: allocable | F25: alloc | G25: allocate | H25: c /k/
B26: answerable | E26: amicable | F26: amic | H26: c /k/
B27: appealable | D27: apply | E27: applicable | F27: applic | G27: apply | H27: c /k/
B28: appeasable | D28: cable | E28: cable | F28: cable | G28: cable | H28: le
B29: applaudable
B30: applicable | D30: communicate | E30: cummunicable | F30: cummunic | G30: communicate | H30: c /k/
B31: approtionable | D31: confiscate | E31: confiscable | F31: confisc | G31: confiscate | H31: c /k/
B32: apprehensible | D32: despise | E32: despicable | F32: despic | G32: despise | H32: c /k/
B33: approachable | D33: educate | E33: educable | F33: educ | G33: educate | H33: c /k/
B34: approvable | D34: eradicate | E34: eradicable | F34: eradic | G34: eradicate | H34: c /k/
B35: arguable | D35: evoke | E35: evocable | F35: evoc | G35: evoke | H35: c /k/
B36: ascribable | D36: explicit | E36: explicable | F36: explic | G36: explicit | H36: c /k/
B37: assailable | D37: extricate | E37: extricable | F37: extric | G37: extricate | H37: c /k/
B38: assinableasumable | D38: immediate | E38: immedicable | F38: immedic | G38: immediate | H38: c /k/
B39: attachable | E39: impeccable | F39: impecc | G39: impeccable | H39: c /k/
B40: attainable | E40: implacable | F40: implac | G40: implacable | H40: c /s/
B41: attemptable
B42: attributable | D42: application | E42: inapplicable | F42: inapplic | G42: application | H42: c /k/
B43: audible | D43: communicate | E43: incommunicable | F43: incommunic | G43: communicate | H43: c /k/
B44: auditable | D44: educate | E44: ineducable | F44: ineduc | G44: educate | H44: c /k/
B45: avaiable | D45: eradicate | E45: ineradicable | F45: ineradic | G45: eradicate | H45: c /k/
B46: avoidable | D46: explicit | E46: inexplicable | F46: inexplic | G46: explicit | H46: c /k/
B47: awardable | D47: extricate | E47: inextricable | F47: inextric | G47: extricate | H47: c /k/
B48: bable
B49: bearable | D49: revoke | E49: irrevocable | F49: irrevoc | G49: revoke | H49: c /k/
B50: beatable | D50: medical | E50: medicable | F50: medic | G50: medical | H50: c /k/
B51: believable | E51: peccable | F51: pecc | G51: peccable | H51: c /k/
B52: dendable | E52: playable | F52: play | G52: play | H52: ay
B53: bible | D53: practice | E53: practicable | F53: practic | G53: practice | H53: c /k/
B54: billable | D54: predicate | E54: predicable | F54: predic | G54: predicate | H54: c /k/
B55: bindable | D55: replicate | E55: replicable | F55: replic | G55: replicate | H55: c /k/
B56: biteable | D56: revoke | E56: revocable | F56: revoc | G56: revoke | H56: c /k/
B57: leachable | D57: traffic | E57: trafficable | F57: traffic | G57: traffic | H57: c /k/
B58: bobble | D58: communicable | E58: uncummunicable | F58: uncummunic | G58: communicable | H58: c /k/
B59: boilable | D59: educate | E59: uneducable | F59: uneduc | G59: educate | H59: c /k/
B60: bondable | D60: vindicate | E60: vindicable | F60: vindic | G60: vindicate | H60: c /k/
B61: bookable | D61: vocal | E61: vocable | F61: voc | G61: vocal | H61: c /k/
B62: bootable | D62: coerce | E62: coercible | F62: coerc | G62: coerce | H62: c /s/
B63: brabble | E63: cognoscible | F63: cognosc | H63: c /s/
B64: bramble | E64: concusiscible | F64: concusisc | H64: c /s/
B65: breakable | E65: cruckble | F65: cruc | H65: c /k/
B66: breathable | D66: deduct | E66: deducible | F66: deduc | G66: deduct | H66: c /s/
B67: bubble | D67: educate | E67: educible | F67: =LEFT((E67),LEN(E67)-4) -> educ | G67: educate | H67: c /k/
B68: buidable | D68: vincible | E68: envincible | F68: envinc | G68: vincible | H68: c /s/
B69: bumble | E69: fencible | F69: fenc | G69: fence | H69: c /s/
B70: burnable | E70: forcible | F70: forc | G70: force | H70: c /s/
B71: cable | E71: immiscible | F71: immisc | H71: c /s/
B72: calculable | D72: coerce | E72: incoercible | F72: incoerc | G72: coerce | H72: c /s/
B73: cancelable | D73: convince | E73: inconvincible | F73: inconvinc | G73: convince | H73: c /s/
B74: capable | D74: induct | E74: inducible | F74: induc | G74: induct | H74: c /s/
B75: cashable | D75: vincible | E75: invincible | F75: invinc | G75: vincible | H75: c /s/
B76: catchable | E76: irascible | F76: irasc | H76: c /s/
B77: certifiable | D77: reduce | E77: irreducible | F77: irreduc | G77: reduce | H77: c /s/
B78: changeable | D78: produce | E78: irreproducible | F78: irreproduc | G78: produce | H78: c /s/
B79: charitable | E79: miscible | F79: misc | H79: c /s/
B80: cherishable | D80: reproduce | E80: nonreproducible | F80: nonreproduc | G80: reproduce | H80: c /s/
B81: chewable | D81: produce | E81: producible | F81: produc | G81: produce | H81: c /s/
B82: citable | E82: putgrescible | F82: putgresc | H82: c /s/
B83: coachable | D83: reduce | E83: reducible | F83: reduc | G83: reduce | H83: c /s/
B84: cobble | D84: reproduce | E84: reproducible | F84: reproduc | G84: reproduce | H84: c /s/
B85: codable | D85: vincible | E85: vincible | F85: vinc | G85: vincible | H85: c /s/
B86: ocercible | E86: abradable | F86: abrad | H86: =IF(OR(RIGHT(F86,1)="e",RIGHT(F86,1)="h",RIGHT(F86,1)="w",RIGHT(F86,1)="y",),RIGHT(F86,2),RIGHT(F86,1)) -> d
B87: collapsible | E87: addable | F87: add | G87: add | H87: d
B88: collectable | D88: afford | E88: affordable | F88: afford | G88: afford | H88: d
B89: combustible | D89: amend | E89: amendable | F89: amend | G89: amend | H89: d
B90: comfortable | D90: applaud | E90: applaudable | F90: applaud | G90: applaud | H90: d
B91: commadable | D91: ascend | E91: ascendable | F91: ascend | G91: ascend | H91: d
B92: commendable | D92: avoid | E92: avoidable | F92: avoid | G92: avoid | H92: d
B93: comensurable | D93: award | E93: awardable | F93: award | G93: award | H93: d
B94: committable | E94: bendable | F94: bend | G94: bend | H94: d
B95: communicable | E95: biddable | F95: bidd | G95: bid | H95: d
B96: compactible | E96: bindable | F96: bind | G96: bind | H96: d
B97: commutable | E97: biodegradable | F97: biodegrad | H97: d
B98: companionable | E98: bondable | F98: bond | G98: bond | H98: d
B99: comparable | E99: buildable | F99: build | G99: build | H99: d
B100: compellable | E100: codable | F100: cod | G100: code | H100: d
B101: comprehendible | D101: command | E101: commandable | F101: command | G101: command | H101: d
B102: comprehensible | D102: commend | E102: commendable | F102: commend | G102: commend | H102: d
B103: concealable | D103: compound | E103: compoudable | F103: compoud | G103: compound | H103: d
B104: concieivable | D104: exclude | E104: excludable | F104: exclud | G104: exclude | H104: d
B105: condemnable | D105: defend | E105: defendable | F105: defend | G105: defend | H105: d
B106: condensable | D106: degrade | E106: degradable | F106: degrad | G106: degrade | H106: d
B107: condensible | D107: demand | E107: demandable | F107: demand | G107: demand | H107: d
B108: conditonable | D108: depend | E108: dependable | F108: depend | G108: depend | H108: d
B109: conductible | D109: discard | E109: discardable | F109: discard | G109: discard | H109: d
B110: conferrable | D110: divide | E110: dividable | F110: divid | G110: divide | H110: d
B111: confessable | D111: download | E111: downloadable | F111: download | G111: download | H111: d
B112: confirmable | D112: emend | E112: emendable | F112: emend | G112: emend | H112: d
B113: connectable | D113: evade | E113: evadable | F113: evad | G113: evade | H113: d
B114: consionable | D114: expand | E114: expandable | F114: expand | G114: expand | H114: d
B115: considerable | D115: expend | E115: expendable | F115: expend | G115: expend | H115: d
B116: constable | D116: extend | E116: extendable | F116: extend | G116: extend | H116: d
B117: construable | D117: extrude | E117: extrudable | F117: extrud | G117: extrude | H117: d
B118: constructible | E118: fadable | F118: fad | G118: fade | H118: d
B119: consumable | E119: breedable | F119: breed | G119: breed | H119: d
B120: containable | E120: findable | F120: find | G120: find | H120: d
B121: contemptible | E121: foldable | F121: fold | G121: fold | H121: d
B122: contestable | E122: fordable | F122: ford | G122: ford | H122: d
B123: contractible | E123: formidable | F123: formid | G123: formidable | H123: d
B124: contradictable | E124: gradable | F124: grad | G124: grade | H124: d
B125: contrastable | E125: guidable | F125: guid | G125: guide | H125: d
B126: controllable | E126: hidable | F126: hid | G126: hide | H126: d
B127: conversable | E127: holdable | F127: hold | G127: hold | H127: d
B128: convertible | E128: illaudable | F128: illaud | G128: laudable | H128: d
B129: cookable | D129: include | E129: includable | F129: includ | G129: include | H129: d
B130: correctable | E130: kneadable | F130: knead | G130: knead | H130: d
B131: corrigible | E131: laudable | F131: =LEFT((E131),LEN(E131)-4) -> laud | G131: laud | H131: =IF(OR(RIGHT(F131,1)="e",RIGHT(F131,1)="h",RIGHT(F131,1)="w",RIGHT(F131,1)="y",),RIGHT(F131,2),RIGHT(F131,1)) -> d
B132: corrodible | E132: lendable | F132: lend | G132: lend | H132: d
B133: corruptible | E133: mendable | F133: mend | G133: mend | H133: d
B134: countable | E134: moldable | F134: mold | G134: mold | H134: d
B135: coverable | E135: oxidable | F135: oxid | G135: oxide | H135: d
B136: credible | D136: persuade | E136: persuadable | F136: persuad | G136: persuade | H136: d
B137: creditable | E137: pleadable | F137: plead | G137: plead | H137: d
B138: crossable | E138: readable | F138: read | G138: read | H138: d
B139: crucible | D139: recommend | E139: recommendable | F139: recommend | G139: recommend | H139: d
B140: crumble | E140: recordable | F140: record | G140: record | H140: d
B141: crushable | E141: refundable | F141: refund | G141: refund | H141: d
B142: culpable | E142: rewardable | F142: reward | G142: reward | H142: d
B143: burable | E143: ridable | F143: rid | G143: ride | H143: d
B144: buttable | E144: sendable | F144: send | G144: send | H144: d
B145: dabble
B146: debatable | E146: slidable | F146: slid | G146: slide | H146: d
B147: deceivable | E147: soundable | F147: sound | G147: sound | H147: d
B148: decidable | E148: spendable | F148: spend | G148: spend | H148: d
B149: decipherable | E149: spreadable | F149: spread | G149: spread | H149: d
B150: declarable | D150: divide | E150: subdividable | F150: subdivid | G150: subdivide | H150: d
B151: declinable | E151: tradable | F151: trad | G151: trade | H151: d
B152: deductible | E152: vendable | F152: vend | H152: d
B153: deducible | E153: voidable | F153: void | G153: void | H153: d
B154: defendable | E154: wadable | F154: wad | G154: wade | H154: d
B155: defensible | E155: weldable | F155: weld | G155: weld | H155: d
B156: deferrable | E156: windable | F156: wind | G156: wind | H156: d
B157: definable | E157: addible | F157: add | G157: add | H157: d
B158: deflectable | D158: ascend | E158: ascendible | F158: ascend | G158: ascend | H158: d
B159: deforable | D159: audible | E159: audible | F159: aud | G159: audible | H159: d
B160: defrayable | D160: comprehend | E160: comprehendible | F160: comprehend | G160: comprehend | H160: d
B161: degradable | D161: corrode | E161: corrodible | F161: corrod | G161: corrode | H161: d
B162: delectable | D162: credit | E162: credible | F162: cred | G162: credit | H162: d
B163: lelegable | D163: descend | E163: descendible | F163: descend | G163: descend | H163: d
B164: deliverable | D164: edible | E164: edible | F164: ed | G164: edible | H164: d
B165: demandable
B166: demonstraable | D166: erode | E166: erodible | F166: erod | G166: erode | H166: d
B167: deniable | D167: evade | E167: evadible | F167: evad | G167: evade | H167: d
B168: dependable | D168: exclude | E168: excludible | F168: exclud | G168: exclude | H168: d
B169: peletable | D169: extend | E169: extendible | F169: extend | G169: extend | H169: d
B170: deporable | D170: audible | E170: inaudible | F170: inaud | G170: audible | H170: d
B171: deportable | D171: include | E171: includible | F171: includ | G171: include | H171: d
B172: depriciable | D172: incredible | E172: incredible | F172: incred | G172: incredible | H172: d
B173: derivable
B174: descendible | D174: elude | E174: ineludible | G174: elude
B175: describable | D175: mandible | E175: mandible | F175: mand | G175: mandible | H175: d
B176: desirable | D176: rend | E176: rendible | F176: rend | G176: rend | H176: d
B177: despicable | D177: audible | E177: subaudible | F177: subaud | G177: audible | H177: d
B178: destructable | E178: vendible | F178: vend | H178: d
B179: detachable | D179: agree | E179: agreeable | F179: agree | G179: agree | H179: ee
B180: detectable | E180: biteable | F180: bite | G180: bite | H180: te
B181: determinable | E181: bridgeable | F181: bridge | G181: bridge | H181: ge
B182: dibble | D182: camouflage | E182: camouflageable | F182: camouflage | G182: camouflage | H182: ge
B183: differentiable | D183: canoe | E183: canoeable | F183: canoe | G183: canoe | H183: oe
B184: diffusible | E184: changeable | F184: change | G184: change | H184: ge
B185: digestible | E185: chargeable | F185: charge | G185: charge | H185: ge
B186: diminishable | E186: citeable | F186: cite | G186: cite | H186: te
B187: dimmable | E187: closeable | F187: close | G187: close | H187: se | I187: z
B188: dirigible | E188: danceable | F188: dance | G188: dance | H188: c /s/
B189: disable | E189: dateable | F189: date | G189: date | H189: te
B190: disagreeable | D190: diagnose | E190: diagnoseable | F190: diagnose | G190: diagnose | H190: se | I190: s
B191: disassemble | D191: agree | E191: disagreeable | F191: disagree | G191: agree | H191: ee
B192: disavowable | D192: discharge | E192: dischargeable | F192: discharge | G192: discharge | H192: ge
B193: discardable | D193: courage | E193: discourageable | F193: discourage | G193: courage | H193: ge
B194: discernible | D194: dislike | E194: dislikeable | F194: dislike | G194: dislike | H194: ke
B195: dischargeable | D195: displace | E195: displaceable | F195: =LEFT((E195),LEN(E195)-4) -> displace | G195: displace | H195: c /s/
B196: discomfortable | D196: service | E196: disserviceable | F196: disservice | G196: service | H196: c /s/
B197: discountable | E197: drapeable | F197: drape | G197: drape | H197: =IF(OR(RIGHT(F197,1)="e",RIGHT(F197,1)="h",RIGHT(F197,1)="w",RIGHT(F197,1)="y",),RIGHT(F197,2),RIGHT(F197,1)) -> pe
B198: discourageable | E198: driveable | F198: drive | G198: drive | H198: ve
B199: discoverable | E199: dyeable | F199: dye | G199: dye | H199: ye
B200: descreditable | D200: efface | E200: effaceable | F200: efface | G200: efface | H200: c /s/
... 902 more rows

Sheet All Words New
A1: 8 | B1: =COUNTA(B3:B9799) -> 9072 | F1: =B1/A1 -> 1134 | H1: =COUNTBLANK(#REF!) ->  | J1: =CONCATENATE("Analyze and Review Per Sudent ",ROUNDDOWN(B1/A1,0)) -> Analyze and Review Per Sudent 1134 | K1: My Rime ==> | L1: ear | M1: =LEN(L1) -> 3 | O1: =COUNTBLANK(Q3:Q9090) -> 16 | P1: donut count | Q1: =COUNTIF(E3:E4652,"donut") -> 479 | R1: =COUNTIF(G3:G4652,"donut") -> 0 | S1: =COUNTIF(S3:S4652,"n") -> 2987 | T1: =COUNTIF(T3:T4652,"n") -> 1027 | U1: =COUNTIF(U19:U4652,"x") -> 51 | V1: =COUNTIF(V19:V4652,"x") -> 87 | W1: 57 | X1: 166 | Y1: 59 | Z1: 170 | AA1: 184 | AB1: 106 | AC1: 24 | AD1: 34 | AE1: 55 | AF1: 129 | AG1: 68 | AH1: 22 | AJ1: s | AK1: th | AL1: =COUNTIF(AL19:AL4652,"Y") -> 532 | AM1: 259 | AN1: 408 | AO1: 248 | AP1: 142 | AQ1: 0 | AR1: suffix | AS1: ?le | AT1: Pick ==> | AU1: x | AV1: 4 | BA1: =COUNTA(BA4:BA72) -> 62
A2: =COUNTA(B3:B9800) -> 9072 | B2: Keyword | C2: Spelling Base | D2: Root match Keyword | E2: Primary Category | F2: Secondary Category | G2: Specialized Category | H2: 1st Vowel Sound | I2: Beginning Letter | J2: Last Vowel Sound | K2: Ending Letter Sound | L2: Find My Rime | M2: Words Their Way Sort # | N2: Words Their Way Extended Sort # | O2: Number of Dictionary Syllables | P2: Dictionary Cuts | Q2: MBRP Excel Cuts Eide Rules | R2: MBRP Javascript Cuts | S2: Dictionary Cuts Match Javascript | T2: Dictionary Cuts Match Excel Cuts | U2: ch | V2: ck | W2: gh | X2: ll | Y2: mb | Z2: mp | AA2: nd | AB2: ng | AC2: nk | AD2: ph | AE2: sh | AF2: ss | AG2: th | AH2: ld | AI2: Ends in R | AL2: a?e | AM2: e?e | AN2: i?e | AO2: o?e | AP2: u?e | AQ2: ?le | AR2: ed | AS2: ion | AT2: ing | AU2: =AU1 -> x | AV2: Rime is 2 | AW2: Suffix | AX2: Suffix Action | BA2: Phonograms Alphabetical by Frequency | BB2: Vowel Sounds | BC2: MBRP Image | BD2: Length of Word -1 | BE2: Vowel Sound Markings | BF2: Search Validation | BH2: vowels | BI2: Tricky Sounds
A3: 0 | B3: abandon | D3: =IF(C3="","",IF(VLOOKUP(C3,$B$3:$B$9800,1)=C3,"","X")) ->  | E3: long multi | I3: =IF(OR(LEFT(B3,2)="ch",LEFT(B3,2)="sh",LEFT(B3,2)="th",LEFT(B3,2)="tw",),LEFT(B3,2),LEFT(B3,1)) -> a | J3: ŭ schwa cup | K3: =IF(OR(RIGHT(B3,1)="e",RIGHT(B3,1)="h",RIGHT(B3,1)="w",RIGHT(B3,1)="y",),RIGHT(B3,2),RIGHT(B3,1)) -> n | L3: =IF(RIGHT(B3,$M$1)=$L$1,"Y","N") -> N | O3: =LEN(P3)-LEN(SUBSTITUTE(P3," ",""))+1 -> 3 | P3: a ban don | Q3: a ban don | S3: =IF(P3=R3,"Y","N") -> N | T3: =IF(P3=Q3,"Y","N") -> Y | U3: =IF(AND(FIND(U$2,$B3)>1,FIND(U$2,$B3)<$BD3),"x"," ") ->  | AA3: x | AI3: =IF(RIGHT(B3,1)="r","R","") ->  | AJ3: =IF(RIGHT(B3,1)=$AJ$1,$AJ$1,"") ->  | AK3: =IF(RIGHT(B3,2)=$AK$1,$AK$1,"") ->  | AL3: =IF(ISERROR(SEARCH(AL$2,$B3,1)),"","Y") ->  | AQ3: =IF(RIGHT(B3,2)="le",RIGHT(B3,3),"") ->  | AR3: =IF(ISERROR(SEARCH(AR$2,$B3,$BD3 -1)),"","Y") ->  | AS3: =IF(ISERROR(SEARCH(AS$2,$B3,$BD3 -1)),"",RIGHT(B3,4)) ->  | AT3: =IF(ISERROR(SEARCH(AT$2,$B3,$BD3 -1)),"","Y") ->  | AU3: =IF(ISERROR(SEARCH(AU$2,$B3,1)),"","Y") ->  | AV3: =IF(LEFT(RIGHT(Q3,$AV$1),1)= " ", "Y","N") -> Y | AY3: =(RIGHT(Q3,2)) -> on | AZ3: bl | BA3: schwa | BB3: schwa cup | BC3: cat | BD3: =LEN(B3)-1 -> 6 | BE3: ă jam | BG3: 1 | BH3: a | BI3: nce: sentence/conference appearance/advance
A4: =A3+1 -> 1 | B4: abandonment | E4: long multi | I4: =IF(OR(LEFT(B4,2)="ch",LEFT(B4,2)="sh",LEFT(B4,2)="th",LEFT(B4,2)="tw",),LEFT(B4,2),LEFT(B4,1)) -> a | J4: ŭ schwa cup | K4: t | L4: N | O4: 4 | P4: a ban don ment | Q4: a ban don ment | S4: N | T4: Y | AA4: x | AI4: =IF(RIGHT(B4,1)="r","R","") ->  | AJ4: =IF(RIGHT(B4,1)=$AJ$1,$AJ$1,"") ->  | AK4: =IF(RIGHT(B4,2)=$AK$1,$AK$1,"") ->  | AQ4: =IF(RIGHT(B4,2)="le",RIGHT(B4,3),"") ->  | AS4: =IF(ISERROR(SEARCH(AS$2,$B4,$BD4 -1)),"",RIGHT(B4,4)) ->  | AV4: =IF(LEFT(RIGHT(Q4,$AV$1),1)= " ", "Y","N") -> N | AY4: nt | AZ4: br | BA4: a | BB4: ă mat | BC4: cake | BD4: 10 | BE4: ĕ egg | BG4: 2 | BH4: e | BI4: ture: mature/picture
A5: 2 | B5: abase | E5: donut | I5: a | J5: ŭ schwa cup | K5: se | L5: N | O5: 2 | P5: a base | Q5: a base | S5: N | T5: Y | AL5: Y | AV5: N | AY5: se | AZ5: ch | BA5: a | BB5: ā table | BC5: strawberry | BD5: 4 | BE5: ĭ milk | BF5: re | BG5: 3 | BH5: i | BI5: Do we need ire (admire) or long i with r ending consonant?
A6: 3 | B6: abate | E6: donut | I6: a | J6: ā plate | K6: te | L6: N | O6: 2 | P6: a bate | Q6: a bate | S6: N | T6: Y | AL6: Y | AV6: N | AY6: te | AZ6: ck | BA6: a | BB6: ä father | BC6: car | BD6: 4 | BE6: ĭ unaccented milk | BF6: dis | BG6: 4 | BH6: o | BI6: Do we need long u (mule) or use the blueberry diphthong?
A7: 4 | B7: abbess | E7: muffin twin | H7: ă jam | I7: a | J7: ĕ egg | K7: s | L7: N | O7: 2 | P7: ab bess | Q7: ab bess | R7: ab bess | S7: Y | T7: Y | AJ7: s | AV7: N | AY7: ss | AZ7: cl | BA7: ar | BB7: är car | BC7: cake | BD7: 5 | BE7: ŏ pot | BF7: ing | BG7: 5 | BH7: u | BI7: Fry article: has 17 vowel phonemes. My images show 20 phongrames.
A8: 5 | B8: abbey | E8: muffin twin | H8: ă jam | I8: a | J8: ē peach | K8: ey | L8: N | O8: 2 | P8: ab bey | Q8: ab bey | R8: ab bey | S8: Y | T8: Y | AV8: Y | AY8: ey | AZ8: cr | BA8: ai | BB8: ā laid | BC8: chair | BD8: 4 | BE8: ŭ cup | BF8: ns | BH8: nt | BI8: Wordsmyth unaccented ih (short i)??? milk
A9: 6 | B9: abbot | E9: muffin twin | H9: ă jam | I9: a | J9: ĕ egg | K9: t | L9: N | O9: 2 | P9: ab bot | Q9: ab bot | R9: ab bot | S9: Y | T9: Y | AV9: Y | AY9: ot | AZ9: dl | BA9: air | BB9: âr chair | BC9: strawberry | BD9: 4 | BE9: ŭ schwa cup | BF9: ?le | BH9: ck | BI9: ar /or = ir in unaccented final syllable
A10: 7 | B10: abdicate | E10: long multi | I10: a | J10: ā plate | K10: te | L10: N | O10: 3 | P10: ab di cate | Q10: ab di cate | S10: N | T10: Y | AL10: Y | AV10: N | AY10: te | AZ10: dr | BA10: au | BB10: ä author | BC10: strawberry | BD10: 7 | BE10: ā plate | BF10: oe | BH10: nd
A11: 8 | B11: abduct | E11: muffin mixed | I11: a | J11: ŭ cup | K11: t | L11: N | O11: 2 | P11: ab duct | Q11: ab duct | S11: N | T11: Y | AV11: N | AY11: ct | AZ11: ff | BA11: augh | BB11: ä caught | BC11: strawberry | BD11: 5 | BE11: ē peach | BF11: gh | BH11: ss
A12: 9 | B12: abductee | E12: long multi | I12: a | J12: ē peach | K12: ee | L12: N | O12: 3 | P12: ab duct ee | Q12: ab duc tee | S12: N | T12: N | X12: =IF(AND(FIND(X$2,$B12)>1,FIND(X$2,$B12)<$BD12),"x"," ") ->  | AV12: Y | AY12: ee | AZ12: fl | BA12: aw | BB12: ä straw | BC12: cake | BD12: 7 | BE12: ī knife | BF12: pre | BH12: pt
A13: 10 | B13: abduction | C13: abduct | E13: suffixes | I13: a | J13: tion vacation | K13: n | L13: N | M13: 14 | O13: 3 | P13: ab duc tion | Q13: ab duc tion | S13: N | T13: N | AS13: tion | AV13: N | AY13: n | AZ13: fr | BA13: ay | BB13: ā cake | BC13: hen | BD13: 8 | BE13: ō toast | BF13: bl
A14: 11 | B14: abductor | E14: long multi | I14: a | J14: er ir ur burnt | K14: r | L14: N | O14: 3 | P14: ab duc tor | Q14: ab duc tor | S14: N | T14: Y | AI14: R | AV14: Y | AY14: or | AZ14: ft | BA14: e | BB14: ĕ hen | BC14: peach | BD14: 7 | BE14: ū fuel | BF14: au
A15: 12 | B15: abeyance | E15: suffixes | I15: a | J15: ŭ schwa cup | K15: ce | L15: N | O15: 3 | P15: a bey ance | Q15: a bey ance | S15: N | T15: Y | AL15: Y | AV15: N | AY15: ce | AZ15: gg | BA15: e | BB15: ē be | BC15: peach | BD15: 7 | BE15: ar jar | BF15: aw
A16: 13 | B16: abhor | E16: muffin mixed | I16: a | J16: or fork | K16: r | L16: N | O16: 2 | P16: ab hor | Q16: ab hor | S16: N | T16: Y | AI16: R | AV16: Y | AY16: or | AZ16: gh | BA16: ea | BB16: ē beat | BC16: hen | BD16: 4 | BE16: er ir ur burnt | BF16: ou
A17: 14 | B17: abhorrence | E17: long multi | I17: a | J17: ŭ schwa cup | K17: ce | L17: N | O17: 3 | P17: ab hor rence | Q17: ab hor rence | S17: N | T17: Y | AV17: N | AY17: ce | AZ17: gl | BA17: ea | BB17: ĕ bread | BC17: cake | BD17: 9 | BE17: or fork | BF17: ow
A18: 15 | B18: abhorrent | E18: long multi | I18: a | J18: ŭ schwa cup | K18: t | L18: N | O18: 3 | P18: ab hor rent | Q18: ab hor rent | S18: N | T18: Y | AV18: N | AY18: nt | AZ18: gn | BA18: ea | BB18: ā break | BC18: peach | BD18: 8 | BE18: air chair | BF18: ew
A19: 16 | B19: ability | E19: long multi | I19: a | J19: ē peach | K19: ty | L19: N | O19: 4 | P19: a bil i ty | Q19: a bi li ty | S19: N | T19: N | AL19: =IF(ISERROR(SEARCH(AL$2,$B19,1)),"","Y") ->  | AV19: N | AW19: abutting | AX19: double | AY19: ty | AZ19: gr | BA19: ei | BB19: ē receive | BC19: ear | BD19: 6 | BE19: ear cereal | BF19: tion
A20: 17 | B20: ablaze | E20: donut blend | I20: a | J20: ā plate | K20: ze | L20: N | O20: 2 | P20: a blaze | Q20: a blaze | S20: N | T20: Y | AL20: Y | AV20: N | AY20: ze | AZ20: ld | BA20: ear | BB20: ēr ear | BC20: bear chair | BD20: 5 | BE20: ew blueberry | BF20: sion
A21: 18 | B21: able | E21: maple syrup | G21: ble | H21: ā plate | I21: a | J21: le apple | K21: le | L21: N | M21: 31 | O21: 2 | P21: a ble | Q21: a ble | R21: a ble | S21: Y | T21: Y | AQ21: ble | AV21: Y | AY21: le | AZ21: lf | BA21: ear | BB21: âr bear | BC21: ??? | BD21: 3 | BE21: aw strawberry | BF21: ion
A22: 19 | B22: aboard | E22: donut | G22: R Controlled | H22: schwa cup | I22: a | J22: or fork | K22: d | L22: N | M22: 37 | O22: 2 | P22: a board | Q22: a board | R22: a board | S22: Y | T22: Y | AV22: N | AY22: rd | AZ22: lg | BA22: ear | BB22: ûr search | BC22: peach | BD22: 5 | BE22: ow wowberry | BF22: cian
A23: 20 | B23: abode | E23: donut | H23: schwa cup | I23: a | J23: ō toast | K23: de | L23: N | O23: 2 | P23: a bode | Q23: a bode | R23: a bode | S23: Y | T23: Y | AO23: Y | AV23: N | AY23: de | AZ23: lk | BA23: ee | BB23: ē bee | BC23: deer | BD23: 4 | BE23: oi boysenberry | BF23: ian
A24: 21 | B24: abolish | E24: long multi | I24: a | J24: ĭ unaccented milk | K24: sh | L24: N | O24: 3 | P24: a bol ish | Q24: a bo lish | S24: N | T24: N | AV24: N | AY24: sh | AZ24: ll | BA24: eer | BB24: ēr deer | BD24: 6 | BE24: oo cook | BF24: ous
A25: 22 | B25: abolition | E25: suffixes | I25: a | J25: tion vacation | K25: n | L25: N | M25: 17 | O25: 4 | P25: ab o li tion | Q25: a bo li tion | S25: N | T25: N | AS25: tion | AV25: N | AY25: on | AZ25: lp | BA25: ei | BB25: ?? their | BC25: peach | BD25: 8 | BE25: le apple | BF25: ize
A26: 23 | B26: abominate | E26: long multi | I26: a | J26: ā plate | K26: te | L26: N | O26: 4 | P26: a bom i nate | Q26: a bo mi nate | S26: N | T26: N | AL26: Y | AV26: N | AY26: te | AZ26: lt | BA26: ei | BB26: ē protein | BC26: feisty | BD26: 8 | BE26: ize alphabatize | BF26: ive
A27: 24 | B27: abort | E27: donut | I27: a | J27: or fork | K27: t | L27: N | O27: 2 | P27: a bort | Q27: a bort | S27: N | T27: Y | AV27: N | AY27: rt | AZ27: mb | BA27: ei | BB27: ī pie | BC27: fern | BD27: 4 | BE27: tion vacation | BF27: ful
A28: 25 | B28: abortion | C28: abort | E28: suffixes | H28: schwa cup | I28: a | J28: tion vacation | K28: n | L28: N | O28: 3 | P28: a bor tion | Q28: a bor tion | R28: a bor tion | S28: Y | T28: Y | AS28: tion | AV28: N | AY28: on | AZ28: mp | BA28: er | BB28: ēr fern | BC28: blueberry | BD28: 7 | BE28: sion television | BF28: less
A29: 26 | B29: abound | E29: donut | G29: Diphthong | H29: schwa cup | I29: a | J29: ō toast | K29: d | L29: N | O29: 2 | P29: a bound | Q29: a bound | R29: a bound | S29: Y | T29: Y | AV29: N | AY29: nd | AZ29: nd | BA29: ew | BB29: oo flew | BC29: mule ?? | BD29: 5 | BE29: sion mission | BF29: est
A30: 27 | B30: about | E30: donut | G30: Diphthong | H30: schwa cup | I30: a | J30: ow wowberry | K30: t | L30: N | M30: 24 | O30: 2 | P30: a bout | Q30: a bout | R30: a bout | S30: Y | T30: Y | AA30: =IF(AND(FIND(AA$2,$B30)>1,FIND(AA$2,$B30)<$BD30),"x"," ") ->  | AV30: N | AY30: ut | AZ30: ng | BA30: ew | BB30: ū few | BC30: cake | BD30: 4 | BE30: cian magician | BF30: ment
A31: 28 | B31: above | E31: donut | H31: schwa cup | I31: a | J31: ŭ cup | K31: ve | L31: N | O31: 2 | P31: a bove | Q31: a bove | R31: a bove | S31: Y | T31: Y | AO31: Y | AV31: N | AY31: ve | AZ31: nk | BA31: ey | BB31: ā they | BC31: peach | BD31: 4 | BE31: ion onion | BF31: ty
A32: 29 | B32: abrasion | E32: suffixes | H32: schwa cup | I32: a | J32: sion television | K32: n | L32: N | O32: 3 | P32: a bra sion | Q32: a bra sion | R32: a bra sion | S32: Y | T32: Y | AS32: sion | AV32: N | AY32: on | AZ32: ns | BA32: ey | BB32: ē key | BD32: 7 | BE32: ous poisonous | BF32: ly
A33: 30 | B33: abroad | E33: donut blend | G33: br | H33: schwa cup | I33: a | J33: aw strawberry | K33: d | L33: N | O33: 2 | P33: a broad | Q33: a broad | R33: a broad | S33: Y | T33: Y | AV33: N | AY33: ad | AZ33: ph | BA33: i | BB33: ĭ fish | BC33: pie | BD33: 5 | BE33: ious | BF33: ible
A34: 31 | B34: abscess | E34: muffin triple | I34: a | J34: ĕ egg | K34: s | L34: N | O34: 2 | P34: ab scess | Q34: ab scess | S34: N | T34: Y | AJ34: s | AV34: N | AY34: ss | AZ34: pl | BA34: i | BB34: ī ivy | BD34: 6 | BE34: xxx | BF34: able
A35: 32 | B35: absence | E35: muffin mixed | I35: a | J35: ŭ schwa cup | K35: ce | L35: N | O35: 2 | P35: ab sence | Q35: ab sence | S35: N | T35: Y | AV35: N | AY35: ce | AZ35: pr | BA35: i | BB35: y onion | BC35: pie | BD35: 6 | BE35: zzz | BF35: x
A36: 33 | B36: absent | E36: muffin mixed | I36: a | J36: ŭ schwa cup | K36: t | L36: N | O36: 2 | P36: ab sent | Q36: ab sent | S36: N | T36: Y | AJ36: =IF(RIGHT(B36,1)=$AJ$1,$AJ$1,"") ->  | AV36: N | AY36: nt | AZ36: sc | BA36: ie | BB36: ī pie | BC36: peach | BD36: 5 | BE36: ing suffix
A37: 34 | B37: absentee | E37: long multi | I37: a | J37: ē peach | K37: ee | L37: N | O37: 3 | P37: ab sen tee | Q37: ab sen tee | S37: N | T37: Y | AV37: Y | AY37: ee | AZ37: sh | BA37: ie | BB37: ē piece | BC37: pie | BD37: 7 | BE37: ing base
A38: 35 | B38: absentmindedness | E38: long multi | I38: a | J38: ŭ schwa cup | K38: s | L38: N | O38: 5 | P38: ab sent mind ed ness | Q38: ab sent min ded ness | S38: N | T38: N | AA38: x | AJ38: s | AV38: N | AY38: ss | AZ38: sk | BA38: igh | BB38: ī night | BC38: bird | BD38: 15 | BE38: ed suffix
A39: 36 | B39: absolutely | C39: absolute | D39: X | E39: long multi | I39: a | J39: ē peach | K39: ly | L39: N | O39: 4 | P39: ab so lute ly | Q39: ab so lute ly | S39: N | T39: Y | AP39: Y | AV39: N | AY39: ly | AZ39: sl | BA39: ir | BB39: ûr bird | BC39: fox | BD39: 9 | BE39: ture - picture
A40: 37 | B40: absorb | E40: muffin mixed | G40: 2 | H40: schwa cup | I40: a | J40: or fork | K40: b | L40: N | O40: 2 | P40: ab sorb | Q40: ab sorb | R40: ab sorb | S40: Y | T40: Y | AV40: N | AY40: rb | AZ40: sm | BA40: o | BB40: ŏ on | BC40: toast | BD40: 5 | BE40: ture - mature
A41: 38 | B41: absorbance | E41: suffixes | I41: a | J41: ŭ schwa cup | K41: ce | L41: N | O41: 3 | P41: ab sorb ance | Q41: ab sor bance | S41: N | T41: N | AV41: N | AY41: ce | AZ41: sn | BA41: o | BB41: ō go | BC41: ??? | BD41: 9
A42: 39 | B42: absorbent | E42: long multi | I42: a | J42: ŭ schwa cup | K42: t | L42: N | O42: 3 | P42: ab sorb ent | Q42: ab sor bent | S42: N | T42: N | AV42: N | AY42: nt | AZ42: sp | BA42: o | BB42: oo do | BC42: toast | BD42: 8
A43: 40 | B43: absorption | C43: absorb | E43: suffixes | H43: schwa cup | I43: a | J43: tion vacation | K43: n | L43: N | M43: 23 | O43: 3 | P43: ab sorp tion | Q43: ab sorp tion | R43: ab sorp tion | S43: Y | T43: Y | AS43: tion | AV43: N | AY43: on | AZ43: sq | BA43: oa | BB43: ō coat | BC43: toast | BD43: 9
A44: 41 | B44: abstain | E44: muffin triple | I44: a | J44: ā plate | K44: n | L44: N | O44: 2 | P44: ab stain | Q44: ab stain | S44: N | T44: Y | AV44: N | AY44: in | AZ44: ss | BA44: oe | BB44: ō toe | BC44: ?? | BD44: 6
A45: 42 | B45: abstention | E45: suffixes | I45: a | J45: tion vacation | K45: n | L45: N | M45: 49 | O45: 3 | P45: ab sten tion | Q45: ab sten tion | S45: N | T45: Y | AS45: tion | AV45: N | AY45: on | AZ45: st | BA45: oe | BB45: oo shoe | BC45: boysenberry | BD45: 9
A46: 43 | B46: abstinence | E46: long multi | I46: a | J46: ŭ schwa cup | K46: ce | L46: N | O46: 3 | P46: ab sti nence | Q46: ab sti nence | S46: N | T46: Y | AN46: Y | AV46: N | AY46: ce | AZ46: sw | BA46: oi | BB46: oi boil | BD46: 9
A47: 44 | B47: abstinent | E47: long multi | I47: a | J47: ŭ schwa cup | K47: t | L47: N | O47: 3 | P47: ab sti nent | Q47: absti nent | S47: N | T47: N | AN47: Y | AV47: N | AY47: nt | AZ47: th | BA47: oo | BB47: oo food | BC47: book | BD47: 8
A48: 45 | B48: abstract | E48: 4 consonants | G48: 1 3 | I48: a | J48: ă jam | K48: t | L48: N | O48: 2 | P48: ab stract | Q48: ab stract | S48: N | T48: Y | AD48: =IF(AND(FIND(AD$2,$B48)>1,FIND(AD$2,$B48)<$BD48),"x"," ") ->  | AV48: N | AY48: ct | AZ48: tw | BA48: oo | BB48: ō floor | BD48: 7
A49: 46 | B49: abstraction | E49: long multi | I49: a | J49: tion vacation | K49: n | L49: N | O49: 3 | P49: ab strac tion | Q49: ab strac tion | S49: N | T49: Y | AS49: tion | AV49: N | AY49: on | AZ49: wh | BA49: oo | BB49: ŭ blood | BC49: fork | BD49: 10
A50: 47 | B50: absurd | E50: muffin mixed | G50: 2 | H50: schwa cup | I50: a | J50: er ir ur burnt | K50: d | L50: N | O50: 2 | P50: ab surd | Q50: ab surd | R50: ab surd | S50: Y | T50: Y | AV50: N | AY50: rd | BA50: or | BB50: ôr lord | BC50: wow berry | BD50: 5
A51: 48 | B51: absurdity | C51: absurd | E51: long multi | I51: a | J51: ē peach | K51: ty | L51: N | O51: 4 | P51: ab surd i ty | Q51: ab sur di ty | S51: N | T51: N | AV51: N | AY51: ty | BA51: ou | BB51: ow house | BD51: 8
A52: 49 | B52: abundance | E52: suffixes | I52: a | J52: ŭ schwa cup | K52: ce | L52: N | O52: 3 | P52: a bun dance | Q52: a bun dance | S52: N | T52: Y | AA52: x | AV52: N | AY52: ce | BA52: ou | BB52: ō soul | BD52: 8
A53: 50 | B53: abuse | E53: donut | H53: schwa cup | I53: a | J53: ew blueberry | K53: se | L53: N | O53: 2 | P53: a buse | Q53: a buse | R53: a buse | S53: Y | T53: Y | AP53: Y | AV53: N | AY53: se | BA53: ou | BB53: oo group | BD53: 4
A54: 51 | B54: abut | E54: donut | H54: schwa cup | I54: a | J54: ŭ cup | K54: t | L54: N | O54: 2 | P54: a but | Q54: a but | R54: a but | S54: Y | T54: Y | AV54: Y | AY54: ut | BA54: ou | BB54: ŭ country | BD54: 3
A55: 52 | B55: academic | E55: long multi | I55: a | J55: ĭ unaccented milk | K55: c | L55: N | O55: 4 | P55: a ca dem ic | Q55: a ca de mic | S55: N | T55: N | AL55: Y | AV55: Y | AY55: ic | BA55: ough | BB55: ŏ thought | BD55: 7
A56: 53 | B56: academy | E56: long multi | I56: a | J56: ē peach | K56: my | L56: N | O56: 4 | P56: a cad e my | Q56: a ca de my | S56: N | T56: N | AL56: Y | AV56: N | AY56: my | BA56: ough | BB56: ō though | BD56: 6
A57: 54 | B57: accede | E57: muffin twin | H57: ĕ egg | I57: a | J57: ē peach | K57: de | L57: N | O57: 2 | P57: ac cede | Q57: ac cede | R57: ac cede | S57: Y | T57: Y | AM57: Y | AR57: Y | AV57: N | AY57: de | BA57: ough | BB57: oo through | BD57: 5
A58: 55 | B58: accelerate | E58: long multi | I58: a | J58: ā plate | K58: te | L58: N | O58: 4 | P58: ac cel er ate | Q58: ac ce ler ate | S58: N | T58: N | AL58: Y | AM58: Y | AV58: Y | AY58: te | BA58: ough | BB58: ow bough | BD58: 9
A59: 56 | B59: acceleration | C59: accelerate | E59: suffixes | H59: ĕ egg | I59: a | J59: tion vacation | K59: n | L59: N | O59: 5 | P59: ac cel er a tion | Q59: ac ce ler a tion | R59: ac ce ler a tion | S59: N | T59: N | AM59: Y | AS59: tion | AV59: N | AY59: on | BA59: ough | BB59: ŭff rough | BD59: 11
A60: 57 | B60: accelerator | C60: accelerate | E60: long multi | I60: a | J60: er ir ur burnt | K60: r | L60: N | O60: 5 | P60: ac cel er a tor | Q60: ac ce ler a tor | S60: N | T60: N | AI60: R | AM60: Y | AV60: Y | AY60: or | BA60: ough | BB60: ŏff trough | BC60: wow berry | BD60: 10
A61: 58 | B61: accent | E61: muffin twin | H61: ă jam | I61: a | J61: ĕ egg | K61: t | L61: N | O61: 2 | P61: ac cent | Q61: ac cent | R61: ac cent | S61: Y | T61: Y | AV61: N | AY61: nt | BA61: ow | BB61: ow plow | BD61: 5
A62: 59 | B62: accept | E62: muffin twin | H62: schwa cup | I62: a | J62: ĕ egg | K62: t | L62: N | O62: 2 | P62: ac cept | Q62: ac cept | R62: ac cept | S62: Y | T62: Y | AV62: N | AY62: pt | BA62: ow | BB62: ō snow | BC62: toy | BD62: 5
A63: 60 | B63: acceptability | C63: accept | E63: long multi | I63: a | J63: ē peach | K63: ty | L63: N | O63: 6 | P63: ac cept a bil i ty | Q63: ac cep ta bi li ty | S63: N | T63: N | AV63: N | AY63: ty | BA63: oy | BB63: oi boy | BD63: 12
A64: 61 | B64: acceptance | E64: suffixes | I64: a | J64: ŭ schwa cup | K64: ce | L64: N | O64: 3 | P64: ac cept ance | Q64: ac cep tance | S64: N | T64: N | AV64: N | AY64: ce | BA64: ui | BB64: oo fruit | BC64: spur | BD64: 9
A65: 62 | B65: access | E65: muffin twin | H65: ă jam | I65: a | J65: ĕ egg | K65: s | L65: N | O65: 2 | P65: ac cess | Q65: ac cess | R65: ac cess | S65: Y | T65: Y | AJ65: s | AV65: N | AY65: ss | BA65: ur | BB65: ûr hurt | BD65: 5
A66: 63 | B66: accessary | E66: long multi | I66: a | J66: ē peach | K66: ry | L66: N | O66: 4 | P66: ac ces sar y | Q66: ac ces sar y | S66: N | T66: Y | AF66: x | AG66: =IF(AND(FIND(AG$2,$B66)>1,FIND(AG$2,$B66)<$BD66),"x"," ") ->  | AV66: N | AW66: affixing | AX66: hisses | AY66: y | BD66: 8
A67: 64 | B67: accessibility | C67: access | D67: =IF(C67="","",IF(VLOOKUP(C67,$B$3:$B$9800,1)=C67,"","X")) ->  | E67: long multi | I67: a | J67: ē peach | K67: =IF(OR(RIGHT(B67,1)="e",RIGHT(B67,1)="h",RIGHT(B67,1)="w",RIGHT(B67,1)="y",),RIGHT(B67,2),RIGHT(B67,1)) -> ty | L67: =IF(RIGHT(B67,$M$1)=$L$1,"Y","N") -> N | O67: =LEN(P67)-LEN(SUBSTITUTE(P67," ",""))+1 -> 6 | P67: ac ces di bil i ty | Q67: ac ces si bi li ty | S67: =IF(P67=R67,"Y","N") -> N | T67: =IF(P67=Q67,"Y","N") -> N | AF67: x | AR67: =IF(ISERROR(SEARCH(AR$2,$B67,$BD67 -1)),"","Y") ->  | AT67: =IF(ISERROR(SEARCH(AT$2,$B67,$BD67 -1)),"","Y") ->  | AU67: =IF(ISERROR(SEARCH(AU$2,$B67,1)),"","Y") ->  | AV67: N | AY67: =(RIGHT(Q67,2)) -> ty | BD67: =LEN(B67)-1 -> 12
A68: =A67+1 -> 65 | B68: accession | E68: suffixes | H68: ă jam | I68: =IF(OR(LEFT(B68,2)="ch",LEFT(B68,2)="sh",LEFT(B68,2)="th",LEFT(B68,2)="tw",),LEFT(B68,2),LEFT(B68,1)) -> a | J68: sion mission | K68: n | L68: N | O68: 3 | P68: ac ces sion | Q68: ac ces sion | R68: ac ces sion | S68: Y | T68: Y | AF68: x | AI68: =IF(RIGHT(B68,1)="r","R","") ->  | AJ68: =IF(RIGHT(B68,1)=$AJ$1,$AJ$1,"") ->  | AK68: =IF(RIGHT(B68,2)=$AK$1,$AK$1,"") ->  | AQ68: =IF(RIGHT(B68,2)="le",RIGHT(B68,3),"") ->  | AS68: =IF(ISERROR(SEARCH(AS$2,$B68,$BD68 -1)),"",RIGHT(B68,4)) -> sion | AV68: =IF(LEFT(RIGHT(Q68,$AV$1),1)= " ", "Y","N") -> N | AY68: on | BD68: 8
A69: 66 | B69: accessorize | C69: accessory | E69: long multi | I69: a | J69: ī knife | K69: ze | L69: N | O69: 4 | P69: ac ces so rize | Q69: ac ces sor ize | S69: N | T69: N | AF69: x | AN69: Y | AV69: Y | AY69: ze | BD69: 10
A70: 67 | B70: accessory | E70: long multi | I70: a | J70: ē peach | K70: ry | L70: N | O70: 4 | P70: ac ces sor y | Q70: ac ces sor y | S70: N | T70: Y | AF70: x | AL70: =IF(ISERROR(SEARCH(AL$2,$B70,1)),"","Y") ->  | AV70: N | AY70: y | BD70: 8
A71: 68 | B71: accident | E71: long multi | I71: a | J71: ŭ schwa cup | K71: t | L71: N | O71: 3 | P71: ac ci dent | Q71: ac ci dent | S71: N | T71: Y | AN71: Y | AV71: N | AY71: nt | BD71: 7
A72: 69 | B72: acclaim | E72: muffin twin | H72: schwa cup | I72: a | J72: ā plate | K72: m | L72: N | O72: 2 | P72: ac claim | Q72: ac claim | R72: ac claim | S72: Y | T72: Y | AV72: N | AY72: im | BD72: 6
A73: 70 | B73: acclamation | C73: acclaim | E73: suffixes | I73: a | J73: tion vacation | K73: n | L73: N | M73: 23 | O73: 4 | P73: ac cla ma tion | Q73: ac cla ma tion | S73: N | T73: Y | AS73: tion | AV73: N | AY73: on | BD73: 10
A74: 71 | B74: acclimate | E74: long multi | I74: a | J74: ā plate | K74: te | L74: N | O74: 3 | P74: ac cli mate | Q74: ac cli matge | S74: N | T74: N | AL74: Y | AV74: N | AY74: ge | BD74: 8
A75: 72 | B75: accolade | E75: long multi | I75: a | J75: ā plate | K75: de | L75: N | O75: 3 | P75: ac co lade | Q75: ac co lade | S75: N | T75: Y | AL75: Y | AV75: N | AY75: de | BD75: 7
A76: 73 | B76: accommodate | E76: long multi | I76: a | J76: ā plate | K76: te | L76: N | O76: 4 | P76: ac com mo date | Q76: ac com mo date | S76: N | T76: Y | AL76: Y | AV76: N | AY76: te | BD76: 10
A77: 74 | B77: accommodation | C77: accommodate | E77: suffixes | H77: schwa cup | I77: a | J77: tion vacation | K77: n | L77: N | O77: 5 | P77: ac com mo da tion | Q77: ac com mo da tion | R77: ac com mo da tion | S77: Y | T77: Y | AS77: tion | AV77: N | AY77: on | BD77: 12
A78: 75 | B78: accompany | E78: long multi | I78: a | J78: ē peach | K78: ny | L78: N | O78: 4 | P78: ac com pa ny | Q78: ac com pa ny | S78: N | T78: Y | Z78: x | AV78: N | AY78: ny | BD78: 8
A79: 76 | B79: accomplice | E79: long multi | I79: a | J79: ĭ unaccented milk | K79: ce | L79: N | O79: 3 | P79: ac com plice | Q79: ac com plice | S79: N | T79: Y | Z79: x | AN79: Y | AV79: N | AY79: ce | BD79: 9
A80: 77 | B80: accomplish | E80: long multi | I80: a | J80: ĭ unaccented milk | K80: sh | L80: N | O80: 3 | P80: ac com plish | Q80: ac com plish | S80: N | T80: Y | Z80: x | AV80: N | AY80: sh | BD80: 9
A81: 78 | B81: accord | E81: muffin twin | H81: schwa cup | I81: a | J81: or fork | K81: d | L81: N | O81: 2 | P81: ac cord | Q81: ac cord | R81: ac cord | S81: Y | T81: Y | AV81: N | AY81: rd | BD81: 5
A82: 79 | B82: accordance | E82: suffixes | I82: a | J82: ŭ schwa cup | K82: ce | L82: N | O82: 3 | P82: ac cord ance | Q82: ac cor dance | S82: N | T82: N | AV82: N | AY82: ce | BD82: 9
A83: 80 | B83: accordingly | E83: long multi | I83: a | J83: ē peach | K83: ly | L83: N | O83: 4 | P83: ac cord ing ly | Q83: ac cor ding ly | S83: N | T83: N | AB83: x | AV83: N | AY83: ly | BD83: 10
A84: 81 | B84: accordion | E84: long multi | I84: a | J84: ŭ schwa cup | K84: n | L84: N | O84: 4 | P84: ac cor di an | Q84: ac cor di an | S84: N | T84: Y | AS84: dion | AV84: N | AY84: an | BD84: 8
A85: 82 | B85: accost | E85: muffin twin | H85: schwa cup | I85: a | J85: aw strawberry | K85: t | L85: N | O85: 2 | P85: ac cost | Q85: ac cost | R85: ac cost | S85: Y | T85: Y | V85: =IF(AND(FIND(V$2,$B85)>1,FIND(V$2,$B85)<$BD85),"x"," ") ->  | AV85: N | AY85: st | BD85: 5
A86: 83 | B86: account | E86: muffin twin | H86: schwa cup | I86: a | J86: ow wowberry | K86: t | L86: N | O86: 2 | P86: ac count | Q86: ac count | R86: ac count | S86: Y | T86: Y | AV86: N | AY86: nt | BD86: 6
A87: 84 | B87: accountability | C87: account | E87: long multi | I87: a | J87: ē peach | K87: ty | L87: N | O87: 6 | P87: ac count a bil i ty | Q87: ac coun ta bi li ty | S87: N | T87: N | AV87: N | AY87: ty | BD87: 13
A88: 85 | B88: accredit | E88: long multi | I88: a | J88: ĭ unaccented milk | K88: t | L88: N | O88: 3 | P88: ac cred it | Q88: ac cre dit | S88: N | T88: N | AV88: Y | AY88: it | BD88: 7
A89: 86 | B89: accrue | E89: muffin twin | H89: schwa cup | I89: a | J89: ew blueberry | K89: ue | L89: N | O89: 2 | P89: ac crue | Q89: ac crue | R89: ac crue | S89: Y | T89: Y | AV89: N | AY89: ue | BD89: 5
A90: 87 | B90: accumulate | E90: long multi | I90: a | J90: ā plate | K90: te | L90: N | O90: 4 | P90: ac cu mu late | Q90: ac cu mu late | S90: N | T90: Y | AL90: Y | AV90: N | AY90: te | BD90: 9
A91: 88 | B91: accuracy | E91: long multi | I91: a | J91: ē peach | K91: cy | L91: N | O91: 4 | P91: ac cur a cy | Q91: ac cur a cy | S91: N | T91: Y | AV91: N | AY91: cy | BD91: 7
A92: 89 | B92: accurate | E92: long multi | I92: a | J92: ŭ schwa cup | K92: te | L92: N | O92: 3 | P92: ac cur ate | Q92: ac cur ate | S92: N | T92: Y | AL92: Y | AV92: Y | AY92: te | BD92: 7
A93: 90 | B93: accuse | E93: muffin twin | H93: schwa cup | I93: a | J93: ew blueberry | K93: se | L93: N | O93: 2 | P93: ac cuse | Q93: ac cuse | R93: ac cuse | S93: Y | T93: Y | AP93: Y | AV93: N | AY93: se | BD93: 5
A94: 91 | B94: acerbate | E94: long multi | I94: a | J94: ā plate | K94: te | L94: N | O94: 3 | P94: ac er bate | Q94: a cer bate | S94: N | T94: N | AL94: Y | AV94: N | AY94: te | BD94: 7
A95: 92 | B95: achieve | E95: donut blend | I95: a | J95: ē peach | K95: ve | L95: N | O95: 2 | P95: a chieve | Q95: a chieve | S95: N | T95: Y | U95: x | AM95: Y | AV95: N | AY95: ve | BD95: 6
A96: 93 | B96: achy | E96: donut blend | I96: a | J96: ē peach | K96: hy | L96: N | O96: 2 | P96: ach y | Q96: a chy | S96: N | T96: N | U96: x | AV96: Y | AY96: hy | BD96: 3
A97: 94 | B97: acid | E97: donut | H97: ă jam | I97: a | J97: ĕ egg | K97: d | L97: N | O97: 2 | P97: ac id | Q97: a cid | R97: a cid | S97: N | T97: N | AV97: Y | AY97: id | BD97: 3
A98: 95 | B98: acidic | E98: long multi | I98: a | J98: ĭ unaccented milk | K98: c | L98: N | O98: 3 | P98: a cid ic | Q98: a ci dic | S98: N | T98: N | AV98: Y | AY98: ic | BD98: 5
A99: 96 | B99: acknowledge | E99: long multi | I99: a | J99: ĭ unaccented milk | K99: ge | L99: N | O99: 3 | P99: ac knowl edge | Q99: ac know ledge | S99: N | T99: N | V99: x | AV99: N | AY99: ge | BD99: 10
A100: 97 | B100: acorn | E100: donut | G100: R Controlled | H100: ā plate | I100: a | J100: or fork | K100: n | L100: N | O100: 2 | P100: a corn | Q100: a corn | R100: a corn | S100: Y | T100: Y | AV100: N | AY100: rn | BD100: 4
A101: 98 | B101: acoustic | E101: long multi | I101: a | J101: ĭ unaccented milk | K101: c | L101: N | O101: 3 | P101: a cous tic | Q101: a cous tic | S101: N | T101: Y | AV101: Y | AY101: ic | BD101: 7
A102: 99 | B102: acquaintance | E102: suffixes | I102: a | J102: ŭ schwa cup | K102: ce | L102: N | O102: 3 | P102: ac quain tance | Q102: ac quain tance | S102: N | T102: Y | AV102: N | AW102: allowing | AX102: 2 vowels | AY102: ce | BD102: 11
A103: 100 | B103: acquiesce | E103: long multi | I103: a | J103: ĕ egg | K103: ce | L103: N | O103: 3 | P103: ac qui esce | Q103: ac qui esce | S103: N | T103: Y | Y103: =IF(AND(FIND(Y$2,$B103)>1,FIND(Y$2,$B103)<$BD103),"x"," ") ->  | AP103: Y | AV103: N | AY103: ce | BD103: 8
A104: 101 | B104: acquire | E104: muffin mixed | G104: 2 | H104: schwa cup | I104: a | J104: ī knife | K104: re | L104: N | O104: 2 | P104: ac quire | Q104: ac quire | R104: ac quire | S104: Y | T104: Y | AN104: Y | AV104: N | AY104: re | BD104: 6
A105: 102 | B105: acquisition | C105: acquire | E105: suffixes | I105: a | J105: tion vacation | K105: n | L105: N | M105: 60 | O105: 4 | P105: ac qui si tion | Q105: ac qui si tion | S105: N | T105: Y | AS105: tion | AV105: N | AY105: on | BD105: 10
A106: 103 | B106: acquittance | E106: suffixes | I106: a | J106: ŭ schwa cup | K106: ce | L106: N | O106: 3 | P106: ac quit tance | Q106: ac quit tance | S106: N | T106: Y | AV106: N | AY106: ce | BD106: 10
A107: 104 | B107: acre | E107: donut blend | G107: cr | H107: ā plate | I107: a | J107: er ir ur burnt | K107: re | L107: N | O107: 2 | P107: a cre | Q107: a cre | R107: ac re | S107: N | T107: Y | AV107: Y | AY107: re | BD107: 3
A108: 105 | B108: acreage | E108: long multi | I108: a | J108: ŭ schwa cup | K108: ge | L108: N | O108: 3 | P108: a cre age | Q108: a cre age | S108: N | T108: Y | AL108: Y | AV108: Y | AY108: ge | BD108: 6
A109: 106 | B109: acrimony | E109: long multi | I109: a | J109: ē peach | K109: ny | L109: N | O109: 4 | P109: ac ri mo ny | Q109: ac ri mo ny | S109: N | T109: Y | AV109: N | AY109: ny | BD109: 7
A110: 107 | B110: acrobatic | E110: long multi | I110: a | J110: ĭ milk | K110: c | L110: N | O110: 4 | P110: a cro bat ic | Q110: ac ro ba tic | S110: N | T110: N | AV110: Y | AY110: ic | BD110: 8
A111: 108 | B111: across | E111: donut blend | G111: cr | H111: schwa cup | I111: a | J111: aw strawberry | K111: s | L111: N | O111: 2 | P111: a cross | Q111: a cross | R111: a cross | S111: Y | T111: Y | AJ111: s | AV111: N | AY111: ss | BD111: 5
A112: 109 | B112: action | E112: muffin mixed | G112: 2 | H112: ă jam | I112: a | J112: tion vacation | K112: n | L112: N | O112: 2 | P112: ac tion | Q112: ac tion | R112: ac tion | S112: Y | T112: Y | AS112: tion | AV112: N | AY112: on | BD112: 5
A113: 110 | B113: activate | E113: long multi | I113: a | J113: ā plate | K113: te | L113: N | O113: 3 | P113: ac ti vate | Q113: ac ti vate | S113: N | T113: Y | AL113: Y | AV113: N | AY113: te | BD113: 7
A114: 111 | B114: activity | E114: long multi | I114: a | J114: ē peach | K114: ty | L114: N | O114: 4 | P114: ac tiv i ty | Q114: ac ti vi ty | S114: N | T114: N | AV114: N | AY114: ty | BD114: 7
A115: 112 | B115: actor | E115: muffin mixed | G115: 2 | H115: ă jam | I115: a | J115: er ir ur burnt | K115: r | L115: N | O115: 2 | P115: ac tor | Q115: ac tor | R115: ac tor | S115: Y | T115: Y | AI115: R | AV115: Y | AY115: or | BD115: 4
A116: 113 | B116: actress | E116: muffin triple | H116: ă jam | I116: a | J116: ĕ egg | K116: s | L116: N | M116: 39 | O116: 2 | P116: ac tress | Q116: ac tress | S116: N | T116: Y | AJ116: s | AV116: N | AY116: ss | BD116: 6
A117: 114 | B117: actuary | E117: long multi | I117: a | J117: ē peach | K117: ry | L117: N | O117: 4 | P117: ac tu ar y | Q117: ac tu ar y | S117: N | T117: Y | AV117: N | AY117: y | BD117: 6
A118: 115 | B118: acupuncture | E118: long multi | I118: a | J118: ture - picture | K118: re | L118: N | O118: 4 | P118: ac u punc ture | Q118: a cu punc ture | S118: N | T118: N | AP118: Y | AV118: N | AY118: re | BD118: 10
A119: 116 | B119: adage | E119: donut | I119: a | J119: ŭ schwa cup | K119: ge | L119: N | O119: 2 | P119: ad age | Q119: a dage | S119: N | T119: N | AL119: Y | AV119: N | AY119: ge | BD119: 4
A120: 117 | B120: adapt | E120: donut | H120: schwa cup | I120: a | J120: ă jam | K120: t | L120: N | O120: 2 | P120: a dapt | Q120: a dapt | R120: a dapt | S120: Y | T120: Y | AV120: N | AY120: pt | BD120: 4
A121: 118 | B121: adaptation | C121: adapt | E121: suffixes | H121: ă jam | I121: a | J121: tion vacation | K121: n | L121: N | O121: 4 | P121: ad ap ta tion | Q121: a dap ta tion | R121: a dap ta tion | S121: N | T121: N | AB121: =IF(AND(FIND(AB$2,$B121)>1,FIND(AB$2,$B121)<$BD121),"x"," ") ->  | AL121: =IF(ISERROR(SEARCH(AL$2,$B121,1)),"","Y") ->  | AS121: tion | AV121: N | AY121: on | BD121: 9
A122: 119 | B122: adaptor | E122: long multi | I122: a | J122: er ir ur burnt | K122: r | L122: N | O122: 3 | P122: a dapt or | Q122: a dap tor | S122: N | T122: N | AI122: R | AV122: Y | AY122: or | BD122: 6
A123: 120 | B123: addend | E123: muffin twin | H123: ă jam | I123: a | J123: ĕ egg | K123: d | L123: N | O123: 2 | P123: ad dend | Q123: ad dend | R123: ad dend | S123: Y | T123: Y | AV123: N | AY123: nd | BD123: 5
A124: 121 | B124: adder | E124: muffin twin | H124: ă jam | I124: a | J124: er ir ur burnt | K124: r | L124: N | O124: 2 | P124: ad der | Q124: ad der | R124: ad der | S124: Y | T124: Y | AI124: R | AV124: Y | AY124: er | BD124: 4
A125: 122 | B125: addict | E125: muffin twin | H125: ă jam | I125: a | J125: ĭ unaccented milk | K125: t | L125: N | O125: 2 | P125: ad dict | Q125: ad dict | R125: ad dict | S125: Y | T125: Y | AV125: N | AY125: ct | BD125: 5
A126: 123 | B126: addition | E126: suffixes | H126: schwa cup | I126: a | J126: tion vacation | K126: n | L126: N | O126: 3 | P126: ad di tion | Q126: ad di tion | R126: ad di tion | S126: Y | T126: Y | AS126: tion | AV126: N | AY126: on | BD126: 7
A127: 124 | B127: additionally | E127: long multi | I127: a | J127: ē peach | K127: ly | L127: N | O127: 5 | P127: ad di tion al ly | Q127: ad di tion al ly | S127: N | T127: Y | X127: x | AV127: N | AY127: ly | BD127: 11
A128: 125 | B128: address | E128: muffin twin | H128: schwa cup | I128: a | J128: ĕ egg | K128: s | L128: N | O128: 2 | P128: ad dress | Q128: ad dress | R128: ad dress | S128: Y | T128: Y | AJ128: s | AV128: N | AY128: ss | BD128: 6
A129: 126 | B129: adduce | E129: muffin twin | H129: schwa cup | I129: a | J129: ew blueberry | K129: ce | L129: N | O129: 2 | P129: ad duce | Q129: ad duce | R129: ad duce | S129: Y | T129: Y | AP129: Y | AV129: N | AY129: ce | BD129: 5
A130: 127 | B130: adduction | E130: long multi | I130: a | J130: tion vacation | K130: n | L130: N | O130: 3 | P130: ad duc tion | Q130: ad duc tion | S130: N | T130: Y | AS130: tion | AV130: N | AY130: on | BD130: 8
A131: 128 | B131: adenoid | D131: =IF(C131="","",IF(VLOOKUP(C131,$B$3:$B$9800,1)=C131,"","X")) ->  | E131: long multi | I131: a | J131: oi boysenberry | K131: =IF(OR(RIGHT(B131,1)="e",RIGHT(B131,1)="h",RIGHT(B131,1)="w",RIGHT(B131,1)="y",),RIGHT(B131,2),RIGHT(B131,1)) -> d | L131: =IF(RIGHT(B131,$M$1)=$L$1,"Y","N") -> N | O131: =LEN(P131)-LEN(SUBSTITUTE(P131," ",""))+1 -> 3 | P131: ad e noid | Q131: a de noid | S131: =IF(P131=R131,"Y","N") -> N | T131: =IF(P131=Q131,"Y","N") -> N | AL131: Y | AR131: =IF(ISERROR(SEARCH(AR$2,$B131,$BD131 -1)),"","Y") ->  | AT131: =IF(ISERROR(SEARCH(AT$2,$B131,$BD131 -1)),"","Y") ->  | AU131: =IF(ISERROR(SEARCH(AU$2,$B131,1)),"","Y") ->  | AV131: N | AY131: =(RIGHT(Q131,2)) -> id | BD131: =LEN(B131)-1 -> 6
A132: =A131+1 -> 129 | B132: adequately | E132: long multi | I132: =IF(OR(LEFT(B132,2)="ch",LEFT(B132,2)="sh",LEFT(B132,2)="th",LEFT(B132,2)="tw",),LEFT(B132,2),LEFT(B132,1)) -> a | J132: ē peach | K132: ly | L132: N | O132: 4 | P132: ad e quate | Q132: a de quate ly | S132: N | T132: N | AI132: =IF(RIGHT(B132,1)="r","R","") ->  | AJ132: =IF(RIGHT(B132,1)=$AJ$1,$AJ$1,"") ->  | AK132: =IF(RIGHT(B132,2)=$AK$1,$AK$1,"") ->  | AL132: Y | AQ132: =IF(RIGHT(B132,2)="le",RIGHT(B132,3),"") ->  | AS132: =IF(ISERROR(SEARCH(AS$2,$B132,$BD132 -1)),"",RIGHT(B132,4)) ->  | AV132: =IF(LEFT(RIGHT(Q132,$AV$1),1)= " ", "Y","N") -> N | AY132: ly | BD132: 9
A133: 130 | B133: adhere | E133: muffin mixed | H133: ă jam | I133: a | J133: ear cereal | K133: re | L133: N | M133: 30 | O133: 2 | P133: ad here | Q133: ad here | S133: N | T133: Y | AM133: Y | AV133: N | AY133: re | BD133: 5
A134: 131 | B134: adhesion | C134: adhere | E134: suffixes | I134: a | J134: sion television | K134: n | L134: N | O134: 3 | P134: ad he sion | Q134: ad he sion | S134: N | T134: Y | AS134: sion | AV134: N | AY134: on | BD134: 7
A135: 132 | B135: adjacent | E135: long multi | I135: a | J135: ŭ schwa cup | K135: t | L135: N | O135: 3 | P135: ad ja cent | Q135: ad ja cent | S135: N | T135: Y | AL135: Y | AV135: N | AY135: nt | BD135: 7
A136: 133 | B136: adjoin | E136: muffin mixed | G136: 2 | H136: schwa cup | I136: a | J136: oi boysenberry | K136: n | L136: N | O136: 2 | P136: ad join | Q136: ad join | R136: ad join | S136: Y | T136: Y | AV136: N | AW136: angering | AX136: 2 vowels | AY136: in | BD136: 5
A137: 134 | B137: adjourn | E137: muffin mixed | G137: 2 | H137: schwa cup | I137: a | J137: er ir ur burnt | K137: n | L137: N | O137: 2 | P137: ad journ | Q137: ad journ | R137: ad journ | S137: Y | T137: Y | AV137: N | AY137: rn | BD137: 6
A138: 135 | B138: adjudicate | E138: long multi | I138: a | J138: ā plate | K138: te | L138: N | O138: 4 | P138: ad ju di cate | Q138: ad ju di cate | S138: N | T138: Y | AL138: Y | AV138: N | AY138: te | BD138: 9
A139: 136 | B139: adjust | E139: muffin mixed | I139: a | J139: ŭ cup | K139: t | L139: N | O139: 2 | P139: ad just | Q139: ad just | S139: N | T139: Y | AE139: =IF(AND(FIND(AE$2,$B139)>1,FIND(AE$2,$B139)<$BD139),"x"," ") ->  | AV139: N | AY139: st | BD139: 5
A140: 137 | B140: adjustment | E140: long multi | I140: a | J140: ŭ schwa cup | K140: t | L140: N | O140: 3 | P140: ad just ment | Q140: ad just ment | S140: N | T140: Y | AV140: N | AY140: nt | BD140: 9
A141: 138 | B141: administer | E141: long multi | I141: a | J141: er ir ur burnt | K141: r | L141: N | O141: 4 | P141: ad min is ter | Q141: ad mi nis ter | S141: N | T141: N | AI141: R | AV141: Y | AY141: er | BD141: 9
A142: 139 | B142: administrate | E142: long multi | I142: a | J142: ā plate | K142: te | L142: N | O142: 4 | P142: ad min is trate | Q142: ad mi nis trate | S142: N | T142: N | AL142: Y | AV142: N | AY142: te | BD142: 11
A143: 140 | B143: administration | C143: administer | E143: suffixes | H143: schwa cup | I143: a | J143: tion vacation | K143: n | L143: N | O143: 5 | P143: ad min is tra tion | Q143: ad mi nis tra tion | R143: ad mi nis tra tion | S143: N | T143: N | AS143: tion | AV143: N | AW143: annoying | AX143: 2 vowels | AY143: on | BD143: 13
A144: 141 | B144: administrator | E144: long multi | I144: a | J144: er ir ur burnt | K144: r | L144: N | O144: 5 | P144: ad min is tra tor | Q144: ad mi nis tra tor | S144: N | T144: N | AI144: R | AV144: Y | AW144: annulling | AX144: double | AY144: or | BD144: 12
A145: 142 | B145: admiration | C145: admire | E145: suffixes | I145: a | J145: tion vacation | K145: n | L145: N | M145: 20 | O145: 4 | P145: ad mi ra tion | Q145: ad mir a tion | S145: N | T145: N | AS145: tion | AV145: N | AY145: on | BD145: 9
A146: 143 | B146: admire | E146: muffin mixed | G146: 2 | H146: schwa cup | I146: a | J146: ī knife | K146: re | L146: N | O146: 2 | P146: ad mire | Q146: ad mire | R146: ad mire | S146: Y | T146: Y | AN146: Y | AV146: N | AY146: re | BD146: 5
A147: 144 | B147: admissible | E147: long multi | I147: a | J147: le apple | K147: le | L147: N | O147: 4 | P147: ad mis si ble | Q147: ad mis si ble | S147: N | T147: Y | AF147: x | AQ147: ble | AV147: Y | AY147: le | BD147: 9
A148: 145 | B148: admission | E148: suffixes | H148: schwa cup | I148: a | J148: sion mission | K148: n | L148: N | O148: 3 | P148: ad mis sion | Q148: ad mis sion | R148: ad mis sion | S148: Y | T148: Y | AF148: x | AS148: sion | AV148: N | AY148: on | BD148: 8
A149: 146 | B149: admit | E149: muffin mixed | I149: a | J149: ĭ milk | K149: t | L149: N | O149: 2 | P149: ad mit | Q149: ad mit | S149: N | T149: Y | AV149: Y | AY149: it | BD149: 4
A150: 147 | B150: admittance | E150: suffixes | I150: a | J150: ŭ schwa cup | K150: ce | L150: N | O150: 3 | P150: ad mit tance | Q150: ad mit tance | S150: N | T150: Y | AV150: N | AY150: ce | BD150: 9
A151: 148 | B151: admonish | E151: long multi | I151: a | J151: ĭ unaccented milk | K151: sh | L151: N | O151: 3 | P151: ad mon ish | Q151: ad mo nish | S151: N | T151: N | AV151: N | AY151: sh | BD151: 7
A152: 149 | B152: adolescence | E152: long multi | I152: a | J152: ŭ schwa cup | K152: ce | L152: N | O152: 4 | P152: ad o les cence | Q152: a do le scnce | S152: N | T152: N | AO152: Y | AV152: N | AY152: ce | BD152: 10
A153: 150 | B153: adolescent | E153: long multi | I153: a | J153: ŭ schwa cup | K153: t | L153: N | O153: 4 | P153: ad o les cent | Q153: a do les cent | S153: N | T153: N | AO153: Y | AV153: N | AY153: nt | BD153: 9
A154: 151 | B154: adopt | E154: donut | I154: a | J154: ŏ pot | K154: t | L154: N | O154: 2 | P154: a dopt | Q154: a dopt | S154: N | T154: Y | AV154: N | AY154: pt | BD154: 4
A155: 152 | B155: adoption | C155: adopt | E155: suffixes | I155: a | J155: tion vacation | K155: n | L155: N | M155: 15 | O155: 3 | P155: a dop tion | Q155: a dop tion | S155: N | T155: Y | AS155: tion | AV155: N | AY155: on | BD155: 7
A156: 153 | B156: adore | E156: donut | H156: schwa cup | I156: a | J156: or fork | K156: re | L156: N | M156: 27 | O156: 2 | P156: a dore | Q156: a dore | S156: N | T156: Y | AO156: Y | AV156: N | AY156: re | BD156: 4
A157: 154 | B157: adorn | E157: donut | I157: a | J157: or fork | K157: n | L157: N | O157: 2 | P157: a dorn | Q157: a dorn | S157: N | T157: Y | AH157: =IF(AND(FIND(AH$2,$B157)>1,FIND(AH$2,$B157)<$BD157),"x"," ") ->  | AV157: N | AY157: rn | BD157: 4
A158: 155 | B158: adsorb | E158: muffin mixed | I158: a | J158: or fork | K158: b | L158: N | O158: 2 | P158: ad sorb | Q158: ad sorb | S158: N | T158: Y | AV158: N | AY158: rb | BD158: 5
A159: 156 | B159: adsorption | E159: long multi | I159: a | J159: tion vacation | K159: n | L159: N | O159: 3 | P159: ab sorp tion | Q159: ab sorp tion | S159: N | T159: Y | AS159: tion | AV159: N | AY159: on | BD159: 9
A160: 157 | B160: adulation | E160: suffixes | H160: ă jam | I160: a | J160: tion vacation | K160: n | L160: N | O160: 4 | P160: ad u la tion | Q160: a du la tion | R160: a du la tion | S160: N | T160: N | AS160: tion | AV160: N | AY160: on | BD160: 8
A161: 158 | B161: adult | E161: donut | H161: schwa cup | I161: a | J161: ŭ cup | K161: t | L161: N | O161: 2 | P161: a dult | Q161: a dult | R161: a dult | S161: Y | T161: Y | AV161: N | AY161: lt | BD161: 4
A162: 159 | B162: adulthood | E162: compound multiple | I162: a | J162: ew blueberry | K162: d | L162: N | O162: 3 | P162: a dult hood | Q162: a dult hood | S162: N | T162: Y | AG162: x | AV162: N | AY162: od | BD162: 8
A163: 160 | B163: advance | E163: muffin mixed | I163: a | J163: ă jam | K163: ce | L163: N | O163: 2 | P163: ad vance | Q163: ad vance | S163: N | T163: Y | AV163: N | AY163: ce | BD163: 6
A164: 161 | B164: advantage | E164: long multi | I164: a | J164: ĭ unaccented milk | K164: ge | L164: N | O164: 3 | P164: ad van tage | Q164: ad van tage | S164: N | T164: Y | AL164: Y | AV164: N | AY164: ge | BD164: 8
A165: 162 | B165: advantageous | E165: long multi | I165: a | J165: ous poisonous | K165: s | L165: N | O165: 4 | P165: ad van ta geous | Q165: ad van ta geous | S165: N | T165: Y | AJ165: s | AL165: Y | AV165: N | AY165: us | BD165: 11
A166: 163 | B166: advent | E166: muffin mixed | I166: a | J166: ĕ egg | K166: t | L166: N | O166: 2 | P166: ad vent | Q166: ad vent | S166: N | T166: Y | AV166: N | AY166: nt | BD166: 5
A167: 164 | B167: adventure | E167: long multi | I167: a | J167: ture - picture | K167: re | L167: N | O167: 3 | P167: ad ven ture | Q167: ad ven ture | S167: N | T167: Y | AP167: Y | AV167: N | AY167: re | BD167: 8
A168: 165 | B168: adventurous | E168: long multi | I168: a | J168: ous poisonous | K168: s | L168: N | O168: 4 | P168: ad ven tur ous | Q168: ad ven tur ous | S168: N | T168: Y | AJ168: s | AV168: Y | AY168: us | BD168: 10
A169: 166 | B169: adverb | E169: muffin mixed | G169: 2 | H169: ă jam | I169: a | J169: er ir ur burnt | K169: b | L169: N | O169: 2 | P169: ad verb | Q169: ad verb | R169: ad verb | S169: Y | T169: Y | AV169: N | AY169: rb | BD169: 5
A170: 167 | B170: adversary | E170: long multi | I170: a | J170: ē peach | K170: ry | L170: N | O170: 4 | P170: ad ver sar y | Q170: ad ver sar y | S170: N | T170: Y | AV170: N | AY170: y | BD170: 8
A171: 168 | B171: adverse | E171: muffin mixed | G171: 2 | H171: ă jam | I171: a | J171: er ir ur burnt | K171: se | L171: N | O171: 2 | P171: ad verse | Q171: ad verse | R171: ad verse | S171: Y | T171: Y | AV171: N | AY171: se | BD171: 6
A172: 169 | B172: adversity | E172: long multi | I172: a | J172: ē peach | K172: ty | L172: N | O172: 4 | P172: ad ver si ty | Q172: ad ver si ty | S172: N | T172: Y | AL172: =IF(ISERROR(SEARCH(AL$2,$B172,1)),"","Y") ->  | AV172: N | AY172: ty | BD172: 8
A173: 170 | B173: advert | E173: muffin mixed | I173: a | J173: er ir ur burnt | K173: t | L173: N | O173: 2 | P173: ad vert | Q173: ad vert | S173: N | T173: Y | AV173: N | AY173: rt | BD173: 5
A174: 171 | B174: advertise | E174: long multi | I174: a | J174: ī knife | K174: se | L174: N | O174: 3 | P174: ad ver tise | Q174: ad ver tise | S174: N | T174: Y | AN174: Y | AV174: N | AY174: se | BD174: 8
A175: 172 | B175: advice | E175: muffin mixed | I175: a | J175: ī knife | K175: ce | L175: N | O175: 2 | P175: ad vice | Q175: ad vice | S175: N | T175: Y | AN175: Y | AV175: N | AY175: ce | BD175: 5
A176: 173 | B176: advise | E176: muffin mixed | H176: schwa cup | I176: a | J176: ī knife | K176: se | L176: N | M176: 20 | O176: 2 | P176: ad vise | Q176: ad vise | S176: N | T176: Y | W176: =IF(AND(FIND(W$2,$B176)>1,FIND(W$2,$B176)<$BD176),"x"," ") ->  | AN176: Y | AV176: N | AY176: se | BD176: 5
A177: 174 | B177: advisor | E177: long multi | I177: a | J177: er ir ur burnt | K177: r | L177: N | O177: 3 | P177: ad vis or | Q177: ad vi sor | S177: N | T177: N | AI177: R | AV177: Y | AY177: or | BD177: 6
A178: 175 | B178: advisory | E178: long multi | I178: a | J178: ē peach | K178: ry | L178: N | O178: 4 | P178: ad vi so ry | Q178: ad vi sor y | S178: N | T178: N | AV178: N | AY178: y | BD178: 7
A179: 176 | B179: advocacy | E179: long multi | I179: a | J179: ē peach | K179: cy | L179: N | O179: 4 | P179: ad vo ca cy | Q179: ad vo ca cy | S179: N | T179: Y | AV179: N | AY179: cy | BD179: 7
A180: 177 | B180: advocate | E180: long multi | I180: a | J180: ā plate | K180: te | L180: N | O180: 3 | P180: ad vo cate | Q180: ad vo cate | S180: N | T180: Y | AL180: Y | AV180: N | AY180: te | BD180: 7
A181: 178 | B181: aerate | E181: muffin corn | I181: a | J181: ā plate | K181: te | L181: N | O181: 2 | P181: aer ate | Q181: aer ate | S181: N | T181: Y | AL181: Y | AV181: Y | AY181: te | BD181: 5
A182: 179 | B182: aerobic | E182: long multi | I182: a | J182: ĭ unaccented milk | K182: c | L182: N | O182: 3 | P182: aer o bic | Q182: aer o bic | S182: N | T182: Y | AV182: Y | AY182: ic | BD182: 6
A183: 180 | B183: aesthetic | E183: long multi | I183: a | J183: ĭ unaccented milk | K183: c | L183: N | O183: 3 | P183: aes thet ic | Q183: aes the tic | S183: N | T183: N | AG183: x | AV183: Y | AY183: ic | BD183: 8
A184: 181 | B184: afar | E184: donut | G184: R Controlled | H184: schwa cup | I184: a | J184: ar jar | K184: r | L184: N | O184: 2 | P184: a far | Q184: a far | R184: a far | S184: Y | T184: Y | AI184: R | AV184: Y | AY184: ar | BD184: 3
A185: 182 | B185: affable | E185: long multi | I185: a | J185: le apple | K185: le | L185: N | O185: 3 | P185: af fa ble | Q185: af fa ble | S185: N | T185: Y | AQ185: ble | AV185: Y | AY185: le | BD185: 6
A186: 183 | B186: affair | E186: muffin twin | H186: schwa cup | I186: a | J186: air chair | K186: r | L186: N | O186: 2 | P186: af fair | Q186: af fair | R186: af fair | S186: Y | T186: Y | AI186: R | AV186: N | AY186: ir | BD186: 5
A187: 184 | B187: affect | E187: muffin twin | H187: schwa cup | I187: a | J187: ĕ egg | K187: t | L187: N | O187: 2 | P187: af fect | Q187: af fect | R187: af fect | S187: Y | T187: Y | AV187: N | AY187: ct | BD187: 5
A188: 185 | B188: affection | E188: suffixes | H188: schwa cup | I188: a | J188: tion vacation | K188: n | L188: N | O188: 3 | P188: af fec tion | Q188: af fec tion | R188: af fec tion | S188: Y | T188: Y | AS188: tion | AV188: N | AY188: on | BD188: 8
A189: 186 | B189: affectionate | E189: long multi | I189: a | J189: ŭ schwa cup | K189: te | L189: N | O189: 4 | P189: af fec tion ate | Q189: af fec tion ate | S189: N | T189: Y | AL189: Y | AV189: Y | AY189: te | BD189: 11
A190: 187 | B190: affirm | E190: muffin twin | H190: schwa cup | I190: a | J190: er ir ur burnt | K190: m | L190: N | O190: 2 | P190: af firm | Q190: af firm | R190: af firm | S190: Y | T190: Y | AV190: N | AY190: rm | BD190: 5
A191: 188 | B191: affix | E191: muffin twin | H191: schwa cup | I191: a | J191: ĭ milk | K191: x | L191: N | O191: 2 | P191: af fix | Q191: af fix | R191: af fix | S191: Y | T191: Y | AU191: Y | AV191: Y | AY191: ix | BD191: 4
A192: 189 | B192: afflict | E192: muffin twin | H192: schwa cup | I192: a | J192: ĭ milk | K192: t | L192: N | O192: 2 | P192: af flict | Q192: af flict | R192: af flict | S192: Y | T192: Y | AV192: N | AY192: ct | BD192: 6
A193: 190 | B193: affliction | C193: afflict | E193: suffixes | I193: a | J193: tion vacation | K193: n | L193: N | M193: 14 | O193: 3 | P193: af flic tion | Q193: af flic tion | S193: N | T193: Y | AS193: tion | AV193: N | AY193: on | BD193: 9
A194: 191 | B194: affluence | E194: long multi | I194: a | J194: ŭ schwa cup | K194: ce | L194: N | O194: 3 | P194: af flu ence | Q194: af flu ence | S194: N | T194: Y | Z194: =IF(AND(FIND(Z$2,$B194)>1,FIND(Z$2,$B194)<$BD194),"x"," ") ->  | AV194: N | AY194: ce | BD194: 8
A195: 192 | B195: affluent | D195: =IF(C195="","",IF(VLOOKUP(C195,$B$3:$B$9800,1)=C195,"","X")) ->  | E195: long multi | I195: a | J195: ŭ schwa cup | K195: =IF(OR(RIGHT(B195,1)="e",RIGHT(B195,1)="h",RIGHT(B195,1)="w",RIGHT(B195,1)="y",),RIGHT(B195,2),RIGHT(B195,1)) -> t | L195: =IF(RIGHT(B195,$M$1)=$L$1,"Y","N") -> N | O195: =LEN(P195)-LEN(SUBSTITUTE(P195," ",""))+1 -> 3 | P195: af flu ent | Q195: af flu ent | S195: =IF(P195=R195,"Y","N") -> N | T195: =IF(P195=Q195,"Y","N") -> Y | AR195: =IF(ISERROR(SEARCH(AR$2,$B195,$BD195 -1)),"","Y") ->  | AT195: =IF(ISERROR(SEARCH(AT$2,$B195,$BD195 -1)),"","Y") ->  | AU195: =IF(ISERROR(SEARCH(AU$2,$B195,1)),"","Y") ->  | AV195: Y | AY195: =(RIGHT(Q195,2)) -> nt | BD195: =LEN(B195)-1 -> 7
A196: =A195+1 -> 193 | B196: afford | E196: muffin twin | H196: schwa cup | I196: =IF(OR(LEFT(B196,2)="ch",LEFT(B196,2)="sh",LEFT(B196,2)="th",LEFT(B196,2)="tw",),LEFT(B196,2),LEFT(B196,1)) -> a | J196: or fork | K196: d | L196: N | O196: 2 | P196: af ford | Q196: af ford | R196: af ford | S196: Y | T196: Y | AI196: =IF(RIGHT(B196,1)="r","R","") ->  | AJ196: =IF(RIGHT(B196,1)=$AJ$1,$AJ$1,"") ->  | AK196: =IF(RIGHT(B196,2)=$AK$1,$AK$1,"") ->  | AQ196: =IF(RIGHT(B196,2)="le",RIGHT(B196,3),"") ->  | AS196: =IF(ISERROR(SEARCH(AS$2,$B196,$BD196 -1)),"",RIGHT(B196,4)) ->  | AV196: =IF(LEFT(RIGHT(Q196,$AV$1),1)= " ", "Y","N") -> N | AY196: rd | BD196: 5
A197: 194 | B197: affordability | E197: long multi | I197: a | J197: ē peach | K197: ty | L197: N | O197: 6 | P197: af ford a bil i ty | Q197: af for da bi li ty | S197: N | T197: N | AV197: N | AY197: ty | BD197: 12
A198: 195 | B198: affront | E198: muffin twin | H198: schwa cup | I198: a | J198: ŭ cup | K198: t | L198: N | O198: 2 | P198: af front | Q198: af front | R198: af front | S198: Y | T198: Y | AV198: N | AY198: nt | BD198: 6
A199: 196 | B199: afire | E199: donut | G199: R Controlled | H199: schwa cup | I199: a | J199: ī knife | K199: re | L199: N | O199: 2 | P199: a fire | Q199: a fire | R199: a fire | S199: Y | T199: Y | AN199: Y | AV199: N | AY199: re | BD199: 4
A200: 197 | B200: afoot | E200: donut | I200: a | J200: ew blueberry | K200: t | L200: N | O200: 2 | P200: a foot | Q200: a foot | S200: N | T200: Y | AV200: N | AY200: ot | BD200: 4
... 799 more rows

Sheet All Words
B1: donut | K1: donut count | L1: =COUNTIF(D3:D4653,"donut") -> 667 | M1: =COUNTIF(E3:E4653,"donut") -> 0 | N1: =COUNTIF(N3:N4653,"n") -> 683 | O1: =COUNTIF(O3:O4653,"n") -> 544 | P1: =COUNTIF(P19:P4653,"x") -> 53 | Q1: =COUNTIF(Q19:Q4653,"x") -> 96 | R1: 97 | S1: 143 | T1: 56 | U1: 69 | V1: 172 | W1: 83 | X1: 23 | Y1: 15 | Z1: 79 | AA1: 100 | AB1: 75 | AC1: 23 | AE1: s | AF1: th | AG1: =COUNTIF(AG19:AG4653,"Y") -> 307 | AH1: 206 | AI1: 339 | AJ1: 447 | AK1: 137 | AL1: 305 | AM1: suffix | AN1: ?le | AO1: Pick ==> | AP1: able | AQ1: 4 | AV1: =COUNTA(AV4:AV72) -> 62
A2: =COUNTA(B3:B5225) -> 5223 | B2: Keyword | C2: Spelling Base | D2: Primary Category | E2: Secondary Category | F2: 1st Vowel Sound | G2: Last Vowel Sound | H2: Words Their Way Sort # | I2: Words Their Way Extended Sort # | J2: Number of Dictionary Syllables | K2: Dictionary Cuts | L2: MBRP Excel Cuts Eide Rules | M2: MBRP Javascript Cuts | N2: Dictionary Cuts Match Javascript | O2: Dictionary Cuts Match Excel Cuts | P2: ch | Q2: ck | R2: gh | S2: ll | T2: mb | U2: mp | V2: nd | W2: ng | X2: nk | Y2: ph | Z2: sh | AA2: ss | AB2: th | AC2: ld | AD2: Ends in R | AG2: a?e | AH2: e?e | AI2: i?e | AJ2: o?e | AK2: u?e | AL2: ?le | AM2: ed | AN2: ion | AO2: ing | AP2: =AP1 -> able | AQ2: Rime is 2 | AR2: Suffix | AS2: Suffix Action | AV2: Phonograms Alphabetical by Frequency | AW2: Vowel Sounds | AX2: MBRP Image | AY2: Length of Word -1 | AZ2: New MBRP Image | BA2: Search Validation
A3: 0 | B3: abbess | D3: muffin twin | F3: ă jam | G3: ĕ egg | J3: =LEN(K3)-LEN(SUBSTITUTE(K3," ",""))+1 -> 2 | K3: ab bess | L3: ab bess | M3: ab bess | N3: =IF(K3=M3,"Y","N") -> Y | O3: =IF(K3=L3,"Y","N") -> Y | P3: =IF(AND(FIND(P$2,$B3)>1,FIND(P$2,$B3)<$AY3),"x"," ") ->  | AD3: =IF(RIGHT(B3,1)="r","R","") ->  | AE3: =IF(RIGHT(B3,1)=$AE$1,$AE$1,"") -> s | AF3: =IF(RIGHT(B3,2)=$AF$1,$AF$1,"") ->  | AG3: =IF(ISERROR(SEARCH(AG$2,$B3,1)),"","Y") ->  | AM3: =IF(ISERROR(SEARCH(AM$2,$B3,$AY3 -1)),"","Y") ->  | AP3: =IF(ISERROR(SEARCH(AP$2,$B3,1)),"","Y") ->  | AQ3: =IF(LEFT(RIGHT(L3,$AQ$1),1)= " ", "Y","N") -> N | AT3: =(RIGHT(L3,2)) -> ss | AU3: bl | AV3: schwa | AW3: schwa cup | AX3: cat | AY3: =LEN(B3)-1 -> 5 | AZ3: schwa cup
A4: =A3+1 -> 1 | B4: abbey | D4: muffin twin | F4: ă jam | G4: ē peach | J4: 2 | K4: ab bey | L4: ab bey | M4: ab bey | N4: Y | O4: Y | AQ4: Y | AT4: ey | AU4: br | AV4: a | AW4: ă mat | AX4: cake | AY4: 4 | AZ4: ă jam
A5: =A4+1 -> 2 | B5: abbot | D5: muffin twin | F5: ă jam | G5: ĕ egg | J5: 2 | K5: ab bot | L5: ab bot | M5: ab bot | N5: Y | O5: Y | AQ5: Y | AT5: ot | AU5: ch | AV5: a | AW5: ā table | AX5: strawberry | AY5: 4 | AZ5: ĕ egg | BA5: re
A6: 3 | B6: able | D6: maple syrup | E6: ble | F6: ā plate | G6: le | H6: 31 | J6: 2 | K6: a ble | L6: a ble | M6: a ble | N6: Y | O6: Y | AG6: =IF(ISERROR(SEARCH(AG$2,$B6,1)),"","Y") ->  | AL6: =IF(ISERROR(SEARCH(AL$2,$B6,1)),"","Y") -> Y | AP6: Y | AQ6: Y | AT6: le | AU6: ck | AV6: a | AW6: ä father | AX6: car | AY6: 3 | AZ6: ĭ milk | BA6: dis
A7: 4 | B7: aboard | D7: donut | E7: R Controlled | F7: schwa cup | G7: or fork | H7: 37 | J7: 2 | K7: a board | L7: a board | M7: a board | N7: Y | O7: Y | AK7: =IF(ISERROR(SEARCH(AK$2,$B7,1)),"","Y") ->  | AQ7: N | AT7: rd | AU7: cl | AV7: ar | AW7: är car | AX7: cake | AY7: 5 | AZ7: ŏ pot | BA7: ing
A8: 5 | B8: abode | D8: donut | F8: schwa cup | G8: ō toast | J8: 2 | K8: a bode | L8: a bode | M8: a bode | N8: Y | O8: Y | AJ8: Y | AQ8: N | AT8: de | AU8: cr | AV8: ai | AW8: ā laid | AX8: chair | AY8: 4 | AZ8: ŭ cup | BA8: ns
A9: 6 | B9: abortion | C9: abort | D9: suffixes | F9: schwa cup | G9: tion vacation | J9: 3 | K9: a bor tion | L9: a bor tion | M9: a bor tion | N9: Y | O9: Y | AN9: Y | AQ9: N | AT9: on | AU9: dl | AV9: air | AW9: âr chair | AX9: strawberry | AY9: 7 | AZ9: ā plate | BA9: ?le
A10: 7 | B10: abound | D10: donut | E10: Diphthong | F10: schwa cup | G10: ō toast | J10: 2 | K10: a bound | L10: a bound | M10: a bound | N10: Y | O10: Y | AQ10: N | AT10: nd | AU10: dr | AV10: au | AW10: ä author | AX10: strawberry | AY10: 5 | AZ10: ē peach | BA10: oe
A11: 8 | B11: about | D11: donut | E11: Diphthong | F11: schwa cup | G11: ow wowberry | H11: 24 | J11: 2 | K11: a bout | L11: a bout | M11: a bout | N11: Y | O11: Y | AQ11: N | AT11: ut | AU11: ff | AV11: augh | AW11: ä caught | AX11: strawberry | AY11: 4 | AZ11: ī knife | BA11: gh
A12: 9 | B12: above | D12: donut | F12: schwa cup | G12: ŭ cup | J12: 2 | K12: a bove | L12: a bove | M12: a bove | N12: Y | O12: Y | AJ12: Y | AQ12: N | AT12: ve | AU12: fl | AV12: aw | AW12: ä straw | AX12: cake | AY12: 4 | AZ12: ō toast | BA12: pre
A13: 10 | B13: abrasion | D13: suffixes | F13: schwa cup | G13: sion television | J13: 3 | K13: a bra sion | L13: a bra sion | M13: a bra sion | N13: Y | O13: Y | P13: =IF(AND(FIND(P$2,$B13)>1,FIND(P$2,$B13)<$AY13),"x"," ") ->  | AN13: Y | AQ13: N | AT13: on | AU13: fr | AV13: ay | AW13: ā cake | AX13: hen | AY13: 7 | AZ13: ū fuel | BA13: bl
A14: 11 | B14: abroad | D14: donut blend | E14: br | F14: schwa cup | G14: aw strawberry | J14: 2 | K14: a broad | L14: a broad | M14: a broad | N14: Y | O14: Y | AQ14: N | AT14: ad | AU14: ft | AV14: e | AW14: ĕ hen | AX14: peach | AY14: 5 | AZ14: ar jar | BA14: au
A15: 12 | B15: absorb | D15: muffin mixed | E15: 2 | F15: schwa cup | G15: or fork | J15: 2 | K15: ab sorb | L15: ab sorb | M15: ab sorb | N15: Y | O15: Y | AQ15: N | AT15: rb | AU15: gg | AV15: e | AW15: ē be | AX15: peach | AY15: 5 | AZ15: er ir ur burnt | BA15: aw
A16: 13 | B16: absorption | C16: absorb | D16: suffixes | F16: schwa cup | G16: tion vacation | H16: 23 | J16: 3 | K16: ab sorp tion | L16: ab sorp tion | M16: ab sorp tion | N16: Y | O16: Y | AN16: Y | AQ16: N | AT16: on | AU16: gh | AV16: ea | AW16: ē beat | AX16: hen | AY16: 9 | AZ16: or fork | BA16: ou
A17: 14 | B17: absurd | D17: muffin mixed | E17: 2 | F17: schwa cup | G17: er ir ur burnt | J17: 2 | K17: ab surd | L17: ab surd | M17: ab surd | N17: Y | O17: Y | AQ17: N | AT17: rd | AU17: gl | AV17: ea | AW17: ĕ bread | AX17: cake | AY17: 5 | AZ17: air chair | BA17: ow
A18: 15 | B18: abuse | D18: donut | F18: schwa cup | G18: ew blueberry | J18: 2 | K18: a buse | L18: a buse | M18: a buse | N18: Y | O18: Y | AK18: Y | AQ18: N | AT18: se | AU18: gn | AV18: ea | AW18: ā break | AX18: peach | AY18: 4 | AZ18: ear cereal | BA18: ew
A19: 16 | B19: abut | D19: donut | F19: schwa cup | G19: ŭ cup | J19: 2 | K19: a but | L19: a but | M19: a but | N19: Y | O19: Y | AQ19: Y | AR19: abutting | AS19: double | AT19: ut | AU19: gr | AV19: ei | AW19: ē receive | AX19: ear | AY19: 3 | AZ19: ew blueberry | BA19: tion
A20: 17 | B20: accede | D20: muffin twin | F20: ĕ egg | G20: ē peach | J20: 2 | K20: ac cede | L20: ac cede | M20: ac cede | N20: Y | O20: Y | AH20: Y | AM20: Y | AQ20: N | AT20: de | AU20: ld | AV20: ear | AW20: ēr ear | AX20: bear chair | AY20: 5 | AZ20: aw strawberry | BA20: sion
A21: 18 | B21: acceleration | C21: accelerate | D21: suffixes | F21: ĕ egg | G21: tion vacation | J21: 5 | K21: ac cel er a tion | L21: ac ce ler a tion | M21: ac ce ler a tion | N21: N | O21: N | AH21: Y | AL21: Y | AN21: Y | AQ21: N | AT21: on | AU21: lf | AV21: ear | AW21: âr bear | AX21: ??? | AY21: 11 | AZ21: ow wowberry | BA21: ion
A22: 19 | B22: accent | D22: muffin twin | F22: ă jam | G22: ĕ egg | J22: 2 | K22: ac cent | L22: ac cent | M22: ac cent | N22: Y | O22: Y | AQ22: N | AT22: nt | AU22: lg | AV22: ear | AW22: ûr search | AX22: peach | AY22: 5 | AZ22: oi boysenberry | BA22: cian
A23: 20 | B23: accept | D23: muffin twin | F23: schwa cup | G23: ĕ egg | J23: 2 | K23: ac cept | L23: ac cept | M23: ac cept | N23: Y | O23: Y | P23: =IF(AND(FIND(P$2,$B23)>1,FIND(P$2,$B23)<$AY23),"x"," ") ->  | AM23: =IF(ISERROR(SEARCH(AM$2,$B23,$AY23 -1)),"","Y") ->  | AQ23: N | AT23: pt | AU23: lk | AV23: ee | AW23: ē bee | AX23: deer | AY23: 5 | AZ23: oo cook | BA23: ian
A24: 21 | B24: access | D24: muffin twin | F24: ă jam | G24: ĕ egg | J24: 2 | K24: ac cess | L24: ac cess | M24: ac cess | N24: Y | O24: Y | AE24: s | AQ24: N | AT24: ss | AU24: ll | AV24: eer | AW24: ēr deer | AY24: 5 | AZ24: le apple | BA24: ous
A25: 22 | B25: accession | D25: suffixes | F25: ă jam | G25: sion magician | J25: 3 | K25: ac ces sion | L25: ac ces sion | M25: ac ces sion | N25: Y | O25: Y | AA25: x | AN25: Y | AQ25: N | AT25: on | AU25: lp | AV25: ei | AW25: ?? their | AX25: peach | AY25: 8 | AZ25: ize alphabatize | BA25: ize
A26: 23 | B26: acclaim | D26: muffin twin | F26: schwa cup | G26: ā plate | J26: 2 | K26: ac claim | L26: ac claim | M26: ac claim | N26: Y | O26: Y | AG26: =IF(ISERROR(SEARCH(AG$2,$B26,1)),"","Y") ->  | AQ26: N | AT26: im | AU26: lt | AV26: ei | AW26: ē protein | AX26: feisty | AY26: 6 | AZ26: tion vacation | BA26: ive
A27: 24 | B27: accommodation | C27: accommodate | D27: suffixes | F27: schwa cup | G27: tion vacation | J27: 5 | K27: ac com mo da tion | L27: ac com mo da tion | M27: ac com mo da tion | N27: Y | O27: Y | AN27: Y | AQ27: N | AT27: on | AU27: mb | AV27: ei | AW27: ī pie | AX27: fern | AY27: 12 | AZ27: sion television | BA27: ful
A28: 25 | B28: accord | D28: muffin twin | F28: schwa cup | G28: or fork | J28: 2 | K28: ac cord | L28: ac cord | M28: ac cord | N28: Y | O28: Y | AQ28: N | AT28: rd | AU28: mp | AV28: er | AW28: ēr fern | AX28: blueberry | AY28: 5 | AZ28: sion magician | BA28: less
A29: 26 | B29: accost | D29: muffin twin | F29: schwa cup | G29: aw strawberry | J29: 2 | K29: ac cost | L29: ac cost | M29: ac cost | N29: Y | O29: Y | AQ29: N | AT29: st | AU29: nd | AV29: ew | AW29: oo flew | AX29: mule ?? | AY29: 5 | AZ29: cian magician | BA29: est
A30: 27 | B30: account | D30: muffin twin | F30: schwa cup | G30: ow wowberry | J30: 2 | K30: ac count | L30: ac count | M30: ac count | N30: Y | O30: Y | AQ30: N | AT30: nt | AU30: ng | AV30: ew | AW30: ū few | AX30: cake | AY30: 6 | AZ30: ion onion | BA30: ment
A31: 28 | B31: accrue | D31: muffin twin | F31: schwa cup | G31: ew blueberry | J31: 2 | K31: ac crue | L31: ac crue | M31: ac crue | N31: Y | O31: Y | AQ31: N | AT31: ue | AU31: nk | AV31: ey | AW31: ā they | AX31: peach | AY31: 5 | AZ31: ous poisonous | BA31: ty
A32: 29 | B32: accuse | D32: muffin twin | F32: schwa cup | G32: ew blueberry | J32: 2 | K32: ac cuse | L32: ac cuse | M32: ac cuse | N32: Y | O32: Y | AK32: Y | AQ32: N | AT32: se | AU32: ns | AV32: ey | AW32: ē key | AY32: 5 | AZ32: ious | BA32: ly
A33: 30 | B33: acid | D33: donut | F33: ă jam | G33: ĕ egg | J33: 2 | K33: ac id | L33: a cid | M33: a cid | N33: N | O33: N | P33: =IF(AND(FIND(P$2,$B33)>1,FIND(P$2,$B33)<$AY33),"x"," ") ->  | AQ33: Y | AT33: id | AU33: ph | AV33: i | AW33: ĭ fish | AX33: pie | AY33: 3 | AZ33: xxx | BA33: ible
A34: 31 | B34: acorn | D34: donut | E34: R Controlled | F34: ā plate | G34: or fork | J34: 2 | K34: a corn | L34: a corn | M34: a corn | N34: Y | O34: Y | AQ34: N | AT34: rn | AU34: pl | AV34: i | AW34: ī ivy | AY34: 4 | AZ34: zzz | BA34: able
A35: 32 | B35: acquire | D35: muffin mixed | E35: 2 | F35: schwa cup | G35: ī knife | J35: 2 | K35: ac quire | L35: ac quire | M35: ac quire | N35: Y | O35: Y | AI35: Y | AQ35: N | AT35: re | AU35: pr | AV35: i | AW35: y onion | AX35: pie | AY35: 6
A36: 33 | B36: acre | D36: donut blend | E36: cr | F36: ā plate | G36: er ir ur burnt | J36: 2 | K36: a cre | L36: a cre | M36: ac re | N36: N | O36: Y | AQ36: Y | AT36: re | AU36: sc | AV36: ie | AW36: ī pie | AX36: peach | AY36: 3
A37: 34 | B37: across | D37: donut blend | E37: cr | F37: schwa cup | G37: aw strawberry | J37: 2 | K37: a cross | L37: a cross | M37: a cross | N37: Y | O37: Y | AE37: s | AQ37: N | AT37: ss | AU37: sh | AV37: ie | AW37: ē piece | AX37: pie | AY37: 5
A38: 35 | B38: action | D38: muffin mixed | E38: 2 | F38: ă jam | G38: tion vacation | J38: 2 | K38: ac tion | L38: ac tion | M38: ac tion | N38: Y | O38: Y | AN38: Y | AQ38: N | AT38: on | AU38: sk | AV38: igh | AW38: ī night | AX38: bird | AY38: 5
A39: 36 | B39: actor | D39: muffin mixed | E39: 2 | F39: ă jam | G39: or fork | J39: 2 | K39: ac tor | L39: ac tor | M39: ac tor | N39: Y | O39: Y | AD39: R | AQ39: Y | AT39: or | AU39: sl | AV39: ir | AW39: ûr bird | AX39: fox | AY39: 4
A40: 37 | B40: actress | F40: ă jam | G40: ĕ egg | H40: 39 | J40: 2 | AU40: sm | AV40: o | AW40: ŏ on | AX40: toast | AY40: 6
A41: 38 | B41: adapt | D41: donut | F41: schwa cup | G41: ă jam | J41: =LEN(K41)-LEN(SUBSTITUTE(K41," ",""))+1 -> 2 | K41: a dapt | L41: a dapt | M41: a dapt | N41: =IF(K41=M41,"Y","N") -> Y | O41: =IF(K41=L41,"Y","N") -> Y | P41: =IF(AND(FIND(P$2,$B41)>1,FIND(P$2,$B41)<$AY41),"x"," ") ->  | AD41: =IF(RIGHT(B41,1)="r","R","") ->  | AE41: =IF(RIGHT(B41,1)=$AE$1,$AE$1,"") ->  | AF41: =IF(RIGHT(B41,2)=$AF$1,$AF$1,"") ->  | AG41: =IF(ISERROR(SEARCH(AG$2,$B41,1)),"","Y") ->  | AM41: =IF(ISERROR(SEARCH(AM$2,$B41,$AY41 -1)),"","Y") ->  | AP41: =IF(ISERROR(SEARCH(AP$2,$B41,1)),"","Y") ->  | AQ41: =IF(LEFT(RIGHT(L41,$AQ$1),1)= " ", "Y","N") -> N | AT41: pt | AU41: sn | AV41: o | AW41: ō go | AX41: ??? | AY41: 4
A42: 39 | B42: adaptation | C42: adapt | D42: suffixes | F42: ă jam | G42: tion vacation | J42: 4 | K42: ad ap ta tion | L42: a dap ta tion | M42: a dap ta tion | N42: N | O42: N | AN42: Y | AQ42: N | AT42: on | AU42: sp | AV42: o | AW42: oo do | AX42: toast | AY42: 9
A43: 40 | B43: addend | D43: muffin twin | F43: ă jam | G43: ĕ egg | J43: 2 | K43: ad dend | L43: ad dend | M43: ad dend | N43: Y | O43: Y | AQ43: N | AT43: nd | AU43: sq | AV43: oa | AW43: ō coat | AX43: toast | AY43: 5
A44: 41 | B44: adder | D44: muffin twin | F44: ă jam | G44: er ir ur burnt | J44: 2 | K44: ad der | L44: ad der | M44: ad der | N44: Y | O44: Y | AD44: R | AQ44: Y | AT44: er | AU44: ss | AV44: oe | AW44: ō toe | AX44: ?? | AY44: 4
A45: 42 | B45: addict | D45: muffin twin | F45: ă jam | G45: zzz | J45: 2 | K45: ad dict | L45: ad dict | M45: ad dict | N45: Y | O45: Y | AQ45: N | AT45: ct | AU45: st | AV45: oe | AW45: oo shoe | AX45: boysenberry | AY45: 5
A46: 43 | B46: addition | D46: suffixes | F46: schwa cup | G46: tion vacation | J46: 3 | K46: ad di tion | L46: ad di tion | M46: ad di tion | N46: Y | O46: Y | AN46: Y | AQ46: N | AT46: on | AU46: sw | AV46: oi | AW46: oi boil | AY46: 7
A47: 44 | B47: address | D47: muffin twin | F47: schwa cup | G47: ĕ egg | J47: 2 | K47: ad dress | L47: ad dress | M47: ad dress | N47: Y | O47: Y | AE47: s | AQ47: N | AT47: ss | AU47: th | AV47: oo | AW47: oo food | AX47: book | AY47: 6
A48: =A47+1 -> 45 | B48: adduce | D48: muffin twin | F48: schwa cup | G48: ew blueberry | J48: 2 | K48: ad duce | L48: ad duce | M48: ad duce | N48: Y | O48: Y | AK48: Y | AQ48: N | AT48: ce | AU48: tw | AV48: oo | AW48: ō floor | AY48: 5
A49: 46 | B49: adhere | F49: ă jam | G49: ear cereal | H49: 30 | J49: 2 | AU49: wh | AV49: oo | AW49: ŭ blood | AX49: fork | AY49: 5
A50: 47 | B50: adjoin | D50: muffin mixed | E50: 2 | F50: schwa cup | G50: oi boysenberry | J50: =LEN(K50)-LEN(SUBSTITUTE(K50," ",""))+1 -> 2 | K50: ad join | L50: ad join | M50: ad join | N50: =IF(K50=M50,"Y","N") -> Y | O50: =IF(K50=L50,"Y","N") -> Y | P50: =IF(AND(FIND(P$2,$B50)>1,FIND(P$2,$B50)<$AY50),"x"," ") ->  | AD50: =IF(RIGHT(B50,1)="r","R","") ->  | AE50: =IF(RIGHT(B50,1)=$AE$1,$AE$1,"") ->  | AF50: =IF(RIGHT(B50,2)=$AF$1,$AF$1,"") ->  | AG50: =IF(ISERROR(SEARCH(AG$2,$B50,1)),"","Y") ->  | AM50: =IF(ISERROR(SEARCH(AM$2,$B50,$AY50 -1)),"","Y") ->  | AP50: =IF(ISERROR(SEARCH(AP$2,$B50,1)),"","Y") ->  | AQ50: =IF(LEFT(RIGHT(L50,$AQ$1),1)= " ", "Y","N") -> N | AT50: in | AV50: or | AW50: ôr lord | AX50: wow berry | AY50: 5
A51: 48 | B51: adjourn | D51: muffin mixed | E51: 2 | F51: schwa cup | G51: er ir ur burnt | J51: =LEN(K51)-LEN(SUBSTITUTE(K51," ",""))+1 -> 2 | K51: ad journ | L51: ad journ | M51: ad journ | N51: =IF(K51=M51,"Y","N") -> Y | O51: =IF(K51=L51,"Y","N") -> Y | AD51: =IF(RIGHT(B51,1)="r","R","") ->  | AE51: =IF(RIGHT(B51,1)=$AE$1,$AE$1,"") ->  | AF51: =IF(RIGHT(B51,2)=$AF$1,$AF$1,"") ->  | AP51: =IF(ISERROR(SEARCH(AP$2,$B51,1)),"","Y") ->  | AQ51: =IF(LEFT(RIGHT(L51,$AQ$1),1)= " ", "Y","N") -> N | AT51: rn | AV51: ou | AW51: ow house | AY51: 6
A52: 49 | B52: administration | C52: administer | D52: suffixes | F52: schwa cup | G52: tion vacation | J52: =LEN(K52)-LEN(SUBSTITUTE(K52," ",""))+1 -> 5 | K52: ad min is tra tion | L52: ad mi nis tra tion | M52: ad mi nis tra tion | N52: =IF(K52=M52,"Y","N") -> N | O52: =IF(K52=L52,"Y","N") -> N | AD52: =IF(RIGHT(B52,1)="r","R","") ->  | AE52: =IF(RIGHT(B52,1)=$AE$1,$AE$1,"") ->  | AF52: =IF(RIGHT(B52,2)=$AF$1,$AF$1,"") ->  | AN52: Y | AP52: =IF(ISERROR(SEARCH(AP$2,$B52,1)),"","Y") ->  | AQ52: =IF(LEFT(RIGHT(L52,$AQ$1),1)= " ", "Y","N") -> N | AT52: on | AV52: ou | AW52: ō soul | AY52: 13
A53: 50 | B53: admire | D53: muffin mixed | E53: 2 | F53: schwa cup | G53: ī knife | J53: =LEN(K53)-LEN(SUBSTITUTE(K53," ",""))+1 -> 2 | K53: ad mire | L53: ad mire | M53: ad mire | N53: =IF(K53=M53,"Y","N") -> Y | O53: =IF(K53=L53,"Y","N") -> Y | AD53: =IF(RIGHT(B53,1)="r","R","") ->  | AE53: =IF(RIGHT(B53,1)=$AE$1,$AE$1,"") ->  | AF53: =IF(RIGHT(B53,2)=$AF$1,$AF$1,"") ->  | AI53: Y | AP53: =IF(ISERROR(SEARCH(AP$2,$B53,1)),"","Y") ->  | AQ53: =IF(LEFT(RIGHT(L53,$AQ$1),1)= " ", "Y","N") -> N | AT53: re | AV53: ou | AW53: oo group | AY53: 5
A54: 51 | B54: admission | D54: suffixes | F54: schwa cup | G54: sion magician | J54: =LEN(K54)-LEN(SUBSTITUTE(K54," ",""))+1 -> 3 | K54: ad mis sion | L54: ad mis sion | M54: ad mis sion | N54: =IF(K54=M54,"Y","N") -> Y | O54: =IF(K54=L54,"Y","N") -> Y | AA54: x | AD54: =IF(RIGHT(B54,1)="r","R","") ->  | AE54: =IF(RIGHT(B54,1)=$AE$1,$AE$1,"") ->  | AF54: =IF(RIGHT(B54,2)=$AF$1,$AF$1,"") ->  | AN54: Y | AP54: =IF(ISERROR(SEARCH(AP$2,$B54,1)),"","Y") ->  | AQ54: =IF(LEFT(RIGHT(L54,$AQ$1),1)= " ", "Y","N") -> N | AT54: on | AV54: ou | AW54: ŭ country | AY54: 8
A55: 52 | B55: adore | F55: schwa cup | G55: or fork | H55: 27 | J55: 2 | AV55: ough | AW55: ŏ thought | AY55: 4
A56: 53 | B56: adulation | D56: suffixes | F56: ă jam | G56: tion vacation | J56: =LEN(K56)-LEN(SUBSTITUTE(K56," ",""))+1 -> 4 | K56: ad u la tion | L56: a du la tion | M56: a du la tion | N56: =IF(K56=M56,"Y","N") -> N | O56: =IF(K56=L56,"Y","N") -> N | P56: =IF(AND(FIND(P$2,$B56)>1,FIND(P$2,$B56)<$AY56),"x"," ") ->  | AD56: =IF(RIGHT(B56,1)="r","R","") ->  | AE56: =IF(RIGHT(B56,1)=$AE$1,$AE$1,"") ->  | AF56: =IF(RIGHT(B56,2)=$AF$1,$AF$1,"") ->  | AG56: =IF(ISERROR(SEARCH(AG$2,$B56,1)),"","Y") ->  | AM56: =IF(ISERROR(SEARCH(AM$2,$B56,$AY56 -1)),"","Y") ->  | AN56: Y | AP56: =IF(ISERROR(SEARCH(AP$2,$B56,1)),"","Y") ->  | AQ56: =IF(LEFT(RIGHT(L56,$AQ$1),1)= " ", "Y","N") -> N | AT56: on | AV56: ough | AW56: ō though | AY56: 8
A57: 54 | B57: adult | D57: donut | F57: schwa cup | G57: ŭ cup | J57: =LEN(K57)-LEN(SUBSTITUTE(K57," ",""))+1 -> 2 | K57: a dult | L57: a dult | M57: a dult | N57: =IF(K57=M57,"Y","N") -> Y | O57: =IF(K57=L57,"Y","N") -> Y | AD57: =IF(RIGHT(B57,1)="r","R","") ->  | AE57: =IF(RIGHT(B57,1)=$AE$1,$AE$1,"") ->  | AF57: =IF(RIGHT(B57,2)=$AF$1,$AF$1,"") ->  | AP57: =IF(ISERROR(SEARCH(AP$2,$B57,1)),"","Y") ->  | AQ57: =IF(LEFT(RIGHT(L57,$AQ$1),1)= " ", "Y","N") -> N | AT57: lt | AV57: ough | AW57: oo through | AY57: 4
A58: 55 | B58: adverb | D58: muffin mixed | E58: 2 | F58: ă jam | G58: er ir ur burnt | J58: =LEN(K58)-LEN(SUBSTITUTE(K58," ",""))+1 -> 2 | K58: ad verb | L58: ad verb | M58: ad verb | N58: =IF(K58=M58,"Y","N") -> Y | O58: =IF(K58=L58,"Y","N") -> Y | AD58: =IF(RIGHT(B58,1)="r","R","") ->  | AE58: =IF(RIGHT(B58,1)=$AE$1,$AE$1,"") ->  | AF58: =IF(RIGHT(B58,2)=$AF$1,$AF$1,"") ->  | AP58: =IF(ISERROR(SEARCH(AP$2,$B58,1)),"","Y") ->  | AQ58: =IF(LEFT(RIGHT(L58,$AQ$1),1)= " ", "Y","N") -> N | AT58: rb | AV58: ough | AW58: ow bough | AY58: 5
A59: 56 | B59: adverse | D59: muffin mixed | E59: 2 | F59: ă jam | G59: er ir ur burnt | J59: =LEN(K59)-LEN(SUBSTITUTE(K59," ",""))+1 -> 2 | K59: ad verse | L59: ad verse | M59: ad verse | N59: =IF(K59=M59,"Y","N") -> Y | O59: =IF(K59=L59,"Y","N") -> Y | AD59: =IF(RIGHT(B59,1)="r","R","") ->  | AE59: =IF(RIGHT(B59,1)=$AE$1,$AE$1,"") ->  | AF59: =IF(RIGHT(B59,2)=$AF$1,$AF$1,"") ->  | AP59: =IF(ISERROR(SEARCH(AP$2,$B59,1)),"","Y") ->  | AQ59: =IF(LEFT(RIGHT(L59,$AQ$1),1)= " ", "Y","N") -> N | AT59: se | AV59: ough | AW59: ŭff rough | AY59: 6
A60: 57 | B60: advise | F60: schwa cup | G60: ī knife | H60: 20 | J60: 2 | AV60: ough | AW60: ŏff trough | AX60: wow berry | AY60: 5
A61: 58 | B61: afar | D61: donut | E61: R Controlled | F61: schwa cup | G61: ar jar | J61: =LEN(K61)-LEN(SUBSTITUTE(K61," ",""))+1 -> 2 | K61: a far | L61: a far | M61: a far | N61: =IF(K61=M61,"Y","N") -> Y | O61: =IF(K61=L61,"Y","N") -> Y | P61: =IF(AND(FIND(P$2,$B61)>1,FIND(P$2,$B61)<$AY61),"x"," ") ->  | AD61: =IF(RIGHT(B61,1)="r","R","") -> R | AE61: =IF(RIGHT(B61,1)=$AE$1,$AE$1,"") ->  | AF61: =IF(RIGHT(B61,2)=$AF$1,$AF$1,"") ->  | AG61: =IF(ISERROR(SEARCH(AG$2,$B61,1)),"","Y") ->  | AM61: =IF(ISERROR(SEARCH(AM$2,$B61,$AY61 -1)),"","Y") ->  | AP61: =IF(ISERROR(SEARCH(AP$2,$B61,1)),"","Y") ->  | AQ61: =IF(LEFT(RIGHT(L61,$AQ$1),1)= " ", "Y","N") -> Y | AT61: ar | AV61: ow | AW61: ow plow | AY61: 3
A62: 59 | B62: affair | D62: muffin twin | F62: schwa cup | G62: air chair | J62: 2 | K62: af fair | L62: af fair | M62: af fair | N62: Y | O62: Y | AD62: R | AQ62: N | AT62: ir | AV62: ow | AW62: ō snow | AX62: toy | AY62: 5
A63: 60 | B63: affect | D63: muffin twin | F63: schwa cup | G63: ĕ egg | J63: 2 | K63: af fect | L63: af fect | M63: af fect | N63: Y | O63: Y | AQ63: N | AT63: ct | AV63: oy | AW63: oi boy | AY63: 5
A64: 61 | B64: affection | D64: suffixes | F64: schwa cup | G64: tion vacation | J64: 3 | K64: af fec tion | L64: af fec tion | M64: af fec tion | N64: Y | O64: Y | AN64: Y | AQ64: N | AT64: on | AV64: ui | AW64: oo fruit | AX64: spur | AY64: 8
A65: 62 | B65: affirm | D65: muffin twin | F65: schwa cup | G65: er ir ur burnt | J65: 2 | K65: af firm | L65: af firm | M65: af firm | N65: Y | O65: Y | AQ65: N | AT65: rm | AV65: ur | AW65: ûr hurt | AY65: 5
A66: 63 | B66: affix | D66: muffin twin | F66: schwa cup | G66: ĭ milk | J66: 2 | K66: af fix | L66: af fix | M66: af fix | N66: Y | O66: Y | AQ66: Y | AR66: affixing | AS66: hisses | AT66: ix | AY66: =LEN(B66)-1 -> 4
A67: 64 | B67: afflict | D67: muffin twin | F67: schwa cup | G67: ĭ milk | J67: 2 | K67: af flict | L67: af flict | M67: af flict | N67: Y | O67: Y | AQ67: N | AT67: =(RIGHT(L67,2)) -> ct | AY67: 6
A68: =A67+1 -> 65 | B68: afford | D68: muffin twin | F68: schwa cup | G68: or fork | J68: 2 | K68: af ford | L68: af ford | M68: af ford | N68: Y | O68: Y | AQ68: N | AT68: rd | AY68: 5
A69: 66 | B69: affront | D69: muffin twin | F69: schwa cup | G69: ŭ cup | J69: 2 | K69: af front | L69: af front | M69: af front | N69: Y | O69: Y | AQ69: N | AT69: nt | AY69: 6
A70: 67 | B70: afire | D70: donut | E70: R Controlled | F70: schwa cup | G70: ī knife | J70: 2 | K70: a fire | L70: a fire | M70: a fire | N70: Y | O70: Y | AI70: Y | AQ70: N | AT70: re | AY70: 4
A71: 68 | B71: afraid | D71: donut blend | E71: fr | F71: schwa cup | G71: ā plate | H71: 37 | J71: 2 | K71: a fraid | L71: a fraid | M71: a fraid | N71: Y | O71: Y | AQ71: N | AT71: id | AY71: 5
A72: 69 | B72: Africa | H72: 55 | J72: 3 | AY72: 5
A73: 70 | B73: after | D73: muffin mixed | E73: 2 | F73: ă jam | G73: er ir ur burnt | H73: 33 | J73: =LEN(K73)-LEN(SUBSTITUTE(K73," ",""))+1 -> 2 | K73: af ter | L73: af ter | M73: af ter | N73: =IF(K73=M73,"Y","N") -> Y | O73: =IF(K73=L73,"Y","N") -> Y | P73: =IF(AND(FIND(P$2,$B73)>1,FIND(P$2,$B73)<$AY73),"x"," ") ->  | AD73: =IF(RIGHT(B73,1)="r","R","") -> R | AE73: =IF(RIGHT(B73,1)=$AE$1,$AE$1,"") ->  | AF73: =IF(RIGHT(B73,2)=$AF$1,$AF$1,"") ->  | AG73: =IF(ISERROR(SEARCH(AG$2,$B73,1)),"","Y") ->  | AM73: =IF(ISERROR(SEARCH(AM$2,$B73,$AY73 -1)),"","Y") ->  | AP73: =IF(ISERROR(SEARCH(AP$2,$B73,1)),"","Y") ->  | AQ73: =IF(LEFT(RIGHT(L73,$AQ$1),1)= " ", "Y","N") -> Y | AT73: er | AY73: 4
A74: 71 | B74: afterburner | D74: compound multiple | F74: ă jam | J74: 4 | K74: af ter burn er | L74: af ter bur ner | M74: af ter bur ner | N74: N | O74: N | AD74: R | AQ74: Y | AT74: er | AY74: 10
A75: 72 | B75: aftermath | D75: compound multiple | F75: ă jam | J75: 3 | K75: af ter math | L75: af ter math | M75: af ter math | N75: =IF(K75=M75,"Y","N") -> Y | O75: Y | AF75: th | AQ75: N | AT75: th | AY75: 8
A76: 73 | B76: again | D76: donut | F76: schwa cup | G76: ĕ egg | H76: 37 | J76: 2 | K76: a gain | L76: a gain | M76: a gain | N76: Y | O76: Y | AQ76: N | AT76: in | AY76: 4
A77: 74 | B77: against | D77: donut | F77: schwa cup | G77: ĕ egg | H77: 37 | J77: 2 | K77: a gainst | L77: a gainst | M77: a gain st | N77: N | O77: Y | AQ77: N | AT77: st | AY77: 6
A78: 75 | B78: agent | D78: donut | F78: ā plate | G78: schwa cup | J78: 2 | K78: a gent | L78: a gent | M78: a gent | N78: Y | O78: Y | AG78: Y | AQ78: N | AT78: nt | AY78: 4
A79: 76 | B79: aggression | D79: suffixes | F79: schwa cup | G79: sion magician | J79: 3 | K79: ag gres sion | L79: ag gres sion | M79: ag gres sion | N79: Y | O79: Y | AA79: x | AN79: Y | AQ79: N | AT79: on | AY79: 9
A80: 77 | B80: aggressive | D80: long multi | F80: schwa cup | J80: 3 | K80: ag gres sive | L80: ag gres sive | M80: agg res sive | N80: N | O80: Y | AA80: x | AI80: Y | AQ80: N | AT80: ve | AY80: 9
A81: 78 | B81: aglow | D81: donut blend | E81: gl | F81: schwa cup | G81: ō toast | J81: 2 | K81: a glow | L81: a glow | M81: a glow | N81: Y | O81: Y | AQ81: N | AT81: ow | AY81: 4
A82: 79 | B82: ago | D82: donut | F82: schwa cup | G82: ō toast | J82: 2 | K82: a go | L82: a go | M82: a go | N82: Y | O82: Y | AQ82: N | AT82: go | AY82: 2
A83: 80 | B83: agree | D83: donut blend | E83: gr | F83: schwa cup | G83: ē peach | J83: 2 | K83: a gree | L83: a gree | M83: a gree | N83: Y | O83: Y | P83: =IF(AND(FIND(P$2,$B83)>1,FIND(P$2,$B83)<$AY83),"x"," ") ->  | AG83: =IF(ISERROR(SEARCH(AG$2,$B83,1)),"","Y") ->  | AQ83: N | AT83: ee | AY83: 4
A84: 81 | B84: ahead | D84: donut | F84: schwa cup | G84: ĕ egg | J84: 2 | K84: a head | L84: a head | M84: a head | N84: Y | O84: Y | AG84: Y | AQ84: N | AT84: ad | AY84: 4
A85: 82 | B85: airbrush | D85: compound | E85: corn muffin 3 | F85: air chair | G85: ŭ cup | J85: 2 | K85: air brush | L85: air brush | M85: air brush | N85: Y | O85: Y | AQ85: N | AT85: sh | AY85: 7
A86: 83 | B86: aircraft | D86: compound | E86: 3 | F86: air chair | J86: 3 | K86: air craft | L86: air craft | M86: air craft | N86: N | O86: N | AQ86: N | AT86: ft | AY86: 7
A87: 84 | B87: airfield | D87: compound | E87: corn muffin | F87: air chair | G87: ē peach | J87: 2 | K87: air field | L87: air field | M87: air field | N87: Y | O87: Y | AQ87: N | AT87: ld | AY87: 7
A88: 85 | B88: airliner | D88: compound multiple | F88: air chair | J88: 3 | K88: air lin er | L88: air li ner | M88: air li ner | N88: N | O88: N | AD88: R | AI88: Y | AQ88: Y | AT88: er | AY88: 7
A89: 86 | B89: airman | D89: compound | E89: corn muffin | F89: air chair | G89: schwa cup | J89: 2 | K89: air man | L89: air man | M89: air man | N89: Y | O89: Y | AQ89: Y | AT89: an | AY89: 5
A90: 87 | B90: airplane | F90: air chair | G90: ā plate | H90: 26 | J90: 2 | AY90: 7
A91: 88 | B91: airport | D91: compound | E91: corn muffin | F91: air chair | G91: or fork | J91: =LEN(K91)-LEN(SUBSTITUTE(K91," ",""))+1 -> 2 | K91: air port | L91: air port | M91: air port | N91: =IF(K91=M91,"Y","N") -> Y | O91: =IF(K91=L91,"Y","N") -> Y | P91: =IF(AND(FIND(P$2,$B91)>1,FIND(P$2,$B91)<$AY91),"x"," ") ->  | AD91: =IF(RIGHT(B91,1)="r","R","") ->  | AE91: =IF(RIGHT(B91,1)=$AE$1,$AE$1,"") ->  | AF91: =IF(RIGHT(B91,2)=$AF$1,$AF$1,"") ->  | AG91: =IF(ISERROR(SEARCH(AG$2,$B91,1)),"","Y") ->  | AM91: =IF(ISERROR(SEARCH(AM$2,$B91,$AY91 -1)),"","Y") ->  | AP91: =IF(ISERROR(SEARCH(AP$2,$B91,1)),"","Y") ->  | AQ91: =IF(LEFT(RIGHT(L91,$AQ$1),1)= " ", "Y","N") -> N | AT91: rt | AY91: 6
A92: 89 | B92: airship | D92: compound | E92: corn muffin 3 | F92: air chair | G92: ĭ milk | J92: 2 | K92: air ship | L92: air ship | M92: air ship | N92: Y | O92: Y | Z92: x | AQ92: N | AT92: ip | AY92: 6
A93: 90 | B93: alas | D93: donut | F93: schwa cup | G93: ă jam | J93: 2 | K93: a las | L93: a las | M93: a las | N93: Y | O93: Y | AE93: s | AQ93: Y | AT93: as | AY93: 3
A94: 91 | B94: alight | D94: donut | F94: schwa cup | G94: ī knife | J94: 2 | K94: a light | L94: a light | M94: a light | N94: Y | O94: Y | R94: x | AQ94: N | AT94: ht | AY94: 5
A95: 92 | B95: align | D95: donut | F95: schwa cup | G95: ī knife | J95: 2 | K95: a lign | L95: a lign | M95: a lign | N95: Y | O95: Y | AQ95: N | AT95: gn | AY95: 4
A96: 93 | B96: alike | D96: donut | F96: schwa cup | G96: ī knife | J96: 2 | K96: a like | L96: a like | M96: a like | N96: Y | O96: Y | AI96: Y | AQ96: N | AT96: ke | AY96: 4
A97: 94 | B97: alive | D97: donut | F97: schwa cup | G97: ī knife | J97: 2 | K97: a live | L97: a live | M97: a live | N97: Y | O97: Y | AI97: Y | AQ97: N | AT97: ve | AY97: 4
A98: 95 | B98: allegation | D98: suffixes | F98: ă jam | G98: tion vacation | J98: 4 | K98: al le ga tion | L98: al le ga tion | M98: al le ga tion | N98: Y | O98: Y | S98: x | AL98: Y | AN98: Y | AQ98: N | AT98: on | AY98: 9
A99: 96 | B99: alley | F99: ă jam | G99: ē peach | H99: 10 | J99: 2 | AY99: 4
A100: 97 | B100: allied | D100: muffin twin | F100: ă jam | G100: ī knife | J100: =LEN(K100)-LEN(SUBSTITUTE(K100," ",""))+1 -> 2 | K100: al lied | L100: al lied | M100: al lied | N100: =IF(K100=M100,"Y","N") -> Y | O100: =IF(K100=L100,"Y","N") -> Y | P100: =IF(AND(FIND(P$2,$B100)>1,FIND(P$2,$B100)<$AY100),"x"," ") ->  | S100: x | AD100: =IF(RIGHT(B100,1)="r","R","") ->  | AE100: =IF(RIGHT(B100,1)=$AE$1,$AE$1,"") ->  | AF100: =IF(RIGHT(B100,2)=$AF$1,$AF$1,"") ->  | AG100: =IF(ISERROR(SEARCH(AG$2,$B100,1)),"","Y") ->  | AM100: =IF(ISERROR(SEARCH(AM$2,$B100,$AY100 -1)),"","Y") -> Y | AP100: =IF(ISERROR(SEARCH(AP$2,$B100,1)),"","Y") ->  | AQ100: =IF(LEFT(RIGHT(L100,$AQ$1),1)= " ", "Y","N") -> N | AT100: ed | AY100: 5
A101: 98 | B101: alligator | J101: =LEN(K101)-LEN(SUBSTITUTE(K101," ",""))+1 -> 4 | K101: al li ga tor | L101: al li ga tor | O101: =IF(K101=L101,"Y","N") -> Y | S101: x | AD101: =IF(RIGHT(B101,1)="r","R","") -> R | AE101: =IF(RIGHT(B101,1)=$AE$1,$AE$1,"") ->  | AF101: =IF(RIGHT(B101,2)=$AF$1,$AF$1,"") ->  | AP101: =IF(ISERROR(SEARCH(AP$2,$B101,1)),"","Y") ->  | AQ101: =IF(LEFT(RIGHT(L101,$AQ$1),1)= " ", "Y","N") -> Y | AT101: or | AY101: 8
A102: 99 | B102: allow | D102: muffin twin | F102: schwa cup | G102: ow wowberry | H102: 24 | J102: =LEN(K102)-LEN(SUBSTITUTE(K102," ",""))+1 -> 2 | K102: al low | L102: al low | M102: al low | N102: =IF(K102=M102,"Y","N") -> Y | O102: =IF(K102=L102,"Y","N") -> Y | S102: x | AD102: =IF(RIGHT(B102,1)="r","R","") ->  | AE102: =IF(RIGHT(B102,1)=$AE$1,$AE$1,"") ->  | AF102: =IF(RIGHT(B102,2)=$AF$1,$AF$1,"") ->  | AP102: =IF(ISERROR(SEARCH(AP$2,$B102,1)),"","Y") ->  | AQ102: =IF(LEFT(RIGHT(L102,$AQ$1),1)= " ", "Y","N") -> Y | AR102: allowing | AS102: 2 vowels | AT102: ow | AY102: 4
A103: 100 | B103: allowed | C103: allow | F103: schwa cup | G103: ow wowberry | H103: 52 | J103: 2 | AY103: 6
A104: 101 | B104: alloy | D104: muffin twin | F104: ă jam | G104: oi boysenberry | J104: =LEN(K104)-LEN(SUBSTITUTE(K104," ",""))+1 -> 2 | K104: al loy | L104: al loy | M104: al loy | N104: =IF(K104=M104,"Y","N") -> Y | O104: =IF(K104=L104,"Y","N") -> Y | P104: =IF(AND(FIND(P$2,$B104)>1,FIND(P$2,$B104)<$AY104),"x"," ") ->  | S104: x | AD104: =IF(RIGHT(B104,1)="r","R","") ->  | AE104: =IF(RIGHT(B104,1)=$AE$1,$AE$1,"") ->  | AF104: =IF(RIGHT(B104,2)=$AF$1,$AF$1,"") ->  | AG104: =IF(ISERROR(SEARCH(AG$2,$B104,1)),"","Y") ->  | AM104: =IF(ISERROR(SEARCH(AM$2,$B104,$AY104 -1)),"","Y") ->  | AP104: =IF(ISERROR(SEARCH(AP$2,$B104,1)),"","Y") ->  | AQ104: =IF(LEFT(RIGHT(L104,$AQ$1),1)= " ", "Y","N") -> Y | AT104: oy | AY104: 4
A105: 102 | B105: allude | D105: muffin twin | F105: schwa cup | G105: ew blueberry | J105: =LEN(K105)-LEN(SUBSTITUTE(K105," ",""))+1 -> 2 | K105: al lude | L105: al lude | M105: al lude | N105: =IF(K105=M105,"Y","N") -> Y | O105: =IF(K105=L105,"Y","N") -> Y | S105: x | AD105: =IF(RIGHT(B105,1)="r","R","") ->  | AE105: =IF(RIGHT(B105,1)=$AE$1,$AE$1,"") ->  | AF105: =IF(RIGHT(B105,2)=$AF$1,$AF$1,"") ->  | AK105: Y | AP105: =IF(ISERROR(SEARCH(AP$2,$B105,1)),"","Y") ->  | AQ105: =IF(LEFT(RIGHT(L105,$AQ$1),1)= " ", "Y","N") -> N | AT105: de | AY105: 5
A106: 103 | B106: allure | D106: muffin twin | F106: schwa cup | G106: er ir ur burnt | J106: =LEN(K106)-LEN(SUBSTITUTE(K106," ",""))+1 -> 2 | K106: al lure | L106: al lure | M106: al lure | N106: =IF(K106=M106,"Y","N") -> Y | O106: =IF(K106=L106,"Y","N") -> Y | S106: x | AD106: =IF(RIGHT(B106,1)="r","R","") ->  | AE106: =IF(RIGHT(B106,1)=$AE$1,$AE$1,"") ->  | AF106: =IF(RIGHT(B106,2)=$AF$1,$AF$1,"") ->  | AK106: Y | AP106: =IF(ISERROR(SEARCH(AP$2,$B106,1)),"","Y") ->  | AQ106: =IF(LEFT(RIGHT(L106,$AQ$1),1)= " ", "Y","N") -> N | AT106: re | AY106: 5
A107: 104 | B107: ally | D107: muffin twin | F107: ă jam | G107: ī knife | J107: =LEN(K107)-LEN(SUBSTITUTE(K107," ",""))+1 -> 2 | K107: al ly | L107: al ly | M107: al ly | N107: =IF(K107=M107,"Y","N") -> Y | O107: =IF(K107=L107,"Y","N") -> Y | S107: x | AD107: =IF(RIGHT(B107,1)="r","R","") ->  | AE107: =IF(RIGHT(B107,1)=$AE$1,$AE$1,"") ->  | AF107: =IF(RIGHT(B107,2)=$AF$1,$AF$1,"") ->  | AP107: =IF(ISERROR(SEARCH(AP$2,$B107,1)),"","Y") ->  | AQ107: =IF(LEFT(RIGHT(L107,$AQ$1),1)= " ", "Y","N") -> N | AT107: ly | AY107: 3
A108: 105 | B108: almost | F108: aw strawberry | G108: ō toast | H108: 25 | J108: 2 | AY108: 5
A109: 106 | B109: aloft | D109: donut | F109: schwa cup | G109: aw strawberry | J109: =LEN(K109)-LEN(SUBSTITUTE(K109," ",""))+1 -> 2 | K109: a loft | L109: a loft | M109: a loft | N109: =IF(K109=M109,"Y","N") -> Y | O109: =IF(K109=L109,"Y","N") -> Y | P109: =IF(AND(FIND(P$2,$B109)>1,FIND(P$2,$B109)<$AY109),"x"," ") ->  | AD109: =IF(RIGHT(B109,1)="r","R","") ->  | AE109: =IF(RIGHT(B109,1)=$AE$1,$AE$1,"") ->  | AF109: =IF(RIGHT(B109,2)=$AF$1,$AF$1,"") ->  | AG109: =IF(ISERROR(SEARCH(AG$2,$B109,1)),"","Y") ->  | AM109: =IF(ISERROR(SEARCH(AM$2,$B109,$AY109 -1)),"","Y") ->  | AP109: =IF(ISERROR(SEARCH(AP$2,$B109,1)),"","Y") ->  | AQ109: =IF(LEFT(RIGHT(L109,$AQ$1),1)= " ", "Y","N") -> N | AT109: ft | AY109: 4
A110: 107 | B110: alone | D110: donut | F110: schwa cup | G110: ō toast | H110: 21 | J110: =LEN(K110)-LEN(SUBSTITUTE(K110," ",""))+1 -> 2 | K110: a lone | L110: a lone | M110: a lone | N110: =IF(K110=M110,"Y","N") -> Y | O110: =IF(K110=L110,"Y","N") -> Y | AD110: =IF(RIGHT(B110,1)="r","R","") ->  | AE110: =IF(RIGHT(B110,1)=$AE$1,$AE$1,"") ->  | AF110: =IF(RIGHT(B110,2)=$AF$1,$AF$1,"") ->  | AJ110: Y | AP110: =IF(ISERROR(SEARCH(AP$2,$B110,1)),"","Y") ->  | AQ110: =IF(LEFT(RIGHT(L110,$AQ$1),1)= " ", "Y","N") -> N | AT110: ne | AY110: 4
A111: 108 | B111: along | D111: donut | F111: schwa cup | G111: aw strawberry | J111: =LEN(K111)-LEN(SUBSTITUTE(K111," ",""))+1 -> 2 | K111: a long | L111: a long | M111: a long | N111: =IF(K111=M111,"Y","N") -> Y | O111: =IF(K111=L111,"Y","N") -> Y | AD111: =IF(RIGHT(B111,1)="r","R","") ->  | AE111: =IF(RIGHT(B111,1)=$AE$1,$AE$1,"") ->  | AF111: =IF(RIGHT(B111,2)=$AF$1,$AF$1,"") ->  | AP111: =IF(ISERROR(SEARCH(AP$2,$B111,1)),"","Y") ->  | AQ111: =IF(LEFT(RIGHT(L111,$AQ$1),1)= " ", "Y","N") -> N | AT111: ng | AY111: 4
A112: 109 | B112: aloud | D112: donut | E112: Diphthong | F112: schwa cup | G112: ow wowberry | H112: 52 | J112: =LEN(K112)-LEN(SUBSTITUTE(K112," ",""))+1 -> 2 | K112: a loud | L112: a loud | M112: a loud | N112: =IF(K112=M112,"Y","N") -> Y | O112: =IF(K112=L112,"Y","N") -> Y | AD112: =IF(RIGHT(B112,1)="r","R","") ->  | AE112: =IF(RIGHT(B112,1)=$AE$1,$AE$1,"") ->  | AF112: =IF(RIGHT(B112,2)=$AF$1,$AF$1,"") ->  | AP112: =IF(ISERROR(SEARCH(AP$2,$B112,1)),"","Y") ->  | AQ112: =IF(LEFT(RIGHT(L112,$AQ$1),1)= " ", "Y","N") -> N | AT112: ud | AY112: 4
A113: 110 | B113: alphabet | H113: 44 | J113: 3 | AY113: 7
A114: 111 | B114: already | H114: 25 | J114: 3 | AY114: 6
A115: 112 | B115: also | F115: aw strawberry | G115: ō toast | H115: 25 | J115: 2 | AY115: 3
A116: 113 | B116: altercation | D116: suffixes | F116: ŏ pot | G116: tion vacation | J116: =LEN(K116)-LEN(SUBSTITUTE(K116," ",""))+1 -> 4 | K116: al ter ca tion | L116: al ter ca tion | M116: al ter ca tion | N116: =IF(K116=M116,"Y","N") -> Y | O116: =IF(K116=L116,"Y","N") -> Y | P116: =IF(AND(FIND(P$2,$B116)>1,FIND(P$2,$B116)<$AY116),"x"," ") ->  | AD116: =IF(RIGHT(B116,1)="r","R","") ->  | AE116: =IF(RIGHT(B116,1)=$AE$1,$AE$1,"") ->  | AF116: =IF(RIGHT(B116,2)=$AF$1,$AF$1,"") ->  | AG116: =IF(ISERROR(SEARCH(AG$2,$B116,1)),"","Y") ->  | AM116: =IF(ISERROR(SEARCH(AM$2,$B116,$AY116 -1)),"","Y") ->  | AN116: =IF(ISERROR(SEARCH(AN$2,$B116,$AY116 -1)),"","Y") -> Y | AO116: =IF(ISERROR(SEARCH(AO$2,$B116,$AY116 -1)),"","Y") ->  | AP116: =IF(ISERROR(SEARCH(AP$2,$B116,1)),"","Y") ->  | AQ116: =IF(LEFT(RIGHT(L116,$AQ$1),1)= " ", "Y","N") -> N | AT116: on | AY116: 10
A117: 114 | B117: although | F117: aw strawberry | G117: ō toast | H117: 25 | J117: 2 | AY117: 7
A118: 115 | B118: always | F118: aw strawberry | G118: ā plate | H118: 25 | J118: 2 | AY118: 5
A119: 116 | B119: amass | D119: donut | F119: schwa cup | G119: ă jam | J119: =LEN(K119)-LEN(SUBSTITUTE(K119," ",""))+1 -> 2 | K119: a mass | L119: a mass | M119: a mass | N119: =IF(K119=M119,"Y","N") -> Y | O119: =IF(K119=L119,"Y","N") -> Y | P119: =IF(AND(FIND(P$2,$B119)>1,FIND(P$2,$B119)<$AY119),"x"," ") ->  | AD119: =IF(RIGHT(B119,1)="r","R","") ->  | AE119: =IF(RIGHT(B119,1)=$AE$1,$AE$1,"") -> s | AF119: =IF(RIGHT(B119,2)=$AF$1,$AF$1,"") ->  | AG119: =IF(ISERROR(SEARCH(AG$2,$B119,1)),"","Y") ->  | AM119: =IF(ISERROR(SEARCH(AM$2,$B119,$AY119 -1)),"","Y") ->  | AP119: =IF(ISERROR(SEARCH(AP$2,$B119,1)),"","Y") ->  | AQ119: =IF(LEFT(RIGHT(L119,$AQ$1),1)= " ", "Y","N") -> N | AT119: ss | AY119: 4
A120: 117 | B120: amaze | D120: donut | F120: schwa cup | G120: ā plate | H120: 19 | J120: =LEN(K120)-LEN(SUBSTITUTE(K120," ",""))+1 -> 2 | K120: a maze | L120: a maze | M120: a maze | N120: =IF(K120=M120,"Y","N") -> Y | O120: =IF(K120=L120,"Y","N") -> Y | AD120: =IF(RIGHT(B120,1)="r","R","") ->  | AE120: =IF(RIGHT(B120,1)=$AE$1,$AE$1,"") ->  | AF120: =IF(RIGHT(B120,2)=$AF$1,$AF$1,"") ->  | AG120: Y | AP120: =IF(ISERROR(SEARCH(AP$2,$B120,1)),"","Y") ->  | AQ120: =IF(LEFT(RIGHT(L120,$AQ$1),1)= " ", "Y","N") -> N | AT120: ze | AY120: 4
A121: 118 | B121: amber | D121: muffin mixed | E121: 2 | F121: ă jam | G121: er ir ur burnt | J121: =LEN(K121)-LEN(SUBSTITUTE(K121," ",""))+1 -> 2 | K121: am ber | L121: am ber | M121: am ber | N121: =IF(K121=M121,"Y","N") -> Y | O121: =IF(K121=L121,"Y","N") -> Y | T121: x | AD121: =IF(RIGHT(B121,1)="r","R","") -> R | AE121: =IF(RIGHT(B121,1)=$AE$1,$AE$1,"") ->  | AF121: =IF(RIGHT(B121,2)=$AF$1,$AF$1,"") ->  | AP121: =IF(ISERROR(SEARCH(AP$2,$B121,1)),"","Y") ->  | AQ121: =IF(LEFT(RIGHT(L121,$AQ$1),1)= " ", "Y","N") -> Y | AT121: er | AY121: 4
A122: 119 | B122: ambition | D122: suffixes | F122: ă jam | G122: tion vacation | J122: =LEN(K122)-LEN(SUBSTITUTE(K122," ",""))+1 -> 3 | K122: am bi tion | L122: am bi tion | M122: am bi tion | N122: =IF(K122=M122,"Y","N") -> Y | O122: =IF(K122=L122,"Y","N") -> Y | T122: x | AD122: =IF(RIGHT(B122,1)="r","R","") ->  | AE122: =IF(RIGHT(B122,1)=$AE$1,$AE$1,"") ->  | AF122: =IF(RIGHT(B122,2)=$AF$1,$AF$1,"") ->  | AN122: Y | AP122: =IF(ISERROR(SEARCH(AP$2,$B122,1)),"","Y") ->  | AQ122: =IF(LEFT(RIGHT(L122,$AQ$1),1)= " ", "Y","N") -> N | AT122: on | AY122: 7
A123: 120 | B123: amend | D123: donut | F123: schwa cup | G123: ĕ egg | J123: =LEN(K123)-LEN(SUBSTITUTE(K123," ",""))+1 -> 2 | K123: a mend | L123: a mend | M123: a mend | N123: =IF(K123=M123,"Y","N") -> Y | O123: =IF(K123=L123,"Y","N") -> Y | AD123: =IF(RIGHT(B123,1)="r","R","") ->  | AE123: =IF(RIGHT(B123,1)=$AE$1,$AE$1,"") ->  | AF123: =IF(RIGHT(B123,2)=$AF$1,$AF$1,"") ->  | AG123: Y | AP123: =IF(ISERROR(SEARCH(AP$2,$B123,1)),"","Y") ->  | AQ123: =IF(LEFT(RIGHT(L123,$AQ$1),1)= " ", "Y","N") -> N | AT123: nd | AY123: 4
A124: 121 | B124: America | H124: 55 | J124: 4 | AY124: 6
A125: 122 | B125: amid | D125: donut | F125: schwa cup | G125: ĭ milk | J125: =LEN(K125)-LEN(SUBSTITUTE(K125," ",""))+1 -> 2 | K125: a mid | L125: a mid | M125: a mid | N125: =IF(K125=M125,"Y","N") -> Y | O125: =IF(K125=L125,"Y","N") -> Y | P125: =IF(AND(FIND(P$2,$B125)>1,FIND(P$2,$B125)<$AY125),"x"," ") ->  | AD125: =IF(RIGHT(B125,1)="r","R","") ->  | AE125: =IF(RIGHT(B125,1)=$AE$1,$AE$1,"") ->  | AF125: =IF(RIGHT(B125,2)=$AF$1,$AF$1,"") ->  | AG125: =IF(ISERROR(SEARCH(AG$2,$B125,1)),"","Y") ->  | AM125: =IF(ISERROR(SEARCH(AM$2,$B125,$AY125 -1)),"","Y") ->  | AP125: =IF(ISERROR(SEARCH(AP$2,$B125,1)),"","Y") ->  | AQ125: =IF(LEFT(RIGHT(L125,$AQ$1),1)= " ", "Y","N") -> Y | AT125: id | AY125: 3
A126: 123 | B126: amiss | D126: donut | F126: schwa cup | G126: ĭ milk | J126: 2 | K126: a miss | L126: a miss | M126: a miss | N126: Y | O126: Y | AE126: s | AQ126: N | AT126: ss | AY126: 4
A127: 124 | B127: ammunition | D127: suffixes | F127: ă jam | G127: tion vacation | J127: 4 | K127: am mu ni tion | L127: am mu ni tion | M127: am mu ni tion | N127: Y | O127: Y | AN127: Y | AQ127: N | AT127: on | AY127: 9
A128: 125 | B128: among | D128: donut | F128: schwa cup | G128: ŭ cup | H128: 37 | J128: 2 | K128: a mong | L128: a mong | M128: a mong | N128: Y | O128: Y | AQ128: N | AT128: ng | AY128: 4
A129: 126 | B129: amount | D129: donut | E129: Diphthong | F129: schwa cup | G129: ow wowberry | H129: 24 | J129: 2 | K129: a mount | L129: a mount | M129: a mount | N129: Y | O129: Y | AQ129: N | AT129: nt | AY129: 5
A130: 127 | B130: amuck | D130: donut | F130: schwa cup | G130: ŭ cup | J130: 2 | K130: a muck | L130: a muck | M130: a muck | N130: Y | O130: Y | AQ130: N | AT130: ck | AY130: =LEN(B130)-1 -> 4
A131: 128 | B131: amuse | D131: donut | F131: schwa cup | G131: ew blueberry | H131: 22 | J131: 2 | K131: a muse | L131: a muse | M131: a muse | N131: Y | O131: Y | AK131: Y | AQ131: N | AT131: =(RIGHT(L131,2)) -> se | AY131: 4
A132: =A131+1 -> 129 | B132: anchor | D132: muffin mixed | E132: 3 | F132: ă jam | G132: or fork | J132: 2 | K132: an chor | L132: an chor | M132: an chor | N132: Y | O132: Y | P132: x | AD132: R | AQ132: N | AT132: or | AY132: 5
A133: 130 | B133: ancient | F133: ā plate | G133: schwa cup | H133: 55 | J133: 2 | AY133: 6
A134: 131 | B134: anew | D134: donut | E134: Diphthong | F134: schwa cup | G134: ew blueberry | J134: =LEN(K134)-LEN(SUBSTITUTE(K134," ",""))+1 -> 2 | K134: a new | L134: a new | M134: a new | N134: =IF(K134=M134,"Y","N") -> Y | O134: =IF(K134=L134,"Y","N") -> Y | P134: =IF(AND(FIND(P$2,$B134)>1,FIND(P$2,$B134)<$AY134),"x"," ") ->  | AD134: =IF(RIGHT(B134,1)="r","R","") ->  | AE134: =IF(RIGHT(B134,1)=$AE$1,$AE$1,"") ->  | AF134: =IF(RIGHT(B134,2)=$AF$1,$AF$1,"") ->  | AG134: =IF(ISERROR(SEARCH(AG$2,$B134,1)),"","Y") -> Y | AM134: =IF(ISERROR(SEARCH(AM$2,$B134,$AY134 -1)),"","Y") ->  | AN134: =IF(ISERROR(SEARCH(AN$2,$B134,$AY134 -1)),"","Y") ->  | AO134: =IF(ISERROR(SEARCH(AO$2,$B134,$AY134 -1)),"","Y") ->  | AP134: =IF(ISERROR(SEARCH(AP$2,$B134,1)),"","Y") ->  | AQ134: =IF(LEFT(RIGHT(L134,$AQ$1),1)= " ", "Y","N") -> Y | AT134: ew | AY134: 3
A135: 132 | B135: angel | F135: ā plate | G135: schwa cup | H135: 32 | J135: 2 | AY135: 4
A136: 133 | B136: anger | D136: muffin mixed | E136: 2 | F136: ă jam | G136: er ir ur burnt | J136: =LEN(K136)-LEN(SUBSTITUTE(K136," ",""))+1 -> 2 | K136: an ger | L136: an ger | M136: an ger | N136: =IF(K136=M136,"Y","N") -> Y | O136: =IF(K136=L136,"Y","N") -> Y | P136: =IF(AND(FIND(P$2,$B136)>1,FIND(P$2,$B136)<$AY136),"x"," ") ->  | W136: x | AD136: =IF(RIGHT(B136,1)="r","R","") -> R | AE136: =IF(RIGHT(B136,1)=$AE$1,$AE$1,"") ->  | AF136: =IF(RIGHT(B136,2)=$AF$1,$AF$1,"") ->  | AG136: =IF(ISERROR(SEARCH(AG$2,$B136,1)),"","Y") ->  | AM136: =IF(ISERROR(SEARCH(AM$2,$B136,$AY136 -1)),"","Y") ->  | AN136: =IF(ISERROR(SEARCH(AN$2,$B136,$AY136 -1)),"","Y") ->  | AO136: =IF(ISERROR(SEARCH(AO$2,$B136,$AY136 -1)),"","Y") ->  | AP136: =IF(ISERROR(SEARCH(AP$2,$B136,1)),"","Y") ->  | AQ136: =IF(LEFT(RIGHT(L136,$AQ$1),1)= " ", "Y","N") -> Y | AR136: angering | AS136: 2 vowels | AT136: er | AY136: 4
A137: 134 | B137: angle | F137: ā plate | G137: le | H137: 32 | J137: 2 | AY137: 4
A138: 135 | B138: angrily | C138: angry | H138: 49 | J138: 3 | AY138: 6
A139: 136 | B139: angry | F139: ā plate | G139: ē peach | H139: 9 | J139: 2 | AY139: 4
A140: 137 | B140: animal | H140: 55 | J140: 3 | AY140: 5
A141: 138 | B141: animation | C141: animate | D141: suffixes | F141: schwa cup | G141: tion vacation | J141: =LEN(K141)-LEN(SUBSTITUTE(K141," ",""))+1 -> 4 | K141: an i ma tion | L141: a ni ma tion | M141: a ni ma tion | N141: =IF(K141=M141,"Y","N") -> N | O141: =IF(K141=L141,"Y","N") -> N | P141: =IF(AND(FIND(P$2,$B141)>1,FIND(P$2,$B141)<$AY141),"x"," ") ->  | AD141: =IF(RIGHT(B141,1)="r","R","") ->  | AE141: =IF(RIGHT(B141,1)=$AE$1,$AE$1,"") ->  | AF141: =IF(RIGHT(B141,2)=$AF$1,$AF$1,"") ->  | AG141: =IF(ISERROR(SEARCH(AG$2,$B141,1)),"","Y") ->  | AM141: =IF(ISERROR(SEARCH(AM$2,$B141,$AY141 -1)),"","Y") ->  | AN141: =IF(ISERROR(SEARCH(AN$2,$B141,$AY141 -1)),"","Y") -> Y | AO141: =IF(ISERROR(SEARCH(AO$2,$B141,$AY141 -1)),"","Y") ->  | AP141: =IF(ISERROR(SEARCH(AP$2,$B141,1)),"","Y") ->  | AQ141: =IF(LEFT(RIGHT(L141,$AQ$1),1)= " ", "Y","N") -> N | AT141: on | AY141: 8
A142: 139 | B142: announce | F142: schwa cup | G142: ow wowberry | H142: 24 | J142: 2 | AY142: 7
A143: 140 | B143: annoy | D143: muffin twin | F143: schwa cup | G143: oi boysenberry | H143: 24 | J143: =LEN(K143)-LEN(SUBSTITUTE(K143," ",""))+1 -> 2 | K143: an noy | L143: an noy | M143: an noy | N143: =IF(K143=M143,"Y","N") -> Y | O143: =IF(K143=L143,"Y","N") -> Y | P143: =IF(AND(FIND(P$2,$B143)>1,FIND(P$2,$B143)<$AY143),"x"," ") ->  | AD143: =IF(RIGHT(B143,1)="r","R","") ->  | AE143: =IF(RIGHT(B143,1)=$AE$1,$AE$1,"") ->  | AF143: =IF(RIGHT(B143,2)=$AF$1,$AF$1,"") ->  | AG143: =IF(ISERROR(SEARCH(AG$2,$B143,1)),"","Y") ->  | AM143: =IF(ISERROR(SEARCH(AM$2,$B143,$AY143 -1)),"","Y") ->  | AP143: =IF(ISERROR(SEARCH(AP$2,$B143,1)),"","Y") ->  | AQ143: =IF(LEFT(RIGHT(L143,$AQ$1),1)= " ", "Y","N") -> Y | AR143: annoying | AS143: 2 vowels | AT143: oy | AY143: 4
A144: 141 | B144: annul | D144: muffin twin | F144: schwa cup | G144: ŭ cup | J144: =LEN(K144)-LEN(SUBSTITUTE(K144," ",""))+1 -> 2 | K144: an nul | L144: an nul | M144: an nul | N144: =IF(K144=M144,"Y","N") -> Y | O144: =IF(K144=L144,"Y","N") -> Y | AD144: =IF(RIGHT(B144,1)="r","R","") ->  | AE144: =IF(RIGHT(B144,1)=$AE$1,$AE$1,"") ->  | AF144: =IF(RIGHT(B144,2)=$AF$1,$AF$1,"") ->  | AP144: =IF(ISERROR(SEARCH(AP$2,$B144,1)),"","Y") ->  | AQ144: =IF(LEFT(RIGHT(L144,$AQ$1),1)= " ", "Y","N") -> Y | AR144: annulling | AS144: double | AT144: ul | AY144: 4
A145: 142 | B145: anoint | D145: donut | E145: Diphthong | F145: schwa cup | G145: oi boysenberry | J145: =LEN(K145)-LEN(SUBSTITUTE(K145," ",""))+1 -> 2 | K145: a noint | L145: a noint | M145: a noint | N145: =IF(K145=M145,"Y","N") -> Y | O145: =IF(K145=L145,"Y","N") -> Y | AD145: =IF(RIGHT(B145,1)="r","R","") ->  | AE145: =IF(RIGHT(B145,1)=$AE$1,$AE$1,"") ->  | AF145: =IF(RIGHT(B145,2)=$AF$1,$AF$1,"") ->  | AP145: =IF(ISERROR(SEARCH(AP$2,$B145,1)),"","Y") ->  | AQ145: =IF(LEFT(RIGHT(L145,$AQ$1),1)= " ", "Y","N") -> N | AT145: nt | AY145: 5
A146: 143 | B146: another | H146: 37 | J146: 3 | AY146: 6
A147: 144 | B147: answer | F147: ă jam | G147: er ir ur burnt | H147: 43 | J147: 2 | AY147: 5
A148: 145 | B148: Antarctica | H148: 55 | J148: 4 | AY148: 9
A149: 146 | B149: antique | F149: ă jam | G149: ē peach | H149: 42 | J149: 2 | AY149: 6
A150: 147 | B150: anyone | H150: 13 | J150: 3 | AY150: 5
A151: 148 | B151: anything | H151: 13 | J151: 3 | AY151: 7
A152: 149 | B152: apart | D152: donut | F152: schwa cup | G152: ar jar | J152: =LEN(K152)-LEN(SUBSTITUTE(K152," ",""))+1 -> 2 | K152: a part | L152: a part | M152: a part | N152: =IF(K152=M152,"Y","N") -> Y | O152: =IF(K152=L152,"Y","N") -> Y | P152: =IF(AND(FIND(P$2,$B152)>1,FIND(P$2,$B152)<$AY152),"x"," ") ->  | AD152: =IF(RIGHT(B152,1)="r","R","") ->  | AE152: =IF(RIGHT(B152,1)=$AE$1,$AE$1,"") ->  | AF152: =IF(RIGHT(B152,2)=$AF$1,$AF$1,"") ->  | AG152: =IF(ISERROR(SEARCH(AG$2,$B152,1)),"","Y") ->  | AM152: =IF(ISERROR(SEARCH(AM$2,$B152,$AY152 -1)),"","Y") ->  | AP152: =IF(ISERROR(SEARCH(AP$2,$B152,1)),"","Y") ->  | AQ152: =IF(LEFT(RIGHT(L152,$AQ$1),1)= " ", "Y","N") -> N | AT152: rt | AY152: 4
A153: 150 | B153: apex | D153: donut | F153: ā plate | G153: ĕ egg | J153: 2 | K153: a pex | L153: a pex | M153: a pex | N153: Y | O153: Y | AG153: Y | AQ153: Y | AT153: ex | AY153: 3
A154: 151 | B154: aphid | D154: donut blend | E154: ph | F154: ā plate | G154: ĭ milk | J154: 2 | K154: a phid | L154: a phid | M154: ap hid | N154: N | O154: Y | Y154: x | AQ154: N | AT154: id | AY154: 4
A155: 152 | B155: apiece | D155: donut | F155: schwa cup | G155: ē peach | J155: 2 | K155: a piece | L155: a piece | M155: a piece | N155: Y | O155: Y | AH155: Y | AQ155: N | AT155: ce | AY155: 5
A156: 153 | B156: appall | D156: muffin twin | F156: schwa cup | G156: aw strawberry | J156: 2 | K156: ap pall | L156: ap pall | M156: ap pall | N156: Y | O156: Y | AQ156: N | AT156: ll | AY156: 5
A157: 154 | B157: appeal | D157: muffin twin | F157: schwa cup | G157: ē peach | J157: 2 | K157: ap peal | L157: ap peal | M157: ap peal | N157: Y | O157: Y | AQ157: N | AT157: al | AY157: 5
A158: 155 | B158: appear | D158: muffin twin | F158: schwa cup | G158: ear cereal | H158: 30 | J158: 2 | K158: ap pear | L158: ap pear | M158: ap pear | N158: Y | O158: Y | AD158: R | AQ158: N | AT158: ar | AY158: 5
A159: 156 | B159: appease | D159: muffin twin | F159: schwa cup | G159: ē peach | J159: 2 | K159: ap pease | L159: ap pease | M159: ap pease | N159: Y | O159: Y | AG159: Y | AQ159: N | AT159: se | AY159: 6
A160: 157 | B160: append | D160: muffin twin | F160: schwa cup | G160: ĕ egg | J160: 2 | K160: ap pend | L160: ap pend | M160: ap pend | N160: Y | O160: Y | AQ160: N | AT160: nd | AY160: 5
A161: 158 | B161: apple | F161: ă jam | G161: le | H161: 31 | J161: 2 | AY161: 4
A162: 159 | B162: application | D162: suffixes | G162: tion vacation | J162: =LEN(K162)-LEN(SUBSTITUTE(K162," ",""))+1 -> 4 | K162: ap pli ca tion | L162: ap pli ca tion | M162: ap pli ca tion | N162: =IF(K162=M162,"Y","N") -> Y | O162: =IF(K162=L162,"Y","N") -> Y | P162: =IF(AND(FIND(P$2,$B162)>1,FIND(P$2,$B162)<$AY162),"x"," ") ->  | AD162: =IF(RIGHT(B162,1)="r","R","") ->  | AE162: =IF(RIGHT(B162,1)=$AE$1,$AE$1,"") ->  | AF162: =IF(RIGHT(B162,2)=$AF$1,$AF$1,"") ->  | AG162: =IF(ISERROR(SEARCH(AG$2,$B162,1)),"","Y") ->  | AM162: =IF(ISERROR(SEARCH(AM$2,$B162,$AY162 -1)),"","Y") ->  | AN162: Y | AP162: =IF(ISERROR(SEARCH(AP$2,$B162,1)),"","Y") ->  | AQ162: =IF(LEFT(RIGHT(L162,$AQ$1),1)= " ", "Y","N") -> N | AT162: on | AY162: 10
A163: 160 | B163: appoint | D163: muffin twin | F163: schwa cup | G163: oi boysenberry | H163: 24 | J163: 2 | K163: ap point | L163: ap point | M163: ap point | N163: Y | O163: Y | AQ163: N | AT163: nt | AY163: 6
A164: 161 | B164: appraise | D164: muffin twin | F164: schwa cup | G164: ā plate | J164: 2 | K164: ap praise | L164: ap praise | M164: ap praise | N164: Y | O164: Y | AI164: Y | AQ164: N | AT164: se | AY164: 7
A165: 162 | B165: apprise | D165: muffin twin | F165: schwa cup | G165: ī knife | J165: 2 | K165: ap prise | L165: ap prise | M165: ap prise | N165: Y | O165: Y | AI165: Y | AQ165: N | AT165: se | AY165: 6
A166: 163 | B166: approach | D166: muffin twin | F166: schwa cup | G166: ō toast | H166: 21 | J166: 2 | K166: ap proach | L166: ap proach | M166: ap proach | N166: Y | O166: Y | AQ166: N | AT166: ch | AY166: 7
A167: 164 | B167: appropriation | C167: appropriate | D167: suffixes | G167: tion vacation | J167: 5 | K167: ap pro pri a ton | L167: ap pro pri a tion | M167: ap pro pri a tion | N167: N | O167: N | AN167: Y | AQ167: N | AT167: on | AY167: 12
A168: 165 | B168: approve | D168: muffin twin | F168: schwa cup | G168: ew blueberry | J168: 2 | K168: ap prove | L168: ap prove | M168: ap prove | N168: Y | O168: Y | AJ168: Y | AQ168: N | AT168: ve | AY168: 6
A169: 166 | B169: April | F169: ā plate | G169: schwa cup | H169: 32 | J169: 2 | AY169: 4
A170: 167 | B170: apron | D170: donut blend | E170: pr | F170: ā plate | G170: schwa cup | H170: 36 | J170: =LEN(K170)-LEN(SUBSTITUTE(K170," ",""))+1 -> 2 | K170: a pron | L170: a pron | M170: ap ron | N170: =IF(K170=M170,"Y","N") -> N | O170: =IF(K170=L170,"Y","N") -> Y | P170: =IF(AND(FIND(P$2,$B170)>1,FIND(P$2,$B170)<$AY170),"x"," ") ->  | AD170: =IF(RIGHT(B170,1)="r","R","") ->  | AE170: =IF(RIGHT(B170,1)=$AE$1,$AE$1,"") ->  | AF170: =IF(RIGHT(B170,2)=$AF$1,$AF$1,"") ->  | AG170: =IF(ISERROR(SEARCH(AG$2,$B170,1)),"","Y") ->  | AM170: =IF(ISERROR(SEARCH(AM$2,$B170,$AY170 -1)),"","Y") ->  | AN170: =IF(ISERROR(SEARCH(AN$2,$B170,$AY170 -1)),"","Y") ->  | AO170: =IF(ISERROR(SEARCH(AO$2,$B170,$AY170 -1)),"","Y") ->  | AP170: =IF(ISERROR(SEARCH(AP$2,$B170,1)),"","Y") ->  | AQ170: =IF(LEFT(RIGHT(L170,$AQ$1),1)= " ", "Y","N") -> N | AT170: on | AY170: 4
A171: 168 | B171: area | H171: 17 | J171: 3 | AY171: 3
A172: 169 | B172: argue | F172: ar jar | G172: ew blueberry | H172: 40 | J172: 2 | AY172: 4
A173: 170 | B173: armchair | D173: compound double two | E173: 4 2 | F173: ar jar | G173: air chair | J173: =LEN(K173)-LEN(SUBSTITUTE(K173," ",""))+1 -> 2 | K173: arm chair | L173: arm chair | M173: arm chair | N173: =IF(K173=M173,"Y","N") -> Y | O173: =IF(K173=L173,"Y","N") -> Y | P173: =IF(AND(FIND(P$2,$B173)>1,FIND(P$2,$B173)<$AY173),"x"," ") -> x | AD173: =IF(RIGHT(B173,1)="r","R","") -> R | AE173: =IF(RIGHT(B173,1)=$AE$1,$AE$1,"") ->  | AF173: =IF(RIGHT(B173,2)=$AF$1,$AF$1,"") ->  | AG173: =IF(ISERROR(SEARCH(AG$2,$B173,1)),"","Y") ->  | AM173: =IF(ISERROR(SEARCH(AM$2,$B173,$AY173 -1)),"","Y") ->  | AN173: =IF(ISERROR(SEARCH(AN$2,$B173,$AY173 -1)),"","Y") ->  | AO173: =IF(ISERROR(SEARCH(AO$2,$B173,$AY173 -1)),"","Y") ->  | AP173: =IF(ISERROR(SEARCH(AP$2,$B173,1)),"","Y") ->  | AQ173: =IF(LEFT(RIGHT(L173,$AQ$1),1)= " ", "Y","N") -> N | AT173: ir | AY173: 7
A174: 171 | B174: armies | F174: ar jar | G174: ē peach | H174: 10 | J174: 2 | AY174: 5
A175: 172 | B175: armpit | D175: compound | E175: 3 2 | F175: ar jar | G175: ĭ milk | J175: =LEN(K175)-LEN(SUBSTITUTE(K175," ",""))+1 -> 2 | K175: arm pit | L175: arm pit | M175: arm pit | N175: =IF(K175=M175,"Y","N") -> Y | O175: =IF(K175=L175,"Y","N") -> Y | P175: =IF(AND(FIND(P$2,$B175)>1,FIND(P$2,$B175)<$AY175),"x"," ") ->  | U175: x | AD175: =IF(RIGHT(B175,1)="r","R","") ->  | AE175: =IF(RIGHT(B175,1)=$AE$1,$AE$1,"") ->  | AF175: =IF(RIGHT(B175,2)=$AF$1,$AF$1,"") ->  | AG175: =IF(ISERROR(SEARCH(AG$2,$B175,1)),"","Y") ->  | AM175: =IF(ISERROR(SEARCH(AM$2,$B175,$AY175 -1)),"","Y") ->  | AN175: =IF(ISERROR(SEARCH(AN$2,$B175,$AY175 -1)),"","Y") ->  | AO175: =IF(ISERROR(SEARCH(AO$2,$B175,$AY175 -1)),"","Y") ->  | AP175: =IF(ISERROR(SEARCH(AP$2,$B175,1)),"","Y") ->  | AQ175: =IF(LEFT(RIGHT(L175,$AQ$1),1)= " ", "Y","N") -> Y | AT175: it | AY175: 5
A176: 173 | B176: army | F176: ar jar | G176: ĭ milk | J176: 2 | AY176: 3
A177: 174 | B177: around | F177: schwa cup | G177: ow wowberry | H177: 24 | J177: 2 | AY177: 5
A178: 175 | B178: arrive | F178: ar jar | G178: ī knife | H178: 20 | J178: 2 | AY178: 5
A179: 176 | B179: arrowhead | D179: compound multiple | J179: =LEN(K179)-LEN(SUBSTITUTE(K179," ",""))+1 -> 3 | K179: ar row head | L179: ar row head | M179: ar row head | N179: =IF(K179=M179,"Y","N") -> Y | O179: =IF(K179=L179,"Y","N") -> Y | P179: =IF(AND(FIND(P$2,$B179)>1,FIND(P$2,$B179)<$AY179),"x"," ") ->  | AD179: =IF(RIGHT(B179,1)="r","R","") ->  | AE179: =IF(RIGHT(B179,1)=$AE$1,$AE$1,"") ->  | AF179: =IF(RIGHT(B179,2)=$AF$1,$AF$1,"") ->  | AG179: =IF(ISERROR(SEARCH(AG$2,$B179,1)),"","Y") ->  | AM179: =IF(ISERROR(SEARCH(AM$2,$B179,$AY179 -1)),"","Y") ->  | AP179: =IF(ISERROR(SEARCH(AP$2,$B179,1)),"","Y") ->  | AQ179: =IF(LEFT(RIGHT(L179,$AQ$1),1)= " ", "Y","N") -> N | AT179: ad | AY179: 8
A180: 177 | B180: ashamed | D180: donut blend | E180: sh | F180: schwa cup | G180: ā plate | J180: =LEN(K180)-LEN(SUBSTITUTE(K180," ",""))+1 -> 2 | K180: a shamed | L180: a shamed | M180: ash a med | N180: =IF(K180=M180,"Y","N") -> N | O180: =IF(K180=L180,"Y","N") -> Y | Z180: x | AD180: =IF(RIGHT(B180,1)="r","R","") ->  | AE180: =IF(RIGHT(B180,1)=$AE$1,$AE$1,"") ->  | AF180: =IF(RIGHT(B180,2)=$AF$1,$AF$1,"") ->  | AG180: Y | AM180: Y | AP180: =IF(ISERROR(SEARCH(AP$2,$B180,1)),"","Y") ->  | AQ180: =IF(LEFT(RIGHT(L180,$AQ$1),1)= " ", "Y","N") -> N | AT180: ed | AY180: 6
A181: 178 | B181: ashore | F181: schwa cup | G181: or fork | H181: 27 | J181: 2 | AY181: 5
A182: 179 | B182: Asia | F182: ā plate | G182: schwa cup | H182: 55 | J182: 2 | AY182: 3
A183: 180 | B183: aside | D183: donut | F183: schwa cup | G183: ī knife | J183: =LEN(K183)-LEN(SUBSTITUTE(K183," ",""))+1 -> 2 | K183: a side | L183: a side | M183: a side | N183: =IF(K183=M183,"Y","N") -> Y | O183: =IF(K183=L183,"Y","N") -> Y | P183: =IF(AND(FIND(P$2,$B183)>1,FIND(P$2,$B183)<$AY183),"x"," ") ->  | AD183: =IF(RIGHT(B183,1)="r","R","") ->  | AE183: =IF(RIGHT(B183,1)=$AE$1,$AE$1,"") ->  | AF183: =IF(RIGHT(B183,2)=$AF$1,$AF$1,"") ->  | AG183: =IF(ISERROR(SEARCH(AG$2,$B183,1)),"","Y") ->  | AI183: Y | AM183: =IF(ISERROR(SEARCH(AM$2,$B183,$AY183 -1)),"","Y") ->  | AP183: =IF(ISERROR(SEARCH(AP$2,$B183,1)),"","Y") ->  | AQ183: =IF(LEFT(RIGHT(L183,$AQ$1),1)= " ", "Y","N") -> N | AT183: de | AY183: 4
A184: 181 | B184: askew | D184: donut blend | E184: sk | F184: schwa cup | G184: ew blueberry | J184: 2 | K184: a skew | L184: a skew | M184: as kew | N184: N | O184: Y | AQ184: N | AT184: ew | AY184: 4
A185: 182 | B185: asleep | D185: donut blend | E185: sl | F185: schwa cup | G185: ē peach | J185: 2 | K185: a sleep | L185: a sleep | M185: as leep | N185: N | O185: Y | AL185: Y | AQ185: N | AT185: ep | AY185: 5
A186: 183 | B186: aspiration | C186: aspire | D186: suffixes | G186: tion vacation | H186: 41 | J186: 4 | K186: as pi ra tion | L186: as pi ra tion | M186: as pi ra tion | N186: Y | O186: Y | AN186: Y | AQ186: N | AT186: on | AY186: 9
A187: 184 | B187: aspire | D187: muffin mixed | E187: 2 | F187: schwa cup | G187: ī knife | J187: 2 | K187: as pire | L187: as pire | M187: as pire | N187: Y | O187: Y | AI187: Y | AQ187: N | AT187: re | AY187: 5
A188: 185 | B188: assail | D188: muffin twin | F188: schwa cup | G188: ā plate | J188: 2 | K188: as sail | L188: as sail | M188: as sail | N188: Y | O188: Y | AA188: x | AQ188: N | AT188: il | AY188: 5
A189: 186 | B189: assent | D189: muffin twin | F189: schwa cup | G189: ĕ egg | J189: 2 | K189: as sent | L189: as sent | M189: as sent | N189: Y | O189: Y | AA189: x | AQ189: N | AT189: nt | AY189: 5
A190: 187 | B190: assert | D190: muffin twin | F190: schwa cup | G190: er ir ur burnt | J190: 2 | K190: as sert | L190: as sert | M190: as sert | N190: Y | O190: Y | AA190: x | AQ190: N | AT190: rt | AY190: 5
A191: 188 | B191: assertion | C191: assert | D191: suffixes | G191: tion vacation | J191: 3 | K191: as ser tion | L191: as ser tion | M191: as ser tion | N191: Y | O191: Y | AA191: x | AN191: Y | AQ191: N | AT191: on | AY191: 8
A192: 189 | B192: assess | D192: muffin twin | F192: schwa cup | G192: ĕ egg | J192: 2 | K192: as sess | L192: as sess | M192: as sess | N192: Y | O192: Y | AA192: x | AE192: s | AQ192: N | AT192: ss | AY192: 5
A193: 190 | B193: asset | D193: muffin twin | F193: ă jam | G193: ĕ egg | J193: 2 | K193: as set | L193: as set | M193: as set | N193: Y | O193: Y | AA193: x | AQ193: Y | AT193: et | AY193: 4
A194: 191 | B194: assign | D194: muffin twin | F194: schwa cup | G194: ī knife | J194: 2 | K194: as sign | L194: as sign | M194: as sign | N194: Y | O194: Y | AA194: x | AQ194: N | AT194: gn | AY194: =LEN(B194)-1 -> 5
A195: 192 | B195: assignment | C195: assign | H195: 43 | J195: 3 | AT195: =(RIGHT(L195,2)) ->  | AY195: 9
A196: =A195+1 -> 193 | B196: assist | D196: muffin twin | F196: schwa cup | G196: ĭ milk | J196: =LEN(K196)-LEN(SUBSTITUTE(K196," ",""))+1 -> 2 | K196: as sist | L196: as sist | M196: as sist | N196: =IF(K196=M196,"Y","N") -> Y | O196: =IF(K196=L196,"Y","N") -> Y | P196: =IF(AND(FIND(P$2,$B196)>1,FIND(P$2,$B196)<$AY196),"x"," ") ->  | AA196: x | AD196: =IF(RIGHT(B196,1)="r","R","") ->  | AE196: =IF(RIGHT(B196,1)=$AE$1,$AE$1,"") ->  | AF196: =IF(RIGHT(B196,2)=$AF$1,$AF$1,"") ->  | AG196: =IF(ISERROR(SEARCH(AG$2,$B196,1)),"","Y") ->  | AM196: =IF(ISERROR(SEARCH(AM$2,$B196,$AY196 -1)),"","Y") ->  | AP196: =IF(ISERROR(SEARCH(AP$2,$B196,1)),"","Y") ->  | AQ196: =IF(LEFT(RIGHT(L196,$AQ$1),1)= " ", "Y","N") -> N | AT196: st | AY196: 5
A197: 194 | B197: assume | D197: muffin twin | F197: schwa cup | G197: ew blueberry | J197: =LEN(K197)-LEN(SUBSTITUTE(K197," ",""))+1 -> 2 | K197: as sume | L197: as sume | M197: as sume | N197: =IF(K197=M197,"Y","N") -> Y | O197: =IF(K197=L197,"Y","N") -> Y | AA197: x | AD197: =IF(RIGHT(B197,1)="r","R","") ->  | AE197: =IF(RIGHT(B197,1)=$AE$1,$AE$1,"") ->  | AF197: =IF(RIGHT(B197,2)=$AF$1,$AF$1,"") ->  | AK197: Y | AP197: =IF(ISERROR(SEARCH(AP$2,$B197,1)),"","Y") ->  | AQ197: =IF(LEFT(RIGHT(L197,$AQ$1),1)= " ", "Y","N") -> N | AT197: me | AY197: 5
A198: 195 | B198: assumption | C198: assume | D198: suffixes | G198: tion vacation | J198: =LEN(K198)-LEN(SUBSTITUTE(K198," ",""))+1 -> 3 | K198: as sump tion | L198: as sump tion | M198: as sump tion | N198: =IF(K198=M198,"Y","N") -> Y | O198: =IF(K198=L198,"Y","N") -> Y | U198: x | AA198: x | AD198: =IF(RIGHT(B198,1)="r","R","") ->  | AE198: =IF(RIGHT(B198,1)=$AE$1,$AE$1,"") ->  | AF198: =IF(RIGHT(B198,2)=$AF$1,$AF$1,"") ->  | AN198: Y | AP198: =IF(ISERROR(SEARCH(AP$2,$B198,1)),"","Y") ->  | AQ198: =IF(LEFT(RIGHT(L198,$AQ$1),1)= " ", "Y","N") -> N | AT198: on | AY198: 9
A199: 196 | B199: assure | D199: muffin twin | F199: schwa cup | G199: er ir ur burnt | J199: =LEN(K199)-LEN(SUBSTITUTE(K199," ",""))+1 -> 2 | K199: as sure | L199: as sure | M199: as sure | N199: =IF(K199=M199,"Y","N") -> Y | O199: =IF(K199=L199,"Y","N") -> Y | AA199: x | AD199: =IF(RIGHT(B199,1)="r","R","") ->  | AE199: =IF(RIGHT(B199,1)=$AE$1,$AE$1,"") ->  | AF199: =IF(RIGHT(B199,2)=$AF$1,$AF$1,"") ->  | AK199: Y | AP199: =IF(ISERROR(SEARCH(AP$2,$B199,1)),"","Y") ->  | AQ199: =IF(LEFT(RIGHT(L199,$AQ$1),1)= " ", "Y","N") -> N | AT199: re | AY199: 5
A200: 197 | B200: athlete | F200: ă jam | G200: ē peach | H200: 17 | J200: 2 | AY200: 6
... 925 more rows

Sheet Pre Post
C2: Name: | F2: Date: | H2: count
C3: =LOOKUP(RAND()*'All Words New'!$A$2,'All Words New'!$A$5:$B$9075,'All Words New'!$B$5:$B$9075) -> detailed | D3: =LOOKUP(RAND()*'All Words New'!$A$2,'All Words New'!$A$5:$B$9075,'All Words New'!$B$5:$B$9075) -> pirate | E3: =LOOKUP(RAND()*'All Words New'!$A$2,'All Words New'!$A$5:$B$9075,'All Words New'!$B$5:$B$9075) -> fairway | F3: =LOOKUP(RAND()*'All Words New'!$A$2,'All Words New'!$A$5:$B$9075,'All Words New'!$B$5:$B$9075) -> incurious | G3: =LOOKUP(RAND()*'All Words New'!$A$2,'All Words New'!$A$5:$B$9075,'All Words New'!$B$5:$B$9075) -> midriff | H3: 5
C4: =LOOKUP(RAND()*'All Words New'!$A$2,'All Words New'!$A$5:$B$9075,'All Words New'!$B$5:$B$9075) -> overwrought | D4: =LOOKUP(RAND()*'All Words New'!$A$2,'All Words New'!$A$5:$B$9075,'All Words New'!$B$5:$B$9075) -> infuse | E4: =LOOKUP(RAND()*'All Words New'!$A$2,'All Words New'!$A$5:$B$9075,'All Words New'!$B$5:$B$9075) -> whitefish | F4: =LOOKUP(RAND()*'All Words New'!$A$2,'All Words New'!$A$5:$B$9075,'All Words New'!$B$5:$B$9075) -> shipwreck | G4: =LOOKUP(RAND()*'All Words New'!$A$2,'All Words New'!$A$5:$B$9075,'All Words New'!$B$5:$B$9075) -> disarm | H4: =H3+5 -> 10
C5: =LOOKUP(RAND()*'All Words New'!$A$2,'All Words New'!$A$5:$B$9075,'All Words New'!$B$5:$B$9075) -> undergraduate | D5: =LOOKUP(RAND()*'All Words New'!$A$2,'All Words New'!$A$5:$B$9075,'All Words New'!$B$5:$B$9075) -> aftermath | E5: =LOOKUP(RAND()*'All Words New'!$A$2,'All Words New'!$A$5:$B$9075,'All Words New'!$B$5:$B$9075) -> farewell | F5: =LOOKUP(RAND()*'All Words New'!$A$2,'All Words New'!$A$5:$B$9075,'All Words New'!$B$5:$B$9075) -> iodine | G5: =LOOKUP(RAND()*'All Words New'!$A$2,'All Words New'!$A$5:$B$9075,'All Words New'!$B$5:$B$9075) -> tasty | H5: =H4+5 -> 15
C6: =LOOKUP(RAND()*'All Words New'!$A$2,'All Words New'!$A$5:$B$9075,'All Words New'!$B$5:$B$9075) -> tally | D6: =LOOKUP(RAND()*'All Words New'!$A$2,'All Words New'!$A$5:$B$9075,'All Words New'!$B$5:$B$9075) -> vigor | E6: =LOOKUP(RAND()*'All Words New'!$A$2,'All Words New'!$A$5:$B$9075,'All Words New'!$B$5:$B$9075) -> agriculture | F6: =LOOKUP(RAND()*'All Words New'!$A$2,'All Words New'!$A$5:$B$9075,'All Words New'!$B$5:$B$9075) -> innocent | G6: =LOOKUP(RAND()*'All Words New'!$A$2,'All Words New'!$A$5:$B$9075,'All Words New'!$B$5:$B$9075) -> serious | H6: 20
C7: =LOOKUP(RAND()*'All Words New'!$A$2,'All Words New'!$A$5:$B$9075,'All Words New'!$B$5:$B$9075) -> killjoy | D7: =LOOKUP(RAND()*'All Words New'!$A$2,'All Words New'!$A$5:$B$9075,'All Words New'!$B$5:$B$9075) -> create | E7: =LOOKUP(RAND()*'All Words New'!$A$2,'All Words New'!$A$5:$B$9075,'All Words New'!$B$5:$B$9075) -> ongoing | F7: =LOOKUP(RAND()*'All Words New'!$A$2,'All Words New'!$A$5:$B$9075,'All Words New'!$B$5:$B$9075) -> repute | G7: =LOOKUP(RAND()*'All Words New'!$A$2,'All Words New'!$A$5:$B$9075,'All Words New'!$B$5:$B$9075) -> education | H7: 25
C8: =LOOKUP(RAND()*'All Words New'!$A$2,'All Words New'!$A$5:$B$9075,'All Words New'!$B$5:$B$9075) -> thunderbolt | D8: =LOOKUP(RAND()*'All Words New'!$A$2,'All Words New'!$A$5:$B$9075,'All Words New'!$B$5:$B$9075) -> caster | E8: =LOOKUP(RAND()*'All Words New'!$A$2,'All Words New'!$A$5:$B$9075,'All Words New'!$B$5:$B$9075) -> nohow | F8: =LOOKUP(RAND()*'All Words New'!$A$2,'All Words New'!$A$5:$B$9075,'All Words New'!$B$5:$B$9075) -> nordic | G8: =LOOKUP(RAND()*'All Words New'!$A$2,'All Words New'!$A$5:$B$9075,'All Words New'!$B$5:$B$9075) -> nephew | H8: 30 | J8: If in Full Screen mode, press Esc to access print options.
C9: =LOOKUP(RAND()*'All Words New'!$A$2,'All Words New'!$A$5:$B$9075,'All Words New'!$B$5:$B$9075) -> sacrifice | D9: =LOOKUP(RAND()*'All Words New'!$A$2,'All Words New'!$A$5:$B$9075,'All Words New'!$B$5:$B$9075) -> discourage | E9: =LOOKUP(RAND()*'All Words New'!$A$2,'All Words New'!$A$5:$B$9075,'All Words New'!$B$5:$B$9075) -> number | F9: =LOOKUP(RAND()*'All Words New'!$A$2,'All Words New'!$A$5:$B$9075,'All Words New'!$B$5:$B$9075) -> devote | G9: =LOOKUP(RAND()*'All Words New'!$A$2,'All Words New'!$A$5:$B$9075,'All Words New'!$B$5:$B$9075) -> kinship | H9: 35
C10: =LOOKUP(RAND()*'All Words New'!$A$2,'All Words New'!$A$5:$B$9075,'All Words New'!$B$5:$B$9075) -> holy | D10: =LOOKUP(RAND()*'All Words New'!$A$2,'All Words New'!$A$5:$B$9075,'All Words New'!$B$5:$B$9075) -> cranberry | E10: =LOOKUP(RAND()*'All Words New'!$A$2,'All Words New'!$A$5:$B$9075,'All Words New'!$B$5:$B$9075) -> intelligence | F10: =LOOKUP(RAND()*'All Words New'!$A$2,'All Words New'!$A$5:$B$9075,'All Words New'!$B$5:$B$9075) -> client | G10: =LOOKUP(RAND()*'All Words New'!$A$2,'All Words New'!$A$5:$B$9075,'All Words New'!$B$5:$B$9075) -> buckle | H10: 40
C11: =LOOKUP(RAND()*'All Words New'!$A$2,'All Words New'!$A$5:$B$9075,'All Words New'!$B$5:$B$9075) -> ordinance | D11: =LOOKUP(RAND()*'All Words New'!$A$2,'All Words New'!$A$5:$B$9075,'All Words New'!$B$5:$B$9075) -> Novocaine | E11: =LOOKUP(RAND()*'All Words New'!$A$2,'All Words New'!$A$5:$B$9075,'All Words New'!$B$5:$B$9075) -> overprice | F11: =LOOKUP(RAND()*'All Words New'!$A$2,'All Words New'!$A$5:$B$9075,'All Words New'!$B$5:$B$9075) -> senior | G11: =LOOKUP(RAND()*'All Words New'!$A$2,'All Words New'!$A$5:$B$9075,'All Words New'!$B$5:$B$9075) -> humankind | H11: 45
C12: =LOOKUP(RAND()*'All Words New'!$A$2,'All Words New'!$A$5:$B$9075,'All Words New'!$B$5:$B$9075) -> flabby | D12: =LOOKUP(RAND()*'All Words New'!$A$2,'All Words New'!$A$5:$B$9075,'All Words New'!$B$5:$B$9075) -> realize | E12: =LOOKUP(RAND()*'All Words New'!$A$2,'All Words New'!$A$5:$B$9075,'All Words New'!$B$5:$B$9075) -> discard | F12: =LOOKUP(RAND()*'All Words New'!$A$2,'All Words New'!$A$5:$B$9075,'All Words New'!$B$5:$B$9075) -> option | G12: =LOOKUP(RAND()*'All Words New'!$A$2,'All Words New'!$A$5:$B$9075,'All Words New'!$B$5:$B$9075) -> canal | H12: 50
C13: =LOOKUP(RAND()*'All Words New'!$A$2,'All Words New'!$A$5:$B$9075,'All Words New'!$B$5:$B$9075) -> jazzy | D13: =LOOKUP(RAND()*'All Words New'!$A$2,'All Words New'!$A$5:$B$9075,'All Words New'!$B$5:$B$9075) -> stepchild | E13: =LOOKUP(RAND()*'All Words New'!$A$2,'All Words New'!$A$5:$B$9075,'All Words New'!$B$5:$B$9075) -> seaway | F13: =LOOKUP(RAND()*'All Words New'!$A$2,'All Words New'!$A$5:$B$9075,'All Words New'!$B$5:$B$9075) -> insincere | G13: =LOOKUP(RAND()*'All Words New'!$A$2,'All Words New'!$A$5:$B$9075,'All Words New'!$B$5:$B$9075) -> retain | H13: 55
C14: =LOOKUP(RAND()*'All Words New'!$A$2,'All Words New'!$A$5:$B$9075,'All Words New'!$B$5:$B$9075) -> supper | D14: =LOOKUP(RAND()*'All Words New'!$A$2,'All Words New'!$A$5:$B$9075,'All Words New'!$B$5:$B$9075) -> illustrate | E14: =LOOKUP(RAND()*'All Words New'!$A$2,'All Words New'!$A$5:$B$9075,'All Words New'!$B$5:$B$9075) -> humpback | F14: =LOOKUP(RAND()*'All Words New'!$A$2,'All Words New'!$A$5:$B$9075,'All Words New'!$B$5:$B$9075) -> cashier | G14: =LOOKUP(RAND()*'All Words New'!$A$2,'All Words New'!$A$5:$B$9075,'All Words New'!$B$5:$B$9075) -> washboard | H14: 60
C15: =LOOKUP(RAND()*'All Words New'!$A$2,'All Words New'!$A$5:$B$9075,'All Words New'!$B$5:$B$9075) -> area | D15: =LOOKUP(RAND()*'All Words New'!$A$2,'All Words New'!$A$5:$B$9075,'All Words New'!$B$5:$B$9075) -> solidarity | E15: =LOOKUP(RAND()*'All Words New'!$A$2,'All Words New'!$A$5:$B$9075,'All Words New'!$B$5:$B$9075) -> witness | F15: =LOOKUP(RAND()*'All Words New'!$A$2,'All Words New'!$A$5:$B$9075,'All Words New'!$B$5:$B$9075) -> trepidation | G15: =LOOKUP(RAND()*'All Words New'!$A$2,'All Words New'!$A$5:$B$9075,'All Words New'!$B$5:$B$9075) -> showcase | H15: 65
C16: =LOOKUP(RAND()*'All Words New'!$A$2,'All Words New'!$A$5:$B$9075,'All Words New'!$B$5:$B$9075) -> layover | D16: =LOOKUP(RAND()*'All Words New'!$A$2,'All Words New'!$A$5:$B$9075,'All Words New'!$B$5:$B$9075) -> elevation | E16: =LOOKUP(RAND()*'All Words New'!$A$2,'All Words New'!$A$5:$B$9075,'All Words New'!$B$5:$B$9075) -> arrogance | F16: =LOOKUP(RAND()*'All Words New'!$A$2,'All Words New'!$A$5:$B$9075,'All Words New'!$B$5:$B$9075) -> household | G16: =LOOKUP(RAND()*'All Words New'!$A$2,'All Words New'!$A$5:$B$9075,'All Words New'!$B$5:$B$9075) -> discriminate | H16: 70
C17: =LOOKUP(RAND()*'All Words New'!$A$2,'All Words New'!$A$5:$B$9075,'All Words New'!$B$5:$B$9075) -> arise | D17: =LOOKUP(RAND()*'All Words New'!$A$2,'All Words New'!$A$5:$B$9075,'All Words New'!$B$5:$B$9075) -> evolutionary | E17: =LOOKUP(RAND()*'All Words New'!$A$2,'All Words New'!$A$5:$B$9075,'All Words New'!$B$5:$B$9075) -> emittance | F17: =LOOKUP(RAND()*'All Words New'!$A$2,'All Words New'!$A$5:$B$9075,'All Words New'!$B$5:$B$9075) -> spatial | G17: =LOOKUP(RAND()*'All Words New'!$A$2,'All Words New'!$A$5:$B$9075,'All Words New'!$B$5:$B$9075) -> every | H17: 75
C18: =LOOKUP(RAND()*'All Words New'!$A$2,'All Words New'!$A$5:$B$9075,'All Words New'!$B$5:$B$9075) -> ligature | D18: =LOOKUP(RAND()*'All Words New'!$A$2,'All Words New'!$A$5:$B$9075,'All Words New'!$B$5:$B$9075) -> pinwheel | E18: =LOOKUP(RAND()*'All Words New'!$A$2,'All Words New'!$A$5:$B$9075,'All Words New'!$B$5:$B$9075) -> preview | F18: =LOOKUP(RAND()*'All Words New'!$A$2,'All Words New'!$A$5:$B$9075,'All Words New'!$B$5:$B$9075) -> walleye | G18: =LOOKUP(RAND()*'All Words New'!$A$2,'All Words New'!$A$5:$B$9075,'All Words New'!$B$5:$B$9075) -> foolhardy | H18: 80
C19: =LOOKUP(RAND()*'All Words New'!$A$2,'All Words New'!$A$5:$B$9075,'All Words New'!$B$5:$B$9075) -> magnify | D19: =LOOKUP(RAND()*'All Words New'!$A$2,'All Words New'!$A$5:$B$9075,'All Words New'!$B$5:$B$9075) -> freelance | E19: =LOOKUP(RAND()*'All Words New'!$A$2,'All Words New'!$A$5:$B$9075,'All Words New'!$B$5:$B$9075) -> gully | F19: =LOOKUP(RAND()*'All Words New'!$A$2,'All Words New'!$A$5:$B$9075,'All Words New'!$B$5:$B$9075) -> inflict | G19: =LOOKUP(RAND()*'All Words New'!$A$2,'All Words New'!$A$5:$B$9075,'All Words New'!$B$5:$B$9075) -> trainman | H19: 85
C20: =LOOKUP(RAND()*'All Words New'!$A$2,'All Words New'!$A$5:$B$9075,'All Words New'!$B$5:$B$9075) -> chopper | D20: =LOOKUP(RAND()*'All Words New'!$A$2,'All Words New'!$A$5:$B$9075,'All Words New'!$B$5:$B$9075) -> foreshadow | E20: =LOOKUP(RAND()*'All Words New'!$A$2,'All Words New'!$A$5:$B$9075,'All Words New'!$B$5:$B$9075) -> enquire | F20: =LOOKUP(RAND()*'All Words New'!$A$2,'All Words New'!$A$5:$B$9075,'All Words New'!$B$5:$B$9075) -> halo | G20: =LOOKUP(RAND()*'All Words New'!$A$2,'All Words New'!$A$5:$B$9075,'All Words New'!$B$5:$B$9075) -> pussyfoot | H20: 90
C21: =LOOKUP(RAND()*'All Words New'!$A$2,'All Words New'!$A$5:$B$9075,'All Words New'!$B$5:$B$9075) -> hijack | D21: =LOOKUP(RAND()*'All Words New'!$A$2,'All Words New'!$A$5:$B$9075,'All Words New'!$B$5:$B$9075) -> possession | E21: =LOOKUP(RAND()*'All Words New'!$A$2,'All Words New'!$A$5:$B$9075,'All Words New'!$B$5:$B$9075) -> complicatedness | F21: =LOOKUP(RAND()*'All Words New'!$A$2,'All Words New'!$A$5:$B$9075,'All Words New'!$B$5:$B$9075) -> possibility | G21: =LOOKUP(RAND()*'All Words New'!$A$2,'All Words New'!$A$5:$B$9075,'All Words New'!$B$5:$B$9075) -> religion | H21: 95
C22: =LOOKUP(RAND()*'All Words New'!$A$2,'All Words New'!$A$5:$B$9075,'All Words New'!$B$5:$B$9075) -> underemployed | D22: =LOOKUP(RAND()*'All Words New'!$A$2,'All Words New'!$A$5:$B$9075,'All Words New'!$B$5:$B$9075) -> confiscate | E22: =LOOKUP(RAND()*'All Words New'!$A$2,'All Words New'!$A$5:$B$9075,'All Words New'!$B$5:$B$9075) -> whitewash | F22: =LOOKUP(RAND()*'All Words New'!$A$2,'All Words New'!$A$5:$B$9075,'All Words New'!$B$5:$B$9075) -> icebox | G22: =LOOKUP(RAND()*'All Words New'!$A$2,'All Words New'!$A$5:$B$9075,'All Words New'!$B$5:$B$9075) -> amnesic | H22: 100
C23: =LOOKUP(RAND()*'All Words New'!$A$2,'All Words New'!$A$5:$B$9075,'All Words New'!$B$5:$B$9075) -> contracture | D23: =LOOKUP(RAND()*'All Words New'!$A$2,'All Words New'!$A$5:$B$9075,'All Words New'!$B$5:$B$9075) -> jockey | E23: =LOOKUP(RAND()*'All Words New'!$A$2,'All Words New'!$A$5:$B$9075,'All Words New'!$B$5:$B$9075) -> nova | F23: =LOOKUP(RAND()*'All Words New'!$A$2,'All Words New'!$A$5:$B$9075,'All Words New'!$B$5:$B$9075) -> refill | G23: =LOOKUP(RAND()*'All Words New'!$A$2,'All Words New'!$A$5:$B$9075,'All Words New'!$B$5:$B$9075) -> segregate | H23: 105
C24: =LOOKUP(RAND()*'All Words New'!$A$2,'All Words New'!$A$5:$B$9075,'All Words New'!$B$5:$B$9075) -> remain | D24: =LOOKUP(RAND()*'All Words New'!$A$2,'All Words New'!$A$5:$B$9075,'All Words New'!$B$5:$B$9075) -> simplify | E24: =LOOKUP(RAND()*'All Words New'!$A$2,'All Words New'!$A$5:$B$9075,'All Words New'!$B$5:$B$9075) -> authorize | F24: =LOOKUP(RAND()*'All Words New'!$A$2,'All Words New'!$A$5:$B$9075,'All Words New'!$B$5:$B$9075) -> prediction | G24: =LOOKUP(RAND()*'All Words New'!$A$2,'All Words New'!$A$5:$B$9075,'All Words New'!$B$5:$B$9075) -> softball | H24: 110

Sheet Sample Worksheets
B2: =B18 -> 980 | C2: 76 | D2: =D18 -> 26 | E2: 162 | F2: =F18 -> 73 | G2: =G18 -> 13 | H2: 544 | I2: 1172 | J2: 377 | K2: =K18 -> 139 | L2: =L18 -> 480 | M2: =M18 -> 92 | N2: =N18 -> 57 | O2: =O18 -> 22 | P2: 310 | Q2: =Q18 -> 531 | R2: 521 | S2: =S18 -> 263 | T2: 118 | U2: 430 | V2: =V18+Y18+Z18+AA18 -> 2075
AC3: =SUM(B2:AA3) -> 8461
B4: do - nut open syllable 50% long 50% short | C4: do - nut pow dered straw berry vowel pair aw ow oy ew | D4: do - nut fruit filled straw berry vowel pair au ou oo oi ou | E4: do - nut blend - digraph ck <= => sk th sh => ph ch wh br cr fr gr pr tr bl cl fl gl pl sl tw | F4: do - nut vowel pair ay ey y ow 99% compound | G4: do - nut twisted compound | H4: muf - fin twins closed syllable | I4: muf - fin mixed closed syllable | J4: muf - fin corn muffin ar * er * ir or * ur air * ear oar * oor * our | K4: muf - fin three consonants 1 - 2 2 - 1 | L4: muf - fin three consonants compound words | M4: muf - fin four consonants 100% compound double double | N4: muf - fin four consonants 90% compound 1 - 3 or 3 - 1 | O4: muf - fin five consonants compound 2 - 3 or 3 - 2 | P4: grape - fruit compound silent e | Q4: long compound 1 + 2 = compound 2 + 1 = compound 2 + 2 = compound | R4: prefixes de * dis * ex il * im * in * ir re * un | S4: prefixes under over | T4: ma - ple suffix ble * cle *dle fle * gle * kle ple * tle * zle | U4: suffixes tion * sion ance * ence | V4: long words 3 - 8 syllables
B5: =LOOKUP(RAND()*B$18,$A$19:A$998,B$19:B$998) -> tribute | C5: =LOOKUP(RAND()*C$18,$A$19:$A$94,C$19:C$94) -> cowbird | D5: =LOOKUP(RAND()*D$18,$A$19:$A$44,D$19:D$44) -> twosome | E5: =LOOKUP(RAND()*E$18,$A$19:$A$181,E$19:E$180) -> prostate | F5: =LOOKUP(RAND()*F$18,$A$19:$A$91,F$19:F$91) -> flywheel | G5: =LOOKUP(RAND()*G$18,$A$19:$A$31,G$19:G$31) -> dugout | H5: =LOOKUP(RAND()*H$18,$A$19:A$600,H$19:H600) -> penny | I5: =LOOKUP(RAND()*I$18,$A$19:A$1200,I$19:I$1200) -> limbic | J5: =LOOKUP(RAND()*J$18,$A$19:A$395,J$19:J$395) -> merchant | K5: =LOOKUP(RAND()*K$18,$A$19:B$157,K$19:K$157) -> children | L5: =LOOKUP(RAND()*L$18,$A$19:C$498,L$19:L$498) -> offbeat | M5: =LOOKUP(RAND()*M$18,$A$19:D$108,M$19:M$108) -> backtrack | N5: =LOOKUP(RAND()*N$18,$A$19:E$75,N$19:N$75) -> upstream | O5: =LOOKUP(RAND()*O$18,$A$19:F$40,O$19:O$39) -> backstroke | P5: =LOOKUP(RAND()*P$18,$A$19:A$328,P$19:P$328) -> sideboard | Q5: =LOOKUP(RAND()*Q$18,$A$19:A$549,Q$19:Q$549) -> tinderbox | R5: =LOOKUP(RAND()*R$18,$A$19:A$539,R$19:R$539) -> reclaim | S5: =LOOKUP(RAND()*S$18,$A$19:A$281,S$19:S$281) -> undercook | T5: =LOOKUP(RAND()*T$18,$A$19:A$136,T$19:T$136) -> shingle | U5: =LOOKUP(RAND()*U$18,$A$19:A$448,U$19:U$448) -> competence | V5: =LOOKUP(RAND()*$V$18,$A$19:$A1187,$V$19:$V$1187) -> extortion | W5: =LOOKUP(RAND()*$V$18,$A$19:$A1187,$V$19:$V$1187) -> oxidate | X5: =LOOKUP(RAND()*$V$18,$A$19:$A1187,$V$19:$V$1187) -> demolish | Y5: =LOOKUP(RAND()*$Y$18,$A$19:$A1187,$Y$19:$Y$576) -> capitalize | Z5: =LOOKUP(RAND()*$Z$18,$A$19:$A140,$Z$19:$Z$140) -> apologetic | AA5: =LOOKUP(RAND()*$AA$18,$A$19:$A140,$AA$19:$AA$41) -> originality
B6: =LOOKUP(RAND()*B$18,$A$19:A$998,B$19:B$998) -> honor | C6: =LOOKUP(RAND()*C$18,$A$19:$A$94,C$19:C$94) -> soupy | D6: =LOOKUP(RAND()*D$18,$A$19:$A$44,D$19:D$44) -> nuisance | E6: daybreak | F6: =LOOKUP(RAND()*F$18,$A$19:$A$91,F$19:F$91) -> hybrid | G6: =LOOKUP(RAND()*G$18,$A$19:$A$31,G$19:G$31) -> outage | H6: =LOOKUP(RAND()*H$18,$A$19:A$600,H$19:H601) -> fellow | I6: =LOOKUP(RAND()*I$18,$A$19:A$1200,I$19:I$1200) -> walrus | J6: =LOOKUP(RAND()*J$18,$A$19:A$395,J$19:J$395) -> chorus | K6: =LOOKUP(RAND()*K$18,$A$19:B$157,K$19:K$157) -> daughter | L6: =LOOKUP(RAND()*L$18,$A$19:C$498,L$19:L$498) -> heartburn | M6: =LOOKUP(RAND()*M$18,$A$19:D$108,M$19:M$108) -> cornstalk | N6: =LOOKUP(RAND()*N$18,$A$19:E$75,N$19:N$75) -> searchlight | O6: =LOOKUP(RAND()*O$18,$A$19:F$40,O$19:O$39) -> downstream | P6: =LOOKUP(RAND()*P$18,$A$19:A$328,P$19:P$328) -> whitetail | Q6: =LOOKUP(RAND()*Q$18,$A$19:A$549,Q$19:Q$549) -> countrywide | R6: =LOOKUP(RAND()*R$18,$A$19:A$539,R$19:R$539) -> refrain | S6: =LOOKUP(RAND()*S$18,$A$19:A$281,S$19:S$281) -> overprice | T6: =LOOKUP(RAND()*T$18,$A$19:A$136,T$19:T$136) -> tangle | U6: =LOOKUP(RAND()*U$18,$A$19:A$448,U$19:U$448) -> legion | V6: =LOOKUP(RAND()*$V$18,$A$19:$A1188,$V$19:$V$1187) -> inherit | W6: =LOOKUP(RAND()*$V$18,$A$19:$A1188,$V$19:$V$1187) -> enable | X6: =LOOKUP(RAND()*$V$18,$A$19:$A1188,$V$19:$V$1187) -> muscular | Y6: =LOOKUP(RAND()*$Y$18,$A$19:$A1188,$Y$19:$Y$576) -> anticipate | Z6: =LOOKUP(RAND()*$Z$18,$A$19:$A141,$Z$19:$Z$140) -> alphabetical | AA6: =LOOKUP(RAND()*$AA$18,$A$19:$A141,$AA$19:$AA$41) -> destructibility
B7: =LOOKUP(RAND()*B$18,$A$19:A$998,B$19:B$998) -> sliver | C7: viewpoint | D7: whoopee | E7: cyclist | F7: playmate | G7: dugout | H7: =LOOKUP(RAND()*H$18,$A$19:A$600,H$19:H602) -> million | I7: =LOOKUP(RAND()*I$18,$A$19:A$1200,I$19:I$1200) -> admire | J7: =LOOKUP(RAND()*J$18,$A$19:A$395,J$19:J$395) -> terrace | K7: =LOOKUP(RAND()*K$18,$A$19:B$157,K$19:K$157) -> cashmere | L7: =LOOKUP(RAND()*L$18,$A$19:C$498,L$19:L$498) -> partway | M7: =LOOKUP(RAND()*M$18,$A$19:D$108,M$19:M$108) -> downplay | N7: =LOOKUP(RAND()*N$18,$A$19:E$75,N$19:N$75) -> subscribe | O7: =LOOKUP(RAND()*O$18,$A$19:F$40,O$19:O$39) -> nightshade | P7: =LOOKUP(RAND()*P$18,$A$19:A$328,P$19:P$328) -> thereon | Q7: =LOOKUP(RAND()*Q$18,$A$19:A$549,Q$19:Q$549) -> crackerjack | R7: =LOOKUP(RAND()*R$18,$A$19:A$539,R$19:R$539) -> impolite | S7: =LOOKUP(RAND()*S$18,$A$19:A$281,S$19:S$281) -> understand | T7: =LOOKUP(RAND()*T$18,$A$19:A$136,T$19:T$136) -> jumble | U7: =LOOKUP(RAND()*U$18,$A$19:A$448,U$19:U$448) -> defiance | V7: =LOOKUP(RAND()*$V$18,$A$19:$A1189,$V$19:$V$1187) -> encircle | W7: =LOOKUP(RAND()*$V$18,$A$19:$A1189,$V$19:$V$1187) -> belittle | X7: =LOOKUP(RAND()*$V$18,$A$19:$A1189,$V$19:$V$1187) -> numeric | Y7: =LOOKUP(RAND()*$Y$18,$A$19:$A1189,$Y$19:$Y$576) -> feudalistic | Z7: =LOOKUP(RAND()*$Z$18,$A$19:$A142,$Z$19:$Z$140) -> carcinogenic | AA7: =LOOKUP(RAND()*$AA$18,$A$19:$A142,$AA$19:$AA$41) -> familiarity
B8: =LOOKUP(RAND()*B$18,$A$19:A$998,B$19:B$998) -> award | C8: audit | D8: cookie | E8: neglect | F8: maybe | G8: headache | H8: =LOOKUP(RAND()*H$18,$A$19:A$600,H$19:H603) -> efface | I8: =LOOKUP(RAND()*I$18,$A$19:A$1200,I$19:I$1200) -> gesture | J8: =LOOKUP(RAND()*J$18,$A$19:A$395,J$19:J$395) -> earmark | K8: =LOOKUP(RAND()*K$18,$A$19:B$157,K$19:K$157) -> dendrite | L8: =LOOKUP(RAND()*L$18,$A$19:C$498,L$19:L$498) -> wolfhound | M8: =LOOKUP(RAND()*M$18,$A$19:D$108,M$19:M$108) -> withdraw | N8: =LOOKUP(RAND()*N$18,$A$19:E$75,N$19:N$75) -> nightfall | O8: =LOOKUP(RAND()*O$18,$A$19:F$40,O$19:O$39) -> thumbscrew | P8: =LOOKUP(RAND()*P$18,$A$19:A$328,P$19:P$328) -> molehill | Q8: =LOOKUP(RAND()*Q$18,$A$19:A$549,Q$19:Q$549) -> outstanding | R8: =LOOKUP(RAND()*R$18,$A$19:A$539,R$19:R$539) -> distraction | S8: =LOOKUP(RAND()*S$18,$A$19:A$281,S$19:S$281) -> overland | T8: =LOOKUP(RAND()*T$18,$A$19:A$136,T$19:T$136) -> pickle | U8: =LOOKUP(RAND()*U$18,$A$19:A$448,U$19:U$448) -> deposition | V8: =LOOKUP(RAND()*$V$18,$A$19:$A1380,$V$19:$V$1380) -> hesitate | W8: =LOOKUP(RAND()*$V$18,$A$19:$A1380,$V$19:$V$1380) -> formulate | X8: =LOOKUP(RAND()*$V$18,$A$19:$A1380,$V$19:$V$1380) -> scholastic | Y8: =LOOKUP(RAND()*$Y$18,$A$19:$A1190,$Y$19:$Y$576) -> accordion | Z8: =LOOKUP(RAND()*$Z$18,$A$19:$A143,$Z$19:$Z$140) -> underprivileged | AA8: =LOOKUP(RAND()*$AA$18,$A$19:$A143,$AA$19:$AA$41) -> reliability
B9: =LOOKUP(RAND()*B$18,$A$19:A$998,B$19:B$998) -> vixen | C9: rowdy | D9: woozy | E9: nitric | F9: playboy | G9: throughout | H9: =LOOKUP(RAND()*H$18,$A$19:A$600,H$19:H604) -> smoggy | I9: =LOOKUP(RAND()*I$18,$A$19:A$1200,I$19:I$1200) -> excite | J9: =LOOKUP(RAND()*J$18,$A$19:A$395,J$19:J$395) -> tardy | K9: =LOOKUP(RAND()*K$18,$A$19:B$157,K$19:K$157) -> healthy | L9: =LOOKUP(RAND()*L$18,$A$19:C$498,L$19:L$498) -> highlight | M9: =LOOKUP(RAND()*M$18,$A$19:D$108,M$19:M$108) -> transgress | N9: =LOOKUP(RAND()*N$18,$A$19:E$75,N$19:N$75) -> hamstring | O9: =LOOKUP(RAND()*O$18,$A$19:F$40,O$19:O$39) -> handspring | P9: =LOOKUP(RAND()*P$18,$A$19:A$328,P$19:P$328) -> shoeshine | Q9: =LOOKUP(RAND()*Q$18,$A$19:A$549,Q$19:Q$549) -> eyewitness | R9: =LOOKUP(RAND()*R$18,$A$19:A$539,R$19:R$539) -> induce | S9: =LOOKUP(RAND()*S$18,$A$19:A$281,S$19:S$281) -> oversee | T9: =LOOKUP(RAND()*T$18,$A$19:A$136,T$19:T$136) -> cable | U9: =LOOKUP(RAND()*U$18,$A$19:A$448,U$19:U$448) -> pavilion | V9: =LOOKUP(RAND()*$V$18,$A$19:$A1381,$V$19:$V$1380) -> indulgence | W9: =LOOKUP(RAND()*$V$18,$A$19:$A1381,$V$19:$V$1380) -> albatross | X9: =LOOKUP(RAND()*$V$18,$A$19:$A1381,$V$19:$V$1380) -> ecstatic | Y9: =LOOKUP(RAND()*$Y$18,$A$19:$A1191,$Y$19:$Y$576) -> magnificence | Z9: =LOOKUP(RAND()*$Z$18,$A$19:$A144,$Z$19:$Z$140) -> elasticity | AA9: =LOOKUP(RAND()*$AA$18,$A$19:$A144,$AA$19:$AA$41) -> meteorologic
B10: =LOOKUP(RAND()*B$18,$A$19:A$998,B$19:B$998) -> chinook | C10: cowlick | D10: gloomy | E10: acre | F10: showcase | G10: lookout | H10: =LOOKUP(RAND()*H$18,$A$19:A$600,H$19:H605) -> commend | I10: =LOOKUP(RAND()*I$18,$A$19:A$1200,I$19:I$1200) -> hotbed | J10: =LOOKUP(RAND()*J$18,$A$19:A$395,J$19:J$395) -> spartan | K10: =LOOKUP(RAND()*K$18,$A$19:B$157,K$19:K$157) -> contract | L10: =LOOKUP(RAND()*L$18,$A$19:C$498,L$19:L$498) -> pumpkin | M10: =LOOKUP(RAND()*M$18,$A$19:D$108,M$19:M$108) -> hardship | N10: =LOOKUP(RAND()*N$18,$A$19:E$75,N$19:N$75) -> marksman | O10: =LOOKUP(RAND()*O$18,$A$19:F$40,O$19:O$39) -> millstream | P10: =LOOKUP(RAND()*P$18,$A$19:A$328,P$19:P$328) -> horseshoe | Q10: =LOOKUP(RAND()*Q$18,$A$19:A$549,Q$19:Q$549) -> specialize | R10: =LOOKUP(RAND()*R$18,$A$19:A$539,R$19:R$539) -> unravel | S10: =LOOKUP(RAND()*S$18,$A$19:A$281,S$19:S$281) -> overdiversity | T10: =LOOKUP(RAND()*T$18,$A$19:A$136,T$19:T$136) -> uncle | U10: =LOOKUP(RAND()*U$18,$A$19:A$448,U$19:U$448) -> oblivion | V10: =LOOKUP(RAND()*$V$18,$A$19:$A1382,$V$19:$V$1380) -> satiric | W10: =LOOKUP(RAND()*$V$18,$A$19:$A1382,$V$19:$V$1380) -> devious | X10: =LOOKUP(RAND()*$V$18,$A$19:$A1382,$V$19:$V$1380) -> medicine | Y10: =LOOKUP(RAND()*$Y$18,$A$19:$A1192,$Y$19:$Y$576) -> longevity | Z10: =LOOKUP(RAND()*$Z$18,$A$19:$A145,$Z$19:$Z$140) -> orientation | AA10: =LOOKUP(RAND()*$AA$18,$A$19:$A145,$AA$19:$AA$41) -> affordability
B11: =LOOKUP(RAND()*B$18,$A$19:A$998,B$19:B$998) -> humor | C11: viewpoint | D11: twosome | E11: fragrant | F11: hybrid | G11: dropout | H11: =LOOKUP(RAND()*H$18,$A$19:A$600,H$19:H606) -> appease | I11: =LOOKUP(RAND()*I$18,$A$19:A$1200,I$19:I$1200) -> chapter | J11: =LOOKUP(RAND()*J$18,$A$19:A$395,J$19:J$395) -> tardy | K11: =LOOKUP(RAND()*K$18,$A$19:B$157,K$19:K$157) -> gantry | L11: =LOOKUP(RAND()*L$18,$A$19:C$498,L$19:L$498) -> stillbirth | M11: =LOOKUP(RAND()*M$18,$A$19:D$108,M$19:M$108) -> slingshot | N11: =LOOKUP(RAND()*N$18,$A$19:E$75,N$19:N$75) -> pitchfork | O11: =LOOKUP(RAND()*O$18,$A$19:F$40,O$19:O$39) -> corkscrew | P11: =LOOKUP(RAND()*P$18,$A$19:A$328,P$19:P$328) -> eyelet | Q11: =LOOKUP(RAND()*Q$18,$A$19:A$549,Q$19:Q$549) -> cubbyhole | R11: =LOOKUP(RAND()*R$18,$A$19:A$539,R$19:R$539) -> inmate | S11: =LOOKUP(RAND()*S$18,$A$19:A$281,S$19:S$281) -> overpopulate | T11: =LOOKUP(RAND()*T$18,$A$19:A$136,T$19:T$136) -> hustle | U11: =LOOKUP(RAND()*U$18,$A$19:A$448,U$19:U$448) -> reaction | V11: =LOOKUP(RAND()*$V$18,$A$19:$A1383,$V$19:$V$1380) -> organic | W11: =LOOKUP(RAND()*$V$18,$A$19:$A1383,$V$19:$V$1380) -> magazine | X11: =LOOKUP(RAND()*$V$18,$A$19:$A1383,$V$19:$V$1380) -> concentrate | Y11: =LOOKUP(RAND()*$Y$18,$A$19:$A1193,$Y$19:$Y$576) -> longevity | Z11: =LOOKUP(RAND()*$Z$18,$A$19:$A146,$Z$19:$Z$140) -> anniversary | AA11: =LOOKUP(RAND()*$AA$18,$A$19:$A146,$AA$19:$AA$41) -> distractibility
B12: =LOOKUP(RAND()*B$18,$A$19:A$998,B$19:B$998) -> detour | C12: lowdown | D12: noisy | E12: fragrance | F12: flywheel | G12: lookout | H12: =LOOKUP(RAND()*H$18,$A$19:A$600,H$19:H607) -> hassock | I12: =LOOKUP(RAND()*I$18,$A$19:A$1200,I$19:I$1200) -> mealtime | J12: =LOOKUP(RAND()*J$18,$A$19:A$395,J$19:J$395) -> markup | K12: =LOOKUP(RAND()*K$18,$A$19:B$157,K$19:K$157) -> conflate | L12: =LOOKUP(RAND()*L$18,$A$19:C$498,L$19:L$498) -> fishtail | M12: =LOOKUP(RAND()*M$18,$A$19:D$108,M$19:M$108) -> bombproof | N12: =LOOKUP(RAND()*N$18,$A$19:E$75,N$19:N$75) -> straightlaced | O12: =LOOKUP(RAND()*O$18,$A$19:F$40,O$19:O$39) -> switchblade | P12: =LOOKUP(RAND()*P$18,$A$19:A$328,P$19:P$328) -> lifelong | Q12: =LOOKUP(RAND()*Q$18,$A$19:A$549,Q$19:Q$549) -> stepparent | R12: =LOOKUP(RAND()*R$18,$A$19:A$539,R$19:R$539) -> involve | S12: =LOOKUP(RAND()*S$18,$A$19:A$281,S$19:S$281) -> overprotect | T12: =LOOKUP(RAND()*T$18,$A$19:A$136,T$19:T$136) -> muzzle | U12: =LOOKUP(RAND()*U$18,$A$19:A$448,U$19:U$448) -> fission | V12: =LOOKUP(RAND()*$V$18,$A$19:$A1384,$V$19:$V$1380) -> recommend | W12: =LOOKUP(RAND()*$V$18,$A$19:$A1384,$V$19:$V$1380) -> rotation | X12: =LOOKUP(RAND()*$V$18,$A$19:$A1384,$V$19:$V$1380) -> chaotic | Y12: =LOOKUP(RAND()*$Y$18,$A$19:$A1194,$Y$19:$Y$576) -> decorator | Z12: =LOOKUP(RAND()*$Z$18,$A$19:$A147,$Z$19:$Z$140) -> underprivileged | AA12: =LOOKUP(RAND()*$AA$18,$A$19:$A147,$AA$19:$AA$41) -> reliability
B13: =LOOKUP(RAND()*B$18,$A$19:A$998,B$19:B$998) -> vicious | C13: auger | D13: kooky | E13: smoothy | F13: playbook | G13: weekend | H13: =LOOKUP(RAND()*H$18,$A$19:A$600,H$19:H608) -> tillage | I13: =LOOKUP(RAND()*I$18,$A$19:A$1200,I$19:I$1200) -> stencil | J13: =LOOKUP(RAND()*J$18,$A$19:A$395,J$19:J$395) -> nourish | K13: =LOOKUP(RAND()*K$18,$A$19:B$157,K$19:K$157) -> mushroom | L13: =LOOKUP(RAND()*L$18,$A$19:C$498,L$19:L$498) -> wheelwright | M13: =LOOKUP(RAND()*M$18,$A$19:D$108,M$19:M$108) -> gangplank | N13: =LOOKUP(RAND()*N$18,$A$19:E$75,N$19:N$75) -> huntsman | O13: =LOOKUP(RAND()*O$18,$A$19:F$40,O$19:O$39) -> nightshade | P13: =LOOKUP(RAND()*P$18,$A$19:A$328,P$19:P$328) -> eyelet | Q13: =LOOKUP(RAND()*Q$18,$A$19:A$549,Q$19:Q$549) -> however | R13: =LOOKUP(RAND()*R$18,$A$19:A$539,R$19:R$539) -> revert | S13: =LOOKUP(RAND()*S$18,$A$19:A$281,S$19:S$281) -> undercook | T13: =LOOKUP(RAND()*T$18,$A$19:A$136,T$19:T$136) -> cable | U13: =LOOKUP(RAND()*U$18,$A$19:A$448,U$19:U$448) -> profession | V13: =LOOKUP(RAND()*$V$18,$A$19:$A1385,$V$19:$V$1380) -> density | W13: =LOOKUP(RAND()*$V$18,$A$19:$A1385,$V$19:$V$1380) -> coronate | X13: =LOOKUP(RAND()*$V$18,$A$19:$A1385,$V$19:$V$1380) -> compliment | Y13: =LOOKUP(RAND()*$Y$18,$A$19:$A1195,$Y$19:$Y$576) -> biography | Z13: =LOOKUP(RAND()*$Z$18,$A$19:$A148,$Z$19:$Z$140) -> continuity | AA13: =LOOKUP(RAND()*$AA$18,$A$19:$A148,$AA$19:$AA$41) -> extracurricular
B14: =LOOKUP(RAND()*B$18,$A$19:A$998,B$19:B$998) -> alone | C14: downy | D14: spooky | E14: slither | F14: payroll | G14: dropout | H14: =LOOKUP(RAND()*H$18,$A$19:A$600,H$19:H609) -> ballet | I14: =LOOKUP(RAND()*I$18,$A$19:A$1200,I$19:I$1200) -> sweetheart | J14: =LOOKUP(RAND()*J$18,$A$19:A$395,J$19:J$395) -> argue | K14: =LOOKUP(RAND()*K$18,$A$19:B$157,K$19:K$157) -> daughter | L14: =LOOKUP(RAND()*L$18,$A$19:C$498,L$19:L$498) -> stockyard | M14: =LOOKUP(RAND()*M$18,$A$19:D$108,M$19:M$108) -> offshoot | N14: =LOOKUP(RAND()*N$18,$A$19:E$75,N$19:N$75) -> nighthawk | O14: =LOOKUP(RAND()*O$18,$A$19:F$40,O$19:O$39) -> witchcraft | P14: =LOOKUP(RAND()*P$18,$A$19:A$328,P$19:P$328) -> casement | Q14: =LOOKUP(RAND()*Q$18,$A$19:A$549,Q$19:Q$549) -> thereupon | R14: =LOOKUP(RAND()*R$18,$A$19:A$539,R$19:R$539) -> infest | S14: =LOOKUP(RAND()*S$18,$A$19:A$281,S$19:S$281) -> overshadow | T14: =LOOKUP(RAND()*T$18,$A$19:A$136,T$19:T$136) -> uncle | U14: =LOOKUP(RAND()*U$18,$A$19:A$448,U$19:U$448) -> congruence | V14: =LOOKUP(RAND()*$V$18,$A$19:$A1386,$V$19:$V$1380) -> dignity | W14: =LOOKUP(RAND()*$V$18,$A$19:$A1386,$V$19:$V$1380) -> audience | X14: =LOOKUP(RAND()*$V$18,$A$19:$A1386,$V$19:$V$1380) -> creamery | Y14: =LOOKUP(RAND()*$Y$18,$A$19:$A1196,$Y$19:$Y$576) -> austerity | Z14: =LOOKUP(RAND()*$Z$18,$A$19:$A149,$Z$19:$Z$140) -> monosyllable | AA14: =LOOKUP(RAND()*$AA$18,$A$19:$A149,$AA$19:$AA$41) -> individualistic
B15: =LOOKUP(RAND()*B$18,$A$19:A$998,B$19:B$998) -> lucent | C15: cowpox | D15: gloomy | E15: flagrant | F15: greyhound | G15: lookout | H15: =LOOKUP(RAND()*H$18,$A$19:A$600,H$19:H610) -> shipping | I15: =LOOKUP(RAND()*I$18,$A$19:A$1200,I$19:I$1200) -> enquire | J15: =LOOKUP(RAND()*J$18,$A$19:A$395,J$19:J$395) -> cherub | K15: =LOOKUP(RAND()*K$18,$A$19:B$157,K$19:K$157) -> naughty | L15: =LOOKUP(RAND()*L$18,$A$19:C$498,L$19:L$498) -> rainproof | M15: =LOOKUP(RAND()*M$18,$A$19:D$108,M$19:M$108) -> shortstop | N15: =LOOKUP(RAND()*N$18,$A$19:E$75,N$19:N$75) -> huntsman | O15: =LOOKUP(RAND()*O$18,$A$19:F$40,O$19:O$39) -> nightstick | P15: =LOOKUP(RAND()*P$18,$A$19:A$328,P$19:P$328) -> grapefruit | Q15: =LOOKUP(RAND()*Q$18,$A$19:A$549,Q$19:Q$549) -> rumrunner | R15: =LOOKUP(RAND()*R$18,$A$19:A$539,R$19:R$539) -> recount | S15: =LOOKUP(RAND()*S$18,$A$19:A$281,S$19:S$281) -> oversee | T15: =LOOKUP(RAND()*T$18,$A$19:A$136,T$19:T$136) -> nibble | U15: =LOOKUP(RAND()*U$18,$A$19:A$448,U$19:U$448) -> confidence | V15: =LOOKUP(RAND()*$V$18,$A$19:$A1387,$V$19:$V$1380) -> determine | W15: =LOOKUP(RAND()*$V$18,$A$19:$A1387,$V$19:$V$1380) -> strategic | X15: =LOOKUP(RAND()*$V$18,$A$19:$A1387,$V$19:$V$1380) -> desperate | Y15: =LOOKUP(RAND()*$Y$18,$A$19:$A1197,$Y$19:$Y$576) -> antecedent | Z15: =LOOKUP(RAND()*$Z$18,$A$19:$A150,$Z$19:$Z$140) -> regulatory | AA15: =LOOKUP(RAND()*$AA$18,$A$19:$A150,$AA$19:$AA$41) -> acceptability
B16: =LOOKUP(RAND()*B$18,$A$19:A$998,B$19:B$998) -> saga | C16: rowdy | D16: thruway | E16: ruckus | F16: showcase | G16: midair | H16: =LOOKUP(RAND()*H$18,$A$19:A$600,H$19:H611) -> tallow | I16: =LOOKUP(RAND()*I$18,$A$19:A$1200,I$19:I$1200) -> caster | J16: =LOOKUP(RAND()*J$18,$A$19:A$395,J$19:J$395) -> cursor | K16: =LOOKUP(RAND()*K$18,$A$19:B$157,K$19:K$157) -> harmless | L16: =LOOKUP(RAND()*L$18,$A$19:C$498,L$19:L$498) -> hardtop | M16: =LOOKUP(RAND()*M$18,$A$19:D$108,M$19:M$108) -> quickstep | N16: =LOOKUP(RAND()*N$18,$A$19:E$75,N$19:N$75) -> patchwork | O16: =LOOKUP(RAND()*O$18,$A$19:F$40,O$19:O$39) -> switchblade | P16: =LOOKUP(RAND()*P$18,$A$19:A$328,P$19:P$328) -> stagecoach | Q16: =LOOKUP(RAND()*Q$18,$A$19:A$549,Q$19:Q$549) -> thanksgiving | R16: =LOOKUP(RAND()*R$18,$A$19:A$539,R$19:R$539) -> imperturbable | S16: =LOOKUP(RAND()*S$18,$A$19:A$281,S$19:S$281) -> overdress | T16: =LOOKUP(RAND()*T$18,$A$19:A$136,T$19:T$136) -> settle | U16: =LOOKUP(RAND()*U$18,$A$19:A$448,U$19:U$448) -> eminence | V16: =LOOKUP(RAND()*$V$18,$A$19:$A1388,$V$19:$V$1380) -> interpret | W16: =LOOKUP(RAND()*$V$18,$A$19:$A1388,$V$19:$V$1380) -> aggravate | X16: =LOOKUP(RAND()*$V$18,$A$19:$A1388,$V$19:$V$1380) -> nuclear | Y16: =LOOKUP(RAND()*$Y$18,$A$19:$A1198,$Y$19:$Y$576) -> coordinate | Z16: =LOOKUP(RAND()*$Z$18,$A$19:$A151,$Z$19:$Z$140) -> university | AA16: =LOOKUP(RAND()*$AA$18,$A$19:$A151,$AA$19:$AA$41) -> predictability
B17: =LOOKUP(RAND()*B$18,$A$19:A$998,B$19:B$998) -> secede | C17: knowledge | D17: thruway | E17: defrost | F17: slowly | G17: leakage | H17: =LOOKUP(RAND()*H$18,$A$19:A$600,H$19:H612) -> succeed | I17: =LOOKUP(RAND()*I$18,$A$19:A$1200,I$19:I$1200) -> sentence | J17: =LOOKUP(RAND()*J$18,$A$19:A$395,J$19:J$395) -> sardine | K17: =LOOKUP(RAND()*K$18,$A$19:B$157,K$19:K$157) -> extreme | L17: =LOOKUP(RAND()*L$18,$A$19:C$498,L$19:L$498) -> toothpick | M17: =LOOKUP(RAND()*M$18,$A$19:D$108,M$19:M$108) -> courtship | N17: =LOOKUP(RAND()*N$18,$A$19:E$75,N$19:N$75) -> lightweight | O17: =LOOKUP(RAND()*O$18,$A$19:F$40,O$19:O$39) -> nightstick | P17: =LOOKUP(RAND()*P$18,$A$19:A$330,P$19:P$330) -> firearm | Q17: =LOOKUP(RAND()*Q$18,$A$19:A$549,Q$19:Q$549) -> painstaking | R17: =LOOKUP(RAND()*R$18,$A$19:A$539,R$19:R$539) -> dissent | S17: =LOOKUP(RAND()*S$18,$A$19:A$281,S$19:S$281) -> overriding | T17: =LOOKUP(RAND()*T$18,$A$19:A$133,T$19:T$133) -> tattle | U17: =LOOKUP(RAND()*U$18,$A$19:A$448,U$19:U$448) -> pursuance | V17: =LOOKUP(RAND()*$V$18,$A$19:$A1389,$V$19:$V$1380) -> fluorescent | W17: =LOOKUP(RAND()*$V$18,$A$19:$A1389,$V$19:$V$1380) -> gasoline | X17: =LOOKUP(RAND()*$V$18,$A$19:$A1389,$V$19:$V$1380) -> ascertain | Y17: =LOOKUP(RAND()*$Y$18,$A$19:$A1199,$Y$19:$Y$576) -> protectorate | Z17: =LOOKUP(RAND()*$Z$18,$A$19:$A152,$Z$19:$Z$140) -> deteriorate | AA17: =LOOKUP(RAND()*$AA$18,$A$19:$A152,$AA$19:$AA$41) -> accessibility
B18: =COUNTA(B19:B1315) -> 980 | C18: =COUNTA(C19:C1320) -> 76 | D18: =COUNTA(D19:D1324) -> 26 | E18: =COUNTA(E19:E1321) -> 162 | F18: =COUNTA(F19:F1324) -> 73 | G18: =COUNTA(G19:G1317) -> 13 | H18: =COUNTA(H19:H1384) -> 544 | I18: =COUNTA(I19:I1339) -> 1172 | J18: =COUNTA(J19:J1383) -> 377 | K18: =COUNTA(K19:K1373) -> 139 | L18: =COUNTA(L19:L1344) -> 480 | M18: =COUNTA(M19:M1381) -> 92 | N18: =COUNTA(N19:N1383) -> 57 | O18: =COUNTA(O19:O1379) -> 22 | P18: =COUNTA(P19:P1380) -> 310 | Q18: =COUNTA(Q19:Q1379) -> 531 | R18: =COUNTA(R19:R1384) -> 521 | S18: =COUNTA(S19:S1384) -> 263 | T18: =COUNTA(T19:T1384) -> 118 | U18: =COUNTA(U19:U1382) -> 430 | V18: =COUNTA(V19:V1380) -> 1362 | Y18: =COUNTA(Y19:Y1380) -> 558 | Z18: =COUNTA(Z19:Z1380) -> 122 | AA18: =COUNTA(AA19:AA1380) -> 33 | AB18: =SUM(B18:AA18) -> 8461
A19: 0 | B19: abase | C19: auburn | D19: August | E19: ablaze | F19: blowout | G19: bailout | H19: abbess | I19: abduct | J19: aerate | K19: abscess | L19: airbrush | M19: allspice | N19: bedspread | O19: backstretch | P19: awesome | Q19: adulthood | R19: declare | S19: overact | T19: able | U19: abeyance | V19: abandon | Y19: abandonment | Z19: absentmindedness | AA19: acceptability
A20: =A19+1 -> 1 | B20: abate | C20: audit | D20: austere | E20: abroad | F20: bowling | G20: cookout | H20: abbey | I20: abhor | J20: airbrake | K20: abstain | L20: aircraft | M20: armchair | N20: birthday | O20: backstroke | P20: barefoot | Q20: afterburner | R20: decline | S20: overactive | T20: audible | U20: abhorrence | V20: abdicate | Y20: ability | Z20: accelerator | AA20: accessibility
A21: =A20+1 -> 2 | B21: aboard | C21: auger | D21: blueblood | E21: achieve | F21: byline | G21: dropout | H21: abbot | I21: absence | J21: airfield | K21: actress | L21: airship | M21: ashtray | N21: conscribe | O21: corkscrew | P21: barely | Q21: afterlife | R21: defensive | S21: overage | T21: beetle | U21: abrasion | V21: abductee | Y21: abominate | Z21: additionally | AA21: accountability
A22: 3 | B22: abode | C22: aura | D22: bluebook | E22: achy | F22: crayon | G22: dugout | H22: accede | I22: absent | J22: airflow | K22: although | L22: armpit | M22: background | N22: cutthroat | O22: downstream | P22: baseball | Q22: aftermath | R22: deplete | S22: overaggressive | T22: bristle | U22: absence | V22: abductor | Y22: absolutely | Z22: administrator | AA22: affordability
A23: 4 | B23: abort | C23: author | D23: bluejay | E23: acre | F23: cycle | G23: headache | H23: accent | I23: absorb | J23: airframe | K23: android | L23: backbite | M23: backslide | N23: drawstring | O23: handspring | P23: baseboard | Q23: afternoon | R23: deplore | S23: overall | T23: bugle | U23: absorbance | V23: abhorrence | Y23: absurdity | Z23: alphabetical | AA23: autobiography
A24: 5 | B24: abound | C24: autism | D24: booboo | E24: across | F24: cynic | G24: leakage | H24: accept | I24: absurd | J24: airmail | K24: angry | L24: backdoor | M24: backspin | N24: earthquake | O24: hearthstone | P24: baseline | Q24: aftershave | R24: deploy | S24: overambitious | T24: bundle | U24: absorption | V24: abhorrent | Y24: academic | Z24: ambulatory | AA24: availability
A25: 6 | B25: about | C25: auto | D25: boohoo | E25: afraid | F25: daylight | G25: lookout | H25: access | I25: acquire | J25: airman | K25: answer | L25: backdrop | M25: backstage | N25: earthwork | O25: heartstrings | P25: basement | Q25: afterwards | R25: deprave | S25: overanalyze | T25: cable | U25: abstinence | V25: abolish | Y25: academy | Z25: animosity | AA25: beneficiary
A26: 7 | B26: above | C26: autumn | D26: bouyance | E26: aglow | F26: daytime | G26: midair | H26: acclaim | I26: action | J26: airplane | K26: ascribe | L26: backfield | M26: backstop | N26: earthworm | O26: millstream | P26: beeline | Q26: airliner | R26: depress | S26: overanxious | T26: candle | U26: abundance | V26: absentee | Y26: accelerate | Z26: anniversary | AA26: cardiovascular
A27: 8 | B27: abuse | C27: awful | D27: cloudy | E27: agree | F27: flyby | G27: outage | H27: accord | I27: actor | J27: airport | K27: astray | L27: backfire | M27: backtrack | N27: guardsman | O27: nightclothes | P27: bracelet | Q27: anymore | R27: depression | S27: overarm | T27: castle | U27: acceleration | V27: absorbent | Y27: accessary | Z27: anthropology | AA27: conciliatory
A28: 9 | B28: abut | C28: awning | D28: cookie | E28: aphid | F28: flywheel | G28: pinup | H28: accost | I28: adhere | J28: airstrike | K28: athlete | L28: backhand | M28: barnstorm | N28: hamstring | O28: nightclub | P28: brainwave | Q28: anyone | R28: deprive | S28: overassertive | T28: circle | U28: acceptance | V28: abstinence | Y28: accessorize | Z28: anticipation | AA28: constitutionality
A29: 10 | B29: acid | C29: boyhood | D29: crooked | E29: April | F29: greyhound | G29: shutout | H29: account | I29: adjoin | J29: airtime | K29: baldness | L29: backlash | M29: bombproof | N29: headstrong | O29: nightdress | P29: bravely | Q29: anything | R29: detailed | S29: overawe | T29: couple | U29: accession | V29: abstinent | Y29: accessory | Z29: apologetic | AA29: deniability
A30: 11 | B30: acorn | C30: brawny | D30: droopy | E30: apron | F30: hayloft | G30: throughout | H30: accrue | I30: adjourn | J30: airwave | K30: blindness | L30: backlog | M30: buckshot | N30: hitchhike | O30: nightshade | P30: breezeway | Q30: anytime | R30: detract | S30: overbalance | T30: dapple | U30: accommodation | V30: abstraction | Y30: accommodate | Z30: appendectomy | AA30: desirability
A31: 12 | B31: adage | C31: cautious | D31: gloomy | E31: ashamed | F31: hayride | G31: weekend | H31: accuse | I31: adjust | J31: airway | K31: blotchy | L31: backside | M31: buckskin | N31: hunchback | O31: nightshirt | P31: careful | Q31: anyway | R31: disable | S31: overbear | T31: dawdle | U31: accordance | V31: accident | Y31: accompany | Z31: archeology | AA31: destructibility
A32: 13 | B32: adapt | C32: chewy | D32: juicy | E32: ashore | F32: haywire | H32: addend | I32: admire | J32: arbor | K32: boldness | L32: backward | M32: bullfrog | N32: huntsman | O32: nightstick | P32: casement | Q32: anywhere | R32: disaffect | S32: overbearing | T32: dimple | U32: acquaintance | V32: acclimate | Y32: accordingly | Z32: aristocracy | AA32: deterioration
A33: 14 | B33: adopt | C33: cougar | D33: kooky | E33: askew | F33: heyday | H33: adder | I33: admit | J33: arcade | K33: camphor | L33: backwash | M33: childproof | N33: inchworm | O33: offspring | P33: casework | Q33: archduchess | R33: disagree | S33: overbid | T33: double | U33: acquittance | V33: accolade | Y33: accordion | Z33: audiology | AA33: distractibility
A34: 15 | B34: adore | C34: coupon | D34: loony | E34: asleep | F34: hybrid | H34: addict | I34: adsorb | J34: arcane | K34: cashmere | L34: backwoods | M34: cornstalk | N34: lightface | O34: spendthrift | P34: causeway | Q34: arrowhead | R34: disallow | S34: overblown | T34: eagle | U34: adaptation | V34: accomplice | W34: aircraft | Y34: accumulate | Z34: auditorium | AA34: electromagnetic
A35: 16 | B35: adorn | C35: coward | D35: noisy | E35: awhile | F35: jaywalk | H35: address | I35: advance | J35: archway | K35: catcher | L35: bagpipe | M35: courtship | N35: lighthouse | O35: switchblade | P35: ceasefire | Q35: authorship | R35: disappear | S35: overboard | T35: fettle | U35: addition | V35: accomplish | Y35: accuracy | Z35: authenticity | AA35: eligibility
A36: 17 | B36: adult | C36: cowbird | D36: nuisance | E36: bechance | F36: keyhole | H36: adduce | I36: advent | J36: arctic | K36: central | L36: ballgame | M36: crankshaft | N36: lightweight | O36: thumbscrew | P36: cheesecake | Q36: autograph | R36: disappoint | S36: overbold | T36: fiddle | U36: administration | V36: accredit | Y36: acrimony | Z36: bibliography | AA36: evolutionary
A37: 18 | B37: afar | C37: cowboy | D37: spoilage | E37: bestow | F37: keynote | H37: affair | I37: adverb | J37: argue | K37: centric | L37: ballroom | M37: crisscross | N37: lunchroom | O37: wingspread | P37: cheesecloth | Q37: automate | R37: disapprove | S37: overburden | T37: fizzle | U37: admission | V37: accurate | Y37: acrobatic | Z37: cannibalistic | AA37: expandability
A38: 19 | B38: afire | C38: cowhide | D38: spooky | E38: betray | F38: layoff | H38: affect | I38: adverse | J38: argyle | K38: cesspool | L38: bandage | M38: crossbreed | N38: lunchtime | O38: witchcraft | P38: closely | Q38: automobile | R38: disarm | S38: overbuy | T38: frazzle | U38: admittance | V38: acerbate | Y38: activity | Z38: capability | AA38: extendability
A39: 20 | B39: afoot | C39: cowlick | D39: thousand | E39: between | F39: layout | H39: affirm | I39: advert | J39: arise | K39: children | L39: bankbook | M39: downgrade | N39: mainspring | O39: worthwhile | P39: closeout | Q39: backwater | R39: disarrange | S39: overcapitalize | T39: fumble | U39: adolescence | V39: acidic | Y39: actuary | Z39: capitalistic | AA39: extracurricular
A40: 21 | B40: again | C40: cowpoke | D40: thruway | E40: biplane | F40: lowlife | H40: affix | I40: advice | J40: armies | K40: cincture | L40: bankroll | M40: downplay | N40: mainstream | O40: yachtsman | P40: codebook | Q40: bandwagon | R40: disarray | S40: overcareful | T40: gabble | U40: adulation | V40: acknowledge | Y40: acupuncture | Z40: carcinogenic | AA40: familiarity
A41: 22 | B41: against | C41: cowpox | D41: toupee | E41: bother | F41: lyric | H41: afflict | I41: advise | J41: armor | K41: coldness | L41: barbwire | M41: downscale | N41: marksman | P41: daresay | Q41: bartender | R41: disassemble | S41: overcast | T41: gable | U41: advance | V41: acoustic | Y41: adequately | Z41: cardiology | AA41: hallucinogenic
A42: 23 | B42: agaze | C42: crawfish | D42: twosome | E42: brother | F42: maybe | H42: afford | I42: after | J42: army | K42: complain | L42: barnyard | M42: downspout | N42: matchbook | P42: dateline | Q42: beachcomber | R42: disassociate | S42: overcautious | T42: gaggle | U42: affection | V42: acquiesce | Y42: adjudicate | Z42: characteristic | AA42: individualistic
A43: 24 | B43: agent | C43: dowdy | D43: whoopee | E43: cashew | F43: mayday | H43: affront | I43: ailment | J43: artic | K43: complete | L43: bathroom | M43: downstairs | N43: matchlock | P43: doeskin | Q43: bedridden | R43: disavow | S43: overcharge | T43: giggle | U43: affluence | V43: acreage | Y43: administer | Z43: claustrophobia | AA43: meteorologic
A44: 25 | B44: agile | C44: dowel | D44: woozy | E44: cashier | F44: mayfair | H44: aggrieve | I44: alcove | J44: arouse | K44: complex | L44: beachhead | M44: downstate | N44: nightcap | P44: dovetail | Q44: blockbuster | R44: discern | S44: overcloud | T44: gobble | U44: aggression | V44: activate | Y44: administrate | Z44: commonality | AA44: municipality
A45: 26 | B45: ago | C45: dower | E45: chagrin | F45: mayor | H45: allege | I45: almost | J45: arraign | K45: compress | L45: bedframe | M45: eggplant | N45: nightfall | P45: driveway | Q45: bloodmobile | R45: discharge | S45: overcoat | T45: goggle | U45: allegation | V45: adaptor | Y45: admissible | Z45: communicable | AA45: originality
A46: 27 | B46: ahead | C46: downy | E46: cheshire | F46: payday | H46: alley | I46: also | J46: arrange | K46: comprise | L46: bellboy | M46: gallstone | N46: nightgown | P46: easement | Q46: bloodsucker | R46: disclaim | S46: overcome | T46: griddle | U46: allegiance | V46: adduction | Y46: adolescence | Z46: complementary | AA46: predictability
A47: 28 | B47: ahoy | C47: dowry | E47: chicken | F47: payee | H47: allied | I47: alter | J47: array | K47: conclave | L47: bellhop | M47: gangplank | N47: nighthawk | P47: elsewhere | Q47: blueberry | R47: discolor | S47: overcompensate | T47: grumble | U47: alliance | V47: adenoid | Y47: adolescent | Z47: complicatedness | AA47: profitability
A48: 29 | B48: alas | C48: drawback | E48: cushion | F48: payload | H48: allow | I48: always | J48: arrive | K48: conclude | L48: beltway | M48: goldbrick | N48: nightlife | P48: eyeball | Q48: bookmobile | R48: discomfort | S48: overconcern | T48: guzzle | U48: allowance | V48: adjacent | Y48: advantageous | Z48: complimentary | AA48: reliability
A49: 30 | B49: alien | C49: drowsy | E49: cyclist | F49: payment | H49: alloy | I49: amber | J49: arrow | K49: conflate | L49: billboard | M49: goldsmith | N49: nightmare | P49: eyebrow | Q49: borderline | R49: discontent | S49: overconfident | T49: haggle | U49: altercation | V49: adjustment | Y49: adventurous | Z49: condominium | AA49: revolutionary
A50: 31 | B50: alight | C50: faucet | E50: daybreak | F50: payoff | H50: allude | I50: anchor | J50: artwork | K50: conscience | L50: billfold | M50: grandchild | N50: northward | P50: eyeglass | Q50: breakaway | R50: discontinue | S50: overcook | T50: handle | U50: ambiance | V50: admonish | Y50: adversary | Z50: confectionary | AA50: telecommunicate
A51: 32 | B51: align | C51: fewer | E51: daydream | F51: payroll | H51: allure | I51: ancient | J51: barber | K51: contract | L51: birdbath | M51: grandstand | N51: outspread | P51: eyelash | Q51: brotherhood | R51: discord | S51: overcool | T51: hassle | U51: ambience | V51: adsorption | Y51: adversity | Z51: confectionery | AA51: undersecretary
A52: 33 | B52: alike | C52: fewest | E52: decrease | F52: physic | H52: ally | I52: angel | J52: bargain | K52: contrail | L52: birdbrain | M52: grindstone | N52: outstretch | P52: eyelet | Q52: bulldozer | R52: discount | S52: overcritical | T52: hobble | U52: ambition | V52: advantage | Y52: advisory | Z52: confederacy
A53: 34 | B53: alive | C53: flawless | E53: decree | F53: physics | H53: annex | I53: anger | J53: barrage | K53: contrast | L53: birdcage | M53: handclasp | N53: outstrip | P53: eyelid | Q53: bulletproof | R53: discourage | S53: overcrowd | T53: huddle | U53: ambulance | V53: adventure | Y53: advocacy | Z53: conservatory
A54: 35 | B54: aloft | C54: flower | E54: deflate | F54: playbook | H54: announce | I54: antic | J54: barroom | K54: contrite | L54: blacklist | M54: handshake | N54: patchwork | P54: eyepiece | Q54: bullheaded | R54: discourse | S54: overdecorate | T54: humble | U54: ammunition | V54: advertise | Y54: affectionate | Z54: contemporary
A55: 36 | B55: alone | C55: howdy | E55: deflect | F55: playboy | H55: annoy | I55: antique | J55: barstool | K55: control | L55: blackmail | M55: hardship | N55: pinstripe | P55: eyeshade | Q55: bumblebee | R55: discourtesy | S55: overdependent | T55: hustle | U55: animation | V55: advisor | Y55: aggravation | Z55: continuity
A56: 37 | B56: along | C56: jawbone | E56: defraud | F56: playday | H56: annul | I56: anxious | J56: berry | K56: crunchy | L56: blacktop | M56: heartbreak | N56: pitchfork | P56: eyesight | Q56: burdensome | R56: discredit | S56: overdevelop | T56: idle | U56: annoyance | V56: advocate | Y56: agility | Z56: contradictory
A57: 38 | B57: aloof | C57: jewel | E57: defray | F57: playmate | H57: appall | I57: ascend | J57: border | K57: darkness | L57: blindside | M57: highbred | N57: pitchman | P57: eyesore | Q57: buttercup | R57: discreet | S57: overdiversity | T57: jangle | U57: antecedence | V57: aerobic | Y57: agitator | Z57: contributory
A58: 39 | B58: aloud | C58: joyous | E58: defrost | F58: playpen | H58: appeal | I58: aspire | J58: borrow | K58: daughter | L58: bloodstain | M58: highbrow | N58: Scotchman | P58: eyestrain | Q58: butterfingers | R58: discretion | S58: overdo | T58: jiggle | U58: appearance | V58: aesthetic | Y58: agriculture | Z58: coordinator
A59: 40 | B59: amass | C59: joyride | E59: degrade | F59: playroom | H59: appear | I59: augment | J59: bureau | K59: dendrite | L59: boardroom | M59: highchair | N59: seamstress | P59: eyetooth | Q59: butterfly | R59: discrimination | S59: overdose | T59: jingle | U59: appliance | V59: affable | Y59: algorithmic | Z59: corroborator
A60: 41 | B60: amaze | C60: knowledge | E60: degrease | F60: playtime | H60: appease | I60: awkward | J60: burglar | K60: destroy | L60: boatswain | M60: inkblot | N60: searchlight | P60: eyewear | Q60: buttermilk | R60: discus | S60: overdraft | T60: jostle | U60: application | V60: affluence | Y60: alimony | Z60: cosmetology
A61: 42 | B61: amend | C61: lawsuit | E61: degree | F61: plywood | H61: append | I61: badger | J61: burrow | K61: destruct | L61: bookstore | M61: jackknife | N61: sketchbook | P61: falsehood | Q61: buttonhook | R61: discuss | S61: overdramatize | T61: juggle | U61: appropriation | V61: affluent | Y61: alligator | Z61: creativity
A62: 43 | B62: amid | C62: lawyer | E62: deplane | F62: showcase | H62: applaud | I62: badness | J62: bury | K62: disclose | L62: brainstorm | M62: lampblack | N62: sportsman | P62: farewell | Q62: chambermaid | R62: disdain | S62: overdraw | T62: jumble | U62: arrogance | V62: Africa | Y62: already | Z62: credibility
A63: 44 | B63: amiss | C63: lousy | E63: digress | F63: showdown | H63: applause | I63: bamboo | J63: carbide | K63: doctrine | L63: brickbat | M63: landscape | N63: sportswear | P63: filename | Q63: championship | R63: disease | S63: overdress | T63: jungle | U63: ascendance | V63: afterglow | Y63: alternator | Z63: crematorium
A64: 45 | B64: among | C64: louver | E64: duchess | F64: showman | H64: apply | I64: bandaid | J64: carbine | K64: dolphin | L64: bucktooth | M64: landslide | N64: straightlaced | P64: firearm | Q64: clodhopper | R64: disenchant | S64: overdrink | T64: kettle | U64: aspiration | V64: agency | Y64: altruistic | Z64: criminology
A65: 46 | B65: amount | C65: lowboy | E65: duplex | F65: showoff | H65: appoint | I65: bandit | J65: career | K65: eighteen | L65: bulldog | M65: locksmith | N65: subscribe | P65: fireball | Q65: coffeecake | R65: disengage | S65: overdrive | T65: kindle | U65: assertion | V65: aggravate | Y65: aluminum | Z65: curiosity
A66: 47 | B66: amuck | C66: lowdown | E66: egress | F66: showroom | H66: appraise | I66: banquet | J66: caress | K66: eighty | L66: bulldoze | M66: lordship | N66: switchboard | P66: firebrand | Q66: colorblindness | R66: disfavor | S66: overdue | T66: knuckle | U66: assistance | V66: aggregate | Y66: amazingly | Z66: derogatory
A67: 48 | B67: amuse | C67: lowland | E67: either | F67: showtime | H67: apprise | I67: banter | J67: carhop | K67: emblaze | L67: bullhorn | M67: milkshake | N67: tightlipped | P67: firebug | Q67: commonsense | R67: disfigure | S67: overeager | T67: little | U67: assumption | V67: aggressive | Y67: ambassador | Z67: deteriorate
A68: 49 | B68: anew | C68: newborn | E68: ethic | F68: skylark | H68: approach | I68: baptize | J68: carnage | K68: embrace | L68: bullpen | M68: millstone | N68: tightrope | P68: firefly | Q68: copycat | R68: disfranchise | S68: overeat | T68: mangle | U68: assurance | V68: aggressor | Y68: ambidextrous | Z68: elasticity
A69: 50 | B69: anoint | C69: poison | E69: fashion | F69: skylight | H69: approve | I69: basket | J69: carouse | K69: embroil | L69: bunkmate | M69: monkshood | N69: tightwad | P69: fireproof | Q69: copyreader | R69: disgrace | S69: overeducate | T69: mantle | U69: attendance | V69: aggrievement | Y69: ambiguous | Z69: electricity
A70: 51 | B70: apart | C70: powder | E70: father | F70: skyline | H70: assail | I70: batboy | J70: carpet | K70: employ | L70: campfire | M70: newsprint | N70: townsman | P70: fireside | Q70: copyright | R70: disgruntle | S70: overelaborate | T70: marble | U70: attention | V70: agitate | Y70: amenity | Z70: encyclopedic
A71: 52 | B71: apex | C71: power | E71: fathom | F71: skyward | H71: assent | I71: bedrock | J71: carpool | K71: empty | L71: campsite | M71: newsstand | N71: upstream | P71: firetrap | Q71: cornerstone | R71: disguise | S71: overembellish | T71: measles | U71: attraction | V71: agnostic | Y71: America | Z71: enthusiastic
A72: 53 | B72: apiece | C72: prowess | E72: feather | F72: skyway | H72: assert | I72: bedroll | J72: carport | K72: enchant | L72: cellmate | M72: offshoot | N72: watchdog | P72: firewood | Q72: cottonmouth | R72: disgust | S72: overemotional | T72: meddle | U72: auction | V72: agonise | Y72: ammonium | Z72: equivalency
A73: 54 | B73: around | C73: rawhide | E73: fishy | F73: slowly | H73: assess | I73: bedroom | J73: carriage | K73: enclave | L73: cheapskate | M73: offshore | N73: watchman | P73: fireworks | Q73: cottontail | R73: dishearten | S73: overemphasis | T73: middle | U73: audacious | V73: agony | Y73: amphibian | Z73: evaluator
A74: 55 | B74: Asia | C74: routine | E74: flagrance | F74: snowball | H74: asset | I74: bedtime | J74: carry | K74: enclose | L74: checkbook | M74: offstage | N74: watchword | P74: flameout | Q74: cottonwood | R74: dishonor | S74: overemphasize | T74: missile | U74: audience | V74: albacore | Y74: amphibious | Z74: exterminator
A75: 56 | B75: aside | C75: rowdy | E75: flagrant | F75: snowbound | H75: assign | I75: belfry | J75: cartoon | K75: English | L75: checkmate | M75: pawnshop | N75: worldwide | P75: forearm | Q75: counteract | R75: dishwasher | S75: overemphatic | T75: muddle | U75: audition | V75: albatross | Y75: analytic | Z75: facilitator
A76: 57 | B76: atoll | C76: royal | E76: flashy | F76: snowfall | H76: assist | I76: bigfoot | J76: certain | K76: engrave | L76: checkroom | M76: pointblank | P76: forebear | Q76: counterattack | R76: disillusion | S76: overestimate | T76: muffle | U76: auspicious | V76: alibi | Y76: anatomy | Z76: feasibility
A77: 58 | B77: atom | C77: saucer | E77: flicker | F77: snowman | H77: assume | I77: blanket | J77: chairman | K77: engross | L77: chestnut | M77: quickstep | P77: forebrain | Q77: counterclaim | R77: disincline | S77: overexcite | T77: mumble | U77: automation | V77: alienate | Y77: annihilate | Z77: fiduciary
A78: 59 | B78: atone | C78: saucy | E78: fragrance | F78: snowy | H78: assure | I78: bloodline | J78: charade | K78: enslave | L78: chickpea | M78: rockslide | P78: forecast | Q78: counterpane | R78: disinherit | S78: overexercise | T78: muscle | U78: aversion | V78: alkaloid | Y78: annuity | Z78: flexibility
A79: 60 | B79: atop | C79: sauna | E79: fragrant | F79: stowage | H79: attach | I79: blunder | J79: charbroil | K79: enthuse | L79: chickweed | M79: roughshod | P79: foreclose | Q79: counterpart | R79: disinterested | S79: overexert | T79: muzzle | U79: aviation | V79: allergic | Y79: anonymous | Z79: generosity
A80: 61 | B80: avail | C80: sausage | E80: gather | F80: synapse | H80: attack | I80: bluster | J80: charter | K80: entrance | L80: childhood | M80: rustproof | P80: forefront | Q80: counterpoint | R80: disjointed | S80: overexpand | T80: needle | U80: avocation | V80: allergy | Y80: anorexic | Z80: hereditary
A81: 62 | B81: averse | C81: sawbuck | E81: graphite | F81: throwback | H81: attain | I81: bobcat | J81: cheerful | K81: entrench | L81: chopstick | M81: sackcloth | P81: foregame | Q81: counterpoise | R81: dislike | S81: overexpansion | T81: nestle | U81: avoidance | V81: allocate | Y81: Antarctica | Z81: hydroelectric
A82: 63 | B82: avert | C82: sawdust | E82: grayscale | F82: thyroid | H82: attempt | I82: bobtail | J82: cheery | K82: entry | L82: classmate | M82: sandblast | P82: forego | Q82: countersign | R82: dislocate | S82: overexpectation | T82: nettle | U82: balance | V82: allotment | Y82: antecedence | Z82: idealistic
A83: 64 | B83: avid | C83: sawhorse | E83: grouchy | F83: toward | H83: attend | I83: bolster | J83: cherish | K83: entwine | L83: classroom | M83: sandstone | P83: foregone | Q83: countersignature | R83: dislodge | S83: overexplicit | T83: nibble | U83: bastion | V83: allusion | Y83: antecedent | Z83: ideologic
A84: 65 | B84: avoid | C84: sawmill | E84: hydrate | F84: towline | H84: attest | I84: bombard | J84: cherry | K84: escrow | L84: clockwise | M84: sandstorm | P84: foreground | Q84: countersink | R84: disloyal | S84: overexpose | T84: nimble | U84: battalion | V84: almighty | Y84: anterior | Z84: ideology
A85: =A84+1 -> 66 | B85: avow | C85: screwball | E85: hyphen | F85: tryout | H85: attic | I85: bombay | J85: cherub | K85: ethnic | L85: clockwork | M85: sculptress | P85: forehand | Q85: countertenor | R85: dismal | S85: overextend | T85: noble | U85: bechance | V85: alphabet | Y85: anticipate | Z85: imaginary
A86: 67 | B86: await | C86: shower | E86: jacket | F86: tycoon | H86: attire | I86: bondage | J86: choirboy | K86: exchange | L86: cocktail | M86: sharkskin | P86: forehead | Q86: counterweight | R86: dismantle | S86: overfamiliar | T86: nuzzle | U86: benediction | V86: altercate | Y86: antifriction | Z86: impersonator
A87: 68 | B87: awake | C87: soupy | E87: jockey | F87: typo | H87: attract | I87: bonfire | J87: chorus | K87: exclaim | L87: corncob | M87: shockproof | P87: foreleg | Q87: countryside | R87: dismay | S87: overfamiliarity | T87: paddle | U87: benevolence | V87: alternate | Y87: antiseptic | Z87: incinerator
A88: 69 | B88: award | C88: soybean | E88: kingdom | F88: tyrant | H88: attune | I88: bonkers | J88: clearance | K88: exclude | L88: cornwall | M88: shortstop | P88: forelimb | Q88: countrywide | R88: dismiss | S88: overfastidious | T88: pebble | U88: bouyance | V88: ambience | Y88: anxiety | Z88: judiciary
A89: 70 | B89: aware | C89: towel | E89: latrine | F89: waylaid | H89: baggage | I89: bookcase | J89: clearly | K89: explain | L89: countdown | M89: slingshot | P89: forelock | Q89: cowcatcher | R89: dismount | S89: overflow | T89: peddle | U89: brilliance | V89: ambitious | Y89: apathetic | Z89: laboratory
A90: 71 | B90: away | C90: tower | E90: locker | F90: waylay | H90: baggy | I90: bookmark | J90: clergy | K90: explode | L90: courthouse | M90: soundproof | P90: foreman | Q90: cowpuncher | R90: disobey | S90: overfond | T90: pestle | U90: cadence | V90: ambulate | W90: cabin | Y90: apologize | Z90: legibility
A91: 72 | B91: awoke | C91: trauma | E91: locket | F91: wayside | H91: ballad | I91: bookworm | J91: cleric | K91: express | L91: courtroom | M91: soundtrack | P91: foremast | Q91: crackerjack | R91: disobedient | S91: overgeneralize | T91: pickle | U91: caption | V91: amnesic | Y91: apology | Z91: legitimacy
A92: 73 | B92: axis | C92: viewpoint | E92: machine | H92: ballast | I92: boulder | J92: corner | K92: extra | L92: courtside | M92: standstill | P92: foremost | Q92: crestfallen | R92: disorder | S92: overgenerous | T92: piddle | U92: carnation | V92: amnesty | Y92: applicator | Z92: liability
A93: 74 | B93: baboon | C93: vowel | E93: macho | H93: ballet | I93: bouncer | J93: cornice | K93: extract | L93: courtyard | M93: swordplay | P93: forenoon | Q93: crybaby | R93: disorganize | S93: overgrown | T93: piffle | U93: caution | V93: amortise | Y93: appreciate | Z93: microparticle
A94: 75 | B94: baby | C94: voyage | E94: matrix | H94: balloon | I94: bouncing | J94: corny | K94: extreme | L94: cowslip | M94: tombstone | P94: foresail | Q94: cubbyhole | R94: disorient | S94: overhand | T94: pimple | U94: champion | V94: amortize | Y94: apprenhensive | Z94: monosyllable
A95: 76 | B95: bacon | E95: method | H95: ballot | I95: bouncy | J95: correct | K95: extrude | L95: crabgrass | M95: touchstone | P95: foresee | Q95: cutaway | R95: disown | S95: overhang | T95: prattle | U95: circumference | V95: amplify | Y95: appropriate | Z95: nationality
A96: 77 | B96: bagel | E96: micron | H96: banner | I96: bounty | J96: corrode | K96: faithful | L96: crackdown | M96: transgress | P96: foresight | Q96: dairymaid | R96: dispatch | S96: overhasty | T96: puddle | U96: circumstance | V96: amputate | Y96: approximate | Z96: negotiator
A97: 78 | B97: balance | E97: migraine | H97: bassoon | I97: boxcar | J97: corrupt | K97: filthy | L97: crackpot | M97: turnstile | P97: forestall | Q97: daredevil | R97: dispel | S97: overhaul | T97: purple | U97: civilization | V97: amputee | Y97: aquarium | Z97: nitroglycerine
A98: 79 | B98: banish | E98: migrate | H98: batten | I98: brainwash | J98: courage | K98: flighty | L98: crankcase | M98: wardship | P98: foretaste | Q98: dayflower | R98: dispense | S98: overhead | T98: puzzle | U98: clairvoyance | V98: analogy | Y98: arbitrary | Z98: obituary
A99: 80 | B99: basic | E99: mother | H99: batter | I99: breakfast | J99: current | K99: folktale | L99: crossbar | M99: washcloth | P99: foretell | Q99: dogcatcher | R99: disperse | S99: overhear | T99: quibble | U99: clearance | V99: analyze | Y99: arbitrator | Z99: opportunity
A100: 81 | B100: basin | E100: neglect | H100: batty | I100: bridesmaid | J100: cursor | K100: franchise | L100: crossbeam | M100: washstand | P100: forethought | Q100: downtrodden | R100: displace | S100: overheat | T100: rabble | U100: cognizance | V100: anarchy | Y100: archdiocese | Z100: orbituary
A101: 82 | B101: basis | E101: neither | H101: bedding | I101: briefcase | J101: curtail | K101: frighten | L101: crossbones | M101: whiskbroom | P101: foreward | Q101: dressmaker | R101: display | S101: overimaginative | T101: raffle | U101: coherence | V101: ancestor | Y101: architecture | Z101: orientation
A102: 83 | B102: baton | E102: nephew | H102: beggar | I102: broadcast | J102: curtain | K102: gantry | L102: crossbow | M102: windshield | P102: forewarn | Q102: elbowroom | R102: displease | S102: overindulge | T102: ramble | U102: coincidence | V102: ancestry | Y102: arithmetic | Z102: penitentiary
A103: 84 | B103: bazaar | E103: neutral | H103: bellow | I103: broadness | J103: curtsy | K103: gastric | L103: crosscut | M103: windstorm | P103: foreword | Q103: everglade | R103: dispose | S103: overindulgent | T103: rankle | U103: combustion | V103: anchovy | Y103: arthoscopic | Z103: perpendicular
A104: 85 | B104: beauty | E104: neutron | H104: belly | I104: broadside | J104: curvy | K104: ghostly | L104: crossfire | M104: windswept | P104: foreworn | Q104: evergreen | R104: disposition | S104: overindustrialize | T104: rattle | U104: commence | V104: anemic | Y104: articulate | Z104: personality
A105: 86 | B105: became | E105: nickel | H105: better | I105: broadway | J105: dairy | K105: grandness | L105: crosshair | M105: wingspan | P105: framework | Q105: evermore | R105: disproportion | S105: overinflate | T105: rifle | U105: communication | V105: angelic | Y105: artillery | Z105: pituitary
A106: 87 | B106: because | E106: nitric | H106: bigger | I106: budget | J106: derby | K106: gumption | L106: crosspiece | M106: withdraw | P106: freehand | Q106: everyday | R106: disprove | S106: overinsistent | T106: ripple | U106: communion | V106: angrily | Y106: aspirator | Z106: popularity
A107: 88 | B107: become | E107: nitride | H107: billet | I107: builder | J107: direct | K107: hardly | L107: crossroad | M107: withdrawn | P107: freelance | Q107: everyone | R107: dispute | S107: overintense | T107: ruffle | U107: compassion | V107: angular | Y107: assassinate | Z107: possibility
A108: 89 | B108: bedside | E108: nothing | H108: billion | I108: building | J108: dirty | K108: harmless | L108: crosstalk | M108: withstand | P108: freeman | Q108: everything | R108: disqualify | S108: overjoy | T108: rumble | U108: competence | V108: animal | Y108: assimilate | Z108: probability
A109: 90 | B109: befall | E109: oblige | H109: billow | I109: bumper | J109: doorframe | K109: healthy | L109: crosswalk | M109: workshop | P109: freestyle | Q109: everywhere | R109: disregard | S109: overkill | T109: sable | U109: complacence | V109: animate | Y109: associate | Z109: procrastinator
A110: 91 | B110: befit | E110: other | H110: bitter | I110: bumpy | J110: doorknob | K110: hungry | L110: crossway | M110: yardstick | P110: freeway | Q110: expressway | R110: disrepair | S110: overland | T110: saddle | U110: completion | V110: annotate | Y110: astrology | Z110: productivity
A111: 92 | B111: before | E111: package | H111: bladder | I111: bungee | J111: doorman | K111: illness | L111: crosswise | P111: gateway | Q111: eyewitness | R111: disrespect | S111: overlap | T111: sample | U111: compliance | V111: annually | Y111: asymmetric | Z111: proprietary
A112: 93 | B112: began | E112: packet | H112: blizzard | I112: bunker | J112: doormat | K112: implant | L112: crossword | P112: graceful | Q112: fadeaway | R112: disrobe | S112: overlarge | T112: scrabble | U112: compulsion | V112: another | Y112: asymmetry | Z112: rationality
A113: 94 | B113: begin | E113: patrol | H113: blossom | I113: busboy | J113: doornail | K113: implore | L113: darkroom | P113: grapefruit | Q113: fancywork | R113: disrupt | S113: overlavish | T113: scribble | U113: concentration | V113: antifreeze | Y113: atmospheric | Z113: reactionary
A114: 95 | B114: begun | E114: picket | H114: blotter | I114: butler | J114: doorway | K114: improve | L114: dashboard | P114: grapevine | Q114: farseeing | R114: dissatisfaction | S114: overlay | T114: settle | U114: concordance | V114: anxiously | Y114: atrocity | Z114: readability
A115: 96 | B115: behalf | E115: preclude | H115: blubber | I115: campaign | J115: dreary | K115: infringe | L115: dockside | P115: graveside | Q115: fatherhood | R115: dissect | S115: overleap | T115: shingle | U115: concurrence | V115: anyhow | Y115: audacity | Z115: reformatory
A116: 97 | B116: behave | E116: prescribe | H116: bobbin | I116: cancel | J116: duress | K116: ingrain | L116: doomsday | P116: gravestone | Q116: featherbed | R116: dissent | S116: overlie | T116: sparkle | U116: condescension | V116: apartment | Y116: audiotape | Z116: refrigerator
A117: 98 | B117: behind | E117: proclaim | H117: bonnet | I117: cancer | J117: during | K117: inspire | L117: downcast | P117: graveyard | Q117: featherweight | R117: dissolve | S117: overload | T117: stable | U117: condition | V117: apathy | Y117: auditory | Z117: regulatory
A118: 99 | B118: behold | E118: program | H118: bossy | I118: candid | J118: earache | K118: itchy | L118: downfall | P118: guidebook | Q118: fellowship | R118: distance | S118: overlook | T118: staple | U118: condolence | V118: aperture | Y118: austerity | Z118: repository
A119: 100 | B119: behoove | E119: progress | H119: bottom | I119: candor | J119: early | K119: kindness | L119: downhill | P119: guideline | Q119: ferrytale | R119: distant | S119: overlord | T119: startle | U119: confection | V119: aphasic | Y119: authority | Z119: respiratory
A120: 101 | B120: belief | E120: prostate | H120: brilliance | I120: candy | J120: earmark | K120: lastly | L120: downpour | P120: guidepost | Q120: fiberboard | R120: distaste | S120: overmaster | T120: steeple | U120: conference | V120: apostle | Y120: automatic | Z120: rudimentary
A121: 102 | B121: believe | E121: protract | H121: buddy | I121: canker | J121: earmuff | K121: laughter | L121: downright | P121: hedgehog | Q121: fiddlesticks | R121: distend | S121: overmatch | T121: strangle | U121: confidence | V121: apparent | Y121: autonomy | Z121: satisfactory
A122: 103 | B122: belong | E122: protrude | H122: buffer | I122: canter | J122: earring | K122: laundry | L122: downtown | P122: hedgehop | Q122: fingernail | R122: distill | S122: overmodest | T122: table | U122: confirmation | V122: appendage | Y122: auxiliary | Z122: semicircular
A123: 104 | B123: below | E123: pushy | H123: buffet | I123: capsize | J123: earwax | K123: mighty | L123: downward | P123: henceforth | Q123: fingerprint | R123: distinct | S123: overmuch | T123: tangle | U123: confluence | V123: appetite | Y123: available | Z123: similarity
A124: 105 | B124: bemoan | E124: rather | H124: buffoon | I124: captain | J124: eerie | K124: misplace | L124: downwind | P124: hereby | Q124: firecracker | R124: distinction | S124: overnice | T124: tattle | U124: congregation | V124: appointee | Y124: aviator | Z124: simultaneous
A125: 106 | B125: bemuse | E125: reclose | H125: buggy | I125: capture | J125: erase | K125: mistreat | L125: drawbridge | P125: herein | Q125: fisherman | R125: distort | S125: overnight | T125: temple | U125: congruence | V125: apportion | Y125: avionic | Z125: sociology
A126: 107 | B126: beneath | E126: regroup | H126: bullet | I126: cascade | J126: erect | K126: mistress | L126: driftwood | P126: hereof | Q126: flycatcher | R126: distract | S126: overoptimism | T126: tingle | U126: connection | V126: apprehend | Y126: barbarian | Z126: solidarity
A127: 108 | B127: bequest | E127: rephrase | H127: bullion | I127: caster | J127: erode | K127: mushroom | L127: drugstore | P127: hereon | Q127: flypaper | R127: distraction | S127: overparticular | T127: topple | U127: connivance | V127: apprentice | Y127: belligerent | Z127: subsidiary
A128: 109 | B128: berate | E128: reprise | H128: bully | I128: castor | J128: error | K128: naughty | L128: drumstick | P128: hereto | Q128: foolhardy | R128: distress | S128: overpass | T128: treble | U128: conscience | V128: aquatic | Y128: benefactor | Z128: supervisory
A129: 110 | B129: beset | E129: reproach | H129: bunny | I129: catbird | J129: erupt | K129: neighbor | L129: dustpan | P129: herewith | Q129: footlocker | R129: district | S129: overpay | T129: trifle | U129: consequence | V129: Arabic | Y129: benevolence | Z129: supplementary
A130: 111 | B130: beside | E130: reshape | H130: butter | I130: catfish | J130: Europe | K130: ointment | L130: eardrum | P130: hideout | Q130: forecastle | R130: distrust | S130: overplay | T130: triple | U130: conservation | V130: arable | Y130: benevolent | Z130: technicality
A131: 112 | B131: beware | E131: retrain | H131: button | I131: catnip | J131: fairway | K131: partner | L131: earflap | P131: homeland | Q131: forefather | R131: disturb | S131: overpopulate | T131: turtle | U131: consideration | V131: arbitrate | Y131: bicarbonate | Z131: teleconference
A132: 113 | B132: bewitch | E132: rhythm | H132: buttress | I132: caustic | J132: fairy | K132: phosphate | L132: earphone | P132: homeless | Q132: forefinger | R132: excerpt | S132: overpower | T132: uncle | U132: consistence | V132: archaic | Y132: biography | Z132: terminology
A133: 114 | B133: beyond | E133: rubric | H133: cabbage | I133: censor | J133: fearful | K133: pitcher | L133: earshot | P133: homemade | Q133: forequarter | R133: excitable | S133: overpraise | T133: waddle | U133: consonance | V133: archery | Y133: biology | Z133: unaccountable
A134: 115 | B134: biceps | E134: ruckus | H134: cabby | I134: censure | J134: ferment | K134: postpone | L134: eastside | P134: homepage | Q134: forerunner | R134: execution | S134: overprecise | T134: waffle | U134: constellation | V134: area | Y134: bituminous | Z134: uncompromising
A135: 116 | B135: bisect | E135: sachet | H135: caboose | I135: center | J135: ferric | K135: poultry | L135: eastward | P135: homeroom | Q135: foreshadow | R135: exhaust | S135: overprice | T135: wattle | U135: constitution | V135: argument | Y135: boneheadedness | Z135: underdeveloped
A136: 117 | B136: bison | E136: sacred | H136: caddie | I136: chalky | J136: ferry | K136: prostrate | L136: ebbtide | P136: homeschool | Q136: forevermore | R136: exhibition | S136: overprint | T136: wobble | U136: consumption | V136: armament | Y136: brutality | Z136: underprivileged
A137: 118 | B137: blatant | E137: sashay | H137: caisson | I137: chamber | J137: fervor | K137: puncture | L137: egghead | P137: homesick | Q137: freestanding | R137: exhort | S137: overproduce | U137: continence | V137: armature | Y137: bullheadedness | Z137: university
A138: 119 | B138: blemish | E138: seafloor | H138: callous | I138: champaign | J138: fiery | K138: quickly | L138: eggnog | P138: homespun | Q138: freshwater | R138: expert | S138: overprotect | U138: contingence | V138: armistice | Y138: bureaucracy | Z138: viability
A139: 120 | B139: bogus | E139: seaplane | H139: callus | I139: chapter | J139: flirty | K139: rancher | L139: endgame | P139: homestead | Q139: furthermore | R139: expire | S139: overrate | U139: continuance | V139: armory | Y139: bureaucratic | Z139: visibility
A140: 121 | B140: bonus | E140: seascape | H140: cannon | I140: chastise | J140: florist | K140: raunchy | L140: endless | P140: homestretch | Q140: gatecrasher | R140: exploit | S140: overreach | U140: contraption | V140: arraignment | Y140: calamity | Z140: vocabulary
A141: 122 | B141: bony | E141: seashell | H141: canny | I141: chevron | J141: flurry | K141: restless | L141: farmhouse | P141: homeward | Q141: gatekeeper | R141: explore | S141: overreact | U141: contrivance | V141: arsenic | Y141: calculator
A142: 123 | B142: bovine | E142: seashore | H142: cattail | I142: chimney | J142: forage | K142: righteous | L142: farmyard | P142: homework | Q142: gingerbread | R142: export | S142: override | U142: convalescence | V142: article | Y142: calibrator
A143: 124 | B143: brainy | E143: seclude | H143: cellar | I143: chunky | J143: forbear | K143: roughly | L143: fishbowl | P143: homey | Q143: giveaway | R143: expression | S143: overriding | U143: convenience | V143: artistry | Y143: candidacy
A144: 125 | B144: brazen | E144: secret | H144: cello | I144: cinder | J144: forbid | K144: roundness | L144: fishhook | P144: hopeless | Q144: globetrotter | R144: extort | S144: overrigid | U144: convention | V144: ascertain | Y144: capacitor
A145: 126 | B145: breakage | E145: secrete | H145: chatter | I145: clamber | J145: forest | K145: sanction | L145: fishtail | P145: horseback | Q145: goalkeeper | R145: illegal | S145: overripe | U145: convergence | V145: ascorbic | Y145: capacity
A146: 127 | B146: breakout | E146: siphon | H146: cheddar | I146: clapboard | J146: forfeit | K146: scratchy | L146: flagship | P146: horseflesh | Q146: granddaughter | R146: illegible | S146: overrule | U146: conversance | V146: aspersion | Y146: capillary
A147: 128 | B147: breezy | E147: slither | H147: chilly | I147: clingy | J147: forgave | K147: sculptor | L147: flagstaff | P147: horseflies | Q147: grandfather | R147: illfated | S147: overrun | U147: conversation | V147: aspirate | Y147: capitalize
A148: 129 | B148: brigade | E148: sloshy | H148: chopper | I148: cloakroom | J148: forget | K148: sculpture | L148: flagstone | P148: horsehair | Q148: grandmother | R148: illiberal | S148: overscrupulous | U148: conversion | V148: assemble | Y148: capitulate
A149: =A148+1 -> 130 | B149: brocade | E149: slushy | H149: choppy | I149: clumpy | J149: forgive | K149: straighten | L149: flashback | P149: horsehide | Q149: grandparent | R149: illicit | S149: overseas | U149: conveyance | V149: assessor | Y149: carbohydrate
A150: 131 | B150: broken | E150: smoothie | H150: chubby | I150: clumsy | J150: forlorn | K150: stretchy | L150: flashlight | P150: horselaugh | Q150: grasshopper | R150: illimitable | S150: oversee | U150: conviction | V150: assignee | Y150: caricature
A151: 132 | B151: bromide | E151: smoothly | H151: chummy | I151: clunky | J151: formal | K151: Thursday | L151: floodplain | P151: horseman | Q151: gunpowder | R151: illiterate | S151: oversell | U151: coronation | V151: assignment | Y151: carnivorous
A152: 133 | B152: bromine | E152: smoothy | H152: clammy | I152: clydesdale | J152: forname | K152: tincture | L152: folklore | P152: horseplay | Q152: hairdresser | R152: illogical | S152: oversensitive | U152: corporation | V152: astronaut | Y152: casualty
A153: 134 | B153: brutal | E153: smother | H153: classic | I153: cobweb | J153: forray | K153: transfuse | L153: foodstuff | P153: horseshoe | Q153: hammerhead | R153: image | S153: overshadow | U153: correspondence | V153: atmosphere | Y153: catalytic
A154: 135 | B154: bunion | E154: southern | H154: clatter | I154: combine | J154: forsake | K154: transpose | L154: foolproof | P154: horsetail | Q154: handlebar | R154: imbalance | S154: overshoe | U154: countenance | V154: atomic | Y154: catatonic
A155: 136 | B155: busing | E155: spyglass | H155: clipper | I155: comfort | J155: fortress | K155: unwrap | L155: footbridge | P155: houseboat | Q155: handwriting | R155: immense | S155: overshoot | U155: counterbalance | V155: atrium | Y155: category
A156: 137 | B156: busy | E156: squishy | H156: coattail | I156: compact | J156: forty | K156: weirdness | L156: footprint | P156: housecoat | Q156: handyman | R156: immerse | S156: oversight | U156: covariance | V156: atrophy | Y156: caterpillar
A157: 138 | B157: butane | E157: supreme | H157: coffee | I157: compare | J157: forward | K157: wildness | L157: footstep | P157: housedress | Q157: hazelnut | R157: immodest | S157: oversimplify | U157: credence | V157: attendee | Y157: cautionary
A158: 139 | B158: cabin | E158: teacher | H158: coffer | I158: compass | J158: foursome | L158: footstool | P158: houseflies | Q158: headmaster | R158: immoral | S158: oversize | U158: criterion | V158: attribute | Y158: celebrity
A159: 140 | B159: cadence | E159: teaspoon | H159: coffin | I159: compel | J159: fourteen | L159: fortnight | P159: household | Q159: headquarters | R159: immortal | S159: oversleep | U159: decadence | V159: audible | Y159: cemetery
A160: 141 | B160: cadet | E160: tether | H160: collage | I160: compete | J160: furnish | L160: fourscore | P160: housemaid | Q160: headwaiter | R160: immovable | S160: oversolicitous | U160: decision | V160: audience | Y160: ceremony
A161: 142 | B161: cagy | E161: thither | H161: collapse | I161: compile | J161: further | L161: foursquare | P161: housemate | Q161: headwaters | R161: immune | S161: overspecialize | U161: defection | V161: audio | Y161: chauvinistic
A162: 143 | B162: camel | E162: ticker | H162: collar | I162: compose | J162: fury | L162: freshman | P162: housewife | Q162: heavyset | R162: impair | S162: overspend | U162: deference | V162: auditor | Y162: chiropractic
A163: 144 | B163: canal | E163: ticket | H163: collate | I163: compound | J163: garage | L163: frontpage | P163: housework | Q163: heavyweight | R163: impart | S163: overspread | U163: defiance | V163: Australia | Y163: chiropractor
A164: 145 | B164: canine | E164: toughy | H164: collect | I164: compute | J164: garbage | L164: frostbite | P164: iceberg | Q164: hereabout | R164: impatience | S164: overstate | U164: definition | V164: authentic | Y164: circumference
A165: 146 | B165: canoe | E165: triplane | H165: college | I165: concave | J165: garden | L165: fullback | P165: icebound | Q165: hereafter | R165: impatient | S165: overstay | U165: delegation | V165: authorize | Y165: citizenship
A166: 147 | B166: caper | E166: trophy | H166: collide | I166: conceal | J166: gargoyle | L166: gangway | P166: icebox | Q166: heretofore | R166: imperfect | S166: overstep | U166: deliverance | V166: autopsy | Y166: civility
A167: 148 | B167: casing | E167: typhoid | H167: collie | I167: conceit | J167: garlic | L167: gemstone | P167: iceland | Q167: hereunto | R167: impersonal | S167: overstimulate | U167: dependance | V167: avatar | Y167: claustrophobic
A168: 149 | B168: casual | E168: typhoon | H168: collude | I168: conceive | J168: garment | L168: goatskin | P168: icetray | Q168: hereupon | R168: impertinent | S168: overstock | U168: dependence | V168: average | Y168: coagulate
A169: 150 | B169: cater | E169: typhus | H169: comma | I169: concent | J169: garnish | L169: goldfish | P169: judgement | Q169: hideaway | R169: imperturbable | S169: overstretch | U169: deportation | V169: awfully | Y169: coefficient
A170: 151 | B170: cavort | E170: usher | H170: command | I170: concern | J170: gearbox | L170: grandma | P170: kneecap | Q170: highhanded | R170: impervious | S170: overstuffed | U170: deposition | V170: awkwardness | Y170: cognizable
A171: 152 | B171: cedar | E171: vagrant | H171: commence | I171: concert | J171: gearshift | L171: grandpa | P171: kneehole | Q171: highlander | R171: implacable | S171: oversubscribe | U171: dereliction | V171: bachelor | Y171: coincidence
A172: 153 | B172: ceiling | E172: vibrance | H172: commend | I172: concious | J172: germane | L172: grandson | P172: lakeside | Q172: highwayman | R172: impolite | S172: oversubtle | U172: despondence | V172: bakery | Y172: coincident
A173: 154 | B173: cement | E173: vibrant | H173: comment | I173: concise | J173: germy | L173: grassland | P173: lamebrain | Q173: hillbilly | R173: import | S173: oversupply | U173: destruction | V173: balcony | Y173: collaborate
A174: 155 | B174: chalet | E174: vibrate | H174: commerce | I174: concord | J174: giraffe | L174: grassroot | P174: lampshade | Q174: hindquarter | R174: impotent | S174: oversuspicious | U174: detention | V174: ballistic | Y174: collaborator
A175: 156 | B175: chamois | E175: weather | H175: commit | I175: concourse | J175: glory | L175: grassroots | P175: largely | Q175: hollyhock | R175: impound | S175: overtake | U175: determination | V175: balsamic | Y175: combustible
A176: 157 | B176: cheesy | E176: whether | H176: common | I176: concur | J176: gorgeous | L176: groundwork | P176: lately | Q176: hollywood | R176: imprecise | S176: overtax | U176: deterrence | V176: bamboozle | Y176: comedian
A177: 158 | B177: chili | E177: whisker | H177: commute | I177: condemn | J177: gory | L177: guardhouse | P177: leeward | Q177: homebody | R177: impress | S177: overthrow | U177: deviance | V177: bankruptcy | Y177: commemorate
A178: 159 | B178: chinook | E178: whither | H178: connect | I178: condense | J178: hairbrush | L178: guardrail | P178: leeway | Q178: homecoming | R178: impression | S178: overtime | U178: devotion | V178: barbaric | Y178: commensurate
A179: 160 | B179: chosen | E179: wicket | H179: connive | I179: condole | J179: haircut | L179: guesswork | P179: lifeblood | Q179: homemaker | R179: improbable | S179: overtired | U179: difference | V179: barnacle | Y179: commentary
A180: 161 | B180: chronic | E180: wither | H180: connote | I180: condone | J180: hairdo | L180: gumdrop | P180: lifeboat | Q180: honeybee | R180: improper | S180: overtone | U180: diffraction | V180: barricade | Y180: commissary
A181: 162 | B181: cider | H181: cottage | I181: conduct | J181: hairline | L181: gumshoe | P181: lifebouy | Q181: honeycomb | R181: inane | S181: overtop | U181: digestion | V181: battery | Y181: commodity
A182: 163 | B182: cigar | H182: cotter | I182: conduit | J182: hairpin | L182: gunshot | P182: lifeguard | Q182: honeydew | R182: incapable | S182: overtrain | U182: diligence | V182: bearable | Y182: communicate
A183: 164 | B183: city | H183: cotton | I183: confer | J183: hairstyle | L183: gunsmith | P183: lifelong | Q183: honeymoon | R183: incapacitate | S183: overturn | U183: dimension | V183: beautiful | Y183: communicator
A184: 165 | B184: civic | H184: crabby | I184: confess | J184: hairy | L184: hacksaw | P184: lifestyle | Q184: horsemanship | R184: incapacity | S184: overuse | U184: direction | V184: bedazzle | Y184: community
A185: 166 | B185: clamor | H185: cranny | I185: confide | J185: harbor | L185: hailstone | P185: lifetime | Q185: horsepower | R185: incline | S185: overvalue | U185: dissidence | V185: bedraggle | Y185: compassionate
A186: 167 | B186: climate | H186: critter | I186: confine | J186: harpoon | L186: hailstorm | P186: lifework | Q186: horseradish | R186: income | S186: overview | U186: distance | V186: befuddle | Y186: compatibility
A187: 168 | B187: clinic | H187: crummy | I187: confirm | J187: harvest | L187: halfback | P187: likely | Q187: housebreaking | R187: inconsiderate | S187: overviolent | U187: disturbance | V187: behavior | Y187: compatible
A188: 169 | B188: clover | H188: cunning | I188: conform | J188: hearsay | L188: halftime | P188: limelight | Q188: housekeeper | R188: inconsistent | S188: overweening | U188: divergence | V188: beleaguer | Y188: competitive
A189: 170 | B189: cocoon | H189: daddy | I189: confound | J189: hearty | L189: halfway | P189: lineman | Q189: housewarming | R189: incredible | S189: overweight | U189: division | V189: belittle | Y189: competitor
A190: 171 | B190: colic | H190: dagger | I190: confuse | J190: heirloom | L190: hallway | P190: lonely | Q190: hovercraft | R190: incredulous | S190: overwhelm | U190: divulgence | V190: beverage | Y190: complacency
A191: 172 | B191: color | H191: dapper | I191: congest | J191: hermit | L191: handbag | P191: lonesome | Q191: however | R191: incur | S191: overwise | U191: dominance | V191: bicycle | Y191: complexity
A192: 173 | B192: column | H192: dazzle | I192: conquer | J192: herself | L192: handball | P192: lovebird | Q192: huckleberry | R192: incurious | S192: overwork | U192: dominion | V192: bicyle | Y192: complicity
A193: 174 | B193: comet | H193: dessert | I193: conscious | J193: hooray | L193: handbill | P193: lovesick | Q193: humankind | R193: incursion | S193: overwrought | U193: education | V193: bigotry | Y193: compulsory
A194: 175 | B194: comic | H194: differ | I194: consent | J194: horror | L194: handbook | P194: lukewarm | Q194: hummingbird | R194: indecision | S194: overzealous | U194: elegance | V194: bilingual | Y194: comradery
A195: 176 | B195: cooler | H195: diffuse | I195: conserve | J195: hurray | L195: handcar | P195: makeshift | Q195: husbandman | R195: indeed | S195: underachieve | U195: eloquence | V195: billionaire | Y195: conformity
A196: 177 | B196: copay | H196: dinner | I196: consign | J196: hurried | L196: handcart | P196: merely | Q196: hushpuppy | R196: indelicate | S196: underact | U196: emergence | V196: binary | Y196: conglomerate
A197: 178 | B197: coping | H197: dissuade | I197: console | J197: hurries | L197: handcuff | P197: mileage | Q197: icebreaker | R197: indent | S197: underage | U197: eminence | V197: bindery | Y197: congratulate
A198: 179 | B198: copy | H198: ditto | I198: consort | J198: hurry | L198: handmade | P198: milestone | Q198: ironclad | R198: indestructible | S198: underarm | U198: emittance | V198: biopic | Y198: conscientious
A199: 180 | B199: cosy | H199: dizzy | I199: conspire | J199: irate | L199: handmaid | P199: molehill | Q199: ironwork | R199: index | S199: underbelly | U199: emotion | V199: biopsy | Y199: considerate
A200: 181 | B200: cousin | H200: doggy | I200: constant | J200: jargon | L200: handpick | P200: moleskin | Q200: ironworks | R200: indict | S200: underbid | U200: encumbrance | V200: bipolar | Y200: consistency
A201: 182 | B201: cover | H201: dollar | I201: constrain | J201: jerky | L201: handrail | P201: movement | Q201: jawbreaker | R201: indifferent | S201: underbrush | U201: endurance | V201: biweekly | Y201: consolidate
... 1305 more rows

Sheet Donut - Plain
B1: plain do | nut | E1: =V2 -> decide | L1: 1st syllable: long vowel sound 50% 1st syllable: short or schwa vowel sound 50% Try long sound first. Doesn't sound right, try short sound next. | U1: 1 | V1: Rule 1 = Dictionary 2 = Donut - Muffin | W1: 2 | X1: Dictionary Lookup | Y1: =VLOOKUP($V$2,'All Words New'!$B$3:$Q$9072,15) -> de cide | AB1: Excel Lookup | AC1: =VLOOKUP($V$2,'All Words New'!$B$3:$Q$9072,16) -> de cide
B2: ='Sample Worksheets'!B18 -> 980 | V2: =LOOKUP(RAND()*'Sample Worksheets'!$B$18,'Sample Worksheets'!$A$19:$A$998,'Sample Worksheets'!$B$19:$B$998) -> decide | W2: =IF(W1=2,AC1,Y1) -> de cide | Y2: 0 | Z2: =Y8 -> x | AA2: =Z8 -> x | AB2: x | AC2: x | AD2: x | AE2: x | AF2: x | AG2: x | AH2: x
B3: =MID($V$2,1,1) -> d | C3: =MID($V$2,X3,1) -> e | D3: =MID($V$2,Y3,1) -> c | E3: i | F3: d | G3: e | V3: Cut # | W3: 1 | X3: 2 | Y3: 3 | Z3: 4 | AA3: 5 | AB3: 6 | AC3: 7 | AD3: 8 | AE3: 9 | AF3: 10 | AG3: 11 | AH3: 12 | AI3: 13 | AJ3: 14 | AK3: 15 | AL3: 16 | AM3: 17 | AN3: 18 | AO3: 19 | AP3: 20
B5: Plain Donuts | W5: =MID($W$2,1,1) -> d | X5: =MID($W$2,X3,1) -> e | Z5: c | AA5: i | AB5: d | AC5: e | AN5: =MID($W$2,AN3+1,1) ->  | AO5: =MID($W$2,AO3+1,1) ->  | AP5: =MID($W$2,AP3+1,1) -> 
B6: =LOOKUP(RAND()*'Sample Worksheets'!$B$18,'Sample Worksheets'!$A$19:$A$998,'Sample Worksheets'!$B$19:$B$998) -> guru | E6: =LOOKUP(RAND()*'Sample Worksheets'!$B$18,'Sample Worksheets'!$A$19:$A$998,'Sample Worksheets'!$B$19:$B$998) -> savor | H6: =LOOKUP(RAND()*'Sample Worksheets'!$B$18,'Sample Worksheets'!$A$19:$A$998,'Sample Worksheets'!$B$19:$B$998) -> secure | K6: =LOOKUP(RAND()*'Sample Worksheets'!$B$18,'Sample Worksheets'!$A$19:$A$998,'Sample Worksheets'!$B$19:$B$998) -> easy | N6: =LOOKUP(RAND()*'Sample Worksheets'!$B$18,'Sample Worksheets'!$A$19:$A$998,'Sample Worksheets'!$B$19:$B$998) -> depict | Q6: 5 | W6: =INDIRECT("W13") -> W5 | X6: =INDIRECT("X13") -> Y5 | Y6: =INDIRECT("Y13") -> Z5 | Z6: =INDIRECT("Z13") -> AA5 | AA6: =INDIRECT("AA13") -> AB5 | AB6: =INDIRECT("AB13") -> AC5 | AC6: =INDIRECT("AC13") -> AD5 | AD6: =INDIRECT("AD13") -> AE5 | AE6: =INDIRECT("AE13") -> AF5 | AF6: =INDIRECT("AF13") -> AG5 | AG6: =INDIRECT("AG13") -> AH5 | AH6: =INDIRECT("AH13") -> AI5 | AI6: =INDIRECT("AI13") -> AI5 | AJ6: =INDIRECT("AJ13") -> AJ5 | AK6: =INDIRECT("AK13") -> AK5 | AL6: =INDIRECT("AL13") -> AL5 | AM6: =INDIRECT("AL13") -> AL5 | AN6: =INDIRECT("AL13") -> AL5 | AO6: =INDIRECT("AL13") -> AL5
B7: =LOOKUP(RAND()*'Sample Worksheets'!$B$18,'Sample Worksheets'!$A$19:$A$998,'Sample Worksheets'!$B$19:$B$998) -> proper | E7: =LOOKUP(RAND()*'Sample Worksheets'!$B$18,'Sample Worksheets'!$A$19:$A$998,'Sample Worksheets'!$B$19:$B$998) -> amass | H7: =LOOKUP(RAND()*'Sample Worksheets'!$B$18,'Sample Worksheets'!$A$19:$A$998,'Sample Worksheets'!$B$19:$B$998) -> frequence | K7: =LOOKUP(RAND()*'Sample Worksheets'!$B$18,'Sample Worksheets'!$A$19:$A$998,'Sample Worksheets'!$B$19:$B$998) -> genus | N7: =LOOKUP(RAND()*'Sample Worksheets'!$B$18,'Sample Worksheets'!$A$19:$A$998,'Sample Worksheets'!$B$19:$B$998) -> domain | Q7: =Q6+5 -> 10 | W7: =MID($W$2,1,1) -> d | X7: =MID($V$2,X3,1) -> e | Y7: c | Z7: i | AA7: d | AB7: e
B8: =LOOKUP(RAND()*'Sample Worksheets'!$B$18,'Sample Worksheets'!$A$19:$A$998,'Sample Worksheets'!$B$19:$B$998) -> solace | E8: =LOOKUP(RAND()*'Sample Worksheets'!$B$18,'Sample Worksheets'!$A$19:$A$998,'Sample Worksheets'!$B$19:$B$998) -> premiere | H8: =LOOKUP(RAND()*'Sample Worksheets'!$B$18,'Sample Worksheets'!$A$19:$A$998,'Sample Worksheets'!$B$19:$B$998) -> seven | K8: =LOOKUP(RAND()*'Sample Worksheets'!$B$18,'Sample Worksheets'!$A$19:$A$998,'Sample Worksheets'!$B$19:$B$998) -> hovel | N8: =LOOKUP(RAND()*'Sample Worksheets'!$B$18,'Sample Worksheets'!$A$19:$A$998,'Sample Worksheets'!$B$19:$B$998) -> social | Q8: =Q7+5 -> 15 | W8: =IF(ISERROR(MATCH(W3,$W$17:$AD$17,0)),"x","cut after") -> x | X8: =IF(ISERROR(MATCH(X3,$W$17:$AD$17,0)),"x","cut after") -> cut after | Y8: x | Z8: x | AA8: x | AB8: x | AC8: x | AD8: x | AE8: x | AF8: x | AG8: x | AH8: x | AI8: x | AJ8: x | AK8: x | AL8: x | AM8: x | AN8: x | AO8: x | AP8: x
B9: =LOOKUP(RAND()*'Sample Worksheets'!$B$18,'Sample Worksheets'!$A$19:$A$998,'Sample Worksheets'!$B$19:$B$998) -> shaky | E9: =LOOKUP(RAND()*'Sample Worksheets'!$B$18,'Sample Worksheets'!$A$19:$A$998,'Sample Worksheets'!$B$19:$B$998) -> second | H9: =LOOKUP(RAND()*'Sample Worksheets'!$B$18,'Sample Worksheets'!$A$19:$A$998,'Sample Worksheets'!$B$19:$B$998) -> become | K9: =LOOKUP(RAND()*'Sample Worksheets'!$B$18,'Sample Worksheets'!$A$19:$A$998,'Sample Worksheets'!$B$19:$B$998) -> amass | N9: =LOOKUP(RAND()*'Sample Worksheets'!$B$18,'Sample Worksheets'!$A$19:$A$998,'Sample Worksheets'!$B$19:$B$998) -> poker | Q9: 20 | W9: =IF(X5=" ",1,0) -> 0 | X9: =IF(Y5=" ",1,0) -> 1 | Y9: 0 | Z9: 0 | AA9: 0 | AB9: 0 | AC9: 0 | AD9: 0 | AE9: 0 | AF9: 0 | AG9: 0 | AH9: 0 | AI9: 0 | AJ9: 0 | AK9: 0 | AL9: 0 | AM9: 0 | AN9: 0 | AO9: 0
B10: =LOOKUP(RAND()*'Sample Worksheets'!$B$18,'Sample Worksheets'!$A$19:$A$998,'Sample Worksheets'!$B$19:$B$998) -> suborn | E10: =LOOKUP(RAND()*'Sample Worksheets'!$B$18,'Sample Worksheets'!$A$19:$A$998,'Sample Worksheets'!$B$19:$B$998) -> caper | H10: =LOOKUP(RAND()*'Sample Worksheets'!$B$18,'Sample Worksheets'!$A$19:$A$998,'Sample Worksheets'!$B$19:$B$998) -> favor | K10: =LOOKUP(RAND()*'Sample Worksheets'!$B$18,'Sample Worksheets'!$A$19:$A$998,'Sample Worksheets'!$B$19:$B$998) -> palace | N10: =LOOKUP(RAND()*'Sample Worksheets'!$B$18,'Sample Worksheets'!$A$19:$A$998,'Sample Worksheets'!$B$19:$B$998) -> nauseous | Q10: 25 | W10: =SUM(W9) -> 0 | X10: =SUM(W9) -> 0 | Y10: =SUM(W9:X9) -> 1 | Z10: =SUM(W9:Y9) -> 1 | AA10: =SUM(W9:Z9) -> 1 | AB10: =SUM(W9:AB9) -> 1 | AC10: =SUM(W9:AC9) -> 1 | AD10: =SUM(W9:AD9) -> 1 | AE10: =SUM(W9:AE9) -> 1 | AF10: =SUM(W9:AF9) -> 1 | AG10: =SUM(W9:AG9) -> 1 | AH10: =SUM(W9:AH9) -> 1 | AI10: =SUM(AH9:AI9) -> 0 | AJ10: 0 | AK10: 0 | AL10: 0 | AM10: 0 | AN10: 0 | AO10: 0
B11: =LOOKUP(RAND()*'Sample Worksheets'!$B$18,'Sample Worksheets'!$A$19:$A$998,'Sample Worksheets'!$B$19:$B$998) -> seacoast | E11: =LOOKUP(RAND()*'Sample Worksheets'!$B$18,'Sample Worksheets'!$A$19:$A$998,'Sample Worksheets'!$B$19:$B$998) -> lament | H11: =LOOKUP(RAND()*'Sample Worksheets'!$B$18,'Sample Worksheets'!$A$19:$A$998,'Sample Worksheets'!$B$19:$B$998) -> sequel | K11: =LOOKUP(RAND()*'Sample Worksheets'!$B$18,'Sample Worksheets'!$A$19:$A$998,'Sample Worksheets'!$B$19:$B$998) -> defame | N11: =LOOKUP(RAND()*'Sample Worksheets'!$B$18,'Sample Worksheets'!$A$19:$A$998,'Sample Worksheets'!$B$19:$B$998) -> nation | Q11: 30 | V11: Number of cuts to make | Y11: =SUM(LEN(W2)-LEN(SUBSTITUTE(W2," ","")))/LEN(" ") -> 1
B12: =LOOKUP(RAND()*'Sample Worksheets'!$B$18,'Sample Worksheets'!$A$19:$A$998,'Sample Worksheets'!$B$19:$B$998) -> hoping | E12: =LOOKUP(RAND()*'Sample Worksheets'!$B$18,'Sample Worksheets'!$A$19:$A$998,'Sample Worksheets'!$B$19:$B$998) -> resin | H12: =LOOKUP(RAND()*'Sample Worksheets'!$B$18,'Sample Worksheets'!$A$19:$A$998,'Sample Worksheets'!$B$19:$B$998) -> ahoy | K12: =LOOKUP(RAND()*'Sample Worksheets'!$B$18,'Sample Worksheets'!$A$19:$A$998,'Sample Worksheets'!$B$19:$B$998) -> crucial | N12: =LOOKUP(RAND()*'Sample Worksheets'!$B$18,'Sample Worksheets'!$A$19:$A$998,'Sample Worksheets'!$B$19:$B$998) -> logic | Q12: 35 | V12: Number of cuts actually made | Y12: 0
B13: =LOOKUP(RAND()*'Sample Worksheets'!$B$18,'Sample Worksheets'!$A$19:$A$998,'Sample Worksheets'!$B$19:$B$998) -> presence | E13: =LOOKUP(RAND()*'Sample Worksheets'!$B$18,'Sample Worksheets'!$A$19:$A$998,'Sample Worksheets'!$B$19:$B$998) -> agaze | H13: =LOOKUP(RAND()*'Sample Worksheets'!$B$18,'Sample Worksheets'!$A$19:$A$998,'Sample Worksheets'!$B$19:$B$998) -> propose | K13: =LOOKUP(RAND()*'Sample Worksheets'!$B$18,'Sample Worksheets'!$A$19:$A$998,'Sample Worksheets'!$B$19:$B$998) -> atone | N13: =LOOKUP(RAND()*'Sample Worksheets'!$B$18,'Sample Worksheets'!$A$19:$A$998,'Sample Worksheets'!$B$19:$B$998) -> atoll | Q13: 40 | W13: =VLOOKUP(W3+W9,$AR$13:$AS$30,2)&5 -> W5 | X13: =VLOOKUP(X3+X9+X10,$AR$13:$AS$30,2)&5 -> Y5 | Y13: =VLOOKUP(Y3+Y9+Y10,$AR$13:$AS$30,2)&5 -> Z5 | Z13: AA5 | AA13: AB5 | AB13: AC5 | AC13: AD5 | AD13: AE5 | AE13: AF5 | AF13: AG5 | AG13: AH5 | AH13: AI5 | AI13: AI5 | AJ13: AJ5 | AK13: AK5 | AL13: AL5 | AM13: AM5 | AN13: AN5 | AO13: AN5 | AR13: 1 | AS13: W
B14: =LOOKUP(RAND()*'Sample Worksheets'!$B$18,'Sample Worksheets'!$A$19:$A$998,'Sample Worksheets'!$B$19:$B$998) -> vomit | E14: =LOOKUP(RAND()*'Sample Worksheets'!$B$18,'Sample Worksheets'!$A$19:$A$998,'Sample Worksheets'!$B$19:$B$998) -> avoid | H14: =LOOKUP(RAND()*'Sample Worksheets'!$B$18,'Sample Worksheets'!$A$19:$A$998,'Sample Worksheets'!$B$19:$B$998) -> veneer | K14: =LOOKUP(RAND()*'Sample Worksheets'!$B$18,'Sample Worksheets'!$A$19:$A$998,'Sample Worksheets'!$B$19:$B$998) -> favor | N14: =LOOKUP(RAND()*'Sample Worksheets'!$B$18,'Sample Worksheets'!$A$19:$A$998,'Sample Worksheets'!$B$19:$B$998) -> crusade | Q14: 45 | W14: Cut 1 | X14: Cut 2 | Y14: Cut 3 | Z14: Cut 4 | AA14: Cut 5 | AB14: Cut 6 | AC14: Cut 7 | AD14: Cut 8 | AR14: 2 | AS14: X
B15: =LOOKUP(RAND()*'Sample Worksheets'!$B$18,'Sample Worksheets'!$A$19:$A$998,'Sample Worksheets'!$B$19:$B$998) -> trapeze | E15: =LOOKUP(RAND()*'Sample Worksheets'!$B$18,'Sample Worksheets'!$A$19:$A$998,'Sample Worksheets'!$B$19:$B$998) -> patient | H15: =LOOKUP(RAND()*'Sample Worksheets'!$B$18,'Sample Worksheets'!$A$19:$A$998,'Sample Worksheets'!$B$19:$B$998) -> Friday | K15: =LOOKUP(RAND()*'Sample Worksheets'!$B$18,'Sample Worksheets'!$A$19:$A$998,'Sample Worksheets'!$B$19:$B$998) -> placate | N15: =LOOKUP(RAND()*'Sample Worksheets'!$B$18,'Sample Worksheets'!$A$19:$A$998,'Sample Worksheets'!$B$19:$B$998) -> duty | Q15: 50 | W15: =MATCH(1,$W$20:$AP$20,0) -> 3 | X15: =MATCH(2,$W$20:$AP$20,0) ->  | Y15: =MATCH(3,$W$20:$AP$20,0) ->  | Z15: =MATCH(4,$W$20:$AP$20,0) ->  | AA15: =MATCH(5,$W$20:$AP$20,0) ->  | AB15: =MATCH(6,$W$20:$AP$20,0) ->  | AC15: =MATCH(7,$W$20:$AP$20,0) ->  | AD15: =MATCH(8,$W$20:$AP$20,0) ->  | AM15: =INDIRECT("AM13") -> AM5 | AR15: 3 | AS15: Y
B16: =LOOKUP(RAND()*'Sample Worksheets'!$B$18,'Sample Worksheets'!$A$19:$A$998,'Sample Worksheets'!$B$19:$B$998) -> oval | E16: =LOOKUP(RAND()*'Sample Worksheets'!$B$18,'Sample Worksheets'!$A$19:$A$998,'Sample Worksheets'!$B$19:$B$998) -> decode | H16: =LOOKUP(RAND()*'Sample Worksheets'!$B$18,'Sample Worksheets'!$A$19:$A$998,'Sample Worksheets'!$B$19:$B$998) -> pecan | K16: =LOOKUP(RAND()*'Sample Worksheets'!$B$18,'Sample Worksheets'!$A$19:$A$998,'Sample Worksheets'!$B$19:$B$998) -> solar | N16: =LOOKUP(RAND()*'Sample Worksheets'!$B$18,'Sample Worksheets'!$A$19:$A$998,'Sample Worksheets'!$B$19:$B$998) -> divulge | Q16: 55 | W16: =W15-1 -> 2 | X16: =X15-2 ->  | Y16: =Y15-3 ->  | Z16: =Z15-4 ->  | AA16: =AA15-5 ->  | AB16: =AB15-6 ->  | AC16: =AC15-6 ->  | AD16: =AD15-6 ->  | AR16: 4 | AS16: Z
B17: =LOOKUP(RAND()*'Sample Worksheets'!$B$18,'Sample Worksheets'!$A$19:$A$998,'Sample Worksheets'!$B$19:$B$998) -> legume | E17: =LOOKUP(RAND()*'Sample Worksheets'!$B$18,'Sample Worksheets'!$A$19:$A$998,'Sample Worksheets'!$B$19:$B$998) -> popeyed | H17: =LOOKUP(RAND()*'Sample Worksheets'!$B$18,'Sample Worksheets'!$A$19:$A$998,'Sample Worksheets'!$B$19:$B$998) -> quota | K17: =LOOKUP(RAND()*'Sample Worksheets'!$B$18,'Sample Worksheets'!$A$19:$A$998,'Sample Worksheets'!$B$19:$B$998) -> ago | N17: =LOOKUP(RAND()*'Sample Worksheets'!$B$18,'Sample Worksheets'!$A$19:$A$998,'Sample Worksheets'!$B$19:$B$998) -> baton | Q17: 60 | W17: =IF(ISERROR(W15),0,W16) -> 2 | X17: 0 | Y17: 0 | Z17: 0 | AA17: 0 | AB17: 0 | AC17: 0 | AD17: 0 | AR17: 5 | AS17: AA
B18: =LOOKUP(RAND()*'Sample Worksheets'!$B$18,'Sample Worksheets'!$A$19:$A$998,'Sample Worksheets'!$B$19:$B$998) -> elate | E18: =LOOKUP(RAND()*'Sample Worksheets'!$B$18,'Sample Worksheets'!$A$19:$A$998,'Sample Worksheets'!$B$19:$B$998) -> resin | H18: =LOOKUP(RAND()*'Sample Worksheets'!$B$18,'Sample Worksheets'!$A$19:$A$998,'Sample Worksheets'!$B$19:$B$998) -> fatal | K18: =LOOKUP(RAND()*'Sample Worksheets'!$B$18,'Sample Worksheets'!$A$19:$A$998,'Sample Worksheets'!$B$19:$B$998) -> gratis | N18: =LOOKUP(RAND()*'Sample Worksheets'!$B$18,'Sample Worksheets'!$A$19:$A$998,'Sample Worksheets'!$B$19:$B$998) -> privet | Q18: 65 | W18: =VLOOKUP(W17,$AR$13:$AS$30,2)&5 -> X5 | X18: =VLOOKUP(X17,$AR$13:$AS$30,2)&5 ->  | AR18: 6 | AS18: AB
B19: =LOOKUP(RAND()*'Sample Worksheets'!$B$18,'Sample Worksheets'!$A$19:$A$998,'Sample Worksheets'!$B$19:$B$998) -> column | E19: =LOOKUP(RAND()*'Sample Worksheets'!$B$18,'Sample Worksheets'!$A$19:$A$998,'Sample Worksheets'!$B$19:$B$998) -> monarch | H19: =LOOKUP(RAND()*'Sample Worksheets'!$B$18,'Sample Worksheets'!$A$19:$A$998,'Sample Worksheets'!$B$19:$B$998) -> moped | K19: =LOOKUP(RAND()*'Sample Worksheets'!$B$18,'Sample Worksheets'!$A$19:$A$998,'Sample Worksheets'!$B$19:$B$998) -> proper | N19: =LOOKUP(RAND()*'Sample Worksheets'!$B$18,'Sample Worksheets'!$A$19:$A$998,'Sample Worksheets'!$B$19:$B$998) -> manor | Q19: 70 | V19: Find Cell with Space | W19: =IF(W5=" ","Y","") ->  | X19: =IF(X5=" ","Y","") ->  | Y19: Y | AR19: 7 | AS19: AC
B20: =LOOKUP(RAND()*'Sample Worksheets'!$B$18,'Sample Worksheets'!$A$19:$A$998,'Sample Worksheets'!$B$19:$B$998) -> preteen | E20: =LOOKUP(RAND()*'Sample Worksheets'!$B$18,'Sample Worksheets'!$A$19:$A$998,'Sample Worksheets'!$B$19:$B$998) -> glamour | H20: =LOOKUP(RAND()*'Sample Worksheets'!$B$18,'Sample Worksheets'!$A$19:$A$998,'Sample Worksheets'!$B$19:$B$998) -> steamy | K20: =LOOKUP(RAND()*'Sample Worksheets'!$B$18,'Sample Worksheets'!$A$19:$A$998,'Sample Worksheets'!$B$19:$B$998) -> abode | N20: =LOOKUP(RAND()*'Sample Worksheets'!$B$18,'Sample Worksheets'!$A$19:$A$998,'Sample Worksheets'!$B$19:$B$998) -> precook | Q20: 75 | V20: Count sums of Y's | W20: =COUNTIF($W$19:W19,"Y") -> 0 | X20: =COUNTIF($W$19:X19,"Y") -> 0 | Y20: =COUNTIF($W$19:Y19,"Y") -> 1 | Z20: =COUNTIF($W$19:Z19,"Y") -> 1 | AA20: =COUNTIF($W$19:AA19,"Y") -> 1 | AB20: =COUNTIF($W$19:AB19,"Y") -> 1 | AC20: =COUNTIF($W$19:AC19,"Y") -> 1 | AD20: =COUNTIF($W$19:AD19,"Y") -> 1 | AE20: =COUNTIF($W$19:AE19,"Y") -> 1 | AF20: =COUNTIF($W$19:AF19,"Y") -> 1 | AG20: =COUNTIF($W$19:AG19,"Y") -> 1 | AH20: =COUNTIF($W$19:AH19,"Y") -> 1 | AI20: =COUNTIF($W$19:AI19,"Y") -> 1 | AJ20: =COUNTIF($W$19:AJ19,"Y") -> 1 | AK20: =COUNTIF($W$19:AK19,"Y") -> 1 | AL20: =COUNTIF($W$19:AL19,"Y") -> 1 | AM20: =COUNTIF($W$19:AM19,"Y") -> 1 | AN20: =COUNTIF($W$19:AN19,"Y") -> 1 | AO20: =COUNTIF($W$19:AO19,"Y") -> 1 | AR20: 8 | AS20: AD
B21: =CONCATENATE(B5," - Answer Key Dictionary Rule (Top) Donut Rule (Bottom)") -> Plain Donuts - Answer Key Dictionary Rule (Top) Donut Rule (Bottom) | AR21: 9 | AS21: AE
B22: =CONCATENATE(,(VLOOKUP(B6,'All Words New'!$B$3:$Q$9300,15)),CHAR(13)&CHAR(10),VLOOKUP(B6,'All Words New'!$B$3:$Q$93003,16)) -> gu ru gu ru | E22: =CONCATENATE(,(VLOOKUP(E6,'All Words New'!$B$3:$Q$9300,15)),CHAR(13)&CHAR(10),VLOOKUP(E6,'All Words New'!$B$3:$Q$93003,16)) -> sa vor sa vor | H22: =CONCATENATE(,(VLOOKUP(H6,'All Words New'!$B$3:$Q$9300,15)),CHAR(13)&CHAR(10),VLOOKUP(H6,'All Words New'!$B$3:$Q$93003,16)) -> se cure se cure | K22: =CONCATENATE(,(VLOOKUP(K6,'All Words New'!$B$3:$Q$9300,15)),CHAR(13)&CHAR(10),VLOOKUP(K6,'All Words New'!$B$3:$Q$93003,16)) -> eas y ea sy | N22: =CONCATENATE(,(VLOOKUP(N6,'All Words New'!$B$3:$Q$9300,15)),CHAR(13)&CHAR(10),VLOOKUP(N6,'All Words New'!$B$3:$Q$93003,16)) -> de pict de pict | Q22: =Q21+5 -> 5 | AR22: 10 | AS22: AF
B23: =CONCATENATE(,(VLOOKUP(B7,'All Words New'!$B$3:$Q$9300,15)),CHAR(13)&CHAR(10),VLOOKUP(B7,'All Words New'!$B$3:$Q$93003,16)) -> prop er pro per | E23: =CONCATENATE(,(VLOOKUP(E7,'All Words New'!$B$3:$Q$9300,15)),CHAR(13)&CHAR(10),VLOOKUP(E7,'All Words New'!$B$3:$Q$93003,16)) -> a mass a mass | H23: =CONCATENATE(,(VLOOKUP(H7,'All Words New'!$B$3:$Q$9300,15)),CHAR(13)&CHAR(10),VLOOKUP(H7,'All Words New'!$B$3:$Q$93003,16)) -> fre quence fre quence | K23: =CONCATENATE(,(VLOOKUP(K7,'All Words New'!$B$3:$Q$9300,15)),CHAR(13)&CHAR(10),VLOOKUP(K7,'All Words New'!$B$3:$Q$93003,16)) -> ge nus ge nus | N23: =CONCATENATE(,(VLOOKUP(N7,'All Words New'!$B$3:$Q$9300,15)),CHAR(13)&CHAR(10),VLOOKUP(N7,'All Words New'!$B$3:$Q$93003,16)) -> do main do main | Q23: 10 | AR23: 11 | AS23: AG
B24: =CONCATENATE(,(VLOOKUP(B8,'All Words New'!$B$3:$Q$9300,15)),CHAR(13)&CHAR(10),VLOOKUP(B8,'All Words New'!$B$3:$Q$93003,16)) -> sol ace so loce | E24: =CONCATENATE(,(VLOOKUP(E8,'All Words New'!$B$3:$Q$9300,15)),CHAR(13)&CHAR(10),VLOOKUP(E8,'All Words New'!$B$3:$Q$93003,16)) -> pre miere pre miere | H24: =CONCATENATE(,(VLOOKUP(H8,'All Words New'!$B$3:$Q$9300,15)),CHAR(13)&CHAR(10),VLOOKUP(H8,'All Words New'!$B$3:$Q$93003,16)) -> sev en se ven | K24: =CONCATENATE(,(VLOOKUP(K8,'All Words New'!$B$3:$Q$9300,15)),CHAR(13)&CHAR(10),VLOOKUP(K8,'All Words New'!$B$3:$Q$93003,16)) -> hov el ho vel | N24: =CONCATENATE(,(VLOOKUP(N8,'All Words New'!$B$3:$Q$9300,15)),CHAR(13)&CHAR(10),VLOOKUP(N8,'All Words New'!$B$3:$Q$93003,16)) -> so cial so cial | Q24: 15 | AR24: 12 | AS24: AH
B25: =CONCATENATE(,(VLOOKUP(B9,'All Words New'!$B$3:$Q$9300,15)),CHAR(13)&CHAR(10),VLOOKUP(B9,'All Words New'!$B$3:$Q$93003,16)) -> shak y sha ky | E25: =CONCATENATE(,(VLOOKUP(E9,'All Words New'!$B$3:$Q$9300,15)),CHAR(13)&CHAR(10),VLOOKUP(E9,'All Words New'!$B$3:$Q$93003,16)) -> sec ond se cond | H25: =CONCATENATE(,(VLOOKUP(H9,'All Words New'!$B$3:$Q$9300,15)),CHAR(13)&CHAR(10),VLOOKUP(H9,'All Words New'!$B$3:$Q$93003,16)) -> be come be come | K25: =CONCATENATE(,(VLOOKUP(K9,'All Words New'!$B$3:$Q$9300,15)),CHAR(13)&CHAR(10),VLOOKUP(K9,'All Words New'!$B$3:$Q$93003,16)) -> a mass a mass | N25: =CONCATENATE(,(VLOOKUP(N9,'All Words New'!$B$3:$Q$9300,15)),CHAR(13)&CHAR(10),VLOOKUP(N9,'All Words New'!$B$3:$Q$93003,16)) -> pok er po ker | Q25: 20 | AR25: 13 | AS25: AI
B26: =CONCATENATE(,(VLOOKUP(B10,'All Words New'!$B$3:$Q$9300,15)),CHAR(13)&CHAR(10),VLOOKUP(B10,'All Words New'!$B$3:$Q$93003,16)) -> sub orn su born | E26: =CONCATENATE(,(VLOOKUP(E10,'All Words New'!$B$3:$Q$9300,15)),CHAR(13)&CHAR(10),VLOOKUP(E10,'All Words New'!$B$3:$Q$93003,16)) -> ca per ca per | H26: =CONCATENATE(,(VLOOKUP(H10,'All Words New'!$B$3:$Q$9300,15)),CHAR(13)&CHAR(10),VLOOKUP(H10,'All Words New'!$B$3:$Q$93003,16)) -> fa vor fa vor | K26: =CONCATENATE(,(VLOOKUP(K10,'All Words New'!$B$3:$Q$9300,15)),CHAR(13)&CHAR(10),VLOOKUP(K10,'All Words New'!$B$3:$Q$93003,16)) -> pal ace pa lace | N26: =CONCATENATE(,(VLOOKUP(N10,'All Words New'!$B$3:$Q$9300,15)),CHAR(13)&CHAR(10),VLOOKUP(N10,'All Words New'!$B$3:$Q$93003,16)) -> nau seous nau seous | Q26: 25 | AR26: 14 | AS26: AJ
B27: =CONCATENATE(,(VLOOKUP(B11,'All Words New'!$B$3:$Q$9300,15)),CHAR(13)&CHAR(10),VLOOKUP(B11,'All Words New'!$B$3:$Q$93003,16)) -> sea coast sea coast | E27: =CONCATENATE(,(VLOOKUP(E11,'All Words New'!$B$3:$Q$9300,15)),CHAR(13)&CHAR(10),VLOOKUP(E11,'All Words New'!$B$3:$Q$93003,16)) -> la ment la ment | H27: =CONCATENATE(,(VLOOKUP(H11,'All Words New'!$B$3:$Q$9300,15)),CHAR(13)&CHAR(10),VLOOKUP(H11,'All Words New'!$B$3:$Q$93003,16)) -> se quel se quel | K27: =CONCATENATE(,(VLOOKUP(K11,'All Words New'!$B$3:$Q$9300,15)),CHAR(13)&CHAR(10),VLOOKUP(K11,'All Words New'!$B$3:$Q$93003,16)) -> de fame de fame | N27: =CONCATENATE(,(VLOOKUP(N11,'All Words New'!$B$3:$Q$9300,15)),CHAR(13)&CHAR(10),VLOOKUP(N11,'All Words New'!$B$3:$Q$93003,16)) -> na tion na tion | Q27: 30 | AR27: 15 | AS27: AK
B28: =CONCATENATE(,(VLOOKUP(B12,'All Words New'!$B$3:$Q$9300,15)),CHAR(13)&CHAR(10),VLOOKUP(B12,'All Words New'!$B$3:$Q$93003,16)) -> hop ing ho ping | E28: =CONCATENATE(,(VLOOKUP(E12,'All Words New'!$B$3:$Q$9300,15)),CHAR(13)&CHAR(10),VLOOKUP(E12,'All Words New'!$B$3:$Q$93003,16)) -> res in re sin | H28: =CONCATENATE(,(VLOOKUP(H12,'All Words New'!$B$3:$Q$9300,15)),CHAR(13)&CHAR(10),VLOOKUP(H12,'All Words New'!$B$3:$Q$93003,16)) -> a hoy a hoy | K28: =CONCATENATE(,(VLOOKUP(K12,'All Words New'!$B$3:$Q$9300,15)),CHAR(13)&CHAR(10),VLOOKUP(K12,'All Words New'!$B$3:$Q$93003,16)) -> cur cial cur cial | N28: =CONCATENATE(,(VLOOKUP(N12,'All Words New'!$B$3:$Q$9300,15)),CHAR(13)&CHAR(10),VLOOKUP(N12,'All Words New'!$B$3:$Q$93003,16)) -> log ic lo gic | Q28: 35 | AR28: 16 | AS28: AL
B29: =CONCATENATE(,(VLOOKUP(B13,'All Words New'!$B$3:$Q$9300,15)),CHAR(13)&CHAR(10),VLOOKUP(B13,'All Words New'!$B$3:$Q$93003,16)) -> pres ence pre sence | E29: =CONCATENATE(,(VLOOKUP(E13,'All Words New'!$B$3:$Q$9300,15)),CHAR(13)&CHAR(10),VLOOKUP(E13,'All Words New'!$B$3:$Q$93003,16)) -> a gaze a gaze | H29: =CONCATENATE(,(VLOOKUP(H13,'All Words New'!$B$3:$Q$9300,15)),CHAR(13)&CHAR(10),VLOOKUP(H13,'All Words New'!$B$3:$Q$93003,16)) -> pro pose pro pose | K29: =CONCATENATE(,(VLOOKUP(K13,'All Words New'!$B$3:$Q$9300,15)),CHAR(13)&CHAR(10),VLOOKUP(K13,'All Words New'!$B$3:$Q$93003,16)) -> a tone a tone | N29: =CONCATENATE(,(VLOOKUP(N13,'All Words New'!$B$3:$Q$9300,15)),CHAR(13)&CHAR(10),VLOOKUP(N13,'All Words New'!$B$3:$Q$93003,16)) -> at oll a toll | Q29: 40 | AR29: 17 | AS29: AM
B30: =CONCATENATE(,(VLOOKUP(B14,'All Words New'!$B$3:$Q$9300,15)),CHAR(13)&CHAR(10),VLOOKUP(B14,'All Words New'!$B$3:$Q$93003,16)) -> vom it vo mit | E30: =CONCATENATE(,(VLOOKUP(E14,'All Words New'!$B$3:$Q$9300,15)),CHAR(13)&CHAR(10),VLOOKUP(E14,'All Words New'!$B$3:$Q$93003,16)) -> a void a void | H30: =CONCATENATE(,(VLOOKUP(H14,'All Words New'!$B$3:$Q$9300,15)),CHAR(13)&CHAR(10),VLOOKUP(H14,'All Words New'!$B$3:$Q$93003,16)) -> ve neer ve neer | K30: =CONCATENATE(,(VLOOKUP(K14,'All Words New'!$B$3:$Q$9300,15)),CHAR(13)&CHAR(10),VLOOKUP(K14,'All Words New'!$B$3:$Q$93003,16)) -> fa vor fa vor | N30: =CONCATENATE(,(VLOOKUP(N14,'All Words New'!$B$3:$Q$9300,15)),CHAR(13)&CHAR(10),VLOOKUP(N14,'All Words New'!$B$3:$Q$93003,16)) -> cru sade cru sade | Q30: 45 | AR30: 18 | AS30: AN
B31: =CONCATENATE(,(VLOOKUP(B15,'All Words New'!$B$3:$Q$9300,15)),CHAR(13)&CHAR(10),VLOOKUP(B15,'All Words New'!$B$3:$Q$93003,16)) -> tra peze tra peze | E31: =CONCATENATE(,(VLOOKUP(E15,'All Words New'!$B$3:$Q$9300,15)),CHAR(13)&CHAR(10),VLOOKUP(E15,'All Words New'!$B$3:$Q$93003,16)) -> pa tient pa tient | H31: =CONCATENATE(,(VLOOKUP(H15,'All Words New'!$B$3:$Q$9300,15)),CHAR(13)&CHAR(10),VLOOKUP(H15,'All Words New'!$B$3:$Q$93003,16)) -> Fri day Fri day | K31: =CONCATENATE(,(VLOOKUP(K15,'All Words New'!$B$3:$Q$9300,15)),CHAR(13)&CHAR(10),VLOOKUP(K15,'All Words New'!$B$3:$Q$93003,16)) -> pla cate pla cate | N31: =CONCATENATE(,(VLOOKUP(N15,'All Words New'!$B$3:$Q$9300,15)),CHAR(13)&CHAR(10),VLOOKUP(N15,'All Words New'!$B$3:$Q$93003,16)) -> du ty du ty | Q31: 50
B32: =CONCATENATE(,(VLOOKUP(B16,'All Words New'!$B$3:$Q$9300,15)),CHAR(13)&CHAR(10),VLOOKUP(B16,'All Words New'!$B$3:$Q$93003,16)) -> o val o val | E32: =CONCATENATE(,(VLOOKUP(E16,'All Words New'!$B$3:$Q$9300,15)),CHAR(13)&CHAR(10),VLOOKUP(E16,'All Words New'!$B$3:$Q$93003,16)) -> de code de code | H32: =CONCATENATE(,(VLOOKUP(H16,'All Words New'!$B$3:$Q$9300,15)),CHAR(13)&CHAR(10),VLOOKUP(H16,'All Words New'!$B$3:$Q$93003,16)) -> pe can pe can | K32: =CONCATENATE(,(VLOOKUP(K16,'All Words New'!$B$3:$Q$9300,15)),CHAR(13)&CHAR(10),VLOOKUP(K16,'All Words New'!$B$3:$Q$93003,16)) -> sol ar so lar | N32: =CONCATENATE(,(VLOOKUP(N16,'All Words New'!$B$3:$Q$9300,15)),CHAR(13)&CHAR(10),VLOOKUP(N16,'All Words New'!$B$3:$Q$93003,16)) -> di vulge di vulge | Q32: 55
B33: =CONCATENATE(,(VLOOKUP(B17,'All Words New'!$B$3:$Q$9300,15)),CHAR(13)&CHAR(10),VLOOKUP(B17,'All Words New'!$B$3:$Q$93003,16)) -> leg ume le gume | E33: =CONCATENATE(,(VLOOKUP(E17,'All Words New'!$B$3:$Q$9300,15)),CHAR(13)&CHAR(10),VLOOKUP(E17,'All Words New'!$B$3:$Q$93003,16)) -> pop eyed po peyed | H33: =CONCATENATE(,(VLOOKUP(H17,'All Words New'!$B$3:$Q$9300,15)),CHAR(13)&CHAR(10),VLOOKUP(H17,'All Words New'!$B$3:$Q$93003,16)) -> quo ta quo ta | K33: =CONCATENATE(,(VLOOKUP(K17,'All Words New'!$B$3:$Q$9300,15)),CHAR(13)&CHAR(10),VLOOKUP(K17,'All Words New'!$B$3:$Q$93003,16)) -> a go a go | N33: =CONCATENATE(,(VLOOKUP(N17,'All Words New'!$B$3:$Q$9300,15)),CHAR(13)&CHAR(10),VLOOKUP(N17,'All Words New'!$B$3:$Q$93003,16)) -> ba ton ba ton | Q33: 60
B34: =CONCATENATE(,(VLOOKUP(B18,'All Words New'!$B$3:$Q$9300,15)),CHAR(13)&CHAR(10),VLOOKUP(B18,'All Words New'!$B$3:$Q$93003,16)) -> e late e late | E34: =CONCATENATE(,(VLOOKUP(E18,'All Words New'!$B$3:$Q$9300,15)),CHAR(13)&CHAR(10),VLOOKUP(E18,'All Words New'!$B$3:$Q$93003,16)) -> res in re sin | H34: =CONCATENATE(,(VLOOKUP(H18,'All Words New'!$B$3:$Q$9300,15)),CHAR(13)&CHAR(10),VLOOKUP(H18,'All Words New'!$B$3:$Q$93003,16)) -> fa tal fa tal | K34: =CONCATENATE(,(VLOOKUP(K18,'All Words New'!$B$3:$Q$9300,15)),CHAR(13)&CHAR(10),VLOOKUP(K18,'All Words New'!$B$3:$Q$93003,16)) -> grat is gra tis | N34: =CONCATENATE(,(VLOOKUP(N18,'All Words New'!$B$3:$Q$9300,15)),CHAR(13)&CHAR(10),VLOOKUP(N18,'All Words New'!$B$3:$Q$93003,16)) -> priv et pri vet | Q34: 65
B35: =CONCATENATE(,(VLOOKUP(B19,'All Words New'!$B$3:$Q$9300,15)),CHAR(13)&CHAR(10),VLOOKUP(B19,'All Words New'!$B$3:$Q$93003,16)) -> col umn co lumn | E35: =CONCATENATE(,(VLOOKUP(E19,'All Words New'!$B$3:$Q$9300,15)),CHAR(13)&CHAR(10),VLOOKUP(E19,'All Words New'!$B$3:$Q$93003,16)) -> mon arch mo narch | H35: =CONCATENATE(,(VLOOKUP(H19,'All Words New'!$B$3:$Q$9300,15)),CHAR(13)&CHAR(10),VLOOKUP(H19,'All Words New'!$B$3:$Q$93003,16)) -> mo ped mo ped | K35: =CONCATENATE(,(VLOOKUP(K19,'All Words New'!$B$3:$Q$9300,15)),CHAR(13)&CHAR(10),VLOOKUP(K19,'All Words New'!$B$3:$Q$93003,16)) -> prop er pro per | N35: =CONCATENATE(,(VLOOKUP(N19,'All Words New'!$B$3:$Q$9300,15)),CHAR(13)&CHAR(10),VLOOKUP(N19,'All Words New'!$B$3:$Q$93003,16)) -> man or ma nor | Q35: 70
B36: =CONCATENATE(,(VLOOKUP(B20,'All Words New'!$B$3:$Q$9300,15)),CHAR(13)&CHAR(10),VLOOKUP(B20,'All Words New'!$B$3:$Q$93003,16)) -> pre teen pre teen | E36: =CONCATENATE(,(VLOOKUP(E20,'All Words New'!$B$3:$Q$9300,15)),CHAR(13)&CHAR(10),VLOOKUP(E20,'All Words New'!$B$3:$Q$93003,16)) -> glam our gla mour | H36: =CONCATENATE(,(VLOOKUP(H20,'All Words New'!$B$3:$Q$9300,15)),CHAR(13)&CHAR(10),VLOOKUP(H20,'All Words New'!$B$3:$Q$93003,16)) -> steam y stea my | K36: =CONCATENATE(,(VLOOKUP(K20,'All Words New'!$B$3:$Q$9300,15)),CHAR(13)&CHAR(10),VLOOKUP(K20,'All Words New'!$B$3:$Q$93003,16)) -> a bode a bode | N36: =CONCATENATE(,(VLOOKUP(N20,'All Words New'!$B$3:$Q$9300,15)),CHAR(13)&CHAR(10),VLOOKUP(N20,'All Words New'!$B$3:$Q$93003,16)) -> pre cook pre cook | Q36: 75

Sheet Donut - Powdered
B1: powdered do | nut | E1: =V2 -> autism | L1: 1st syllable vowel sounds aw ow oy ew | U1: 1 | V1: Rule 1 = Dictionary 2 = Donut - Muffin | W1: 2 | X1: Dictionary Lookup | Y1: =VLOOKUP($V$2,'All Words New'!$B$3:$Q$9072,15) -> au tism | AB1: Excel Lookup | AC1: =VLOOKUP($V$2,'All Words New'!$B$3:$Q$9072,16) -> au tism
B2: ='Sample Worksheets'!C18 -> 76 | V2: =LOOKUP(RAND()*'Sample Worksheets'!$C$18,'Sample Worksheets'!$A$19:$A$94,'Sample Worksheets'!$C$19:$C$94) -> autism | W2: =IF(W1=2,AC1,Y1) -> au tism | Y2: 0 | Z2: =Y8 -> x | AA2: =Z8 -> x | AB2: x | AC2: x | AD2: x | AE2: x | AF2: x | AG2: x | AH2: x
B3: =MID($V$2,1,1) -> a | C3: =MID($V$2,X3,1) -> u | D3: =MID($V$2,Y3,1) -> t | E3: i | F3: s | G3: m | V3: Cut # | W3: 1 | X3: 2 | Y3: 3 | Z3: 4 | AA3: 5 | AB3: 6 | AC3: 7 | AD3: 8 | AE3: 9 | AF3: 10 | AG3: 11 | AH3: 12 | AI3: 13 | AJ3: 14 | AK3: 15 | AL3: 16 | AM3: 17 | AN3: 18 | AO3: 19 | AP3: 20
B5: Powdered Donuts | W5: =MID($W$2,1,1) -> a | X5: =MID($W$2,X3,1) -> u | Z5: t | AA5: i | AB5: s | AC5: m | AN5: =MID($W$2,AN3+1,1) ->  | AO5: =MID($W$2,AO3+1,1) ->  | AP5: =MID($W$2,AP3+1,1) -> 
B6: =LOOKUP(RAND()*'Sample Worksheets'!$C$18,'Sample Worksheets'!$A$19:$A$94,'Sample Worksheets'!$C$19:$C$94) -> trauma | E6: =LOOKUP(RAND()*'Sample Worksheets'!$C$18,'Sample Worksheets'!$A$19:$A$94,'Sample Worksheets'!$C$19:$C$94) -> jawbone | H6: =LOOKUP(RAND()*'Sample Worksheets'!$C$18,'Sample Worksheets'!$A$19:$A$94,'Sample Worksheets'!$C$19:$C$94) -> cautious | K6: =LOOKUP(RAND()*'Sample Worksheets'!$C$18,'Sample Worksheets'!$A$19:$A$94,'Sample Worksheets'!$C$19:$C$94) -> fewer | N6: =LOOKUP(RAND()*'Sample Worksheets'!$C$18,'Sample Worksheets'!$A$19:$A$94,'Sample Worksheets'!$C$19:$C$94) -> dower | Q6: 5 | W6: =INDIRECT("W13") -> W5 | X6: =INDIRECT("X13") -> Y5 | Y6: =INDIRECT("Y13") -> Z5 | Z6: =INDIRECT("Z13") -> AA5 | AA6: =INDIRECT("AA13") -> AB5 | AB6: =INDIRECT("AB13") -> AC5 | AC6: =INDIRECT("AC13") -> AD5 | AD6: =INDIRECT("AD13") -> AE5 | AE6: =INDIRECT("AE13") -> AF5 | AF6: =INDIRECT("AF13") -> AG5 | AG6: =INDIRECT("AG13") -> AH5 | AH6: =INDIRECT("AH13") -> AI5 | AI6: =INDIRECT("AI13") -> AI5 | AJ6: =INDIRECT("AJ13") -> AJ5 | AK6: =INDIRECT("AK13") -> AK5 | AL6: =INDIRECT("AL13") -> AL5 | AM6: =INDIRECT("AL13") -> AL5 | AN6: =INDIRECT("AL13") -> AL5 | AO6: =INDIRECT("AL13") -> AL5
B7: =LOOKUP(RAND()*'Sample Worksheets'!$C$18,'Sample Worksheets'!$A$19:$A$94,'Sample Worksheets'!$C$19:$C$94) -> awning | E7: =LOOKUP(RAND()*'Sample Worksheets'!$C$18,'Sample Worksheets'!$A$19:$A$94,'Sample Worksheets'!$C$19:$C$94) -> cautious | H7: =LOOKUP(RAND()*'Sample Worksheets'!$C$18,'Sample Worksheets'!$A$19:$A$94,'Sample Worksheets'!$C$19:$C$94) -> sawmill | K7: =LOOKUP(RAND()*'Sample Worksheets'!$C$18,'Sample Worksheets'!$A$19:$A$94,'Sample Worksheets'!$C$19:$C$94) -> awful | N7: =LOOKUP(RAND()*'Sample Worksheets'!$C$18,'Sample Worksheets'!$A$19:$A$94,'Sample Worksheets'!$C$19:$C$94) -> poison | Q7: =Q6+5 -> 10 | W7: =MID($W$2,1,1) -> a | X7: =MID($V$2,X3,1) -> u | Y7: t | Z7: i | AA7: s | AB7: m
B8: =LOOKUP(RAND()*'Sample Worksheets'!$C$18,'Sample Worksheets'!$A$19:$A$94,'Sample Worksheets'!$C$19:$C$94) -> awful | E8: =LOOKUP(RAND()*'Sample Worksheets'!$C$18,'Sample Worksheets'!$A$19:$A$94,'Sample Worksheets'!$C$19:$C$94) -> chewy | H8: =LOOKUP(RAND()*'Sample Worksheets'!$C$18,'Sample Worksheets'!$A$19:$A$94,'Sample Worksheets'!$C$19:$C$94) -> power | K8: =LOOKUP(RAND()*'Sample Worksheets'!$C$18,'Sample Worksheets'!$A$19:$A$94,'Sample Worksheets'!$C$19:$C$94) -> trauma | N8: =LOOKUP(RAND()*'Sample Worksheets'!$C$18,'Sample Worksheets'!$A$19:$A$94,'Sample Worksheets'!$C$19:$C$94) -> cowbird | Q8: =Q7+5 -> 15 | W8: =IF(ISERROR(MATCH(W3,$W$17:$AD$17,0)),"x","cut after") -> x | X8: =IF(ISERROR(MATCH(X3,$W$17:$AD$17,0)),"x","cut after") -> cut after | Y8: x | Z8: x | AA8: x | AB8: x | AC8: x | AD8: x | AE8: x | AF8: x | AG8: x | AH8: x | AI8: x | AJ8: x | AK8: x | AL8: x | AM8: x | AN8: x | AO8: x | AP8: x
B9: =LOOKUP(RAND()*'Sample Worksheets'!$C$18,'Sample Worksheets'!$A$19:$A$94,'Sample Worksheets'!$C$19:$C$94) -> sawdust | E9: =LOOKUP(RAND()*'Sample Worksheets'!$C$18,'Sample Worksheets'!$A$19:$A$94,'Sample Worksheets'!$C$19:$C$94) -> prowess | H9: =LOOKUP(RAND()*'Sample Worksheets'!$C$18,'Sample Worksheets'!$A$19:$A$94,'Sample Worksheets'!$C$19:$C$94) -> sausage | K9: =LOOKUP(RAND()*'Sample Worksheets'!$C$18,'Sample Worksheets'!$A$19:$A$94,'Sample Worksheets'!$C$19:$C$94) -> viewpoint | N9: =LOOKUP(RAND()*'Sample Worksheets'!$C$18,'Sample Worksheets'!$A$19:$A$94,'Sample Worksheets'!$C$19:$C$94) -> newborn | Q9: 20 | W9: =IF(X5=" ",1,0) -> 0 | X9: =IF(Y5=" ",1,0) -> 1 | Y9: 0 | Z9: 0 | AA9: 0 | AB9: 0 | AC9: 0 | AD9: 0 | AE9: 0 | AF9: 0 | AG9: 0 | AH9: 0 | AI9: 0 | AJ9: 0 | AK9: 0 | AL9: 0 | AM9: 0 | AN9: 0 | AO9: 0
B10: =LOOKUP(RAND()*'Sample Worksheets'!$C$18,'Sample Worksheets'!$A$19:$A$94,'Sample Worksheets'!$C$19:$C$94) -> audit | E10: =LOOKUP(RAND()*'Sample Worksheets'!$C$18,'Sample Worksheets'!$A$19:$A$94,'Sample Worksheets'!$C$19:$C$94) -> auger | H10: =LOOKUP(RAND()*'Sample Worksheets'!$C$18,'Sample Worksheets'!$A$19:$A$94,'Sample Worksheets'!$C$19:$C$94) -> awning | K10: =LOOKUP(RAND()*'Sample Worksheets'!$C$18,'Sample Worksheets'!$A$19:$A$94,'Sample Worksheets'!$C$19:$C$94) -> soybean | N10: =LOOKUP(RAND()*'Sample Worksheets'!$C$18,'Sample Worksheets'!$A$19:$A$94,'Sample Worksheets'!$C$19:$C$94) -> voyage | Q10: 25 | W10: =SUM(W9) -> 0 | X10: =SUM(W9) -> 0 | Y10: =SUM(W9:X9) -> 1 | Z10: =SUM(W9:Y9) -> 1 | AA10: =SUM(W9:Z9) -> 1 | AB10: =SUM(W9:AB9) -> 1 | AC10: =SUM(W9:AC9) -> 1 | AD10: =SUM(W9:AD9) -> 1 | AE10: =SUM(W9:AE9) -> 1 | AF10: =SUM(W9:AF9) -> 1 | AG10: =SUM(W9:AG9) -> 1 | AH10: =SUM(W9:AH9) -> 1 | AI10: =SUM(AH9:AI9) -> 0 | AJ10: 0 | AK10: 0 | AL10: 0 | AM10: 0 | AN10: 0 | AO10: 0
B11: =LOOKUP(RAND()*'Sample Worksheets'!$C$18,'Sample Worksheets'!$A$19:$A$94,'Sample Worksheets'!$C$19:$C$94) -> howdy | E11: =LOOKUP(RAND()*'Sample Worksheets'!$C$18,'Sample Worksheets'!$A$19:$A$94,'Sample Worksheets'!$C$19:$C$94) -> screwball | H11: =LOOKUP(RAND()*'Sample Worksheets'!$C$18,'Sample Worksheets'!$A$19:$A$94,'Sample Worksheets'!$C$19:$C$94) -> howdy | K11: =LOOKUP(RAND()*'Sample Worksheets'!$C$18,'Sample Worksheets'!$A$19:$A$94,'Sample Worksheets'!$C$19:$C$94) -> tower | N11: =LOOKUP(RAND()*'Sample Worksheets'!$C$18,'Sample Worksheets'!$A$19:$A$94,'Sample Worksheets'!$C$19:$C$94) -> flawless | Q11: 30 | V11: Number of cuts to make | Y11: =SUM(LEN(W2)-LEN(SUBSTITUTE(W2," ","")))/LEN(" ") -> 1
B12: =LOOKUP(RAND()*'Sample Worksheets'!$C$18,'Sample Worksheets'!$A$19:$A$94,'Sample Worksheets'!$C$19:$C$94) -> viewpoint | E12: =LOOKUP(RAND()*'Sample Worksheets'!$C$18,'Sample Worksheets'!$A$19:$A$94,'Sample Worksheets'!$C$19:$C$94) -> sawmill | H12: =LOOKUP(RAND()*'Sample Worksheets'!$C$18,'Sample Worksheets'!$A$19:$A$94,'Sample Worksheets'!$C$19:$C$94) -> sawhorse | K12: =LOOKUP(RAND()*'Sample Worksheets'!$C$18,'Sample Worksheets'!$A$19:$A$94,'Sample Worksheets'!$C$19:$C$94) -> brawny | N12: =LOOKUP(RAND()*'Sample Worksheets'!$C$18,'Sample Worksheets'!$A$19:$A$94,'Sample Worksheets'!$C$19:$C$94) -> trauma | Q12: 35 | V12: Number of cuts actually made | Y12: 0
B13: =LOOKUP(RAND()*'Sample Worksheets'!$C$18,'Sample Worksheets'!$A$19:$A$94,'Sample Worksheets'!$C$19:$C$94) -> royal | E13: =LOOKUP(RAND()*'Sample Worksheets'!$C$18,'Sample Worksheets'!$A$19:$A$94,'Sample Worksheets'!$C$19:$C$94) -> lousy | H13: =LOOKUP(RAND()*'Sample Worksheets'!$C$18,'Sample Worksheets'!$A$19:$A$94,'Sample Worksheets'!$C$19:$C$94) -> chewy | K13: =LOOKUP(RAND()*'Sample Worksheets'!$C$18,'Sample Worksheets'!$A$19:$A$94,'Sample Worksheets'!$C$19:$C$94) -> royal | N13: =LOOKUP(RAND()*'Sample Worksheets'!$C$18,'Sample Worksheets'!$A$19:$A$94,'Sample Worksheets'!$C$19:$C$94) -> auger | Q13: 40 | W13: =VLOOKUP(W3+W9,$AR$13:$AS$30,2)&5 -> W5 | X13: =VLOOKUP(X3+X9+X10,$AR$13:$AS$30,2)&5 -> Y5 | Y13: =VLOOKUP(Y3+Y9+Y10,$AR$13:$AS$30,2)&5 -> Z5 | Z13: AA5 | AA13: AB5 | AB13: AC5 | AC13: AD5 | AD13: AE5 | AE13: AF5 | AF13: AG5 | AG13: AH5 | AH13: AI5 | AI13: AI5 | AJ13: AJ5 | AK13: AK5 | AL13: AL5 | AM13: AM5 | AN13: AN5 | AO13: AN5 | AR13: 1 | AS13: W
B14: =LOOKUP(RAND()*'Sample Worksheets'!$C$18,'Sample Worksheets'!$A$19:$A$94,'Sample Worksheets'!$C$19:$C$94) -> sauna | E14: =LOOKUP(RAND()*'Sample Worksheets'!$C$18,'Sample Worksheets'!$A$19:$A$94,'Sample Worksheets'!$C$19:$C$94) -> sawdust | H14: =LOOKUP(RAND()*'Sample Worksheets'!$C$18,'Sample Worksheets'!$A$19:$A$94,'Sample Worksheets'!$C$19:$C$94) -> drowsy | K14: =LOOKUP(RAND()*'Sample Worksheets'!$C$18,'Sample Worksheets'!$A$19:$A$94,'Sample Worksheets'!$C$19:$C$94) -> viewpoint | N14: =LOOKUP(RAND()*'Sample Worksheets'!$C$18,'Sample Worksheets'!$A$19:$A$94,'Sample Worksheets'!$C$19:$C$94) -> tower | Q14: 45 | W14: Cut 1 | X14: Cut 2 | Y14: Cut 3 | Z14: Cut 4 | AA14: Cut 5 | AB14: Cut 6 | AC14: Cut 7 | AD14: Cut 8 | AR14: 2 | AS14: X
B15: =LOOKUP(RAND()*'Sample Worksheets'!$C$18,'Sample Worksheets'!$A$19:$A$94,'Sample Worksheets'!$C$19:$C$94) -> soybean | E15: =LOOKUP(RAND()*'Sample Worksheets'!$C$18,'Sample Worksheets'!$A$19:$A$94,'Sample Worksheets'!$C$19:$C$94) -> dowdy | H15: =LOOKUP(RAND()*'Sample Worksheets'!$C$18,'Sample Worksheets'!$A$19:$A$94,'Sample Worksheets'!$C$19:$C$94) -> author | K15: =LOOKUP(RAND()*'Sample Worksheets'!$C$18,'Sample Worksheets'!$A$19:$A$94,'Sample Worksheets'!$C$19:$C$94) -> lousy | N15: =LOOKUP(RAND()*'Sample Worksheets'!$C$18,'Sample Worksheets'!$A$19:$A$94,'Sample Worksheets'!$C$19:$C$94) -> awful | Q15: 50 | W15: =MATCH(1,$W$20:$AP$20,0) -> 3 | X15: =MATCH(2,$W$20:$AP$20,0) ->  | Y15: =MATCH(3,$W$20:$AP$20,0) ->  | Z15: =MATCH(4,$W$20:$AP$20,0) ->  | AA15: =MATCH(5,$W$20:$AP$20,0) ->  | AB15: =MATCH(6,$W$20:$AP$20,0) ->  | AC15: =MATCH(7,$W$20:$AP$20,0) ->  | AD15: =MATCH(8,$W$20:$AP$20,0) ->  | AM15: =INDIRECT("AM13") -> AM5 | AR15: 3 | AS15: Y
B16: =LOOKUP(RAND()*'Sample Worksheets'!$C$18,'Sample Worksheets'!$A$19:$A$94,'Sample Worksheets'!$C$19:$C$94) -> lowdown | E16: =LOOKUP(RAND()*'Sample Worksheets'!$C$18,'Sample Worksheets'!$A$19:$A$94,'Sample Worksheets'!$C$19:$C$94) -> lousy | H16: =LOOKUP(RAND()*'Sample Worksheets'!$C$18,'Sample Worksheets'!$A$19:$A$94,'Sample Worksheets'!$C$19:$C$94) -> lowdown | K16: =LOOKUP(RAND()*'Sample Worksheets'!$C$18,'Sample Worksheets'!$A$19:$A$94,'Sample Worksheets'!$C$19:$C$94) -> knowledge | N16: =LOOKUP(RAND()*'Sample Worksheets'!$C$18,'Sample Worksheets'!$A$19:$A$94,'Sample Worksheets'!$C$19:$C$94) -> lousy | Q16: 55 | W16: =W15-1 -> 2 | X16: =X15-2 ->  | Y16: =Y15-3 ->  | Z16: =Z15-4 ->  | AA16: =AA15-5 ->  | AB16: =AB15-6 ->  | AC16: =AC15-6 ->  | AD16: =AD15-6 ->  | AR16: 4 | AS16: Z
B17: =LOOKUP(RAND()*'Sample Worksheets'!$C$18,'Sample Worksheets'!$A$19:$A$94,'Sample Worksheets'!$C$19:$C$94) -> tower | E17: =LOOKUP(RAND()*'Sample Worksheets'!$C$18,'Sample Worksheets'!$A$19:$A$94,'Sample Worksheets'!$C$19:$C$94) -> soupy | H17: =LOOKUP(RAND()*'Sample Worksheets'!$C$18,'Sample Worksheets'!$A$19:$A$94,'Sample Worksheets'!$C$19:$C$94) -> vowel | K17: =LOOKUP(RAND()*'Sample Worksheets'!$C$18,'Sample Worksheets'!$A$19:$A$94,'Sample Worksheets'!$C$19:$C$94) -> awful | N17: =LOOKUP(RAND()*'Sample Worksheets'!$C$18,'Sample Worksheets'!$A$19:$A$94,'Sample Worksheets'!$C$19:$C$94) -> newborn | Q17: 60 | W17: =IF(ISERROR(W15),0,W16) -> 2 | X17: 0 | Y17: 0 | Z17: 0 | AA17: 0 | AB17: 0 | AC17: 0 | AD17: 0 | AR17: 5 | AS17: AA
B18: =LOOKUP(RAND()*'Sample Worksheets'!$C$18,'Sample Worksheets'!$A$19:$A$94,'Sample Worksheets'!$C$19:$C$94) -> cowboy | E18: =LOOKUP(RAND()*'Sample Worksheets'!$C$18,'Sample Worksheets'!$A$19:$A$94,'Sample Worksheets'!$C$19:$C$94) -> trauma | H18: =LOOKUP(RAND()*'Sample Worksheets'!$C$18,'Sample Worksheets'!$A$19:$A$94,'Sample Worksheets'!$C$19:$C$94) -> dowry | K18: =LOOKUP(RAND()*'Sample Worksheets'!$C$18,'Sample Worksheets'!$A$19:$A$94,'Sample Worksheets'!$C$19:$C$94) -> dowel | N18: =LOOKUP(RAND()*'Sample Worksheets'!$C$18,'Sample Worksheets'!$A$19:$A$94,'Sample Worksheets'!$C$19:$C$94) -> viewpoint | Q18: 65 | W18: =VLOOKUP(W17,$AR$13:$AS$30,2)&5 -> X5 | X18: =VLOOKUP(X17,$AR$13:$AS$30,2)&5 ->  | AR18: 6 | AS18: AB
B19: =LOOKUP(RAND()*'Sample Worksheets'!$C$18,'Sample Worksheets'!$A$19:$A$94,'Sample Worksheets'!$C$19:$C$94) -> rawhide | E19: =LOOKUP(RAND()*'Sample Worksheets'!$C$18,'Sample Worksheets'!$A$19:$A$94,'Sample Worksheets'!$C$19:$C$94) -> chewy | H19: =LOOKUP(RAND()*'Sample Worksheets'!$C$18,'Sample Worksheets'!$A$19:$A$94,'Sample Worksheets'!$C$19:$C$94) -> knowledge | K19: =LOOKUP(RAND()*'Sample Worksheets'!$C$18,'Sample Worksheets'!$A$19:$A$94,'Sample Worksheets'!$C$19:$C$94) -> viewpoint | N19: =LOOKUP(RAND()*'Sample Worksheets'!$C$18,'Sample Worksheets'!$A$19:$A$94,'Sample Worksheets'!$C$19:$C$94) -> cowpoke | Q19: 70 | V19: Find Cell with Space | W19: =IF(W5=" ","Y","") ->  | X19: =IF(X5=" ","Y","") ->  | Y19: Y | AR19: 7 | AS19: AC
B20: =LOOKUP(RAND()*'Sample Worksheets'!$C$18,'Sample Worksheets'!$A$19:$A$94,'Sample Worksheets'!$C$19:$C$94) -> cowpox | E20: =LOOKUP(RAND()*'Sample Worksheets'!$C$18,'Sample Worksheets'!$A$19:$A$94,'Sample Worksheets'!$C$19:$C$94) -> towel | H20: =LOOKUP(RAND()*'Sample Worksheets'!$C$18,'Sample Worksheets'!$A$19:$A$94,'Sample Worksheets'!$C$19:$C$94) -> sausage | K20: =LOOKUP(RAND()*'Sample Worksheets'!$C$18,'Sample Worksheets'!$A$19:$A$94,'Sample Worksheets'!$C$19:$C$94) -> cowhide | N20: =LOOKUP(RAND()*'Sample Worksheets'!$C$18,'Sample Worksheets'!$A$19:$A$94,'Sample Worksheets'!$C$19:$C$94) -> shower | Q20: 75 | V20: Count sums of Y's | W20: =COUNTIF($W$19:W19,"Y") -> 0 | X20: =COUNTIF($W$19:X19,"Y") -> 0 | Y20: =COUNTIF($W$19:Y19,"Y") -> 1 | Z20: =COUNTIF($W$19:Z19,"Y") -> 1 | AA20: =COUNTIF($W$19:AA19,"Y") -> 1 | AB20: =COUNTIF($W$19:AB19,"Y") -> 1 | AC20: =COUNTIF($W$19:AC19,"Y") -> 1 | AD20: =COUNTIF($W$19:AD19,"Y") -> 1 | AE20: =COUNTIF($W$19:AE19,"Y") -> 1 | AF20: =COUNTIF($W$19:AF19,"Y") -> 1 | AG20: =COUNTIF($W$19:AG19,"Y") -> 1 | AH20: =COUNTIF($W$19:AH19,"Y") -> 1 | AI20: =COUNTIF($W$19:AI19,"Y") -> 1 | AJ20: =COUNTIF($W$19:AJ19,"Y") -> 1 | AK20: =COUNTIF($W$19:AK19,"Y") -> 1 | AL20: =COUNTIF($W$19:AL19,"Y") -> 1 | AM20: =COUNTIF($W$19:AM19,"Y") -> 1 | AN20: =COUNTIF($W$19:AN19,"Y") -> 1 | AO20: =COUNTIF($W$19:AO19,"Y") -> 1 | AR20: 8 | AS20: AD
B21: =CONCATENATE(B5," - Answer Key Dictionary Rule (Top) Donut Rule (Bottom)") -> Powdered Donuts - Answer Key Dictionary Rule (Top) Donut Rule (Bottom) | AR21: 9 | AS21: AE
B22: =CONCATENATE(,(VLOOKUP(B6,'All Words New'!$B$3:$Q$9300,15)),CHAR(13)&CHAR(10),VLOOKUP(B6,'All Words New'!$B$3:$Q$93003,16)) -> trau ma trau ma | E22: =CONCATENATE(,(VLOOKUP(E6,'All Words New'!$B$3:$Q$9300,15)),CHAR(13)&CHAR(10),VLOOKUP(E6,'All Words New'!$B$3:$Q$93003,16)) -> jaw bone jaw bone | H22: =CONCATENATE(,(VLOOKUP(H6,'All Words New'!$B$3:$Q$9300,15)),CHAR(13)&CHAR(10),VLOOKUP(H6,'All Words New'!$B$3:$Q$93003,16)) -> cau tious cau tious | K22: =CONCATENATE(,(VLOOKUP(K6,'All Words New'!$B$3:$Q$9300,15)),CHAR(13)&CHAR(10),VLOOKUP(K6,'All Words New'!$B$3:$Q$93003,16)) -> few er few er | N22: =CONCATENATE(,(VLOOKUP(N6,'All Words New'!$B$3:$Q$9300,15)),CHAR(13)&CHAR(10),VLOOKUP(N6,'All Words New'!$B$3:$Q$93003,16)) -> dow er dow er | Q22: =Q21+5 -> 5 | AR22: 10 | AS22: AF
B23: =CONCATENATE(,(VLOOKUP(B7,'All Words New'!$B$3:$Q$9300,15)),CHAR(13)&CHAR(10),VLOOKUP(B7,'All Words New'!$B$3:$Q$93003,16)) -> awn ing aw ning | E23: =CONCATENATE(,(VLOOKUP(E7,'All Words New'!$B$3:$Q$9300,15)),CHAR(13)&CHAR(10),VLOOKUP(E7,'All Words New'!$B$3:$Q$93003,16)) -> cau tious cau tious | H23: =CONCATENATE(,(VLOOKUP(H7,'All Words New'!$B$3:$Q$9300,15)),CHAR(13)&CHAR(10),VLOOKUP(H7,'All Words New'!$B$3:$Q$93003,16)) -> saw mill saw mill | K23: =CONCATENATE(,(VLOOKUP(K7,'All Words New'!$B$3:$Q$9300,15)),CHAR(13)&CHAR(10),VLOOKUP(K7,'All Words New'!$B$3:$Q$93003,16)) -> aw ful aw ful | N23: =CONCATENATE(,(VLOOKUP(N7,'All Words New'!$B$3:$Q$9300,15)),CHAR(13)&CHAR(10),VLOOKUP(N7,'All Words New'!$B$3:$Q$93003,16)) -> poi son poi son | Q23: 10 | AR23: 11 | AS23: AG
B24: =CONCATENATE(,(VLOOKUP(B8,'All Words New'!$B$3:$Q$9300,15)),CHAR(13)&CHAR(10),VLOOKUP(B8,'All Words New'!$B$3:$Q$93003,16)) -> aw ful aw ful | E24: =CONCATENATE(,(VLOOKUP(E8,'All Words New'!$B$3:$Q$9300,15)),CHAR(13)&CHAR(10),VLOOKUP(E8,'All Words New'!$B$3:$Q$93003,16)) -> chew y chew y | H24: =CONCATENATE(,(VLOOKUP(H8,'All Words New'!$B$3:$Q$9300,15)),CHAR(13)&CHAR(10),VLOOKUP(H8,'All Words New'!$B$3:$Q$93003,16)) -> pow er pow er | K24: =CONCATENATE(,(VLOOKUP(K8,'All Words New'!$B$3:$Q$9300,15)),CHAR(13)&CHAR(10),VLOOKUP(K8,'All Words New'!$B$3:$Q$93003,16)) -> trau ma trau ma | N24: =CONCATENATE(,(VLOOKUP(N8,'All Words New'!$B$3:$Q$9300,15)),CHAR(13)&CHAR(10),VLOOKUP(N8,'All Words New'!$B$3:$Q$93003,16)) -> cow bird cow bird | Q24: 15 | AR24: 12 | AS24: AH
B25: =CONCATENATE(,(VLOOKUP(B9,'All Words New'!$B$3:$Q$9300,15)),CHAR(13)&CHAR(10),VLOOKUP(B9,'All Words New'!$B$3:$Q$93003,16)) -> saw dust saw dust | E25: =CONCATENATE(,(VLOOKUP(E9,'All Words New'!$B$3:$Q$9300,15)),CHAR(13)&CHAR(10),VLOOKUP(E9,'All Words New'!$B$3:$Q$93003,16)) -> prow ess prow ess | H25: =CONCATENATE(,(VLOOKUP(H9,'All Words New'!$B$3:$Q$9300,15)),CHAR(13)&CHAR(10),VLOOKUP(H9,'All Words New'!$B$3:$Q$93003,16)) -> sau sage sau sage | K25: =CONCATENATE(,(VLOOKUP(K9,'All Words New'!$B$3:$Q$9300,15)),CHAR(13)&CHAR(10),VLOOKUP(K9,'All Words New'!$B$3:$Q$93003,16)) -> view point view point | N25: =CONCATENATE(,(VLOOKUP(N9,'All Words New'!$B$3:$Q$9300,15)),CHAR(13)&CHAR(10),VLOOKUP(N9,'All Words New'!$B$3:$Q$93003,16)) -> new born new born | Q25: 20 | AR25: 13 | AS25: AI
B26: =CONCATENATE(,(VLOOKUP(B10,'All Words New'!$B$3:$Q$9300,15)),CHAR(13)&CHAR(10),VLOOKUP(B10,'All Words New'!$B$3:$Q$93003,16)) -> au dit au dit | E26: =CONCATENATE(,(VLOOKUP(E10,'All Words New'!$B$3:$Q$9300,15)),CHAR(13)&CHAR(10),VLOOKUP(E10,'All Words New'!$B$3:$Q$93003,16)) -> au ger au ger | H26: =CONCATENATE(,(VLOOKUP(H10,'All Words New'!$B$3:$Q$9300,15)),CHAR(13)&CHAR(10),VLOOKUP(H10,'All Words New'!$B$3:$Q$93003,16)) -> awn ing aw ning | K26: =CONCATENATE(,(VLOOKUP(K10,'All Words New'!$B$3:$Q$9300,15)),CHAR(13)&CHAR(10),VLOOKUP(K10,'All Words New'!$B$3:$Q$93003,16)) -> soy bean soy bean | N26: =CONCATENATE(,(VLOOKUP(N10,'All Words New'!$B$3:$Q$9300,15)),CHAR(13)&CHAR(10),VLOOKUP(N10,'All Words New'!$B$3:$Q$93003,16)) -> voy age voy age | Q26: 25 | AR26: 14 | AS26: AJ
B27: =CONCATENATE(,(VLOOKUP(B11,'All Words New'!$B$3:$Q$9300,15)),CHAR(13)&CHAR(10),VLOOKUP(B11,'All Words New'!$B$3:$Q$93003,16)) -> how dy how dy | E27: =CONCATENATE(,(VLOOKUP(E11,'All Words New'!$B$3:$Q$9300,15)),CHAR(13)&CHAR(10),VLOOKUP(E11,'All Words New'!$B$3:$Q$93003,16)) -> screw ball screw ball | H27: =CONCATENATE(,(VLOOKUP(H11,'All Words New'!$B$3:$Q$9300,15)),CHAR(13)&CHAR(10),VLOOKUP(H11,'All Words New'!$B$3:$Q$93003,16)) -> how dy how dy | K27: =CONCATENATE(,(VLOOKUP(K11,'All Words New'!$B$3:$Q$9300,15)),CHAR(13)&CHAR(10),VLOOKUP(K11,'All Words New'!$B$3:$Q$93003,16)) -> tow er tow er | N27: =CONCATENATE(,(VLOOKUP(N11,'All Words New'!$B$3:$Q$9300,15)),CHAR(13)&CHAR(10),VLOOKUP(N11,'All Words New'!$B$3:$Q$93003,16)) -> flaw less flaw less | Q27: 30 | AR27: 15 | AS27: AK
B28: =CONCATENATE(,(VLOOKUP(B12,'All Words New'!$B$3:$Q$9300,15)),CHAR(13)&CHAR(10),VLOOKUP(B12,'All Words New'!$B$3:$Q$93003,16)) -> view point view point | E28: =CONCATENATE(,(VLOOKUP(E12,'All Words New'!$B$3:$Q$9300,15)),CHAR(13)&CHAR(10),VLOOKUP(E12,'All Words New'!$B$3:$Q$93003,16)) -> saw mill saw mill | H28: =CONCATENATE(,(VLOOKUP(H12,'All Words New'!$B$3:$Q$9300,15)),CHAR(13)&CHAR(10),VLOOKUP(H12,'All Words New'!$B$3:$Q$93003,16)) -> saw horse saw horse | K28: =CONCATENATE(,(VLOOKUP(K12,'All Words New'!$B$3:$Q$9300,15)),CHAR(13)&CHAR(10),VLOOKUP(K12,'All Words New'!$B$3:$Q$93003,16)) -> braw ny braw ny | N28: =CONCATENATE(,(VLOOKUP(N12,'All Words New'!$B$3:$Q$9300,15)),CHAR(13)&CHAR(10),VLOOKUP(N12,'All Words New'!$B$3:$Q$93003,16)) -> trau ma trau ma | Q28: 35 | AR28: 16 | AS28: AL
B29: =CONCATENATE(,(VLOOKUP(B13,'All Words New'!$B$3:$Q$9300,15)),CHAR(13)&CHAR(10),VLOOKUP(B13,'All Words New'!$B$3:$Q$93003,16)) -> roy al roy al | E29: =CONCATENATE(,(VLOOKUP(E13,'All Words New'!$B$3:$Q$9300,15)),CHAR(13)&CHAR(10),VLOOKUP(E13,'All Words New'!$B$3:$Q$93003,16)) -> lous y lou sy | H29: =CONCATENATE(,(VLOOKUP(H13,'All Words New'!$B$3:$Q$9300,15)),CHAR(13)&CHAR(10),VLOOKUP(H13,'All Words New'!$B$3:$Q$93003,16)) -> chew y chew y | K29: =CONCATENATE(,(VLOOKUP(K13,'All Words New'!$B$3:$Q$9300,15)),CHAR(13)&CHAR(10),VLOOKUP(K13,'All Words New'!$B$3:$Q$93003,16)) -> roy al roy al | N29: =CONCATENATE(,(VLOOKUP(N13,'All Words New'!$B$3:$Q$9300,15)),CHAR(13)&CHAR(10),VLOOKUP(N13,'All Words New'!$B$3:$Q$93003,16)) -> au ger au ger | Q29: 40 | AR29: 17 | AS29: AM
B30: =CONCATENATE(,(VLOOKUP(B14,'All Words New'!$B$3:$Q$9300,15)),CHAR(13)&CHAR(10),VLOOKUP(B14,'All Words New'!$B$3:$Q$93003,16)) -> sau na sau na | E30: =CONCATENATE(,(VLOOKUP(E14,'All Words New'!$B$3:$Q$9300,15)),CHAR(13)&CHAR(10),VLOOKUP(E14,'All Words New'!$B$3:$Q$93003,16)) -> saw dust saw dust | H30: =CONCATENATE(,(VLOOKUP(H14,'All Words New'!$B$3:$Q$9300,15)),CHAR(13)&CHAR(10),VLOOKUP(H14,'All Words New'!$B$3:$Q$93003,16)) -> drow sy drow sy | K30: =CONCATENATE(,(VLOOKUP(K14,'All Words New'!$B$3:$Q$9300,15)),CHAR(13)&CHAR(10),VLOOKUP(K14,'All Words New'!$B$3:$Q$93003,16)) -> view point view point | N30: =CONCATENATE(,(VLOOKUP(N14,'All Words New'!$B$3:$Q$9300,15)),CHAR(13)&CHAR(10),VLOOKUP(N14,'All Words New'!$B$3:$Q$93003,16)) -> tow er tow er | Q30: 45 | AR30: 18 | AS30: AN
B31: =CONCATENATE(,(VLOOKUP(B15,'All Words New'!$B$3:$Q$9300,15)),CHAR(13)&CHAR(10),VLOOKUP(B15,'All Words New'!$B$3:$Q$93003,16)) -> soy bean soy bean | E31: =CONCATENATE(,(VLOOKUP(E15,'All Words New'!$B$3:$Q$9300,15)),CHAR(13)&CHAR(10),VLOOKUP(E15,'All Words New'!$B$3:$Q$93003,16)) -> dow dy dow dy | H31: =CONCATENATE(,(VLOOKUP(H15,'All Words New'!$B$3:$Q$9300,15)),CHAR(13)&CHAR(10),VLOOKUP(H15,'All Words New'!$B$3:$Q$93003,16)) -> au thor au thor | K31: =CONCATENATE(,(VLOOKUP(K15,'All Words New'!$B$3:$Q$9300,15)),CHAR(13)&CHAR(10),VLOOKUP(K15,'All Words New'!$B$3:$Q$93003,16)) -> lous y lou sy | N31: =CONCATENATE(,(VLOOKUP(N15,'All Words New'!$B$3:$Q$9300,15)),CHAR(13)&CHAR(10),VLOOKUP(N15,'All Words New'!$B$3:$Q$93003,16)) -> aw ful aw ful | Q31: 50
B32: =CONCATENATE(,(VLOOKUP(B16,'All Words New'!$B$3:$Q$9300,15)),CHAR(13)&CHAR(10),VLOOKUP(B16,'All Words New'!$B$3:$Q$93003,16)) -> low down low down | E32: =CONCATENATE(,(VLOOKUP(E16,'All Words New'!$B$3:$Q$9300,15)),CHAR(13)&CHAR(10),VLOOKUP(E16,'All Words New'!$B$3:$Q$93003,16)) -> lous y lou sy | H32: =CONCATENATE(,(VLOOKUP(H16,'All Words New'!$B$3:$Q$9300,15)),CHAR(13)&CHAR(10),VLOOKUP(H16,'All Words New'!$B$3:$Q$93003,16)) -> low down low down | K32: =CONCATENATE(,(VLOOKUP(K16,'All Words New'!$B$3:$Q$9300,15)),CHAR(13)&CHAR(10),VLOOKUP(K16,'All Words New'!$B$3:$Q$93003,16)) -> know ledge know ledge | N32: =CONCATENATE(,(VLOOKUP(N16,'All Words New'!$B$3:$Q$9300,15)),CHAR(13)&CHAR(10),VLOOKUP(N16,'All Words New'!$B$3:$Q$93003,16)) -> lous y lou sy | Q32: 55
B33: =CONCATENATE(,(VLOOKUP(B17,'All Words New'!$B$3:$Q$9300,15)),CHAR(13)&CHAR(10),VLOOKUP(B17,'All Words New'!$B$3:$Q$93003,16)) -> tow er tow er | E33: =CONCATENATE(,(VLOOKUP(E17,'All Words New'!$B$3:$Q$9300,15)),CHAR(13)&CHAR(10),VLOOKUP(E17,'All Words New'!$B$3:$Q$93003,16)) -> soup y sou py | H33: =CONCATENATE(,(VLOOKUP(H17,'All Words New'!$B$3:$Q$9300,15)),CHAR(13)&CHAR(10),VLOOKUP(H17,'All Words New'!$B$3:$Q$93003,16)) -> vow el vow el | K33: =CONCATENATE(,(VLOOKUP(K17,'All Words New'!$B$3:$Q$9300,15)),CHAR(13)&CHAR(10),VLOOKUP(K17,'All Words New'!$B$3:$Q$93003,16)) -> aw ful aw ful | N33: =CONCATENATE(,(VLOOKUP(N17,'All Words New'!$B$3:$Q$9300,15)),CHAR(13)&CHAR(10),VLOOKUP(N17,'All Words New'!$B$3:$Q$93003,16)) -> new born new born | Q33: 60
B34: =CONCATENATE(,(VLOOKUP(B18,'All Words New'!$B$3:$Q$9300,15)),CHAR(13)&CHAR(10),VLOOKUP(B18,'All Words New'!$B$3:$Q$93003,16)) -> cow boy cow boy | E34: =CONCATENATE(,(VLOOKUP(E18,'All Words New'!$B$3:$Q$9300,15)),CHAR(13)&CHAR(10),VLOOKUP(E18,'All Words New'!$B$3:$Q$93003,16)) -> trau ma trau ma | H34: =CONCATENATE(,(VLOOKUP(H18,'All Words New'!$B$3:$Q$9300,15)),CHAR(13)&CHAR(10),VLOOKUP(H18,'All Words New'!$B$3:$Q$93003,16)) -> dow ry dow ry | K34: =CONCATENATE(,(VLOOKUP(K18,'All Words New'!$B$3:$Q$9300,15)),CHAR(13)&CHAR(10),VLOOKUP(K18,'All Words New'!$B$3:$Q$93003,16)) -> dow el dow el | N34: =CONCATENATE(,(VLOOKUP(N18,'All Words New'!$B$3:$Q$9300,15)),CHAR(13)&CHAR(10),VLOOKUP(N18,'All Words New'!$B$3:$Q$93003,16)) -> view point view point | Q34: 65
B35: =CONCATENATE(,(VLOOKUP(B19,'All Words New'!$B$3:$Q$9300,15)),CHAR(13)&CHAR(10),VLOOKUP(B19,'All Words New'!$B$3:$Q$93003,16)) -> raw hide raw hide | E35: =CONCATENATE(,(VLOOKUP(E19,'All Words New'!$B$3:$Q$9300,15)),CHAR(13)&CHAR(10),VLOOKUP(E19,'All Words New'!$B$3:$Q$93003,16)) -> chew y chew y | H35: =CONCATENATE(,(VLOOKUP(H19,'All Words New'!$B$3:$Q$9300,15)),CHAR(13)&CHAR(10),VLOOKUP(H19,'All Words New'!$B$3:$Q$93003,16)) -> know ledge know ledge | K35: =CONCATENATE(,(VLOOKUP(K19,'All Words New'!$B$3:$Q$9300,15)),CHAR(13)&CHAR(10),VLOOKUP(K19,'All Words New'!$B$3:$Q$93003,16)) -> view point view point | N35: =CONCATENATE(,(VLOOKUP(N19,'All Words New'!$B$3:$Q$9300,15)),CHAR(13)&CHAR(10),VLOOKUP(N19,'All Words New'!$B$3:$Q$93003,16)) -> cow poke cow poke | Q35: 70
B36: =CONCATENATE(,(VLOOKUP(B20,'All Words New'!$B$3:$Q$9300,15)),CHAR(13)&CHAR(10),VLOOKUP(B20,'All Words New'!$B$3:$Q$93003,16)) -> cow pox cow pox | E36: =CONCATENATE(,(VLOOKUP(E20,'All Words New'!$B$3:$Q$9300,15)),CHAR(13)&CHAR(10),VLOOKUP(E20,'All Words New'!$B$3:$Q$93003,16)) -> tow el tow el | H36: =CONCATENATE(,(VLOOKUP(H20,'All Words New'!$B$3:$Q$9300,15)),CHAR(13)&CHAR(10),VLOOKUP(H20,'All Words New'!$B$3:$Q$93003,16)) -> sau sage sau sage | K36: =CONCATENATE(,(VLOOKUP(K20,'All Words New'!$B$3:$Q$9300,15)),CHAR(13)&CHAR(10),VLOOKUP(K20,'All Words New'!$B$3:$Q$93003,16)) -> cow hide cow hide | N36: =CONCATENATE(,(VLOOKUP(N20,'All Words New'!$B$3:$Q$9300,15)),CHAR(13)&CHAR(10),VLOOKUP(N20,'All Words New'!$B$3:$Q$93003,16)) -> show er show er | Q36: 75

Sheet Donut - Fruit Filled
B1: Fruit Filled do | nut | E1: =V2 -> whoopee | L1: 1st syllable vowel sounds au ou oi ou | U1: 1 | V1: Rule 1 = Dictionary 2 = Donut - Muffin | W1: 2 | X1: Dictionary Lookup | Y1: =VLOOKUP($V$2,'All Words New'!$B$3:$Q$9072,15) -> whoop ee | AB1: Excel Lookup | AC1: =VLOOKUP($V$2,'All Words New'!$B$3:$Q$9072,16) -> whoo pee
B2: ='Sample Worksheets'!D18 -> 26 | V2: =LOOKUP(RAND()*'Sample Worksheets'!$D$18,'Sample Worksheets'!$A$19:$A$73,'Sample Worksheets'!$D$19:$D$73) -> whoopee | W2: =IF(W1=2,AC1,Y1) -> whoo pee | Y2: 0 | Z2: =Y8 -> x | AA2: =Z8 -> cut after | AB2: x | AC2: x | AD2: x | AE2: x | AF2: x | AG2: x | AH2: x
B3: =MID($V$2,1,1) -> w | C3: =MID($V$2,X3,1) -> h | D3: =MID($V$2,Y3,1) -> o | E3: o | F3: p | G3: e | H3: e | V3: Cut # | W3: 1 | X3: 2 | Y3: 3 | Z3: 4 | AA3: 5 | AB3: 6 | AC3: 7 | AD3: 8 | AE3: 9 | AF3: 10 | AG3: 11 | AH3: 12 | AI3: 13 | AJ3: 14 | AK3: 15 | AL3: 16 | AM3: 17 | AN3: 18 | AO3: 19 | AP3: 20
B5: Fruit Filled Donuts | W5: =MID($W$2,1,1) -> w | X5: =MID($W$2,X3,1) -> h | Y5: o | Z5: o | AB5: p | AC5: e | AD5: e | AN5: =MID($W$2,AN3+1,1) ->  | AO5: =MID($W$2,AO3+1,1) ->  | AP5: =MID($W$2,AP3+1,1) -> 
B6: =LOOKUP(RAND()*'Sample Worksheets'!$D$18,'Sample Worksheets'!$A$19:$A$44,'Sample Worksheets'!$D$19:$D44) -> thruway | E6: =LOOKUP(RAND()*'Sample Worksheets'!$D$18,'Sample Worksheets'!$A$19:$A$44,'Sample Worksheets'!$D$19:$D44) -> austere | H6: =LOOKUP(RAND()*'Sample Worksheets'!$D$18,'Sample Worksheets'!$A$19:$A$44,'Sample Worksheets'!$D$19:$D44) -> juicy | K6: =LOOKUP(RAND()*'Sample Worksheets'!$D$18,'Sample Worksheets'!$A$19:$A$44,'Sample Worksheets'!$D$19:$D44) -> woozy | N6: =LOOKUP(RAND()*'Sample Worksheets'!$D$18,'Sample Worksheets'!$A$19:$A$44,'Sample Worksheets'!$D$19:$D44) -> bluebook | Q6: 5 | W6: =INDIRECT("W13") -> W5 | X6: =INDIRECT("X13") -> X5 | Y6: =INDIRECT("Y13") -> Y5 | Z6: =INDIRECT("Z13") -> AA5 | AA6: =INDIRECT("AA13") -> AB5 | AB6: =INDIRECT("AB13") -> AC5 | AC6: =INDIRECT("AC13") -> AD5 | AD6: =INDIRECT("AD13") -> AE5 | AE6: =INDIRECT("AE13") -> AF5 | AF6: =INDIRECT("AF13") -> AG5 | AG6: =INDIRECT("AG13") -> AH5 | AH6: =INDIRECT("AH13") -> AI5 | AI6: =INDIRECT("AI13") -> AI5 | AJ6: =INDIRECT("AJ13") -> AJ5 | AK6: =INDIRECT("AK13") -> AK5 | AL6: =INDIRECT("AL13") -> AL5 | AM6: =INDIRECT("AL13") -> AL5 | AN6: =INDIRECT("AL13") -> AL5 | AO6: =INDIRECT("AL13") -> AL5
B7: =LOOKUP(RAND()*'Sample Worksheets'!$D$18,'Sample Worksheets'!$A$19:$A$44,'Sample Worksheets'!$D$19:$D45) -> bluejay | E7: =LOOKUP(RAND()*'Sample Worksheets'!$D$18,'Sample Worksheets'!$A$19:$A$44,'Sample Worksheets'!$D$19:$D45) -> woozy | H7: =LOOKUP(RAND()*'Sample Worksheets'!$D$18,'Sample Worksheets'!$A$19:$A$44,'Sample Worksheets'!$D$19:$D45) -> bluejay | K7: =LOOKUP(RAND()*'Sample Worksheets'!$D$18,'Sample Worksheets'!$A$19:$A$44,'Sample Worksheets'!$D$19:$D45) -> booboo | N7: =LOOKUP(RAND()*'Sample Worksheets'!$D$18,'Sample Worksheets'!$A$19:$A$44,'Sample Worksheets'!$D$19:$D45) -> austere | Q7: =Q6+5 -> 10 | W7: =MID($W$2,1,1) -> w | X7: =MID($V$2,X3,1) -> h | Y7: o | Z7: o | AA7: p | AB7: e | AC7: e
B8: =LOOKUP(RAND()*'Sample Worksheets'!$D$18,'Sample Worksheets'!$A$19:$A$44,'Sample Worksheets'!$D$19:$D46) -> twosome | E8: =LOOKUP(RAND()*'Sample Worksheets'!$D$18,'Sample Worksheets'!$A$19:$A$44,'Sample Worksheets'!$D$19:$D46) -> bluebook | H8: =LOOKUP(RAND()*'Sample Worksheets'!$D$18,'Sample Worksheets'!$A$19:$A$44,'Sample Worksheets'!$D$19:$D46) -> woozy | K8: =LOOKUP(RAND()*'Sample Worksheets'!$D$18,'Sample Worksheets'!$A$19:$A$44,'Sample Worksheets'!$D$19:$D46) -> gloomy | N8: =LOOKUP(RAND()*'Sample Worksheets'!$D$18,'Sample Worksheets'!$A$19:$A$44,'Sample Worksheets'!$D$19:$D46) -> cloudy | Q8: =Q7+5 -> 15 | W8: =IF(ISERROR(MATCH(W3,$W$17:$AD$17,0)),"x","cut after") -> x | X8: =IF(ISERROR(MATCH(X3,$W$17:$AD$17,0)),"x","cut after") -> x | Y8: x | Z8: cut after | AA8: x | AB8: x | AC8: x | AD8: x | AE8: x | AF8: x | AG8: x | AH8: x | AI8: x | AJ8: x | AK8: x | AL8: x | AM8: x | AN8: x | AO8: x | AP8: x
B9: =LOOKUP(RAND()*'Sample Worksheets'!$D$18,'Sample Worksheets'!$A$19:$A$44,'Sample Worksheets'!$D$19:$D47) -> boohoo | E9: =LOOKUP(RAND()*'Sample Worksheets'!$D$18,'Sample Worksheets'!$A$19:$A$44,'Sample Worksheets'!$D$19:$D47) -> bluejay | H9: =LOOKUP(RAND()*'Sample Worksheets'!$D$18,'Sample Worksheets'!$A$19:$A$44,'Sample Worksheets'!$D$19:$D47) -> crooked | K9: =LOOKUP(RAND()*'Sample Worksheets'!$D$18,'Sample Worksheets'!$A$19:$A$44,'Sample Worksheets'!$D$19:$D47) -> booboo | N9: =LOOKUP(RAND()*'Sample Worksheets'!$D$18,'Sample Worksheets'!$A$19:$A$44,'Sample Worksheets'!$D$19:$D47) -> bluebook | Q9: 20 | W9: =IF(X5=" ",1,0) -> 0 | X9: =IF(Y5=" ",1,0) -> 0 | Y9: 0 | Z9: 1 | AA9: 0 | AB9: 0 | AC9: 0 | AD9: 0 | AE9: 0 | AF9: 0 | AG9: 0 | AH9: 0 | AI9: 0 | AJ9: 0 | AK9: 0 | AL9: 0 | AM9: 0 | AN9: 0 | AO9: 0
B10: =LOOKUP(RAND()*'Sample Worksheets'!$D$18,'Sample Worksheets'!$A$19:$A$44,'Sample Worksheets'!$D$19:$D48) -> cloudy | E10: =LOOKUP(RAND()*'Sample Worksheets'!$D$18,'Sample Worksheets'!$A$19:$A$44,'Sample Worksheets'!$D$19:$D48) -> cookie | H10: =LOOKUP(RAND()*'Sample Worksheets'!$D$18,'Sample Worksheets'!$A$19:$A$44,'Sample Worksheets'!$D$19:$D48) -> cloudy | K10: =LOOKUP(RAND()*'Sample Worksheets'!$D$18,'Sample Worksheets'!$A$19:$A$44,'Sample Worksheets'!$D$19:$D48) -> kooky | N10: =LOOKUP(RAND()*'Sample Worksheets'!$D$18,'Sample Worksheets'!$A$19:$A$44,'Sample Worksheets'!$D$19:$D48) -> booboo | Q10: 25 | W10: =SUM(W9) -> 0 | X10: =SUM(W9) -> 0 | Y10: =SUM(W9:X9) -> 0 | Z10: =SUM(W9:Y9) -> 0 | AA10: =SUM(W9:Z9) -> 1 | AB10: =SUM(W9:AB9) -> 1 | AC10: =SUM(W9:AC9) -> 1 | AD10: =SUM(W9:AD9) -> 1 | AE10: =SUM(W9:AE9) -> 1 | AF10: =SUM(W9:AF9) -> 1 | AG10: =SUM(W9:AG9) -> 1 | AH10: =SUM(W9:AH9) -> 1 | AI10: =SUM(AH9:AI9) -> 0 | AJ10: 0 | AK10: 0 | AL10: 0 | AM10: 0 | AN10: 0 | AO10: 0
B11: =LOOKUP(RAND()*'Sample Worksheets'!$D$18,'Sample Worksheets'!$A$19:$A$44,'Sample Worksheets'!$D$19:$D49) -> cloudy | E11: =LOOKUP(RAND()*'Sample Worksheets'!$D$18,'Sample Worksheets'!$A$19:$A$44,'Sample Worksheets'!$D$19:$D49) -> thousand | H11: =LOOKUP(RAND()*'Sample Worksheets'!$D$18,'Sample Worksheets'!$A$19:$A$44,'Sample Worksheets'!$D$19:$D49) -> noisy | K11: =LOOKUP(RAND()*'Sample Worksheets'!$D$18,'Sample Worksheets'!$A$19:$A$44,'Sample Worksheets'!$D$19:$D49) -> kooky | N11: =LOOKUP(RAND()*'Sample Worksheets'!$D$18,'Sample Worksheets'!$A$19:$A$44,'Sample Worksheets'!$D$19:$D49) -> juicy | Q11: 30 | V11: Number of cuts to make | Y11: =SUM(LEN(W2)-LEN(SUBSTITUTE(W2," ","")))/LEN(" ") -> 1
B12: =LOOKUP(RAND()*'Sample Worksheets'!$D$18,'Sample Worksheets'!$A$19:$A$44,'Sample Worksheets'!$D$19:$D50) -> woozy | E12: =LOOKUP(RAND()*'Sample Worksheets'!$D$18,'Sample Worksheets'!$A$19:$A$44,'Sample Worksheets'!$D$19:$D50) -> toupee | H12: =LOOKUP(RAND()*'Sample Worksheets'!$D$18,'Sample Worksheets'!$A$19:$A$44,'Sample Worksheets'!$D$19:$D50) -> twosome | K12: =LOOKUP(RAND()*'Sample Worksheets'!$D$18,'Sample Worksheets'!$A$19:$A$44,'Sample Worksheets'!$D$19:$D50) -> nuisance | N12: =LOOKUP(RAND()*'Sample Worksheets'!$D$18,'Sample Worksheets'!$A$19:$A$44,'Sample Worksheets'!$D$19:$D50) -> droopy | Q12: 35 | V12: Number of cuts actually made | Y12: 0
B13: =LOOKUP(RAND()*'Sample Worksheets'!$D$18,'Sample Worksheets'!$A$19:$A$44,'Sample Worksheets'!$D$19:$D51) -> crooked | E13: =LOOKUP(RAND()*'Sample Worksheets'!$D$18,'Sample Worksheets'!$A$19:$A$44,'Sample Worksheets'!$D$19:$D51) -> thruway | H13: =LOOKUP(RAND()*'Sample Worksheets'!$D$18,'Sample Worksheets'!$A$19:$A$44,'Sample Worksheets'!$D$19:$D51) -> bluebook | K13: =LOOKUP(RAND()*'Sample Worksheets'!$D$18,'Sample Worksheets'!$A$19:$A$44,'Sample Worksheets'!$D$19:$D51) -> bluebook | N13: =LOOKUP(RAND()*'Sample Worksheets'!$D$18,'Sample Worksheets'!$A$19:$A$44,'Sample Worksheets'!$D$19:$D51) -> blueblood | Q13: 40 | W13: =VLOOKUP(W3+W9,$AR$13:$AS$30,2)&5 -> W5 | X13: =VLOOKUP(X3+X9+X10,$AR$13:$AS$30,2)&5 -> X5 | Y13: =VLOOKUP(Y3+Y9+Y10,$AR$13:$AS$30,2)&5 -> Y5 | Z13: AA5 | AA13: AB5 | AB13: AC5 | AC13: AD5 | AD13: AE5 | AE13: AF5 | AF13: AG5 | AG13: AH5 | AH13: AI5 | AI13: AI5 | AJ13: AJ5 | AK13: AK5 | AL13: AL5 | AM13: AM5 | AN13: AN5 | AO13: AN5 | AR13: 1 | AS13: W
B14: =LOOKUP(RAND()*'Sample Worksheets'!$D$18,'Sample Worksheets'!$A$19:$A$44,'Sample Worksheets'!$D$19:$D52) -> bluejay | E14: =LOOKUP(RAND()*'Sample Worksheets'!$D$18,'Sample Worksheets'!$A$19:$A$44,'Sample Worksheets'!$D$19:$D52) -> twosome | H14: =LOOKUP(RAND()*'Sample Worksheets'!$D$18,'Sample Worksheets'!$A$19:$A$44,'Sample Worksheets'!$D$19:$D52) -> thruway | K14: =LOOKUP(RAND()*'Sample Worksheets'!$D$18,'Sample Worksheets'!$A$19:$A$44,'Sample Worksheets'!$D$19:$D52) -> spoilage | N14: =LOOKUP(RAND()*'Sample Worksheets'!$D$18,'Sample Worksheets'!$A$19:$A$44,'Sample Worksheets'!$D$19:$D52) -> austere | Q14: 45 | W14: Cut 1 | X14: Cut 2 | Y14: Cut 3 | Z14: Cut 4 | AA14: Cut 5 | AB14: Cut 6 | AC14: Cut 7 | AD14: Cut 8 | AR14: 2 | AS14: X
B15: =LOOKUP(RAND()*'Sample Worksheets'!$D$18,'Sample Worksheets'!$A$19:$A$44,'Sample Worksheets'!$D$19:$D53) -> boohoo | E15: =LOOKUP(RAND()*'Sample Worksheets'!$D$18,'Sample Worksheets'!$A$19:$A$44,'Sample Worksheets'!$D$19:$D53) -> droopy | H15: =LOOKUP(RAND()*'Sample Worksheets'!$D$18,'Sample Worksheets'!$A$19:$A$44,'Sample Worksheets'!$D$19:$D53) -> whoopee | K15: =LOOKUP(RAND()*'Sample Worksheets'!$D$18,'Sample Worksheets'!$A$19:$A$44,'Sample Worksheets'!$D$19:$D53) -> thruway | N15: =LOOKUP(RAND()*'Sample Worksheets'!$D$18,'Sample Worksheets'!$A$19:$A$44,'Sample Worksheets'!$D$19:$D53) -> whoopee | Q15: 50 | W15: =MATCH(1,$W$20:$AP$20,0) -> 5 | X15: =MATCH(2,$W$20:$AP$20,0) ->  | Y15: =MATCH(3,$W$20:$AP$20,0) ->  | Z15: =MATCH(4,$W$20:$AP$20,0) ->  | AA15: =MATCH(5,$W$20:$AP$20,0) ->  | AB15: =MATCH(6,$W$20:$AP$20,0) ->  | AC15: =MATCH(7,$W$20:$AP$20,0) ->  | AD15: =MATCH(8,$W$20:$AP$20,0) ->  | AM15: =INDIRECT("AM13") -> AM5 | AR15: 3 | AS15: Y
B16: =LOOKUP(RAND()*'Sample Worksheets'!$D$18,'Sample Worksheets'!$A$19:$A$44,'Sample Worksheets'!$D$19:$D54) -> twosome | E16: =LOOKUP(RAND()*'Sample Worksheets'!$D$18,'Sample Worksheets'!$A$19:$A$44,'Sample Worksheets'!$D$19:$D54) -> thousand | H16: =LOOKUP(RAND()*'Sample Worksheets'!$D$18,'Sample Worksheets'!$A$19:$A$44,'Sample Worksheets'!$D$19:$D54) -> booboo | K16: =LOOKUP(RAND()*'Sample Worksheets'!$D$18,'Sample Worksheets'!$A$19:$A$44,'Sample Worksheets'!$D$19:$D54) -> twosome | N16: =LOOKUP(RAND()*'Sample Worksheets'!$D$18,'Sample Worksheets'!$A$19:$A$44,'Sample Worksheets'!$D$19:$D54) -> crooked | Q16: 55 | W16: =W15-1 -> 4 | X16: =X15-2 ->  | Y16: =Y15-3 ->  | Z16: =Z15-4 ->  | AA16: =AA15-5 ->  | AB16: =AB15-6 ->  | AC16: =AC15-6 ->  | AD16: =AD15-6 ->  | AR16: 4 | AS16: Z
B17: =LOOKUP(RAND()*'Sample Worksheets'!$D$18,'Sample Worksheets'!$A$19:$A$44,'Sample Worksheets'!$D$19:$D55) -> spoilage | E17: =LOOKUP(RAND()*'Sample Worksheets'!$D$18,'Sample Worksheets'!$A$19:$A$44,'Sample Worksheets'!$D$19:$D55) -> austere | H17: =LOOKUP(RAND()*'Sample Worksheets'!$D$18,'Sample Worksheets'!$A$19:$A$44,'Sample Worksheets'!$D$19:$D55) -> cloudy | K17: =LOOKUP(RAND()*'Sample Worksheets'!$D$18,'Sample Worksheets'!$A$19:$A$44,'Sample Worksheets'!$D$19:$D55) -> whoopee | N17: =LOOKUP(RAND()*'Sample Worksheets'!$D$18,'Sample Worksheets'!$A$19:$A$44,'Sample Worksheets'!$D$19:$D55) -> droopy | Q17: 60 | W17: =IF(ISERROR(W15),0,W16) -> 4 | X17: 0 | Y17: 0 | Z17: 0 | AA17: 0 | AB17: 0 | AC17: 0 | AD17: 0 | AR17: 5 | AS17: AA
B18: =LOOKUP(RAND()*'Sample Worksheets'!$D$18,'Sample Worksheets'!$A$19:$A$44,'Sample Worksheets'!$D$19:$D56) -> spoilage | E18: =LOOKUP(RAND()*'Sample Worksheets'!$D$18,'Sample Worksheets'!$A$19:$A$44,'Sample Worksheets'!$D$19:$D56) -> August | H18: =LOOKUP(RAND()*'Sample Worksheets'!$D$18,'Sample Worksheets'!$A$19:$A$44,'Sample Worksheets'!$D$19:$D56) -> nuisance | K18: =LOOKUP(RAND()*'Sample Worksheets'!$D$18,'Sample Worksheets'!$A$19:$A$44,'Sample Worksheets'!$D$19:$D56) -> gloomy | N18: =LOOKUP(RAND()*'Sample Worksheets'!$D$18,'Sample Worksheets'!$A$19:$A$44,'Sample Worksheets'!$D$19:$D56) -> booboo | Q18: 65 | W18: =VLOOKUP(W17,$AR$13:$AS$30,2)&5 -> Z5 | X18: =VLOOKUP(X17,$AR$13:$AS$30,2)&5 ->  | AR18: 6 | AS18: AB
B19: =LOOKUP(RAND()*'Sample Worksheets'!$D$18,'Sample Worksheets'!$A$19:$A$44,'Sample Worksheets'!$D$19:$D57) -> austere | E19: =LOOKUP(RAND()*'Sample Worksheets'!$D$18,'Sample Worksheets'!$A$19:$A$44,'Sample Worksheets'!$D$19:$D57) -> kooky | H19: =LOOKUP(RAND()*'Sample Worksheets'!$D$18,'Sample Worksheets'!$A$19:$A$44,'Sample Worksheets'!$D$19:$D57) -> bluebook | K19: =LOOKUP(RAND()*'Sample Worksheets'!$D$18,'Sample Worksheets'!$A$19:$A$44,'Sample Worksheets'!$D$19:$D57) -> juicy | N19: =LOOKUP(RAND()*'Sample Worksheets'!$D$18,'Sample Worksheets'!$A$19:$A$44,'Sample Worksheets'!$D$19:$D57) -> twosome | Q19: 70 | V19: Find Cell with Space | W19: =IF(W5=" ","Y","") ->  | X19: =IF(X5=" ","Y","") ->  | AA19: Y | AR19: 7 | AS19: AC
B20: =LOOKUP(RAND()*'Sample Worksheets'!$D$18,'Sample Worksheets'!$A$19:$A$44,'Sample Worksheets'!$D$19:$D58) -> juicy | E20: =LOOKUP(RAND()*'Sample Worksheets'!$D$18,'Sample Worksheets'!$A$19:$A$44,'Sample Worksheets'!$D$19:$D58) -> twosome | H20: =LOOKUP(RAND()*'Sample Worksheets'!$D$18,'Sample Worksheets'!$A$19:$A$44,'Sample Worksheets'!$D$19:$D58) -> cookie | K20: =LOOKUP(RAND()*'Sample Worksheets'!$D$18,'Sample Worksheets'!$A$19:$A$44,'Sample Worksheets'!$D$19:$D58) -> crooked | N20: =LOOKUP(RAND()*'Sample Worksheets'!$D$18,'Sample Worksheets'!$A$19:$A$44,'Sample Worksheets'!$D$19:$D58) -> blueblood | Q20: 75 | V20: Count sums of Y's | W20: =COUNTIF($W$19:W19,"Y") -> 0 | X20: =COUNTIF($W$19:X19,"Y") -> 0 | Y20: =COUNTIF($W$19:Y19,"Y") -> 0 | Z20: =COUNTIF($W$19:Z19,"Y") -> 0 | AA20: =COUNTIF($W$19:AA19,"Y") -> 1 | AB20: =COUNTIF($W$19:AB19,"Y") -> 1 | AC20: =COUNTIF($W$19:AC19,"Y") -> 1 | AD20: =COUNTIF($W$19:AD19,"Y") -> 1 | AE20: =COUNTIF($W$19:AE19,"Y") -> 1 | AF20: =COUNTIF($W$19:AF19,"Y") -> 1 | AG20: =COUNTIF($W$19:AG19,"Y") -> 1 | AH20: =COUNTIF($W$19:AH19,"Y") -> 1 | AI20: =COUNTIF($W$19:AI19,"Y") -> 1 | AJ20: =COUNTIF($W$19:AJ19,"Y") -> 1 | AK20: =COUNTIF($W$19:AK19,"Y") -> 1 | AL20: =COUNTIF($W$19:AL19,"Y") -> 1 | AM20: =COUNTIF($W$19:AM19,"Y") -> 1 | AN20: =COUNTIF($W$19:AN19,"Y") -> 1 | AO20: =COUNTIF($W$19:AO19,"Y") -> 1 | AR20: 8 | AS20: AD
B21: =CONCATENATE(B5," - Answer Key Dictionary Rule (Top) Donut Rule (Bottom)") -> Fruit Filled Donuts - Answer Key Dictionary Rule (Top) Donut Rule (Bottom) | AR21: 9 | AS21: AE
B22: =CONCATENATE(,(VLOOKUP(B6,'All Words New'!$B$3:$Q$9300,15)),CHAR(13)&CHAR(10),VLOOKUP(B6,'All Words New'!$B$3:$Q$93003,16)) -> thru way thru way | E22: =CONCATENATE(,(VLOOKUP(E6,'All Words New'!$B$3:$Q$9300,15)),CHAR(13)&CHAR(10),VLOOKUP(E6,'All Words New'!$B$3:$Q$93003,16)) -> aus tere aus tere | H22: =CONCATENATE(,(VLOOKUP(H6,'All Words New'!$B$3:$Q$9300,15)),CHAR(13)&CHAR(10),VLOOKUP(H6,'All Words New'!$B$3:$Q$93003,16)) -> jui cy jui cy | K22: =CONCATENATE(,(VLOOKUP(K6,'All Words New'!$B$3:$Q$9300,15)),CHAR(13)&CHAR(10),VLOOKUP(K6,'All Words New'!$B$3:$Q$93003,16)) -> woo zy woo zy | N22: =CONCATENATE(,(VLOOKUP(N6,'All Words New'!$B$3:$Q$9300,15)),CHAR(13)&CHAR(10),VLOOKUP(N6,'All Words New'!$B$3:$Q$93003,16)) -> blue book blue book | Q22: =Q21+5 -> 5 | AR22: 10 | AS22: AF
B23: =CONCATENATE(,(VLOOKUP(B7,'All Words New'!$B$3:$Q$9300,15)),CHAR(13)&CHAR(10),VLOOKUP(B7,'All Words New'!$B$3:$Q$93003,16)) -> blue jay blue jay | E23: =CONCATENATE(,(VLOOKUP(E7,'All Words New'!$B$3:$Q$9300,15)),CHAR(13)&CHAR(10),VLOOKUP(E7,'All Words New'!$B$3:$Q$93003,16)) -> woo zy woo zy | H23: =CONCATENATE(,(VLOOKUP(H7,'All Words New'!$B$3:$Q$9300,15)),CHAR(13)&CHAR(10),VLOOKUP(H7,'All Words New'!$B$3:$Q$93003,16)) -> blue jay blue jay | K23: =CONCATENATE(,(VLOOKUP(K7,'All Words New'!$B$3:$Q$9300,15)),CHAR(13)&CHAR(10),VLOOKUP(K7,'All Words New'!$B$3:$Q$93003,16)) -> boo boo boo boo | N23: =CONCATENATE(,(VLOOKUP(N7,'All Words New'!$B$3:$Q$9300,15)),CHAR(13)&CHAR(10),VLOOKUP(N7,'All Words New'!$B$3:$Q$93003,16)) -> aus tere aus tere | Q23: 10 | AR23: 11 | AS23: AG
B24: =CONCATENATE(,(VLOOKUP(B8,'All Words New'!$B$3:$Q$9300,15)),CHAR(13)&CHAR(10),VLOOKUP(B8,'All Words New'!$B$3:$Q$93003,16)) -> two some two some | E24: =CONCATENATE(,(VLOOKUP(E8,'All Words New'!$B$3:$Q$9300,15)),CHAR(13)&CHAR(10),VLOOKUP(E8,'All Words New'!$B$3:$Q$93003,16)) -> blue book blue book | H24: =CONCATENATE(,(VLOOKUP(H8,'All Words New'!$B$3:$Q$9300,15)),CHAR(13)&CHAR(10),VLOOKUP(H8,'All Words New'!$B$3:$Q$93003,16)) -> woo zy woo zy | K24: =CONCATENATE(,(VLOOKUP(K8,'All Words New'!$B$3:$Q$9300,15)),CHAR(13)&CHAR(10),VLOOKUP(K8,'All Words New'!$B$3:$Q$93003,16)) -> gloom y gloo my | N24: =CONCATENATE(,(VLOOKUP(N8,'All Words New'!$B$3:$Q$9300,15)),CHAR(13)&CHAR(10),VLOOKUP(N8,'All Words New'!$B$3:$Q$93003,16)) -> cloud y clou dy | Q24: 15 | AR24: 12 | AS24: AH
B25: =CONCATENATE(,(VLOOKUP(B9,'All Words New'!$B$3:$Q$9300,15)),CHAR(13)&CHAR(10),VLOOKUP(B9,'All Words New'!$B$3:$Q$93003,16)) -> boo hoo boo hoo | E25: =CONCATENATE(,(VLOOKUP(E9,'All Words New'!$B$3:$Q$9300,15)),CHAR(13)&CHAR(10),VLOOKUP(E9,'All Words New'!$B$3:$Q$93003,16)) -> blue jay blue jay | H25: =CONCATENATE(,(VLOOKUP(H9,'All Words New'!$B$3:$Q$9300,15)),CHAR(13)&CHAR(10),VLOOKUP(H9,'All Words New'!$B$3:$Q$93003,16)) -> crook ed croo ked | K25: =CONCATENATE(,(VLOOKUP(K9,'All Words New'!$B$3:$Q$9300,15)),CHAR(13)&CHAR(10),VLOOKUP(K9,'All Words New'!$B$3:$Q$93003,16)) -> boo boo boo boo | N25: =CONCATENATE(,(VLOOKUP(N9,'All Words New'!$B$3:$Q$9300,15)),CHAR(13)&CHAR(10),VLOOKUP(N9,'All Words New'!$B$3:$Q$93003,16)) -> blue book blue book | Q25: 20 | AR25: 13 | AS25: AI
B26: =CONCATENATE(,(VLOOKUP(B10,'All Words New'!$B$3:$Q$9300,15)),CHAR(13)&CHAR(10),VLOOKUP(B10,'All Words New'!$B$3:$Q$93003,16)) -> cloud y clou dy | E26: =CONCATENATE(,(VLOOKUP(E10,'All Words New'!$B$3:$Q$9300,15)),CHAR(13)&CHAR(10),VLOOKUP(E10,'All Words New'!$B$3:$Q$93003,16)) -> cook ie coo kie | H26: =CONCATENATE(,(VLOOKUP(H10,'All Words New'!$B$3:$Q$9300,15)),CHAR(13)&CHAR(10),VLOOKUP(H10,'All Words New'!$B$3:$Q$93003,16)) -> cloud y clou dy | K26: =CONCATENATE(,(VLOOKUP(K10,'All Words New'!$B$3:$Q$9300,15)),CHAR(13)&CHAR(10),VLOOKUP(K10,'All Words New'!$B$3:$Q$93003,16)) -> kook y koo ky | N26: =CONCATENATE(,(VLOOKUP(N10,'All Words New'!$B$3:$Q$9300,15)),CHAR(13)&CHAR(10),VLOOKUP(N10,'All Words New'!$B$3:$Q$93003,16)) -> boo boo boo boo | Q26: 25 | AR26: 14 | AS26: AJ
B27: =CONCATENATE(,(VLOOKUP(B11,'All Words New'!$B$3:$Q$9300,15)),CHAR(13)&CHAR(10),VLOOKUP(B11,'All Words New'!$B$3:$Q$93003,16)) -> cloud y clou dy | E27: =CONCATENATE(,(VLOOKUP(E11,'All Words New'!$B$3:$Q$9300,15)),CHAR(13)&CHAR(10),VLOOKUP(E11,'All Words New'!$B$3:$Q$93003,16)) -> thou sand thou sand | H27: =CONCATENATE(,(VLOOKUP(H11,'All Words New'!$B$3:$Q$9300,15)),CHAR(13)&CHAR(10),VLOOKUP(H11,'All Words New'!$B$3:$Q$93003,16)) -> nois y noi sy | K27: =CONCATENATE(,(VLOOKUP(K11,'All Words New'!$B$3:$Q$9300,15)),CHAR(13)&CHAR(10),VLOOKUP(K11,'All Words New'!$B$3:$Q$93003,16)) -> kook y koo ky | N27: =CONCATENATE(,(VLOOKUP(N11,'All Words New'!$B$3:$Q$9300,15)),CHAR(13)&CHAR(10),VLOOKUP(N11,'All Words New'!$B$3:$Q$93003,16)) -> jui cy jui cy | Q27: 30 | AR27: 15 | AS27: AK
B28: =CONCATENATE(,(VLOOKUP(B12,'All Words New'!$B$3:$Q$9300,15)),CHAR(13)&CHAR(10),VLOOKUP(B12,'All Words New'!$B$3:$Q$93003,16)) -> woo zy woo zy | E28: =CONCATENATE(,(VLOOKUP(E12,'All Words New'!$B$3:$Q$9300,15)),CHAR(13)&CHAR(10),VLOOKUP(E12,'All Words New'!$B$3:$Q$93003,16)) -> tou pee tou pee | H28: =CONCATENATE(,(VLOOKUP(H12,'All Words New'!$B$3:$Q$9300,15)),CHAR(13)&CHAR(10),VLOOKUP(H12,'All Words New'!$B$3:$Q$93003,16)) -> two some two some | K28: =CONCATENATE(,(VLOOKUP(K12,'All Words New'!$B$3:$Q$9300,15)),CHAR(13)&CHAR(10),VLOOKUP(K12,'All Words New'!$B$3:$Q$93003,16)) -> nui sance nui sance | N28: =CONCATENATE(,(VLOOKUP(N12,'All Words New'!$B$3:$Q$9300,15)),CHAR(13)&CHAR(10),VLOOKUP(N12,'All Words New'!$B$3:$Q$93003,16)) -> droop y droo py | Q28: 35 | AR28: 16 | AS28: AL
